{"text_format":"1","workbook":"xlsx","n_sheets":4,"sheets":["SAPBEXqueriesDefunct","SAPBEXfiltersDefunct","BExRepositorySheet","Foglio1"],"not_rendered":{"charts":0,"images":1,"macros":0,"external_links":0,"defined_names":232,"comments":0,"pivot_tables":0},"unopened":[],"bounds":{"document_bytes":16777216,"sheet_cells":100000,"rows_first":2000,"rows_last":500,"rows_between":2000,"halvings":0,"cell_chars":16384,"cell_head_chars":4096},"cells_cut":0,"cells_raw":0,"read":"whole","date_system":"1900"}

{"sheet":"SAPBEXqueriesDefunct","index":0,"n_rows":1416,"n_cols":233,"rows_kept":562,"cut":true,"hidden":true,"merged":[],"bounds":{"rows_first":250,"rows_last":62,"rows_between":250,"halvings":3}}
[9]
[2,null,null,null,null,null,null,null,null,null,null,null,null,null,null,null,null,null,null,null,null,null,null,null,null,null,null,null,null,null,156,null,null,null,null,null,null,null,null,null,null,null,null,null,null,null,null,null,null,null,null,null,null,null,null,null,null,null,null,null,null,null,null,null,null,null,null,null,null,null,null,null,null,null,null,null,null,null,null,null,null,null,null,null,null,null,null,null,null,null,111,null,null,null,null,null,null,null,null,null,null,null,null,null,null,null,null,null,null,null,1413,null,null,null,null,null,null,null,null,null,null,null,null,null,null,null,null,null,null,null,910,null,null,null,null,null,null,null,null,null,null,null,null,null,null,null,null,null,null,null,0,null,null,null,null,null,null,null,null,null,null,null,null,null,null,null,null,null,null,null,null,null,null,null,null,null,null,null,null,null,48,null,null,null,null,null,null,null,null,null,null,null,null,null,null,null,null,null,null,null,null,null,null,null,null,null,null,null,null,null,null,null,null,null,null,null,null,null,null,null,null,null,null,null,null,null,null,null,null,null,62]
[24,null,null,null,null,null,null,null,null,null,null,null,null,null,null,null,null,null,null,null,null,null,null,null,null,null,null,null,null,null,59,null,null,null,null,null,null,null,null,null,null,null,null,null,null,null,null,null,null,null,null,null,null,null,null,null,null,null,null,null,null,null,null,null,null,null,null,null,null,null,null,null,null,null,null,null,null,null,null,null,null,null,null,null,null,null,null,null,null,null,13,null,null,null,null,null,null,null,null,null,null,null,null,null,null,null,null,null,null,null,14,null,null,null,null,null,null,null,null,null,null,null,null,null,null,null,null,null,null,null,13,null,null,null,null,null,null,null,null,null,null,null,null,null,null,null,null,null,null,null,11,null,null,null,null,null,null,null,null,null,null,null,null,null,null,null,null,null,null,null,null,null,null,null,null,null,null,null,null,null,21,null,null,null,null,null,null,null,null,null,null,null,null,null,null,null,null,null,null,null,null,null,null,null,null,null,null,null,null,null,null,null,null,null,null,null,null,null,null,null,null,null,null,null,null,null,null,null,null,null,2]
[null,17,"74Y5HWPAAIDFWK2KRW5BGZLPE",true,false,"SAPBEXq0002",0,0,false,null,null,true,false,null,true,false,0,null,5,true,false,null,null,false,false,false,null,null,null,null,5,"0CUST_SALES__0CUST_GROUP","Cust. Group","X","","","0001","","","","","","","","0","03","","","","00000000","K","0CUST_SALES__0CUST_GROUP","A","","","H","","","","","","00000000","0000","","0","","","","","1","1","1","0","0","","","","","","BAN3FZWS3XJLAW4LIDB8UQDK8","","","","","",null,null,null,null,null,5,"8P8NYH0UHH6PE1EEKLY6F76ZW","E3FJ8ERLJU845UJO3V3FXN76J","Bill","0001","","F","","L","",null,null,null,null,null,null,null,null,null,null,5,"CHPLPLC","CHPLPLCGR","PLC Status Group","0000","X","","0","0","","","",null,null,null,null,null,null,null,null,5,"042N13AJJDL9ZIZ9M827VFW77","0XOUE3TQ85XCLNJ97LK4N131O","","","","","","00","X","0","0","","",null,null,null,null,null,null,null,null,null,null,null,null,null,null,null,null,null,null,null,null,null,null,null,null,null,null,null,null,null,null,null,null,null,null,null,null,5,"DVCURMON","1","P","I","EQ","05","5","","","MAY","40","","0","","0","","20","","","0CALMONTH2",null,null,null,null,null,null,null,null,null,null,null,null,null,null,null,null,null,null,null,null,null,null,null,null,null,null,null,null,null,5,"0000000107","A8BZ00GRUXSWGGU6LVV6NUJYU"]
[null,0,"74Y5HWPAAIDFWK2KRW5BGZLPE",true,false,"SAPBEXq0003",0,0,false,null,null,true,false,null,true,false,0,null,5,true,false,null,null,false,false,false,null,null,null,null,5,"0MATERIAL__CHPGTYPE","Prod. Type","X","","","0002","","","","","","","","1","03","","","","00000000","K","0MATERIAL__CHPGTYPE","A","","","H","","","","","","00000000","0000","","0","","","","","1","1","1","0","0","","","","","","F0Q6PDJVTTO5PQDQVE1JNQC5L","","","","","",null,null,null,null,null,5,"9EDW4DI8YCG2IA4PF83LZ9RRW","A4CNQYIEI3A4SAZQW9RFY18NV","AY\r\nYTD","0001","","S","","L","",null,null,null,null,null,null,null,null,null,null,5,"CHSALSREP","0ACCNT_GRP","Account group","0000","X","","0","0","","","",null,null,null,null,null,null,null,null,5,"042N13AJJDL9ZIZ9M827VFW77","40OMIIL7VXC390GHTHLXLN24I","","","","","","00","X","0","0","","",null,null,null,null,null,null,null,null,null,null,null,null,null,null,null,null,null,null,null,null,null,null,null,null,null,null,null,null,null,null,null,null,null,null,null,null,5,"0CYEAR","1","P","I","EQ","2008","2008","","","","0","","0","","0","Current calendar yr","20","","","0CALYEAR",null,null,null,null,null,null,null,null,null,null,null,null,null,null,null,null,null,null,null,null,null,null,null,null,null,null,null,null,null,5,"0000000100","X"]
[null,null,null,null,null,null,null,null,null,null,null,null,null,null,null,null,null,null,null,null,null,null,null,null,null,false,null,null,null,null,5,"0MATERIAL__CHPGCATEG","Prod. Cat.","X","","","0003","","","","","","","","1","03","","","","00000000","K","0MATERIAL__CHPGCATEG","A","","","H","","","","","","00000000","0000","","0","","","","","1","1","1","0","0","","","","","","9AK4YLU9KFIT2ZX1JV06Y2RSX","","","","","",null,null,null,null,null,5,"8P8NYH0UHH6PE1EEKLY6F76ZW","5U2W4SBET1P1PDUABLYPXBGHB","Bill (Act)","0002","X","S","","L","X",null,null,null,null,null,null,null,null,null,null,5,"CHSALSREP","0ADDR_NUMBR","Address","0000","X","","0","0","","","",null,null,null,null,null,null,null,null,5,"042N13AJJDL9ZIZ9M827VFW77","85T7YQIWK1QB9ILJLJ1SQZN8J","","","","","","00","X","0","0","","",null,null,null,null,null,null,null,null,null,null,null,null,null,null,null,null,null,null,null,null,null,null,null,null,null,null,null,null,null,null,null,null,null,null,null,null,5,"DVASLORG","1","S","","","","","","","","0","","0","","0","","20","","","0SALESORG",null,null,null,null,null,null,null,null,null,null,null,null,null,null,null,null,null,null,null,null,null,null,null,null,null,null,null,null,null,5,"0000000101",""]
[null,null,null,null,null,null,null,null,null,null,null,null,null,null,null,null,null,null,null,null,null,null,null,null,null,null,null,null,null,null,5,"CHPLPLC__CHPLPLCGR","PLC Group","X","","","0004","","","","","","","","1","03","","","","00000000","K","CHPLPLC__CHPLPLCGR","A","","","H","","","","","","00000000","0000","","0","","","","","1","1","1","0","0","","","","","","DJFTJZE9VVDHQTUWCISE5LGYM","","","","","",null,null,null,null,null,5,"9EDW4DI8YCG2IA4PF83LZ9RRW","D3T5FYJK7PWFTR9ZIOUJLTV60","%B\r\nYTD","0002","","F","","L","",null,null,null,null,null,null,null,null,null,null,5,"CHSALSREP","0CITY","Location","0000","X","","0","0","","","",null,null,null,null,null,null,null,null,5,"042N13AJJDL9ZIZ9M827VFW77","8VM70DOM0541L205HX82GQTS1","0","1","","","","00","X","0","0","","",null,null,null,null,null,null,null,null,null,null,null,null,null,null,null,null,null,null,null,null,null,null,null,null,null,null,null,null,null,null,null,null,null,null,null,null,5,"DVASALO2","1","S","","","","","","","","0","","0","","0","","20","","","0CUST_SALES__0SALES_OFF",null,null,null,null,null,null,null,null,null,null,null,null,null,null,null,null,null,null,null,null,null,null,null,null,null,null,null,null,null,5,"0000000104","2"]
[null,null,null,null,null,null,null,null,null,null,null,null,null,null,null,null,null,null,null,null,null,null,null,null,null,null,null,null,null,null,5,"CHPLPLC","PLC Status","X","","","0005","","","","","","","U","1","03","","","","00000000","K","CHPLPLC","A","","","H","","","","","","00000000","0000","","0","","","","","1","1","1","0","0","","","","","","5P2UE8IDIDT5ODB5HV6PJACAR","","","","","",null,null,null,null,null,5,"9EDW4DI8YCG2IA4PF83LZ9RRW","DLW9P54P4AT0OYHVG7ZL1IM5E","%PY\r\nYTD","0003","","F","","L","",null,null,null,null,null,null,null,null,null,null,5,"CHSALSREP","0COUNTRY","Country","0000","X","","0","0","","","",null,null,null,null,null,null,null,null,5,"042N13AJJDL9ZIZ9M827VFW77","9VEXAVKBGLVPRM2LYAWT8O2BM","0","1","","","","00","X","0","0","","",null,null,null,null,null,null,null,null,null,null,null,null,null,null,null,null,null,null,null,null,null,null,null,null,null,null,null,null,null,null,null,null,null,null,null,null,5,"DVDCHAN","1","M","","","","","","","","0","","0","","0","","20","","","0DISTR_CHAN",null,null,null,null,null,null,null,null,null,null,null,null,null,null,null,null,null,null,null,null,null,null,null,null,null,null,null,null,null,5,"0000000103",""]
[null,null,null,null,null,null,null,null,null,null,null,null,null,null,null,null,null,null,null,null,null,null,null,null,null,null,null,null,null,null,5,"CHSALSREP","Sales Rep.","X","","","0006","","","","","","","","2","03","","","","00000000","K","CHSALSREP","A","","","H","","","","","","00000000","0000","","3","0POSTCD_GIS","","","","1","1","1","0","0","","","","","","1I6OUQ3A458X2TA1IF7IIJ32L","","","","","",null,null,null,null,null,5,"8P8NYH0UHH6PE1EEKLY6F76ZW","EK035X7VEQYJPDWIQ6JCMKQHJ","Bill (Bud)","0003","X","S","","L","X",null,null,null,null,null,null,null,null,null,null,5,"CHSALSREP","0FAX_NUM","Fax Number","0000","X","","0","0","","","",null,null,null,null,null,null,null,null,5,"042N13AJJDL9ZIZ9M827VFW77","A4CNQYIEI3A4SAZQW9RFY18NV","","","","","","00","X","0","0","","",null,null,null,null,null,null,null,null,null,null,null,null,null,null,null,null,null,null,null,null,null,null,null,null,null,null,null,null,null,null,null,null,null,null,null,null,5,"DVBRAUTH","1","S","","","","","","","","0","","0","","0","","20","","","0MATERIAL__CHPGBRAND",null,null,null,null,null,null,null,null,null,null,null,null,null,null,null,null,null,null,null,null,null,null,null,null,null,null,null,null,null,5,"0000000102","1"]
[null,null,null,null,null,null,null,null,null,null,null,null,null,null,null,null,null,null,null,null,null,null,null,null,null,null,null,null,null,null,5,"0MATERIAL__CHPGSTYLE","Prod. Style","X","","","0007","","","","","","","","1","03","","","","00000000","K","0MATERIAL__CHPGSTYLE","A","","","H","","","","","","00000000","0000","","0","","","","","1","1","1","0","0","","","","","","231OHPR5OTWTPPJYC2VDQUQR6","","","","","",null,null,null,null,null,5,"9EDW4DI8YCG2IA4PF83LZ9RRW","CLLNFQKTMRYLVSUHUSN173QAV","AY","0004","Y","S","","L","",null,null,null,null,null,null,null,null,null,null,5,"CHSALSREP","0ID_TXNUMB3","Tax Number 3","0000","X","","0","0","","","",null,null,null,null,null,null,null,null,5,"042N13AJJDL9ZIZ9M827VFW77","CB4LNO5UGX170R82X1SKZYXQI","","","","","","00","X","0","0","","",null,null,null,null,null,null,null,null,null,null,null,null,null,null,null,null,null,null,null,null,null,null,null,null,null,null,null,null,null,null,null,null,null,null,null,null,5,"DVSUBBRA","1","S","","","","","","","","0","","0","","0","","20","","","0MATERIAL__CHPGSUBBR",null,null,null,null,null,null,null,null,null,null,null,null,null,null,null,null,null,null,null,null,null,null,null,null,null,null,null,null,null,5,"0000000108","X"]
[null,null,null,null,null,null,null,null,null,null,null,null,null,null,null,null,null,null,null,null,null,null,null,null,null,null,null,null,null,null,5,"0MATERIAL__CHPGGROUP","Prod. Group","X","","","0008","","","","","","","","1","03","","","","00000000","K","CHSORTORD","D","","","H","","","","","","00000000","0000","","0","","","","","1","1","1","0","0","","","","","","3KBQDRY945TFDQ2L7BJSUH6Q2","","","","","",null,null,null,null,null,5,"8P8NYH0UHH6PE1EEKLY6F76ZW","BAI19GP8IE8J4WJN7LSTLARIP","Qty","0004","","F","","L","",null,null,null,null,null,null,null,null,null,null,5,"CHSALSREP","0INDUSTRY","Industry","0000","X","","0","0","","","",null,null,null,null,null,null,null,null,5,"042N13AJJDL9ZIZ9M827VFW77","CLLNFQKTMRYLVSUHUSN173QAV","","","","","","00","X","0","0","","",null,null,null,null,null,null,null,null,null,null,null,null,null,null,null,null,null,null,null,null,null,null,null,null,null,null,null,null,null,null,null,null,null,null,null,null,5,"DVPRODLI","1","S","","","","","","","","0","","0","","0","","20","","","0MATERIAL__CHPGLINE",null,null,null,null,null,null,null,null,null,null,null,null,null,null,null,null,null,null,null,null,null,null,null,null,null,null,null,null,null,5,"0000009002","8P8NYH0UHH6PE1EEKLY6F76ZW"]
[null,null,null,null,null,null,null,null,null,null,null,null,null,null,null,null,null,null,null,null,null,null,null,null,null,null,null,null,null,null,5,"0AF_COLOR","Colour","X","","","0009","","","","","","","","1","03","","","","00000000","K","0AF_COLOR","A","","","H","","","","","","00000000","0000","","0","","","","","1","1","1","0","0","","","","","","F483SRYS591LBNHRAA7OJM95B","","","","","",null,null,null,null,null,5,"8P8NYH0UHH6PE1EEKLY6F76ZW","DZX7TY4YPKA1MXHB5MJKWVCSC","Qty (Act)","0005","X","S","","L","X",null,null,null,null,null,null,null,null,null,null,5,"CHSALSREP","0IND_CODE_1","Industry code 1","0000","X","","0","0","","","",null,null,null,null,null,null,null,null,5,"042N13AJJDL9ZIZ9M827VFW77","D3T5FYJK7PWFTR9ZIOUJLTV60","0","1","","","","00","X","0","0","","",null,null,null,null,null,null,null,null,null,null,null,null,null,null,null,null,null,null,null,null,null,null,null,null,null,null,null,null,null,null,null,null,null,null,null,null,5,"DVPRODGR","1","S","","","","","","","","0","","0","","0","","20","","","0MATERIAL__CHPGGROUP",null,null,null,null,null,null,null,null,null,null,null,null,null,null,null,null,null,null,null,null,null,null,null,null,null,null,null,null,null,5,"0000009000",""]
[null,null,null,null,null,null,null,null,null,null,null,null,null,null,null,null,null,null,null,null,null,null,null,null,null,null,null,null,null,null,5,"0MATERIAL__0AF_GENDER","Target Group","X","","","0010","","","","","","","","1","03","","","","00000000","K","0MATERIAL__0AF_GENDER","A","","","H","","","","","","00000000","0000","","0","","","","","1","1","1","0","0","","","","","","8RXZ6OV4Y8BUGEOUW0ZSQE4VY","","","","","",null,null,null,null,null,5,"9EDW4DI8YCG2IA4PF83LZ9RRW","85T7YQIWK1QB9ILJLJ1SQZN8J","B","0005","Y","S","","L","",null,null,null,null,null,null,null,null,null,null,5,"CHSALSREP","0IND_CODE_2","Industry Code 2","0000","X","","0","0","","","",null,null,null,null,null,null,null,null,5,"042N13AJJDL9ZIZ9M827VFW77","DLW9P54P4AT0OYHVG7ZL1IM5E","0","1","","","","00","X","0","0","","",null,null,null,null,null,null,null,null,null,null,null,null,null,null,null,null,null,null,null,null,null,null,null,null,null,null,null,null,null,null,null,null,null,null,null,null,5,"DVPROCAT","1","M","","","","","","","","0","","0","","0","","20","","","0MATERIAL__CHPGCATEG",null,null,null,null,null,null,null,null,null,null,null,null,null,null,null,null,null,null,null,null,null,null,null,null,null,null,null,null,null,5,"0000000010",""]
[null,null,null,null,null,null,null,null,null,null,null,null,null,null,null,null,null,null,null,null,null,null,null,null,null,null,null,null,null,null,5,"0AF_COLL","AFS Collection","X","","","0011","","","","","","","","2","03","","","","00000000","K","0AF_COLL","A","","","H","","","","","","00000000","0000","","0","","","","","1","1","1","0","0","","","","","","6IGHM7B6QNFXJXR6KLQKBK7S9","","","","","",null,null,null,null,null,5,"9EDW4DI8YCG2IA4PF83LZ9RRW","8VM70DOM0541L205HX82GQTS1","%B","0006","Y","F","","L","",null,null,null,null,null,null,null,null,null,null,5,"CHSALSREP","0IND_CODE_3","Industry Code 3","0000","X","","0","0","","","",null,null,null,null,null,null,null,null,5,"06NAHOMZG40HMPJ8PUOAMHG5H","0XOUE3TQ85XCLNJ97LK4N131O","","","","","","00","X","0","0","","",null,null,null,null,null,null,null,null,null,null,null,null,null,null,null,null,null,null,null,null,null,null,null,null,null,null,null,null,null,null,null,null,null,null,null,null,5,"DVPRODTY","1","S","","","","","","","","0","","0","","0","","20","","","0MATERIAL__CHPGTYPE",null,null,null,null,null,null,null,null,null,null,null,null,null,null,null,null,null,null,null,null,null,null,null,null,null,null,null,null,null,5,"0000000021",""]
[null,null,null,null,null,null,null,null,null,null,null,null,null,null,null,null,null,null,null,null,null,null,null,null,null,null,null,null,null,null,5,"0AF_THEME","AFS Theme","X","","","0012","","","","","","","","2","03","","","","00000000","K","0AF_THEME","A","","","H","","","","","","00000000","0000","","0","","","","","1","1","1","0","0","","","","","","B1UAN3TKIY8E4DKMF2BLLR54H","","","","","",null,null,null,null,null,5,"8P8NYH0UHH6PE1EEKLY6F76ZW","7W9DIFXSPC3TAEHE0QJ9NMQVF","Qty (Bud)","0006","X","S","","L","X",null,null,null,null,null,null,null,null,null,null,5,"CHSALSREP","0IND_CODE_4","Industry Code 4","0000","X","","0","0","","","",null,null,null,null,null,null,null,null,5,"06NAHOMZG40HMPJ8PUOAMHG5H","40OMIIL7VXC390GHTHLXLN24I","","","","","","00","X","0","0","","",null,null,null,null,null,null,null,null,null,null,null,null,null,null,null,null,null,null,null,null,null,null,null,null,null,null,null,null,null,null,null,null,null,null,null,null,5,"DVGLSEGM","1","S","","","","","","","","0","","0","","0","","20","","","0MATERIAL__CHPGSEG",null,null,null,null,null,null,null,null,null,null,null,null,null,null,null,null,null,null,null,null,null,null,null,null,null,null,null,null,null,5,"0000000022",""]
[null,null,null,null,null,null,null,null,null,null,null,null,null,null,null,null,null,null,null,null,null,null,null,null,null,null,null,null,null,null,5,"0AF_SEAN","AFS Season","X","","","0013","","","","","","","","1","03","","","","00000000","K","0AF_SEAN","A","","","H","","","","","","00000000","0000","","0","","","","","1","1","1","0","0","","","","","","1RS5ARI4WU06QGPNS5GTNP5NA","","","","","",null,null,null,null,null,5,"8P8NYH0UHH6PE1EEKLY6F76ZW","A6WWZSIB3TPP37GSQPKIEBAZW","Qty SS","0007","Y","F","","L","",null,null,null,null,null,null,null,null,null,null,5,"CHSALSREP","0IND_CODE_5","Industry Code 5","0000","X","","0","0","","","",null,null,null,null,null,null,null,null,5,"06NAHOMZG40HMPJ8PUOAMHG5H","85T7YQIWK1QB9ILJLJ1SQZN8J","","","","","","00","X","0","0","","",null,null,null,null,null,null,null,null,null,null,null,null,null,null,null,null,null,null,null,null,null,null,null,null,null,null,null,null,null,null,null,null,null,null,null,null,5,"DVLOSEGM","1","S","","","","","","","","0","","0","","0","","20","","","0MAT_SALES__0MATL_GRP_1",null,null,null,null,null,null,null,null,null,null,null,null,null,null,null,null,null,null,null,null,null,null,null,null,null,null,null,null,null,5,"0000000023",""]
[null,null,null,null,null,null,null,null,null,null,null,null,null,null,null,null,null,null,null,null,null,null,null,null,null,null,null,null,null,null,5,"0SALESORG","Sales Org.","X","","","0014","","","","","","","","0","03","","","","00000000","K","0SALESORG","A","","","H","","","","","","00000000","0000","","0","","","","","1","1","1","0","0","","","","","","11O3G2GWX928ZEVA2ZZCLR0J7","","","","","",null,null,null,null,null,5,"9EDW4DI8YCG2IA4PF83LZ9RRW","40OMIIL7VXC390GHTHLXLN24I","PY","0007","Y","S","","L","",null,null,null,null,null,null,null,null,null,null,5,"CHSALSREP","0LANGU","Language key","0000","X","","0","0","","","",null,null,null,null,null,null,null,null,5,"06NAHOMZG40HMPJ8PUOAMHG5H","8VM70DOM0541L205HX82GQTS1","0","1","","","","00","X","0","0","","",null,null,null,null,null,null,null,null,null,null,null,null,null,null,null,null,null,null,null,null,null,null,null,null,null,null,null,null,null,null,null,null,null,null,null,null,5,"DVPLCGR","1","P","","","","","","","","0","","0","","0","","20","","","CHPLPLC__CHPLPLCGR",null,null,null,null,null,null,null,null,null,null,null,null,null,null,null,null,null,null,null,null,null,null,null,null,null,null,null,null,null,5,"0000000030",""]
[null,null,null,null,null,null,null,null,null,null,null,null,null,null,null,null,null,null,null,null,null,null,null,null,null,null,null,null,null,null,5,"0MATERIAL__0MATL_TYPE","Mat. Type","X","","","0015","","","","","","","","0","03","","","","00000000","K","0MATERIAL__0MATL_TYPE","A","","","H","","","","","","00000000","0000","","0","","","","","1","1","1","0","0","","","","","","4FDHYILZQG7DBW1C54MBJ9FH5","","","","","",null,null,null,null,null,5,"9EDW4DI8YCG2IA4PF83LZ9RRW","9VEXAVKBGLVPRM2LYAWT8O2BM","%PY","0008","Y","F","","L","",null,null,null,null,null,null,null,null,null,null,5,"CHSALSREP","0LOGSYS","Source System","0000","X","","0","0","","","",null,null,null,null,null,null,null,null,5,"06NAHOMZG40HMPJ8PUOAMHG5H","9VEXAVKBGLVPRM2LYAWT8O2BM","0","1","","","","00","X","0","0","","",null,null,null,null,null,null,null,null,null,null,null,null,null,null,null,null,null,null,null,null,null,null,null,null,null,null,null,null,null,null,null,null,null,null,null,null,5,"DVPLCST","1","M","","","","","","","","0","","0","","0","","20","","","CHPLPLC",null,null,null,null,null,null,null,null,null,null,null,null,null,null,null,null,null,null,null,null,null,null,null,null,null,null,null,null,null,5,"0000000040",""]
[null,null,null,null,null,null,null,null,null,null,null,null,null,null,null,null,null,null,null,null,null,null,null,null,null,null,null,null,null,null,5,"0MAT_SALES__0MATL_GRP_5","Supply Type","X","","","0016","","","","","","","","1","03","","","","00000000","K","0MAT_SALES__0MATL_GRP_5","A","","","H","","","","","","00000000","0000","","0","","","","","1","1","1","0","0","","","","","","CKWA5DGKK0H8ALZ9X0IFT4TCR","","","","","",null,null,null,null,null,5,"8P8NYH0UHH6PE1EEKLY6F76ZW","9TEW6D5TSN73AJ1KEH06USQ1W","Qty SS (Act)","0008","X","S","","L","X",null,null,null,null,null,null,null,null,null,null,5,"CHSALSREP","0NAME","Name","0000","X","","0","0","","","",null,null,null,null,null,null,null,null,5,"06NAHOMZG40HMPJ8PUOAMHG5H","A4CNQYIEI3A4SAZQW9RFY18NV","","","","","","00","X","0","0","","",null,null,null,null,null,null,null,null,null,null,null,null,null,null,null,null,null,null,null,null,null,null,null,null,null,null,null,null,null,null,null,null,null,null,null,null,5,"0S_MATTP","1","S","","","","","","","","0","","0","","0","Material Type","20","","","0MATERIAL__0MATL_TYPE",null,null,null,null,null,null,null,null,null,null,null,null,null,null,null,null,null,null,null,null,null,null,null,null,null,null,null,null,null,5,"0000000041",""]
[null,null,null,null,null,null,null,null,null,null,null,null,null,null,null,null,null,null,null,null,null,null,null,null,null,null,null,null,null,null,5,"0CUSTOMER","Customer","X","","","0017","","","","","","","","0","03","","","","00000000","K","0CUSTOMER","A","","","H","","","","","","00000000","0000","","3","0POSTCD_GIS","","","","1","1","1","0","0","","","","","","387X574XMPCUSGIRCG3AVY91C","","","","","",null,null,null,null,null,5,"8P8NYH0UHH6PE1EEKLY6F76ZW","06NAHOMZG40HMPJ8PUOAMHG5H","Qty SS (Bud)","0009","X","S","","L","X",null,null,null,null,null,null,null,null,null,null,5,"CHSALSREP","0NAME2","Name 2","0000","X","","0","0","","","",null,null,null,null,null,null,null,null,5,"06NAHOMZG40HMPJ8PUOAMHG5H","CB4LNO5UGX170R82X1SKZYXQI","","","","","","00","X","0","0","","",null,null,null,null,null,null,null,null,null,null,null,null,null,null,null,null,null,null,null,null,null,null,null,null,null,null,null,null,null,null,null,null,null,null,null,null,5,"0S_MAT","1","S","","","","","","","","0","","0","","0","Material","20","","","0MATERIAL",null,null,null,null,null,null,null,null,null,null,null,null,null,null,null,null,null,null,null,null,null,null,null,null,null,null,null,null,null,5,"0000000042","1"]
[null,null,null,null,null,null,null,null,null,null,null,null,null,null,null,null,null,null,null,null,null,null,null,null,null,null,null,null,null,null,5,"CHCUPGLO","Cup","X","","","0018","","","","","","","","1","03","","","","00000000","K","CHCUPGLO","A","","","H","","","","","","00000000","0000","","0","","","","","1","1","1","0","0","","","","","","BMY8NKBEGSB1FPVY8A4F8W4IA","","","","","",null,null,null,null,null,5,"9EDW4DI8YCG2IA4PF83LZ9RRW","CB4LNO5UGX170R82X1SKZYXQI","B\r\nYTD","0009","Y","S","","L","",null,null,null,null,null,null,null,null,null,null,5,"CHSALSREP","0NAME3","Name 3","0000","X","","0","0","","","",null,null,null,null,null,null,null,null,5,"06NAHOMZG40HMPJ8PUOAMHG5H","CLLNFQKTMRYLVSUHUSN173QAV","","","","","","00","X","0","0","","",null,null,null,null,null,null,null,null,null,null,null,null,null,null,null,null,null,null,null,null,null,null,null,null,null,null,null,null,null,null,null,null,null,null,null,null,5,"DVSEASON","1","M","","","","","","","","0","","0","","0","","20","","","0AF_SEAN",null,null,null,null,null,null,null,null,null,null,null,null,null,null,null,null,null,null,null,null,null,null,null,null,null,null,null,null,null,5,"0000000043","0"]
[null,null,null,null,null,null,null,null,null,null,null,null,null,null,null,null,null,null,null,null,null,null,null,null,null,null,null,null,null,null,5,"CHSIZE","Size","X","","","0019","","","","","","","","1","03","","","","00000000","K","CHSIZE","A","","","H","","","","","","00000000","0000","","0","","","","","1","1","1","0","0","","","","","","5SL7D89FNZK7NSA2JOY99M1PQ","","","","","",null,null,null,null,null,5,"9EDW4DI8YCG2IA4PF83LZ9RRW","0XOUE3TQ85XCLNJ97LK4N131O","PY\r\nYTD","0010","Y","S","","L","",null,null,null,null,null,null,null,null,null,null,5,"CHSALSREP","0PHONE","Telephone 1","0000","X","","0","0","","","",null,null,null,null,null,null,null,null,5,"06NAHOMZG40HMPJ8PUOAMHG5H","D3T5FYJK7PWFTR9ZIOUJLTV60","0","1","","","","00","X","0","0","","",null,null,null,null,null,null,null,null,null,null,null,null,null,null,null,null,null,null,null,null,null,null,null,null,null,null,null,null,null,null,null,null,null,null,null,null,5,"0S_CUS","1","S","","","","","","","","0","","0","","0","Customer Number","20","","","0CUSTOMER",null,null,null,null,null,null,null,null,null,null,null,null,null,null,null,null,null,null,null,null,null,null,null,null,null,null,null,null,null,5,"0000000109","2"]
[null,null,null,null,null,null,null,null,null,null,null,null,null,null,null,null,null,null,null,null,null,null,null,null,null,null,null,null,null,null,5,"0AF_GRDVAL","Grid Value","X","","","0020","","","","","","","","2","00","","","","00000000","K","0AF_GRDVAL","A","","","H","","","","","","00000000","0000","","0","","","","","1","1","1","0","0","","","2","","0","BOT12PUIXVNXI9YEVSDC5K5US","","","","","",null,null,null,null,null,5,"8P8NYH0UHH6PE1EEKLY6F76ZW","E1KKQC1GPBNM8G9Q2MDF76EAP","MI","0010","","F","","L","",null,null,null,null,null,null,null,null,null,null,5,"CHSALSREP","0POBOX","P.O. Box","0000","X","","0","0","","","",null,null,null,null,null,null,null,null,5,"06NAHOMZG40HMPJ8PUOAMHG5H","DLW9P54P4AT0OYHVG7ZL1IM5E","0","1","","","","00","X","0","0","","",null,null,null,null,null,null,null,null,null,null,null,null,null,null,null,null,null,null,null,null,null,null,null,null,null,null,null,null,null,null,null,null,null,null,null,null,5,"DVCUSGRP","1","M","","","","","","","","0","","0","","0","","20","","","0CUST_SALES__0CUST_GROUP",null,null,null,null,null,null,null,null,null,null,null,null,null,null,null,null,null,null,null,null,null,null,null,null,null,null,null,null,null,5,"0000000113",""]
[null,null,null,null,null,null,null,null,null,null,null,null,null,null,null,null,null,null,null,null,null,null,null,null,null,null,null,null,null,null,5,"0CUSTOMER__0REGION","Region (Cust)","X","","","0020","","","","","","","","0","03","","","","00000000","K","0CUSTOMER__0REGION","A","","","H","","","","","","00000000","0000","","1","","","","","1","1","1","0","0","","","","","","CN0AL4X85Z6QH8HVS8U7OLR12","","","","","",null,null,null,null,null,5,"8P8NYH0UHH6PE1EEKLY6F76ZW","2SZSALJ9IGVAXXL91ZLR2M70B","MI (Act)","0011","X","S","","L","X",null,null,null,null,null,null,null,null,null,null,5,"CHSALSREP","0POBOX_LOC","CAM: PO Box Location","0000","X","","0","0","","","",null,null,null,null,null,null,null,null,5,"0OLHUTJRDZX91NEY0RDIJDQ9L","0XOUE3TQ85XCLNJ97LK4N131O","","","","","","00","X","0","0","","",null,null,null,null,null,null,null,null,null,null,null,null,null,null,null,null,null,null,null,null,null,null,null,null,null,null,null,null,null,null,null,null,null,null,null,null,5,"DVCOUNTR","1","M","","","","","","","","0","","0","","0","","20","","","0CUSTOMER__0COUNTRY",null,null,null,null,null,null,null,null,null,null,null,null,null,null,null,null,null,null,null,null,null,null,null,null,null,null,null,null,null,5,"0000000120",""]
[null,null,null,null,null,null,null,null,null,null,null,null,null,null,null,null,null,null,null,null,null,null,null,null,null,null,null,null,null,null,5,"0CUSTOMER__0COUNTRY","Country (Cust)","X","","","0021","","","","","","","","1","03","","","","00000000","K","0CUSTOMER__0COUNTRY","A","","","H","","","","","","00000000","0000","","1","","","","","1","1","1","0","0","","","","","","23KDQLHR833915HB84I8W5TFS","","","","","",null,null,null,null,null,5,"8P8NYH0UHH6PE1EEKLY6F76ZW","B0NC9O6WHUMWA7VXWT62I0MSN","MI (Bud)","0012","X","S","","L","X",null,null,null,null,null,null,null,null,null,null,5,"CHSALSREP","0POSTAL_CD","Postal Code","0000","X","","0","0","","","",null,null,null,null,null,null,null,null,5,"0OLHUTJRDZX91NEY0RDIJDQ9L","40OMIIL7VXC390GHTHLXLN24I","","","","","","00","X","0","0","","",null,null,null,null,null,null,null,null,null,null,null,null,null,null,null,null,null,null,null,null,null,null,null,null,null,null,null,null,null,null,null,null,null,null,null,null,5,"DVCUSTND","2","M","","","","","","","","0","","0","","0","","20","","","0CUST_SALES",null,null,null,null,null,null,null,null,null,null,null,null,null,null,null,null,null,null,null,null,null,null,null,null,null,null,null,null,null,5,"0000000121",""]
[null,null,null,null,null,null,null,null,null,null,null,null,null,null,null,null,null,null,null,null,null,null,null,null,null,null,null,null,null,null,5,"0SHIP_TO__0COUNTRY","Country (Ship-To)","X","","","0022","","","","","","","","1","03","","","","00000000","K","0SHIP_TO__0COUNTRY","A","","","H","","","","","","00000000","0000","","1","","","","","1","1","1","0","0","","","","","","4X0UZZAQKG1X2VQTRFUVRJT50","","","","","",null,null,null,null,null,5,"8P8NYH0UHH6PE1EEKLY6F76ZW","7R6MCXJ9N6Z9QNVWZ48UAWW0Y","MI %","0013","","F","","L","",null,null,null,null,null,null,null,null,null,null,5,"CHSALSREP","0POSTCD_BOX","CAM:POBox PostalCode","0000","X","","0","0","","","",null,null,null,null,null,null,null,null,5,"0OLHUTJRDZX91NEY0RDIJDQ9L","85T7YQIWK1QB9ILJLJ1SQZN8J","","","","","","00","X","0","0","","",null,null,null,null,null,null,null,null,null,null,null,null,null,null,null,null,null,null,null,null,null,null,null,null,null,null,null,null,null,null,null,null,null,null,null,null,5,"DVCUSSHT","1","S","","","","","","","","0","","0","","0","","20","","","0SHIP_TO",null,null,null,null,null,null,null,null,null,null,null,null,null,null,null,null,null,null,null,null,null,null,null,null,null,null,null,null,null,5,"0000010001","74Y5HWPAAIDFWK2KRW5BGZLPE"]
[null,null,null,null,null,null,null,null,null,null,null,null,null,null,null,null,null,null,null,null,null,null,null,null,null,null,null,null,null,null,5,"0BASE_UOM","Base Unit","X","","","0023","","","","","","","","1","03","","","","00000000","K","0BASE_UOM","A","","","H","","","","","","00000000","0000","","0","","","","","1","1","1","0","0","","","","","","2TDIDX2R1FIU2NYPBD9I91RJO","","","","","",null,null,null,null,null,5,"8P8NYH0UHH6PE1EEKLY6F76ZW","E9E64DW2H5TW5C821HZU4B4RO","MI % (Act)","0014","X","S","","L","X",null,null,null,null,null,null,null,null,null,null,5,"CHSALSREP","0POSTCD_GIS","CAM:PstCde(Geo-Rel.)","0000","X","","0","0","","","",null,null,null,null,null,null,null,null,5,"0OLHUTJRDZX91NEY0RDIJDQ9L","8VM70DOM0541L205HX82GQTS1","0","1","","","","00","X","0","0","","",null,null,null,null,null,null,null,null,null,null,null,null,null,null,null,null,null,null,null,null,null,null,null,null,null,null,null,null,null,null,null,null,null,null,null,null,5,"DVCURTY1","1","P","I","EQ","10","10","","","Company code currency","60","","0","","0","","20","","","0CURTYPE",null,null,null,null,null,null,null,null,null,null,null,null,null,null,null,null,null,null,null,null,null,null,null,null,null,null,null,null,null,5,"0000010002","A8BZ00GRUXSWGGU6LVV6NUJYU"]
[null,null,null,null,null,null,null,null,null,null,null,null,null,null,null,null,null,null,null,null,null,null,null,null,null,null,null,null,null,null,5,"0CUST_SALES","Cust. (Sales)","X","","","0024","","","","","","","","1","03","","TRIUMPH CUSTOMER HIERARCHY","","20080507","K","0CUST_SALES","A","","","H","0CUST_SALES","A","","","","00000000","0000","","0","","","","2","1","1","1","0","0","","","","","","2J9S7TULLLSAV79E3OEIHQHW6","","","","","",null,null,null,null,null,5,"8P8NYH0UHH6PE1EEKLY6F76ZW","4LO68SM2XLA6M4L9O873WNV6J","MI % (Bud)","0015","X","S","","L","X",null,null,null,null,null,null,null,null,null,null,5,"CHSALSREP","0REGION","Region","0000","X","","0","0","","","",null,null,null,null,null,null,null,null,5,"0OLHUTJRDZX91NEY0RDIJDQ9L","9VEXAVKBGLVPRM2LYAWT8O2BM","0","1","","","","00","X","0","0","","",null,null,null,null,null,null,null,null,null,null,null,null,null,null,null,null,null,null,null,null,null,null,null,null,null,null,null,null,null,null,null,null,null,null,null,null,4,"0S_CUS","1","S","","","","","","","","0","","0","","0","Customer","60","","","0CUSTOMER","",null,null,null,null,null,null,null,null,null,null,null,null,null,null,null,null,null,null,null,null,null,null,null,null,null,null,null,null,5,"0000000105",""]
[null,null,null,null,null,null,null,null,null,null,null,null,null,null,null,null,null,null,null,null,null,null,null,null,null,null,null,null,null,null,5,"0CUST_SALES__0AF_CGR7","Loc. Chan.","X","","","0025","","","","","","","","1","03","","","","00000000","K","0CUST_SALES__0AF_CGR7","A","","","H","","","","","","00000000","0000","","0","","","","","1","1","1","0","0","","","","","","BYRNHMDP0O7I0UZKHUR9RHPPA","","","","","",null,null,null,null,null,5,"8P8NYH0UHH6PE1EEKLY6F76ZW","3EJEUPB6ZMLP0NMQQDYFPRSMQ","Return Bill","0016","Y","S","","L","X",null,null,null,null,null,null,null,null,null,null,5,"CHSALSREP","0STREET","Street Name","0000","X","","0","0","","","",null,null,null,null,null,null,null,null,5,"0OLHUTJRDZX91NEY0RDIJDQ9L","A4CNQYIEI3A4SAZQW9RFY18NV","","","","","","00","X","0","0","","",null,null,null,null,null,null,null,null,null,null,null,null,null,null,null,null,null,null,null,null,null,null,null,null,null,null,null,null,null,null,null,null,null,null,null,null,4,"DVSEASON","1","M","","","","","","","","0","","0","","0","AFS Season","60","","","0AF_SEAN","",null,null,null,null,null,null,null,null,null,null,null,null,null,null,null,null,null,null,null,null,null,null,null,null,null,null,null,null,5,"0000000106",""]
[null,null,null,null,null,null,null,null,null,null,null,null,null,null,null,null,null,null,null,null,null,null,null,null,null,null,null,null,null,null,5,"0CUST_SALES__0AF_CGR8","Territory (Cust)","X","","","0026","","","","","","","","1","03","","","","00000000","K","0CUST_SALES__0AF_CGR8","A","","","H","","","","","","00000000","0000","","0","","","","","1","1","1","0","0","","","","","","1OYHU4ZQ1PC3LYF42HN24T07X","","","","","",null,null,null,null,null,5,"8P8NYH0UHH6PE1EEKLY6F76ZW","DTTDHH3GJNUXWGV5PDD7U5Y60","Return Qty","0017","Y","S","","L","X",null,null,null,null,null,null,null,null,null,null,5,"CHSALSREP","0TAX_NUMB","Tax code 1","0000","X","","0","0","","","",null,null,null,null,null,null,null,null,5,"0OLHUTJRDZX91NEY0RDIJDQ9L","CB4LNO5UGX170R82X1SKZYXQI","","","","","","00","X","0","0","","",null,null,null,null,null,null,null,null,null,null,null,null,null,null,null,null,null,null,null,null,null,null,null,null,null,null,null,null,null,null,null,null,null,null,null,null,4,"DVCUSGRP","1","M","","","","","","","","0","","0","","0","Customer Group","60","","","0CUST_SALES__0CUST_GROUP","",null,null,null,null,null,null,null,null,null,null,null,null,null,null,null,null,null,null,null,null,null,null,null,null,null,null,null,null,5,"0000000112","0"]
[null,null,null,null,null,null,null,null,null,null,null,null,null,null,null,null,null,null,null,null,null,null,null,null,null,null,null,null,null,null,5,"0SALESORG__0G_CWWREG","TI Region","X","","","0027","","","","","","","","1","03","","","","00000000","K","0SALESORG__0G_CWWREG","A","","","H","","","","","","00000000","0000","","0","","","","","1","1","1","0","0","","","","","","6P6HWUKTJR8TS2HYNMKNH20ZJ","","","","","",null,null,null,null,null,5,"8P8NYH0UHH6PE1EEKLY6F76ZW","042N13AJJDL9ZIZ9M827VFW77","RSP","0018","Y","S","","L","X",null,null,null,null,null,null,null,null,null,null,5,"CHSALSREP","0TAX_NUMB2","Tax Number 2","0000","X","","0","0","","","",null,null,null,null,null,null,null,null,5,"0OLHUTJRDZX91NEY0RDIJDQ9L","CLLNFQKTMRYLVSUHUSN173QAV","","","","","","00","X","0","0","","",null,null,null,null,null,null,null,null,null,null,null,null,null,null,null,null,null,null,null,null,null,null,null,null,null,null,null,null,null,null,null,null,null,null,null,null,4,"DVLOSEGM","1","S","","","","","","","","0","","0","","0","Local Segment","60","","","0MAT_SALES__0MATL_GRP_1","",null,null,null,null,null,null,null,null,null,null,null,null,null,null,null,null,null,null,null,null,null,null,null,null,null,null,null,null,5,"0000000200","X"]
[null,null,null,null,null,null,null,null,null,null,null,null,null,null,null,null,null,null,null,null,null,null,null,null,null,null,null,null,null,null,5,"0CUSTOMER__CHCUSLSCH","Glob. Chan.","X","","","0028","","","","","","","","1","03","","","","00000000","K","0CUSTOMER__CHCUSLSCH","A","","","H","","","","","","00000000","0000","","0","","","","","1","1","1","0","0","","","","","","2BLENTRUMRB4XRQ2TEDPH1CWH","","","","","",null,null,null,null,null,5,"8P8NYH0UHH6PE1EEKLY6F76ZW","D9IU0A9VZZTKIRVEDLAM7Z4ZP","Bill/PC","0019","Y","F","","L","",null,null,null,null,null,null,null,null,null,null,5,"0MATERIAL__CHPGGROUP","CHSORTORD","Sort Order","0000","X","","0","0","","","",null,null,null,null,null,null,null,null,5,"0OLHUTJRDZX91NEY0RDIJDQ9L","D3T5FYJK7PWFTR9ZIOUJLTV60","0","1","","","","00","X","0","0","","",null,null,null,null,null,null,null,null,null,null,null,null,null,null,null,null,null,null,null,null,null,null,null,null,null,null,null,null,null,null,null,null,null,null,null,null,4,"DVCURTY1","1","P","I","EQ","10","10","","","Company code currency","60","","0","","0","Currency Type","60","","","0CURTYPE","10",null,null,null,null,null,null,null,null,null,null,null,null,null,null,null,null,null,null,null,null,null,null,null,null,null,null,null,null,5,"0000004000","X"]
[null,null,null,null,null,null,null,null,null,null,null,null,null,null,null,null,null,null,null,null,null,null,null,null,null,null,null,null,null,null,5,"0CUSTOMER__CHCUSLCHT","Chan. Type","X","","","0029","","","","","","","","1","03","","","","00000000","K","0CUSTOMER__CHCUSLCHT","A","","","H","","","","","","00000000","0000","","0","","","","","1","1","1","0","0","","","","","","BZZRZJUMUBZMFONMR97P7GAPW","","","","","",null,null,null,null,null,5,"8P8NYH0UHH6PE1EEKLY6F76ZW","6781H30EC66VV0IURX8EUG44C","Bill/PC SS","0020","Y","F","","L","",null,null,null,null,null,null,null,null,null,null,5,"0AF_SEAN","CHSEANCLA","AFS Season Classific","0000","X","","0","0","","","",null,null,null,null,null,null,null,null,5,"0OLHUTJRDZX91NEY0RDIJDQ9L","DLW9P54P4AT0OYHVG7ZL1IM5E","0","1","","","","00","X","0","0","","",null,null,null,null,null,null,null,null,null,null,null,null,null,null,null,null,null,null,null,null,null,null,null,null,null,null,null,null,null,null,null,null,null,null,null,null,4,"DVPLCGR","1","P","","","","","","","","0","","0","","0","PLC Status Group","60","","","CHPLPLC__CHPLPLCGR","",null,null,null,null,null,null,null,null,null,null,null,null,null,null,null,null,null,null,null,null,null,null,null,null,null,null,null,null,5,"0000009001","S010 Monthly Sales by Brand and Product Line"]
[null,null,null,null,null,null,null,null,null,null,null,null,null,null,null,null,null,null,null,null,null,null,null,null,null,null,null,null,null,null,5,"0CUSTOMER__CHCUORGDG","Org. Degree","X","","","0030","","","","","","","","1","03","","","","00000000","K","0CUSTOMER__CHCUORGDG","A","","","H","","","","","","00000000","0000","","0","","","","","1","1","1","0","0","","","","","","CCUT7Z644OM0297CA9EMQBMDE","","","","","",null,null,null,null,null,5,"8P8NYH0UHH6PE1EEKLY6F76ZW","65J5X21CQULHZQURVUFZI8HWN","MI/PC","0021","Y","F","","L","",null,null,null,null,null,null,null,null,null,null,5,"0SALESORG","0COMP_CODE","Company code","0000","X","","0","0","","","",null,null,null,null,null,null,null,null,5,"18TMJFNY1EVHPJ8EOEUJK2P16","0XOUE3TQ85XCLNJ97LK4N131O","","","","","","00","X","0","0","","",null,null,null,null,null,null,null,null,null,null,null,null,null,null,null,null,null,null,null,null,null,null,null,null,null,null,null,null,null,null,null,null,null,null,null,null,4,"DVASLORG","1","S","","","","","","","","0","","0","","0","Sales Organization","60","","","0SALESORG","",null,null,null,null,null,null,null,null,null,null,null,null,null,null,null,null,null,null,null,null,null,null,null,null,null,null,null,null,5,"0000000114","2"]
[null,null,null,null,null,null,null,null,null,null,null,null,null,null,null,null,null,null,null,null,null,null,null,null,null,null,null,null,null,null,5,"0CUSTOMER__CHCULIFEC","CLC","X","","","0031","","","","","","","","1","03","","","","00000000","K","0CUSTOMER__CHCULIFEC","A","","","H","","","","","","00000000","0000","","0","","","","","1","1","1","0","0","","","","","","4MUOHUUFHKEAP5SCUYEHSE5M0","","","","","",null,null,null,null,null,5,"8P8NYH0UHH6PE1EEKLY6F76ZW","DR91OMEBWU18XF8TEK57T76H6","MI/PC SS","0022","Y","F","","L","",null,null,null,null,null,null,null,null,null,null,5,"0SALESORG","0COUNTRY","Country","0000","X","","0","0","","","",null,null,null,null,null,null,null,null,5,"18TMJFNY1EVHPJ8EOEUJK2P16","40OMIIL7VXC390GHTHLXLN24I","","","","","","00","X","0","0","","",null,null,null,null,null,null,null,null,null,null,null,null,null,null,null,null,null,null,null,null,null,null,null,null,null,null,null,null,null,null,null,null,null,null,null,null,4,"DVGLSEGM","1","S","","","","","","","","0","","0","","0","Global Segment","60","","","0MATERIAL__CHPGSEG","",null,null,null,null,null,null,null,null,null,null,null,null,null,null,null,null,null,null,null,null,null,null,null,null,null,null,null,null,4,"0000000107","A8BZ00GRUXSWGGU6LVV6NUJYU"]
[null,null,null,null,null,null,null,null,null,null,null,null,null,null,null,null,null,null,null,null,null,null,null,null,null,null,null,null,null,null,5,"0PLANT","Plant","X","","","0032","","","","","","","","0","03","","","","00000000","K","0PLANT","A","","","H","","","","","","00000000","0000","","3","0POSTCD_GIS","","","","1","1","1","0","0","","","","","","06NW2JW70NWMJBSC5OMLD0G9D","","","","","",null,null,null,null,null,5,"8P8NYH0UHH6PE1EEKLY6F76ZW","C3QHLF000YWITR7D3MHAGFAQC","RSP/PC","0023","Y","F","","L","",null,null,null,null,null,null,null,null,null,null,5,"0SALESORG","0CURRENCY","Currency","0000","X","","0","0","","","",null,null,null,null,null,null,null,null,5,"18TMJFNY1EVHPJ8EOEUJK2P16","85T7YQIWK1QB9ILJLJ1SQZN8J","","","","","","00","X","0","0","","",null,null,null,null,null,null,null,null,null,null,null,null,null,null,null,null,null,null,null,null,null,null,null,null,null,null,null,null,null,null,null,null,null,null,null,null,4,"DVDCHAN","1","M","","","","","","","","0","","0","","0","Distribution Channel","60","","","0DISTR_CHAN","",null,null,null,null,null,null,null,null,null,null,null,null,null,null,null,null,null,null,null,null,null,null,null,null,null,null,null,null,4,"0000000100","X"]
[null,null,null,null,null,null,null,null,null,null,null,null,null,null,null,null,null,null,null,null,null,null,null,null,null,null,null,null,null,null,5,"0SHIP_TO","Ship-To Party","X","","","0033","","","","","","","","0","03","","","","00000000","K","0SHIP_TO","A","","","H","","","","","","00000000","0000","","3","0POSTCD_GIS","","","","1","1","1","0","0","","","","","","D56RQ6DU3WC39HL6ZU17SNJ8A","","","","","",null,null,null,null,null,5,"8P8NYH0UHH6PE1EEKLY6F76ZW","EAYTKKPI5LLOOQDFMTH1E15VF","RSP/PC SS","0024","Y","F","","L","",null,null,null,null,null,null,null,null,null,null,5,"0SALESORG","0FISCVARNT","Fiscal Year Variant","0000","X","","0","0","","","",null,null,null,null,null,null,null,null,5,"18TMJFNY1EVHPJ8EOEUJK2P16","8VM70DOM0541L205HX82GQTS1","0","1","","","","00","X","0","0","","",null,null,null,null,null,null,null,null,null,null,null,null,null,null,null,null,null,null,null,null,null,null,null,null,null,null,null,null,null,null,null,null,null,null,null,null,4,"DVPRODGR","1","S","","","","","","","","0","","0","","0","Product Group","60","","","0MATERIAL__CHPGGROUP","",null,null,null,null,null,null,null,null,null,null,null,null,null,null,null,null,null,null,null,null,null,null,null,null,null,null,null,null,4,"0000000101",""]
[null,null,null,null,null,null,null,null,null,null,null,null,null,null,null,null,null,null,null,null,null,null,null,null,null,null,null,null,null,null,5,"0MATERIAL__CHSERIESG","Glob. Series","X","","","0034","","","","","","","","2","03","","","","00000000","K","0MATERIAL__CHSERIESG","A","","","H","","","","","","00000000","0000","","0","","","","","1","1","1","0","0","","","","","","B5DQ17A75WXS5DTBNUNOYW7DB","","","","","",null,null,null,null,null,5,"8P8NYH0UHH6PE1EEKLY6F76ZW","AENJZ3D934GNT2TG4C4D2RFJR","CoGS/PC","0025","Y","F","","L","",null,null,null,null,null,null,null,null,null,null,5,"0SALESORG","0G_CWWREG","TI Region","0000","X","","0","0","","","",null,null,null,null,null,null,null,null,5,"18TMJFNY1EVHPJ8EOEUJK2P16","9VEXAVKBGLVPRM2LYAWT8O2BM","0","1","","","","00","X","0","0","","",null,null,null,null,null,null,null,null,null,null,null,null,null,null,null,null,null,null,null,null,null,null,null,null,null,null,null,null,null,null,null,null,null,null,null,null,4,"DVBRAUTH","1","S","","","","","","","","0","","0","","0","Brand","60","","","0MATERIAL__CHPGBRAND","",null,null,null,null,null,null,null,null,null,null,null,null,null,null,null,null,null,null,null,null,null,null,null,null,null,null,null,null,4,"0000000104","2"]
[null,null,null,null,null,null,null,null,null,null,null,null,null,null,null,null,null,null,null,null,null,null,null,null,null,null,null,null,null,null,5,"0STOR_LOC","Stor. Loc.","X","","","0035","","","","","","","","0","03","","","","00000000","K","0STOR_LOC","A","","","H","","","","","","00000000","0000","","0","","","","","1","1","1","0","0","","","","","","421LMHSK5Y83JTCR3KWBS8Q5O","","","","","",null,null,null,null,null,5,"8P8NYH0UHH6PE1EEKLY6F76ZW","85QVA7GC0N47FZKDS2VNLBCSY","CoGS/PC SS","0026","Y","F","","L","",null,null,null,null,null,null,null,null,null,null,5,"0SALESORG","0INT_CUST","Customer Number for Internal Settlement","0000","X","","0","0","","","",null,null,null,null,null,null,null,null,5,"18TMJFNY1EVHPJ8EOEUJK2P16","A4CNQYIEI3A4SAZQW9RFY18NV","","","","","","00","X","0","0","","",null,null,null,null,null,null,null,null,null,null,null,null,null,null,null,null,null,null,null,null,null,null,null,null,null,null,null,null,null,null,null,null,null,null,null,null,4,"0CYEAR","1","P","I","EQ","2011","2011","","","","0","","0","","0","Report Year","60","","","0CALYEAR","2011",null,null,null,null,null,null,null,null,null,null,null,null,null,null,null,null,null,null,null,null,null,null,null,null,null,null,null,null,4,"0000000103",""]
[null,null,null,null,null,null,null,null,null,null,null,null,null,null,null,null,null,null,null,null,null,null,null,null,null,null,null,null,null,null,5,"0MATERIAL__CHPGSEG","Glob. Segm.","X","","","0036","","","","","","","","1","03","","","","00000000","K","0MATERIAL__CHPGSEG","A","","","H","","","","","","00000000","0000","","0","","","","","1","1","1","0","0","","","","","","BJX9HP501T7CBBY0CSYJ41O83","","","","","",null,null,null,null,null,5,"8P8NYH0UHH6PE1EEKLY6F76ZW","8Y8DPBILV38UA3DOTIHLDY6WW","CoGS","0027","Y","F","","L","",null,null,null,null,null,null,null,null,null,null,5,"0SALESORG","0LOGSYS","Source System","0000","X","","0","0","","","",null,null,null,null,null,null,null,null,5,"18TMJFNY1EVHPJ8EOEUJK2P16","CB4LNO5UGX170R82X1SKZYXQI","","","","","","00","X","0","0","","",null,null,null,null,null,null,null,null,null,null,null,null,null,null,null,null,null,null,null,null,null,null,null,null,null,null,null,null,null,null,null,null,null,null,null,null,4,"DVCUSSHT","1","S","","","","","","","","0","","0","","0","Ship To Party","60","","","0SHIP_TO","",null,null,null,null,null,null,null,null,null,null,null,null,null,null,null,null,null,null,null,null,null,null,null,null,null,null,null,null,4,"0000000102","1"]
[null,null,null,null,null,null,null,null,null,null,null,null,null,null,null,null,null,null,null,null,null,null,null,null,null,null,null,null,null,null,5,"0MATERIAL__CHPGSUBSE","Glob. Sub-Segm.","X","","","0037","","","","","","","","1","03","","","","00000000","K","0MATERIAL__CHPGSUBSE","A","","","H","","","","","","00000000","0000","","0","","","","","1","1","1","0","0","","","","","","0CPIAXRL1CA3W18A3U2X6UOWA","","","","","",null,null,null,null,null,5,"8P8NYH0UHH6PE1EEKLY6F76ZW","DVU9TNJ1YQRJK3TUN9CHPH0AW","CoGS (Act)","0028","X","S","","L","X",null,null,null,null,null,null,null,null,null,null,5,"0SALESORG","0STAT_CURR","Statist. curr.","0000","X","","0","0","","","",null,null,null,null,null,null,null,null,5,"18TMJFNY1EVHPJ8EOEUJK2P16","CLLNFQKTMRYLVSUHUSN173QAV","","","","","","00","X","0","0","","",null,null,null,null,null,null,null,null,null,null,null,null,null,null,null,null,null,null,null,null,null,null,null,null,null,null,null,null,null,null,null,null,null,null,null,null,4,"DVPLCST","1","M","","","","","","","","0","","0","","0","PLC Status","60","","","CHPLPLC","",null,null,null,null,null,null,null,null,null,null,null,null,null,null,null,null,null,null,null,null,null,null,null,null,null,null,null,null,4,"0000000108","X"]
[null,null,null,null,null,null,null,null,null,null,null,null,null,null,null,null,null,null,null,null,null,null,null,null,null,null,null,null,null,null,5,"0MAT_SALES__0MATL_GRP_1","Loc. Segm.","X","","","0038","","","","","","","","0","03","","","","00000000","K","0MAT_SALES__0MATL_GRP_1","A","","","H","","","","","","00000000","0000","","0","","","","","1","1","1","0","0","","","","","","8DI1ACPORUGL1BIOIDK3QDH8N","","","","","",null,null,null,null,null,5,"8P8NYH0UHH6PE1EEKLY6F76ZW","C5CA4H28JD8OS7CUVK3X4L27S","CoGS (Bud)","0029","X","S","","L","X",null,null,null,null,null,null,null,null,null,null,5,"0SALESORG","CHCOMP","Company","0000","X","","0","0","","","",null,null,null,null,null,null,null,null,5,"18TMJFNY1EVHPJ8EOEUJK2P16","D3T5FYJK7PWFTR9ZIOUJLTV60","0","1","","","","00","X","0","0","","",null,null,null,null,null,null,null,null,null,null,null,null,null,null,null,null,null,null,null,null,null,null,null,null,null,null,null,null,null,null,null,null,null,null,null,null,4,"DVCUSTND","2","M","","","","","","","","0","","0","","0","Customer Hierarchy","60","","","0CUST_SALES","",null,null,null,null,null,null,null,null,null,null,null,null,null,null,null,null,null,null,null,null,null,null,null,null,null,null,null,null,4,"0000009002","8P8NYH0UHH6PE1EEKLY6F76ZW"]
[null,null,null,null,null,null,null,null,null,null,null,null,null,null,null,null,null,null,null,null,null,null,null,null,null,null,null,null,null,null,5,"0MAT_SALES__0MATL_GRP_2","Loc. Sub-Segm.","X","","","0039","","","","","","","","0","03","","","","00000000","K","0MAT_SALES__0MATL_GRP_2","A","","","H","","","","","","00000000","0000","","0","","","","","1","1","1","0","0","","","","","","82HOKVELH4O64DUGJPWB7R0Z8","","","","","",null,null,null,null,null,5,"8P8NYH0UHH6PE1EEKLY6F76ZW","F3M56BBH87I3POUTTE692V0SE","Reb","0030","Y","S","","L","X",null,null,null,null,null,null,null,null,null,null,5,"0CUSTOMER","0ACCNT_GRP","Account group","0000","X","","0","0","","","",null,null,null,null,null,null,null,null,5,"18TMJFNY1EVHPJ8EOEUJK2P16","DLW9P54P4AT0OYHVG7ZL1IM5E","0","1","","","","00","X","0","0","","",null,null,null,null,null,null,null,null,null,null,null,null,null,null,null,null,null,null,null,null,null,null,null,null,null,null,null,null,null,null,null,null,null,null,null,null,4,"DVCOUNTR","1","M","","","","","","","","0","","0","","0","Country (Cust)","60","","","0CUSTOMER__0COUNTRY","",null,null,null,null,null,null,null,null,null,null,null,null,null,null,null,null,null,null,null,null,null,null,null,null,null,null,null,null,4,"0000009000",""]
[null,null,null,null,null,null,null,null,null,null,null,null,null,null,null,null,null,null,null,null,null,null,null,null,null,null,null,null,null,null,5,"0MATERIAL","Material","X","","","0040","","","","","","","","2","03","","","","00000000","K","0MATERIAL","A","","","H","","","","","","00000000","0000","","0","","","","","1","1","1","0","0","","","","","","2HD1NEQHARB6413PGTCMGONDF","","","","","",null,null,null,null,null,5,"8P8NYH0UHH6PE1EEKLY6F76ZW","18TMJFNY1EVHPJ8EOEUJK2P16","Cash Disc","0031","Y","S","","L","X",null,null,null,null,null,null,null,null,null,null,5,"0CUSTOMER","0ADDR_NUMBR","Address","0000","X","","0","0","","","",null,null,null,null,null,null,null,null,5,"2SZSALJ9IGVAXXL91ZLR2M70B","0XOUE3TQ85XCLNJ97LK4N131O","","","","","","00","X","0","0","","",null,null,null,null,null,null,null,null,null,null,null,null,null,null,null,null,null,null,null,null,null,null,null,null,null,null,null,null,null,null,null,null,null,null,null,null,4,"0S_MATTP","1","S","","","","","","","","0","","0","","0","Material Type (Selection Options, Optional)","60","","","0MATERIAL__0MATL_TYPE","",null,null,null,null,null,null,null,null,null,null,null,null,null,null,null,null,null,null,null,null,null,null,null,null,null,null,null,null,4,"0000000010",""]
[null,null,null,null,null,null,null,null,null,null,null,null,null,null,null,null,null,null,null,null,null,null,null,null,null,null,null,null,null,null,5,"0DISTR_CHAN","Dist. Chan.","X","","","0041","","","","","","","","2","03","","","","00000000","K","0DISTR_CHAN","A","","","H","","","","","","00000000","0000","","0","","","","","1","1","1","0","0","","","","","","9YRC96274XNQ746VA84UB9MGQ","","","","","",null,null,null,null,null,5,"8P8NYH0UHH6PE1EEKLY6F76ZW","ACLMZ5IJHJN9I4CC7W20ZLGCB","Sls. Disc","0032","Y","S","","L","X",null,null,null,null,null,null,null,null,null,null,5,"0CUSTOMER","0AF_CUSTDC","No. Customer-DC","0000","X","","0","0","","","",null,null,null,null,null,null,null,null,5,"2SZSALJ9IGVAXXL91ZLR2M70B","40OMIIL7VXC390GHTHLXLN24I","","","","","","00","X","0","0","","",null,null,null,null,null,null,null,null,null,null,null,null,null,null,null,null,null,null,null,null,null,null,null,null,null,null,null,null,null,null,null,null,null,null,null,null,4,"0S_MAT","1","S","","","","","","","","0","","0","","0","Material (Selection Options, Optional)","60","","","0MATERIAL","",null,null,null,null,null,null,null,null,null,null,null,null,null,null,null,null,null,null,null,null,null,null,null,null,null,null,null,null,4,"0000000021",""]
[null,null,null,null,null,null,null,null,null,null,null,null,null,null,null,null,null,null,null,null,null,null,null,null,null,null,null,null,null,null,5,"0MAT_SALES","Loc. Mat. Desc.","X","","","0042","","","","","","","U","1","03","","","","00000000","K","0MAT_SALES","A","","","H","","","","","","00000000","0000","","0","","","","","1","1","1","0","0","","","","","","9JP3DUCQXQQRW7NFGUMXBAI5O","","","","","",null,null,null,null,null,5,"8P8NYH0UHH6PE1EEKLY6F76ZW","CI5QTXV43N7K9QYW65C4L9G9R","STarg Value","0033","Y","S","","L","X",null,null,null,null,null,null,null,null,null,null,5,"0CUSTOMER","0AF_CUSTID","Cust.ID Partnersyst.","0000","X","","0","0","","","",null,null,null,null,null,null,null,null,5,"2SZSALJ9IGVAXXL91ZLR2M70B","85T7YQIWK1QB9ILJLJ1SQZN8J","","","","","","00","X","0","0","","",null,null,null,null,null,null,null,null,null,null,null,null,null,null,null,null,null,null,null,null,null,null,null,null,null,null,null,null,null,null,null,null,null,null,null,null,4,"DVPRODLI","1","S","","","","","","","","0","","0","","0","Product Line","60","","","0MATERIAL__CHPGLINE","",null,null,null,null,null,null,null,null,null,null,null,null,null,null,null,null,null,null,null,null,null,null,null,null,null,null,null,null,4,"0000000022",""]
[null,null,null,null,null,null,null,null,null,null,null,null,null,null,null,null,null,null,null,null,null,null,null,null,null,null,null,null,null,null,5,"0ORD_REASON","Order Reason","X","","","0043","","","","","","","","0","03","","","","00000000","K","0ORD_REASON","A","","","H","","","","","","00000000","0000","","0","","","","","1","1","1","0","0","","","","","","9G1340DJBGMY6K7TE7RTUZC3X","","","","","",null,null,null,null,null,5,"8P8NYH0UHH6PE1EEKLY6F76ZW","0OLHUTJRDZX91NEY0RDIJDQ9L","STarg Qty","0034","Y","S","","L","X",null,null,null,null,null,null,null,null,null,null,5,"0CUSTOMER","0ALTITUDE","Geographical Height","0000","X","","0","0","","","",null,null,null,null,null,null,null,null,5,"2SZSALJ9IGVAXXL91ZLR2M70B","8VM70DOM0541L205HX82GQTS1","0","1","","","","00","X","0","0","","",null,null,null,null,null,null,null,null,null,null,null,null,null,null,null,null,null,null,null,null,null,null,null,null,null,null,null,null,null,null,null,null,null,null,null,null,4,"DVCURMON","1","P","I","EQ","09","9","","","SEP","40","","0","","0","Report Month","60","","","0CALMONTH2","09",null,null,null,null,null,null,null,null,null,null,null,null,null,null,null,null,null,null,null,null,null,null,null,null,null,null,null,null,4,"0000000023",""]
[null,null,null,null,null,null,null,null,null,null,null,null,null,null,null,null,null,null,null,null,null,null,null,null,null,null,null,null,null,null,5,"CHTISEASN","TI Season","X","","","0044","","","","","","","","1","03","","","","00000000","K","CHTISEASN","A","","","H","","","","","","00000000","0000","","0","","","","","1","1","1","0","0","","","","","","407WELWWM031R3IIOG1GFF0SF","","","","","",null,null,null,null,null,5,"8P8NYH0UHH6PE1EEKLY6F76ZW","2YUYCV5ALLOO8OBJH2BWMFFWE","Shipping Qutb","0035","Y","S","","L","X",null,null,null,null,null,null,null,null,null,null,5,"0CUSTOMER","0APO_LOCNO","APO Location","0000","X","","0","0","","","",null,null,null,null,null,null,null,null,5,"2SZSALJ9IGVAXXL91ZLR2M70B","9VEXAVKBGLVPRM2LYAWT8O2BM","0","1","","","","00","X","0","0","","",null,null,null,null,null,null,null,null,null,null,null,null,null,null,null,null,null,null,null,null,null,null,null,null,null,null,null,null,null,null,null,null,null,null,null,null,4,"DVPRODTY","1","S","","","","","","","","0","","0","","0","Product Type","60","","","0MATERIAL__CHPGTYPE","",null,null,null,null,null,null,null,null,null,null,null,null,null,null,null,null,null,null,null,null,null,null,null,null,null,null,null,null,4,"0000000030",""]
[null,null,null,null,null,null,null,null,null,null,null,null,null,null,null,null,null,null,null,null,null,null,null,null,null,null,null,null,null,null,5,"CHSTYLTYP","Style Type","X","","","0045","","","","","","","","1","03","","","","00000000","K","CHSTYLTYP","A","","","H","","","","","","00000000","0000","","0","","","","","1","1","1","0","0","","","","","","0IKWYTHUSHJXA0XDEKYXIKSEN","","","","","",null,null,null,null,null,5,"8P8NYH0UHH6PE1EEKLY6F76ZW","EE2F0EO3F4TR8X88MYRIJC69T","VAS Value","0036","Y","S","","L","X",null,null,null,null,null,null,null,null,null,null,5,"0CUSTOMER","0BPARTNER","Business Partner","0000","X","","0","0","","","",null,null,null,null,null,null,null,null,5,"2SZSALJ9IGVAXXL91ZLR2M70B","A4CNQYIEI3A4SAZQW9RFY18NV","","","","","","00","X","0","0","","",null,null,null,null,null,null,null,null,null,null,null,null,null,null,null,null,null,null,null,null,null,null,null,null,null,null,null,null,null,null,null,null,null,null,null,null,4,"DVSUBBRA","1","S","","","","","","","","0","","0","","0","Sub - Brand","60","","","0MATERIAL__CHPGSUBBR","",null,null,null,null,null,null,null,null,null,null,null,null,null,null,null,null,null,null,null,null,null,null,null,null,null,null,null,null,4,"0000000040",""]
[null,null,null,null,null,null,null,null,null,null,null,null,null,null,null,null,null,null,null,null,null,null,null,null,null,null,null,null,null,null,5,"0MATERIAL__CHMULTIP","Set/MPI","X","","","0046","","","","","","","","1","03","","","","00000000","K","0MATERIAL__CHMULTIP","A","","","H","","","","","","00000000","0000","","0","","","","","1","1","1","0","0","","","","","","2TGKQ3QXXYKAPUE7PRSK14PUF","","","","","",null,null,null,null,null,5,"8P8NYH0UHH6PE1EEKLY6F76ZW","4R3QITW7542YG5L9A6AWGIUSC","Gross Value","0037","Y","S","","L","X",null,null,null,null,null,null,null,null,null,null,5,"0CUSTOMER","0CITY","Location","0000","X","","0","0","","","",null,null,null,null,null,null,null,null,5,"2SZSALJ9IGVAXXL91ZLR2M70B","CB4LNO5UGX170R82X1SKZYXQI","","","","","","00","X","0","0","","",null,null,null,null,null,null,null,null,null,null,null,null,null,null,null,null,null,null,null,null,null,null,null,null,null,null,null,null,null,null,null,null,null,null,null,null,4,"DVASALO2","1","S","","","","","","","","0","","0","","0","Sales Office","60","","","0CUST_SALES__0SALES_OFF","",null,null,null,null,null,null,null,null,null,null,null,null,null,null,null,null,null,null,null,null,null,null,null,null,null,null,null,null,4,"0000000041",""]
[null,null,null,null,null,null,null,null,null,null,null,null,null,null,null,null,null,null,null,null,null,null,null,null,null,null,null,null,null,null,5,"0CUST_SALES__0SALES_OFF","Sales Office","X","","","0047","","","","","","","","1","03","","","","00000000","K","0CUST_SALES__0SALES_OFF","A","","","H","","","","","","00000000","0000","","0","","","","","1","1","1","0","0","","","","","","6SK1V0T75A3UMT13CUBZMW3LO","","","","","",null,null,null,null,null,5,"8P8NYH0UHH6PE1EEKLY6F76ZW","888ZW3EWP6IVG72YG9WNEMSST","Tax Value","0038","Y","S","","L","X",null,null,null,null,null,null,null,null,null,null,5,"0CUSTOMER","0CITY_2","CAM: City District","0000","X","","0","0","","","",null,null,null,null,null,null,null,null,5,"2SZSALJ9IGVAXXL91ZLR2M70B","CLLNFQKTMRYLVSUHUSN173QAV","","","","","","00","X","0","0","","",null,null,null,null,null,null,null,null,null,null,null,null,null,null,null,null,null,null,null,null,null,null,null,null,null,null,null,null,null,null,null,null,null,null,null,null,4,"DVPROCAT","1","M","","","","","","","","0","","0","","0","Product Category","60","","","0MATERIAL__CHPGCATEG","",null,null,null,null,null,null,null,null,null,null,null,null,null,null,null,null,null,null,null,null,null,null,null,null,null,null,null,null,4,"0000000042","1"]
[null,null,null,null,null,null,null,null,null,null,null,null,null,null,null,null,null,null,null,null,null,null,null,null,null,null,null,null,null,null,5,"0LOC_CURRCY","Loc. Curr.","X","","","0048","","","","","","","U","2","03","","","","00000000","K","0LOC_CURRCY","A","","","H","","","","","","00000000","0000","","0","","","","","1","1","1","0","0","","","","","","DBVWA136FX1Y1OPE0M608EB05","","","","","",null,null,null,null,null,5,"8P8NYH0UHH6PE1EEKLY6F76ZW","A5IB8QLI432L5WY0GJC85X7BV","VAS Cost","0039","Y","S","","L","X",null,null,null,null,null,null,null,null,null,null,5,"0CUSTOMER","0COUNTRY","Country","0000","X","","0","0","","","",null,null,null,null,null,null,null,null,5,"2SZSALJ9IGVAXXL91ZLR2M70B","D3T5FYJK7PWFTR9ZIOUJLTV60","0","1","","","","00","X","0","0","","",null,null,null,null,null,null,null,null,null,null,null,null,null,null,null,null,null,null,null,null,null,null,null,null,null,null,null,null,null,null,null,null,null,null,null,null,null,null,null,null,null,null,null,null,null,null,null,null,null,null,null,null,null,null,null,null,null,null,null,null,null,null,null,null,null,null,null,null,null,null,null,null,null,null,null,null,null,null,null,null,null,null,null,null,null,null,4,"0000000043","0"]
[null,null,null,null,null,null,null,null,null,null,null,null,null,null,null,null,null,null,null,null,null,null,null,null,null,null,null,null,null,null,5,"0DOC_CURRCY","Doc. Curr.","X","","","0049","","","","","","","","2","03","","","","00000000","K","0DOC_CURRCY","A","","","H","","","","","","00000000","0000","","0","","","","","1","1","1","0","0","","","","","","52W2SY6FGHN0WL0WRPB927A5P","","","","","",null,null,null,null,null,5,"8P8NYH0UHH6PE1EEKLY6F76ZW","B0LG7LONJDGK964QNMFEHQNBA","Assortment Qty","0040","Y","S","","L","X",null,null,null,null,null,null,null,null,null,null,5,"0CUSTOMER","0CUST_CLASS","Customer Classific.","0000","X","","0","0","","","",null,null,null,null,null,null,null,null,5,"2SZSALJ9IGVAXXL91ZLR2M70B","DLW9P54P4AT0OYHVG7ZL1IM5E","0","1","","","","00","X","0","0","","",null,null,null,null,null,null,null,null,null,null,null,null,null,null,null,null,null,null,null,null,null,null,null,null,null,null,null,null,null,null,null,null,null,null,null,null,null,null,null,null,null,null,null,null,null,null,null,null,null,null,null,null,null,null,null,null,null,null,null,null,null,null,null,null,null,null,null,null,null,null,null,null,null,null,null,null,null,null,null,null,null,null,null,null,null,null,4,"0000000109","2"]
[null,null,null,null,null,null,null,null,null,null,null,null,null,null,null,null,null,null,null,null,null,null,null,null,null,null,null,null,null,null,5,"0ITEM_CATEG__CHCONSCRE","Cons/Credit Sls","X","","","0050","","","","","","","","1","03","","","","00000000","K","0ITEM_CATEG__CHCONSCRE","A","","","H","","","","","","00000000","0000","","0","","","","","1","1","1","0","0","","","","","","6Y60YPVUSZK98VJXEZSTRWWZQ","","","","","",null,null,null,null,null,4,"8P8NYH0UHH6PE1EEKLY6F76ZW","E3FJ8ERLJU845UJO3V3FXN76J","Bill","0001","","F","","L","","","","","",null,null,null,null,null,null,5,"0CUSTOMER","0CUST_MKT","Customer Market","0000","X","","0","0","","","",null,null,null,null,null,null,null,null,5,"2YUYCV5ALLOO8OBJH2BWMFFWE","0XOUE3TQ85XCLNJ97LK4N131O","","","","","","00","X","0","0","","",null,null,null,null,null,null,null,null,null,null,null,null,null,null,null,null,null,null,null,null,null,null,null,null,null,null,null,null,null,null,null,null,null,null,null,null,null,null,null,null,null,null,null,null,null,null,null,null,null,null,null,null,null,null,null,null,null,null,null,null,null,null,null,null,null,null,null,null,null,null,null,null,null,null,null,null,null,null,null,null,null,null,null,null,null,null,4,"0000000113",""]
[null,null,null,null,null,null,null,null,null,null,null,null,null,null,null,null,null,null,null,null,null,null,null,null,null,null,null,null,null,null,5,"0ITEM_CATEG","Item Category","X","","","0051","","","","","","","","0","03","","","","00000000","K","0ITEM_CATEG","A","","","H","","","","","","00000000","0000","","0","","","","","1","1","1","0","0","","","","","","F0QRL1LYIAAIMN95OH0FLSAKW","","","","","",null,null,null,null,null,4,"9EDW4DI8YCG2IA4PF83LZ9RRW","CLLNFQKTMRYLVSUHUSN173QAV","AY","0001","","S","","L","","","","","",null,null,null,null,null,null,5,"0CUSTOMER","0CUS_F_CONS","Customer is consumer","0000","X","","0","0","","","",null,null,null,null,null,null,null,null,5,"2YUYCV5ALLOO8OBJH2BWMFFWE","40OMIIL7VXC390GHTHLXLN24I","","","","","","00","X","0","0","","",null,null,null,null,null,null,null,null,null,null,null,null,null,null,null,null,null,null,null,null,null,null,null,null,null,null,null,null,null,null,null,null,null,null,null,null,null,null,null,null,null,null,null,null,null,null,null,null,null,null,null,null,null,null,null,null,null,null,null,null,null,null,null,null,null,null,null,null,null,null,null,null,null,null,null,null,null,null,null,null,null,null,null,null,null,null,4,"0000000120",""]
[null,null,null,null,null,null,null,null,null,null,null,null,null,null,null,null,null,null,null,null,null,null,null,null,null,null,null,null,null,null,5,"0PAYER","Payer","X","","","0052","","","","","","","","0","03","","","","00000000","K","0PAYER","A","","","H","","","","","","00000000","0000","","3","0POSTCD_GIS","","","","1","1","1","0","0","","","","","","D6RVS5UZWM8FD0SRFL3JHCGBH","","","","","",null,null,null,null,null,4,"9EDW4DI8YCG2IA4PF83LZ9RRW","85T7YQIWK1QB9ILJLJ1SQZN8J","B","0002","Y","S","","L","","","","","",null,null,null,null,null,null,5,"0CUSTOMER","0DBDUNS_NUM","D-U-N-S Number","0000","X","","0","0","","","",null,null,null,null,null,null,null,null,5,"2YUYCV5ALLOO8OBJH2BWMFFWE","85T7YQIWK1QB9ILJLJ1SQZN8J","","","","","","00","X","0","0","","",null,null,null,null,null,null,null,null,null,null,null,null,null,null,null,null,null,null,null,null,null,null,null,null,null,null,null,null,null,null,null,null,null,null,null,null,null,null,null,null,null,null,null,null,null,null,null,null,null,null,null,null,null,null,null,null,null,null,null,null,null,null,null,null,null,null,null,null,null,null,null,null,null,null,null,null,null,null,null,null,null,null,null,null,null,null,4,"0000000121",""]
[null,null,null,null,null,null,null,null,null,null,null,null,null,null,null,null,null,null,null,null,null,null,null,null,null,null,null,null,null,null,5,"CHPOTYPE","PO Type","X","","","0052","","","","","","","","1","00","","","","00000000","K","CHPOTYPE","A","","","H","","","","","","00000000","0000","","0","","","","","1","1","1","0","0","","","2","","0","4COD57CZL511SYVQ3TV72MYH6","","","","","",null,null,null,null,null,4,"8P8NYH0UHH6PE1EEKLY6F76ZW","5U2W4SBET1P1PDUABLYPXBGHB","Bill (Act)","0002","X","S","","L","X","","","","",null,null,null,null,null,null,5,"0CUSTOMER","0EMAIL_ADDR","E-Mail Address","0000","X","","0","0","","","",null,null,null,null,null,null,null,null,5,"2YUYCV5ALLOO8OBJH2BWMFFWE","8VM70DOM0541L205HX82GQTS1","0","1","","","","00","X","0","0","","",null,null,null,null,null,null,null,null,null,null,null,null,null,null,null,null,null,null,null,null,null,null,null,null,null,null,null,null,null,null,null,null,null,null,null,null,null,null,null,null,null,null,null,null,null,null,null,null,null,null,null,null,null,null,null,null,null,null,null,null,null,null,null,null,null,null,null,null,null,null,null,null,null,null,null,null,null,null,null,null,null,null,null,null,null,null,4,"0000009001","S010 Monthly Sales by Brand and Product Line"]
[null,null,null,null,null,null,null,null,null,null,null,null,null,null,null,null,null,null,null,null,null,null,null,null,null,null,null,null,null,null,5,"0MATERIAL__CHPGSUBBR","Sub - Brand","X","","","0053","","","","","","","","1","03","","","","00000000","K","0MATERIAL__CHPGSUBBR","A","","","H","","","","","","00000000","0000","","0","","","","","1","1","1","0","0","","","","","","4UUWYV40UV5LVLOMMTP8V1XUY","","","","","",null,null,null,null,null,4,"8P8NYH0UHH6PE1EEKLY6F76ZW","EK035X7VEQYJPDWIQ6JCMKQHJ","Bill (Bud)","0003","X","S","","L","X","","","","",null,null,null,null,null,null,5,"0CUSTOMER","0FAX_NUM","Fax Number","0000","X","","0","0","","","",null,null,null,null,null,null,null,null,5,"2YUYCV5ALLOO8OBJH2BWMFFWE","9VEXAVKBGLVPRM2LYAWT8O2BM","0","1","","","","00","X","0","0","","",null,null,null,null,null,null,null,null,null,null,null,null,null,null,null,null,null,null,null,null,null,null,null,null,null,null,null,null,null,null,null,null,null,null,null,null,null,null,null,null,null,null,null,null,null,null,null,null,null,null,null,null,null,null,null,null,null,null,null,null,null,null,null,null,null,null,null,null,null,null,null,null,null,null,null,null,null,null,null,null,null,null,null,null,null,null,4,"0000010001","74Y5HWPAAIDFWK2KRW5BGZLPE"]
[null,null,null,null,null,null,null,null,null,null,null,null,null,null,null,null,null,null,null,null,null,null,null,null,null,null,null,null,null,null,5,"0CUST_SALES__0SALES_DIST","Sales District","X","","","0054","","","","","","","","1","03","","","","00000000","K","0CUST_SALES__0SALES_DIST","A","","","H","","","","","","00000000","0000","","0","","","","","1","1","1","0","0","","","","","","6P0DJPCEHFHF8BSD1XTMG5JUW","","","","","",null,null,null,null,null,4,"9EDW4DI8YCG2IA4PF83LZ9RRW","8VM70DOM0541L205HX82GQTS1","%B","0003","","F","","L","","","","","",null,null,null,null,null,null,5,"0CUSTOMER","0FISCVARNT","Fiscal Year Variant","0000","X","","0","0","","","",null,null,null,null,null,null,null,null,5,"2YUYCV5ALLOO8OBJH2BWMFFWE","A4CNQYIEI3A4SAZQW9RFY18NV","","","","","","00","X","0","0","","",null,null,null,null,null,null,null,null,null,null,null,null,null,null,null,null,null,null,null,null,null,null,null,null,null,null,null,null,null,null,null,null,null,null,null,null,null,null,null,null,null,null,null,null,null,null,null,null,null,null,null,null,null,null,null,null,null,null,null,null,null,null,null,null,null,null,null,null,null,null,null,null,null,null,null,null,null,null,null,null,null,null,null,null,null,null,4,"0000010002","A8BZ00GRUXSWGGU6LVV6NUJYU"]
[null,null,null,null,null,null,null,null,null,null,null,null,null,null,null,null,null,null,null,null,null,null,null,null,null,null,null,null,null,null,5,"CHSALSRE2","Add. Sales Rep.","X","","","0055","","","","","","","","1","03","","","","00000000","K","CHSALSRE2","A","","","H","","","","","","00000000","0000","","3","0POSTCD_GIS","","","","1","1","1","0","0","","","","","","8RIQCLBQBINL0ZHCTXXOCOSLH","","","","","",null,null,null,null,null,4,"9EDW4DI8YCG2IA4PF83LZ9RRW","40OMIIL7VXC390GHTHLXLN24I","PY","0004","Y","S","","L","","","","","",null,null,null,null,null,null,5,"0CUSTOMER","0ID_TXNUMB3","Tax Number 3","0000","X","","0","0","","","",null,null,null,null,null,null,null,null,5,"2YUYCV5ALLOO8OBJH2BWMFFWE","CB4LNO5UGX170R82X1SKZYXQI","","","","","","00","X","0","0","","",null,null,null,null,null,null,null,null,null,null,null,null,null,null,null,null,null,null,null,null,null,null,null,null,null,null,null,null,null,null,null,null,null,null,null,null,null,null,null,null,null,null,null,null,null,null,null,null,null,null,null,null,null,null,null,null,null,null,null,null,null,null,null,null,null,null,null,null,null,null,null,null,null,null,null,null,null,null,null,null,null,null,null,null,null,null,4,"0000000105",""]
[null,null,null,null,null,null,null,null,null,null,null,null,null,null,null,null,null,null,null,null,null,null,null,null,null,null,null,null,null,null,5,"0CUST_SALES__0CUST_GRP1","Konzern","X","","","0056","","","","","","","","1","03","","","","00000000","K","0CUST_SALES__0CUST_GRP1","A","","","H","","","","","","00000000","0000","","0","","","","","1","1","1","0","0","","","","","","0I6AHWF46IWK1M4AYC9DSR16V","","","","","",null,null,null,null,null,4,"8P8NYH0UHH6PE1EEKLY6F76ZW","BAI19GP8IE8J4WJN7LSTLARIP","Qty","0004","","F","","L","","","","","",null,null,null,null,null,null,5,"0CUSTOMER","0ID_XCPD","One-Time Account","0000","X","","0","0","","","",null,null,null,null,null,null,null,null,5,"2YUYCV5ALLOO8OBJH2BWMFFWE","CLLNFQKTMRYLVSUHUSN173QAV","","","","","","00","X","0","0","","",null,null,null,null,null,null,null,null,null,null,null,null,null,null,null,null,null,null,null,null,null,null,null,null,null,null,null,null,null,null,null,null,null,null,null,null,null,null,null,null,null,null,null,null,null,null,null,null,null,null,null,null,null,null,null,null,null,null,null,null,null,null,null,null,null,null,null,null,null,null,null,null,null,null,null,null,null,null,null,null,null,null,null,null,null,null,4,"0000000106",""]
[null,null,null,null,null,null,null,null,null,null,null,null,null,null,null,null,null,null,null,null,null,null,null,null,null,null,null,null,null,null,5,"0CUST_SALES__0SALES_GRP","Sales Group","X","","","0057","","","","","","","","1","03","","","","00000000","K","0CUST_SALES__0SALES_GRP","A","","","H","","","","","","00000000","0000","","0","","","","","1","1","1","0","0","","","","","","8M8HGXHT33IXSWOZLCRLFE0ZM","","","","","",null,null,null,null,null,4,"8P8NYH0UHH6PE1EEKLY6F76ZW","DZX7TY4YPKA1MXHB5MJKWVCSC","Qty (Act)","0005","X","S","","L","X","","","","",null,null,null,null,null,null,5,"0CUSTOMER","0INDUSTRY","Industry","0000","X","","0","0","","","",null,null,null,null,null,null,null,null,5,"2YUYCV5ALLOO8OBJH2BWMFFWE","D3T5FYJK7PWFTR9ZIOUJLTV60","0","1","","","","00","X","0","0","","",null,null,null,null,null,null,null,null,null,null,null,null,null,null,null,null,null,null,null,null,null,null,null,null,null,null,null,null,null,null,null,null,null,null,null,null,null,null,null,null,null,null,null,null,null,null,null,null,null,null,null,null,null,null,null,null,null,null,null,null,null,null,null,null,null,null,null,null,null,null,null,null,null,null,null,null,null,null,null,null,null,null,null,null,null,null,4,"0000000112","0"]
[null,null,null,null,null,null,null,null,null,null,null,null,null,null,null,null,null,null,null,null,null,null,null,null,null,null,null,null,null,null,5,"CHCATALOG","Catalogue","X","","","0058","","","","","","","","0","03","","","","00000000","K","CHCATALOG","A","","","H","","","","","","00000000","0000","","3","0POSTCD_GIS","","","","1","1","1","0","0","","","","","","3YUGURO5ELLK723AGSQ5G4HHS","","","","","",null,null,null,null,null,4,"9EDW4DI8YCG2IA4PF83LZ9RRW","9VEXAVKBGLVPRM2LYAWT8O2BM","%PY","0005","","F","","L","","","","","",null,null,null,null,null,null,5,"0CUSTOMER","0IND_CODE_1","Industry code 1","0000","X","","0","0","","","",null,null,null,null,null,null,null,null,5,"2YUYCV5ALLOO8OBJH2BWMFFWE","DLW9P54P4AT0OYHVG7ZL1IM5E","0","1","","","","00","X","0","0","","",null,null,null,null,null,null,null,null,null,null,null,null,null,null,null,null,null,null,null,null,null,null,null,null,null,null,null,null,null,null,null,null,null,null,null,null,null,null,null,null,null,null,null,null,null,null,null,null,null,null,null,null,null,null,null,null,null,null,null,null,null,null,null,null,null,null,null,null,null,null,null,null,null,null,null,null,null,null,null,null,null,null,null,null,null,null,4,"0000000200","X"]
[null,null,null,null,null,null,null,null,null,null,null,null,null,null,null,null,null,null,null,null,null,null,null,null,null,null,null,null,null,null,5,"0CALMONTH","Cal. Year/Month","X","","","0059","","","","","","","","2","03","","","","00000000","K","0CALMONTH","A","","","H","","","","","","00000000","0000","","0","","","","","1","1","1","0","0","","","","","","ECLRMKWXQG1OLY1RLG1V2AITN","","","","","",null,null,null,null,null,4,"9EDW4DI8YCG2IA4PF83LZ9RRW","A4CNQYIEI3A4SAZQW9RFY18NV","AY\r\nYTD","0006","","S","","L","","","","","",null,null,null,null,null,null,5,"0CUSTOMER","0IND_CODE_2","Industry Code 2","0000","X","","0","0","","","",null,null,null,null,null,null,null,null,5,"3EJEUPB6ZMLP0NMQQDYFPRSMQ","0XOUE3TQ85XCLNJ97LK4N131O","","","","","","00","X","0","0","","",null,null,null,null,null,null,null,null,null,null,null,null,null,null,null,null,null,null,null,null,null,null,null,null,null,null,null,null,null,null,null,null,null,null,null,null,null,null,null,null,null,null,null,null,null,null,null,null,null,null,null,null,null,null,null,null,null,null,null,null,null,null,null,null,null,null,null,null,null,null,null,null,null,null,null,null,null,null,null,null,null,null,null,null,null,null,4,"0000004000","X"]
[null,null,null,null,null,null,null,null,null,null,null,null,null,null,null,null,null,null,null,null,null,null,null,null,null,null,null,null,null,null,5,"0CALWEEK","Cal. Week","X","","","0060","","","","","","","","2","03","","","","00000000","K","0CALWEEK","A","","","H","","","","","","00000000","0000","","0","","","","","1","1","1","0","0","","","","","","CU810GF7CPKI8RMFFXUEOMLRG","","","","","",null,null,null,null,null,4,"8P8NYH0UHH6PE1EEKLY6F76ZW","7W9DIFXSPC3TAEHE0QJ9NMQVF","Qty (Bud)","0006","X","S","","L","X","","","","",null,null,null,null,null,null,5,"0CUSTOMER","0IND_CODE_3","Industry Code 3","0000","X","","0","0","","","",null,null,null,null,null,null,null,null,5,"3EJEUPB6ZMLP0NMQQDYFPRSMQ","40OMIIL7VXC390GHTHLXLN24I","","","","","","00","X","0","0","","",null,null,null,null,null,null,null,null,null,null,null,null,null,null,null,null,null,null,null,null,null,null,null,null,null,null,null,null,null,null,null,null,null,null,null,null,null,null,null,null,null,null,null,null,null,null,null,null,null,null,null,null,null,null,null,null,null,null,null,null,null,null,null,null,null,null,null,null,null,null,null,null,null,null,null,null,null,null,null,null,null,null,null,null,null,null,4,"0000000114","2"]
[null,null,null,null,null,null,null,null,null,null,null,null,null,null,null,null,null,null,null,null,null,null,null,null,null,null,null,null,null,null,5,"0CALDAY","Cal. Day","X","","","0061","","","","","","","","2","03","","","","00000000","K","0CALDAY","A","","","H","","","","","","00000000","0000","","0","","","","","1","1","1","0","0","","","","","","1YZ0HWAIN474PGEQCA0ICM8K8","","","","","",null,null,null,null,null,4,"8P8NYH0UHH6PE1EEKLY6F76ZW","D9P2ZSBYJBLJ8KBL89BVWBD14","Qty (SSH)","0007","Y","F","","L","","","","","",null,null,null,null,null,null,5,"0CUSTOMER","0IND_CODE_4","Industry Code 4","0000","X","","0","0","","","",null,null,null,null,null,null,null,null,5,"3EJEUPB6ZMLP0NMQQDYFPRSMQ","85T7YQIWK1QB9ILJLJ1SQZN8J","","","","","","00","X","0","0","",""]
[null,null,null,null,null,null,null,null,null,null,null,null,null,null,null,null,null,null,null,null,null,null,null,null,null,null,null,null,null,null,5,"CHDAY","Day of Month","X","","","0062","","","","","","","","2","03","","","","00000000","K","CHDAY","A","","","H","","","","","","00000000","0000","","0","","","","","1","1","1","0","0","","","","","","F4PC3NNJ0GA27ZQXLCAC7MDLD","","","","","",null,null,null,null,null,4,"9EDW4DI8YCG2IA4PF83LZ9RRW","CB4LNO5UGX170R82X1SKZYXQI","B\r\nYTD","0007","Y","S","","L","","","","","",null,null,null,null,null,null,5,"0CUSTOMER","0IND_CODE_5","Industry Code 5","0000","X","","0","0","","","",null,null,null,null,null,null,null,null,5,"3EJEUPB6ZMLP0NMQQDYFPRSMQ","8VM70DOM0541L205HX82GQTS1","0","1","","","","00","X","0","0","",""]
[null,null,null,null,null,null,null,null,null,null,null,null,null,null,null,null,null,null,null,null,null,null,null,null,null,null,null,null,null,null,5,"CHWEEKDAY","Weekday","X","","","0063","","","","","","","","1","03","","","","00000000","K","CHWEEKDAY","A","","","H","","","","","","00000000","0000","","0","","","","","1","1","1","0","0","","","","","","AT3LJPEI6CH1AE0HBNAC92CBO","","","","","",null,null,null,null,null,4,"8P8NYH0UHH6PE1EEKLY6F76ZW","D9P2ZSBYJBMAX6NCJSRHYQRAW","Qty (SSH) (Act)","0008","X","S","","L","X","","","","",null,null,null,null,null,null,5,"0CUSTOMER","0KEYACCOUNT","Key Account","0000","X","","0","0","","","",null,null,null,null,null,null,null,null,5,"3EJEUPB6ZMLP0NMQQDYFPRSMQ","9VEXAVKBGLVPRM2LYAWT8O2BM","0","1","","","","00","X","0","0","",""]
[null,null,null,null,null,null,null,null,null,null,null,null,null,null,null,null,null,null,null,null,null,null,null,null,null,null,null,null,null,null,5,"0CALMONTH2","Month","X","","","0064","","","","","","","","2","03","","","","00000000","K","0CALMONTH2","A","","","H","","","","","","00000000","0000","","0","","","","","1","1","1","0","0","","","","","","EJ3IIC6JTN0JDVKCOM2ZAZONO","","","","","",null,null,null,null,null,4,"9EDW4DI8YCG2IA4PF83LZ9RRW","D3T5FYJK7PWFTR9ZIOUJLTV60","%B\r\nYTD","0008","","F","","L","","","","","",null,null,null,null,null,null,5,"0CUSTOMER","0LANGU","Language key","0000","X","","0","0","","","",null,null,null,null,null,null,null,null,5,"3EJEUPB6ZMLP0NMQQDYFPRSMQ","A4CNQYIEI3A4SAZQW9RFY18NV","","","","","","00","X","0","0","",""]
[null,null,null,null,null,null,null,null,null,null,null,null,null,null,null,null,null,null,null,null,null,null,null,null,null,null,null,null,null,null,5,"0DOC_NUMBER","Sales Document","X","","","0068","","","","","","","","2","00","","","","00000000","K","0DOC_NUMBER","A","","","H","","","","","","00000000","0000","","0","","","","","1","1","1","0","0","","","2","","0","9RIEQHV4V57VP1G3KSSPRSIEN","","","","","",null,null,null,null,null,4,"8P8NYH0UHH6PE1EEKLY6F76ZW","D9P2ZSBYJBN2LSZ3VC74165KO","Qty (SSH) (Bud)","0009","X","S","","L","X","","","","",null,null,null,null,null,null,5,"0CUSTOMER","0LATITUDE","Latitude","0000","X","","0","0","","","",null,null,null,null,null,null,null,null,5,"3EJEUPB6ZMLP0NMQQDYFPRSMQ","CB4LNO5UGX170R82X1SKZYXQI","","","","","","00","X","0","0","",""]
[null,null,null,null,null,null,null,null,null,null,null,null,null,null,null,null,null,null,null,null,null,null,null,null,null,null,null,null,null,null,5,"0BILL_NUM","Billing Document","X","","","0069","","","","","","","","2","00","","","","00000000","K","0BILL_NUM","A","","","H","","","","","","00000000","0000","","0","","","","","1","1","1","0","0","","","2","","0","1JEQF4ACBXZ2W2SY8UJ47PCSI","","","","","",null,null,null,null,null,4,"9EDW4DI8YCG2IA4PF83LZ9RRW","0XOUE3TQ85XCLNJ97LK4N131O","PY\r\nYTD","0009","Y","S","","L","","","","","",null,null,null,null,null,null,5,"0CUSTOMER","0LOGSYS","Source System","0000","X","","0","0","","","",null,null,null,null,null,null,null,null,5,"3EJEUPB6ZMLP0NMQQDYFPRSMQ","CLLNFQKTMRYLVSUHUSN173QAV","","","","","","00","X","0","0","",""]
[null,null,null,null,null,null,null,null,null,null,null,null,null,null,null,null,null,null,null,null,null,null,null,null,null,null,null,null,null,null,5,"8P8NYH0UHH6PE1EEKLY6F76ZW","Key Fig. (LC)","","X","X","0001","","*","","","","","U","","00","","","","","K","8P8NYH0UHH6PE1EEKLY6F76ZW","A","","","","","","","","","00000000","0000","X","0","","X","","","0","0","0","0","0","","","","","","8P8NYH0UHH6PE1EEKLY6F76ZW","","","","","",null,null,null,null,null,4,"8P8NYH0UHH6PE1EEKLY6F76ZW","A6WWZSIB3TPP37GSQPKIEBAZW","Qty (SSC)","0010","Y","F","","L","","","","","",null,null,null,null,null,null,5,"0CUSTOMER","0LONGITUDE","Longitude","0000","X","","0","0","","","",null,null,null,null,null,null,null,null,5,"3EJEUPB6ZMLP0NMQQDYFPRSMQ","D3T5FYJK7PWFTR9ZIOUJLTV60","0","1","","","","00","X","0","0","",""]
[null,null,null,null,null,null,null,null,null,null,null,null,null,null,null,null,null,null,null,null,null,null,null,null,null,null,null,null,null,null,5,"9EDW4DI8YCG2IA4PF83LZ9RRW","Header Monthly","","X","X","0002","","*","","","","","U","","00","","","","","K","9EDW4DI8YCG2IA4PF83LZ9RRW","A","","","","","","","","","00000000","0000","","0","","X","","","0","0","0","0","0","","","","","","9EDW4DI8YCG2IA4PF83LZ9RRW","","","","","",null,null,null,null,null,4,"9EDW4DI8YCG2IA4PF83LZ9RRW","DLW9P54P4AT0OYHVG7ZL1IM5E","%PY\r\nYTD","0010","","F","","L","","","","","",null,null,null,null,null,null,5,"0CUSTOMER","0NAME","Name","0000","X","","0","0","","","",null,null,null,null,null,null,null,null,5,"3EJEUPB6ZMLP0NMQQDYFPRSMQ","DLW9P54P4AT0OYHVG7ZL1IM5E","0","1","","","","00","X","0","0","",""]
[null,null,null,null,null,null,null,null,null,null,null,null,null,null,null,null,null,null,null,null,null,null,null,null,null,null,null,null,null,null,5,"0MATERIAL__CHPGBRAND","Brand","X","","Y","0001","","","","","","","","1","03","","","","00000000","K","CHSORTORD","D","","","H","","","","","","00000000","0000","","0","","","","","1","1","1","0","0","","","","","","7072OAF5SO1XV99TSDCKYT6GR","","","","","",null,null,null,null,null,4,"8P8NYH0UHH6PE1EEKLY6F76ZW","9TEW6D5TSN73AJ1KEH06USQ1W","Qty (SSC) (Act)","0011","X","S","","L","X","","","","",null,null,null,null,null,null,5,"0CUSTOMER","0NAME2","Name 2","0000","X","","0","0","","","",null,null,null,null,null,null,null,null,5,"4LO68SM2XLA6M4L9O873WNV6J","0XOUE3TQ85XCLNJ97LK4N131O","","","","","","00","X","0","0","",""]
[null,null,null,null,null,null,null,null,null,null,null,null,null,null,null,null,null,null,null,null,null,null,null,null,null,null,null,null,null,null,5,"0MATERIAL__CHPGLINE","Prod. Line","X","","Y","0002","","","","","","","","1","03","","","","00000000","K","CHSORTORD","D","","","H","","","","","","00000000","0000","","0","","","","","1","1","1","0","0","","","","","","C0VS0U5DFVAKS8MNHJWDIJNQT","","","","","",null,null,null,null,null,4,"8P8NYH0UHH6PE1EEKLY6F76ZW","06NAHOMZG40HMPJ8PUOAMHG5H","Qty (SSC) (Bud)","0012","X","S","","L","X","","","","",null,null,null,null,null,null,5,"0CUSTOMER","0NAME3","Name 3","0000","X","","0","0","","","",null,null,null,null,null,null,null,null,5,"4LO68SM2XLA6M4L9O873WNV6J","40OMIIL7VXC390GHTHLXLN24I","","","","","","00","X","0","0","",""]
[null,null,null,null,null,null,null,null,null,null,null,null,null,null,null,null,null,null,null,null,null,null,null,null,null,null,null,null,null,null,4,"0CUST_SALES__0CUST_GROUP","Cust. Group","X","","","0001","","","","","","","","0","03","","","","00000000","K","0CUST_SALES__0CUST_GROUP","A","","","H","","","","","","00000000","0000","","0","","","","","1","1","1","0","0","","","","","","BAN3FZWS3XJLAW4LIDB8UQDK8","","","","","","","0000","","","",4,"8P8NYH0UHH6PE1EEKLY6F76ZW","E1KKQC1GPBNM8G9Q2MDF76EAP","MI","0013","","F","","L","","","","","",null,null,null,null,null,null,5,"0CUSTOMER","0NIELSEN_ID","Nielsen Indicator","0000","X","","0","0","","","",null,null,null,null,null,null,null,null,5,"4LO68SM2XLA6M4L9O873WNV6J","85T7YQIWK1QB9ILJLJ1SQZN8J","","","","","","00","X","0","0","",""]
[null,null,null,null,null,null,null,null,null,null,null,null,null,null,null,null,null,null,null,null,null,null,null,null,null,null,null,null,null,null,4,"0MATERIAL__CHPGTYPE","Prod. Type","X","","","0002","","","","","","","","1","03","","","","00000000","K","0MATERIAL__CHPGTYPE","A","","","H","","","","","","00000000","0000","","0","","","","","1","1","1","0","0","","","","","","F0Q6PDJVTTO5PQDQVE1JNQC5L","","","","","","","0000","","","",4,"8P8NYH0UHH6PE1EEKLY6F76ZW","2SZSALJ9IGVAXXL91ZLR2M70B","MI (Act)","0014","X","S","","L","X","","","","",null,null,null,null,null,null,5,"0CUSTOMER","0OUTL_TYPE","Branch Category","0000","X","","0","0","","","",null,null,null,null,null,null,null,null,5,"4LO68SM2XLA6M4L9O873WNV6J","8VM70DOM0541L205HX82GQTS1","0","1","","","","00","X","0","0","",""]
[null,null,null,null,null,null,null,null,null,null,null,null,null,null,null,null,null,null,null,null,null,null,null,null,null,null,null,null,null,null,4,"0MATERIAL__CHPGCATEG","Prod. Cat.","X","","","0003","","","","","","","","1","03","","","","00000000","K","0MATERIAL__CHPGCATEG","A","","","H","","","","","","00000000","0000","","0","","","","","1","1","1","0","0","","","","","","9AK4YLU9KFIT2ZX1JV06Y2RSX","","","","","","","0000","","","",4,"8P8NYH0UHH6PE1EEKLY6F76ZW","B0NC9O6WHUMWA7VXWT62I0MSN","MI (Bud)","0015","X","S","","L","X","","","","",null,null,null,null,null,null,5,"0CUSTOMER","0PCOMPANY","Trading partner","0000","X","","0","0","","","",null,null,null,null,null,null,null,null,5,"4LO68SM2XLA6M4L9O873WNV6J","9VEXAVKBGLVPRM2LYAWT8O2BM","0","1","","","","00","X","0","0","",""]
[null,null,null,null,null,null,null,null,null,null,null,null,null,null,null,null,null,null,null,null,null,null,null,null,null,null,null,null,null,null,4,"CHPLPLC__CHPLPLCGR","PLC Group","X","","","0004","","","","","","","","1","03","","","","00000000","K","CHPLPLC__CHPLPLCGR","A","","","H","","","","","","00000000","0000","","0","","","","","1","1","1","0","0","","","","","","DJFTJZE9VVDHQTUWCISE5LGYM","","","","","","","0000","","","",4,"8P8NYH0UHH6PE1EEKLY6F76ZW","7R6MCXJ9N6Z9QNVWZ48UAWW0Y","MI %","0016","","F","","L","","","","","",null,null,null,null,null,null,5,"0CUSTOMER","0PHONE","Telephone 1","0000","X","","0","0","","","",null,null,null,null,null,null,null,null,5,"4LO68SM2XLA6M4L9O873WNV6J","A4CNQYIEI3A4SAZQW9RFY18NV","","","","","","00","X","0","0","",""]
[null,null,null,null,null,null,null,null,null,null,null,null,null,null,null,null,null,null,null,null,null,null,null,null,null,null,null,null,null,null,4,"CHPLPLC__CHBMPLCGR","PLC Sub Group","X","","","0005","","","","","","","","1","03","","","","00000000","K","CHPLPLC__CHBMPLCGR","A","","","H","","","","","","00000000","0000","","0","","","","","1","1","1","0","0","","","","","","DB8WVGGJZ98PIHUW2T8ANBS8O","","","","","","","0000","","","",4,"8P8NYH0UHH6PE1EEKLY6F76ZW","E9E64DW2H5TW5C821HZU4B4RO","MI % (Act)","0017","X","S","","L","X","","","","",null,null,null,null,null,null,5,"0CUSTOMER","0PLANT","Plant","0000","X","","0","0","","","",null,null,null,null,null,null,null,null,5,"4LO68SM2XLA6M4L9O873WNV6J","CB4LNO5UGX170R82X1SKZYXQI","","","","","","00","X","0","0","",""]
[null,null,null,null,null,null,null,null,null,null,null,null,null,null,null,null,null,null,null,null,null,null,null,null,null,null,null,null,null,null,4,"CHPLPLC","PLC Status","X","","","0006","","","","","","","U","1","03","","","","00000000","K","CHPLPLC","A","","","H","","","","","","00000000","0000","","0","","","","","1","1","1","0","0","","","","","","5P2UE8IDIDT5ODB5HV6PJACAR","","","","","","","0000","","","",4,"8P8NYH0UHH6PE1EEKLY6F76ZW","4LO68SM2XLA6M4L9O873WNV6J","MI % (Bud)","0018","X","S","","L","X","","","","",null,null,null,null,null,null,5,"0CUSTOMER","0POBOX","P.O. Box","0000","X","","0","0","","","",null,null,null,null,null,null,null,null,5,"4LO68SM2XLA6M4L9O873WNV6J","CLLNFQKTMRYLVSUHUSN173QAV","","","","","","00","X","0","0","",""]
[null,null,null,null,null,null,null,null,null,null,null,null,null,null,null,null,null,null,null,null,null,null,null,null,null,null,null,null,null,null,4,"CHSALSREP","Sales Rep.","X","","","0007","","","","","","","","2","03","","","","00000000","K","CHSALSREP","A","","","H","","","","","","00000000","0000","","3","0POSTCD_GIS","","","","1","1","1","0","0","","","","","","1I6OUQ3A458X2TA1IF7IIJ32L","","","","","","","0000","","","",4,"8P8NYH0UHH6PE1EEKLY6F76ZW","3EJEUPB6ZMLP0NMQQDYFPRSMQ","Return Bill","0019","Y","S","","L","X","","","","",null,null,null,null,null,null,5,"0CUSTOMER","0POBOX_LOC","CAM: PO Box Location","0000","X","","0","0","","","",null,null,null,null,null,null,null,null,5,"4LO68SM2XLA6M4L9O873WNV6J","D3T5FYJK7PWFTR9ZIOUJLTV60","0","1","","","","00","X","0","0","",""]
[null,null,null,null,null,null,null,null,null,null,null,null,null,null,null,null,null,null,null,null,null,null,null,null,null,null,null,null,null,null,4,"0MATERIAL__CHPGSTYLE","Prod. Style","X","","","0008","","","","","","","","1","03","","","","00000000","K","0MATERIAL__CHPGSTYLE","A","","","H","","","","","","00000000","0000","","0","","","","","1","1","1","0","0","","","","","","231OHPR5OTWTPPJYC2VDQUQR6","","","","","","","0000","","","",4,"8P8NYH0UHH6PE1EEKLY6F76ZW","DTTDHH3GJNUXWGV5PDD7U5Y60","Return Qty","0020","Y","S","","L","X","","","","",null,null,null,null,null,null,5,"0CUSTOMER","0POSTAL_CD","Postal Code","0000","X","","0","0","","","",null,null,null,null,null,null,null,null,5,"4LO68SM2XLA6M4L9O873WNV6J","DLW9P54P4AT0OYHVG7ZL1IM5E","0","1","","","","00","X","0","0","",""]
[null,null,null,null,null,null,null,null,null,null,null,null,null,null,null,null,null,null,null,null,null,null,null,null,null,null,null,null,null,null,4,"0MATERIAL__CHPGGROUP","Prod. Group","X","","","0009","","","","","","","","1","03","","","","00000000","K","CHSORTORD","D","","","H","","","","","","00000000","0000","","0","","","","","1","1","1","0","0","","","","","","3KBQDRY945TFDQ2L7BJSUH6Q2","","","","","","","0000","","","",4,"8P8NYH0UHH6PE1EEKLY6F76ZW","042N13AJJDL9ZIZ9M827VFW77","RSP","0021","Y","S","","L","X","","","","",null,null,null,null,null,null,5,"0CUSTOMER","0POSTCD_BOX","CAM:POBox PostalCode","0000","X","","0","0","","","",null,null,null,null,null,null,null,null,5,"4R3QITW7542YG5L9A6AWGIUSC","0XOUE3TQ85XCLNJ97LK4N131O","","","","","","00","X","0","0","",""]
[null,null,null,null,null,null,null,null,null,null,null,null,null,null,null,null,null,null,null,null,null,null,null,null,null,null,null,null,null,null,4,"0AF_COLOR","Colour","X","","","0010","","","","","","","","1","03","","","","00000000","K","0AF_COLOR","A","","","H","","","","","","00000000","0000","","0","","","","","1","1","1","0","0","","","","","","F483SRYS591LBNHRAA7OJM95B","","","","","","","0000","","","",4,"8P8NYH0UHH6PE1EEKLY6F76ZW","D9IU0A9VZZTKIRVEDLAM7Z4ZP","Bill/PC","0022","Y","F","","L","","","","","",null,null,null,null,null,null,5,"0CUSTOMER","0POSTCD_GIS","CAM:PstCde(Geo-Rel.)","0000","X","","0","0","","","",null,null,null,null,null,null,null,null,5,"4R3QITW7542YG5L9A6AWGIUSC","40OMIIL7VXC390GHTHLXLN24I","","","","","","00","X","0","0","",""]
[null,null,null,null,null,null,null,null,null,null,null,null,null,null,null,null,null,null,null,null,null,null,null,null,null,null,null,null,null,null,4,"0MATERIAL__0AF_GENDER","Target Group","X","","","0011","","","","","","","","1","03","","","","00000000","K","0MATERIAL__0AF_GENDER","A","","","H","","","","","","00000000","0000","","0","","","","","1","1","1","0","0","","","","","","8RXZ6OV4Y8BUGEOUW0ZSQE4VY","","","","","","","0000","","","",4,"8P8NYH0UHH6PE1EEKLY6F76ZW","6781H30EC66VV0IURX8EUG44C","Bill/PC (SSC)","0023","Y","F","","L","","","","","",null,null,null,null,null,null,5,"0CUSTOMER","0PRECISID","Geo-precision","0000","X","","0","0","","","",null,null,null,null,null,null,null,null,5,"4R3QITW7542YG5L9A6AWGIUSC","85T7YQIWK1QB9ILJLJ1SQZN8J","","","","","","00","X","0","0","",""]
[null,null,null,null,null,null,null,null,null,null,null,null,null,null,null,null,null,null,null,null,null,null,null,null,null,null,null,null,null,null,4,"0AF_COLL","AFS Collection","X","","","0012","","","","","","","","2","03","","","","00000000","K","0AF_COLL","A","","","H","","","","","","00000000","0000","","0","","","","","1","1","1","0","0","","","","","","6IGHM7B6QNFXJXR6KLQKBK7S9","","","","","","","0000","","","",4,"8P8NYH0UHH6PE1EEKLY6F76ZW","D9P2ZSBYJBNUAFAV6VMQ3LJUG","Bill/PC (SSH)","0024","Y","F","","L","","","","","",null,null,null,null,null,null,5,"0CUSTOMER","0REGION","Region","0000","X","","0","0","","","",null,null,null,null,null,null,null,null,5,"4R3QITW7542YG5L9A6AWGIUSC","8VM70DOM0541L205HX82GQTS1","0","1","","","","00","X","0","0","",""]
[null,null,null,null,null,null,null,null,null,null,null,null,null,null,null,null,null,null,null,null,null,null,null,null,null,null,null,null,null,null,4,"0AF_THEME","AFS Theme","X","","","0013","","","","","","","","2","03","","","","00000000","K","0AF_THEME","A","","","H","","","","","","00000000","0000","","0","","","","","1","1","1","0","0","","","","","","B1UAN3TKIY8E4DKMF2BLLR54H","","","","","","","0000","","","",4,"8P8NYH0UHH6PE1EEKLY6F76ZW","65J5X21CQULHZQURVUFZI8HWN","MI/PC","0025","Y","F","","L","","","","","",null,null,null,null,null,null,5,"0CUSTOMER","0SORTL","Sort Field","0000","X","","0","0","","","",null,null,null,null,null,null,null,null,5,"4R3QITW7542YG5L9A6AWGIUSC","9VEXAVKBGLVPRM2LYAWT8O2BM","0","1","","","","00","X","0","0","",""]
[null,null,null,null,null,null,null,null,null,null,null,null,null,null,null,null,null,null,null,null,null,null,null,null,null,null,null,null,null,null,4,"0AF_SEAN","AFS Season","X","","","0014","","","","","","","","1","03","","","","00000000","K","0AF_SEAN","A","","","H","","","","","","00000000","0000","","0","","","","","1","1","1","0","0","","","","","","1RS5ARI4WU06QGPNS5GTNP5NA","","","","","","","0000","","","",4,"8P8NYH0UHH6PE1EEKLY6F76ZW","DR91OMEBWU18XF8TEK57T76H6","MI/PC (SSC)","0026","Y","F","","L","","","","","",null,null,null,null,null,null,5,"0CUSTOMER","0SRCID","DatSrc.ID of GeoLoct","0000","X","","0","0","","","",null,null,null,null,null,null,null,null,5,"4R3QITW7542YG5L9A6AWGIUSC","A4CNQYIEI3A4SAZQW9RFY18NV","","","","","","00","X","0","0","",""]
[null,null,null,null,null,null,null,null,null,null,null,null,null,null,null,null,null,null,null,null,null,null,null,null,null,null,null,null,null,null,4,"0SALESORG","Sales Org.","X","","","0015","","","","","","","","0","03","","","","00000000","K","0SALESORG","A","","","H","","","","","","00000000","0000","","0","","","","","1","1","1","0","0","","","","","","11O3G2GWX928ZEVA2ZZCLR0J7","","","","","","","0000","","","",4,"8P8NYH0UHH6PE1EEKLY6F76ZW","D9P2ZSBYJBOLZ1MMIF2C60Y48","MI/PC (SSH)","0027","Y","F","","L","","","","","",null,null,null,null,null,null,5,"0CUSTOMER","0STREET","Street Name","0000","X","","0","0","","","",null,null,null,null,null,null,null,null,5,"4R3QITW7542YG5L9A6AWGIUSC","CB4LNO5UGX170R82X1SKZYXQI","","","","","","00","X","0","0","",""]
[null,null,null,null,null,null,null,null,null,null,null,null,null,null,null,null,null,null,null,null,null,null,null,null,null,null,null,null,null,null,4,"0MATERIAL__0MATL_TYPE","Mat. Type","X","","","0016","","","","","","","","0","03","","","","00000000","K","0MATERIAL__0MATL_TYPE","A","","","H","","","","","","00000000","0000","","0","","","","","1","1","1","0","0","","","","","","4FDHYILZQG7DBW1C54MBJ9FH5","","","","","","","0000","","","",4,"8P8NYH0UHH6PE1EEKLY6F76ZW","C3QHLF000YWITR7D3MHAGFAQC","RSP/PC","0028","Y","F","","L","","","","","",null,null,null,null,null,null,5,"0CUSTOMER","0TAX_NUMB","Tax code 1","0000","X","","0","0","","","",null,null,null,null,null,null,null,null,5,"4R3QITW7542YG5L9A6AWGIUSC","CLLNFQKTMRYLVSUHUSN173QAV","","","","","","00","X","0","0","",""]
[null,null,null,null,null,null,null,null,null,null,null,null,null,null,null,null,null,null,null,null,null,null,null,null,null,null,null,null,null,null,4,"0MAT_SALES__0MATL_GRP_5","Supply Type","X","","","0017","","","","","","","","1","03","","","","00000000","K","0MAT_SALES__0MATL_GRP_5","A","","","H","","","","","","00000000","0000","","0","","","","","1","1","1","0","0","","","","","","CKWA5DGKK0H8ALZ9X0IFT4TCR","","","","","","","0000","","","",4,"8P8NYH0UHH6PE1EEKLY6F76ZW","EAYTKKPI5LLOOQDFMTH1E15VF","RSP/PC (SSC)","0029","Y","F","","L","","","","","",null,null,null,null,null,null,5,"0CUSTOMER","0TAX_NUMB2","Tax Number 2","0000","X","","0","0","","","",null,null,null,null,null,null,null,null,5,"4R3QITW7542YG5L9A6AWGIUSC","D3T5FYJK7PWFTR9ZIOUJLTV60","0","1","","","","00","X","0","0","",""]
[null,null,null,null,null,null,null,null,null,null,null,null,null,null,null,null,null,null,null,null,null,null,null,null,null,null,null,null,null,null,4,"0CUSTOMER","Customer","X","","","0018","","","","","","","","0","03","","","","00000000","K","0CUSTOMER","A","","","H","","","","","","00000000","0000","","3","0POSTCD_GIS","","","","1","1","1","0","0","","","","","","387X574XMPCUSGIRCG3AVY91C","","","","","","","0000","","","",4,"8P8NYH0UHH6PE1EEKLY6F76ZW","D9P2ZSBYJBPDNNYDTYHY8GCE0","RSP/PC (SSH)","0030","Y","F","","L","","","","","",null,null,null,null,null,null,5,"0CUSTOMER","0USAGE_IND","Usage indicator","0000","X","","0","0","","","",null,null,null,null,null,null,null,null,5,"4R3QITW7542YG5L9A6AWGIUSC","DLW9P54P4AT0OYHVG7ZL1IM5E","0","1","","","","00","X","0","0","",""]
[null,null,null,null,null,null,null,null,null,null,null,null,null,null,null,null,null,null,null,null,null,null,null,null,null,null,null,null,null,null,4,"CHCUPGLO","Cup","X","","","0019","","","","","","","","1","03","","","","00000000","K","CHCUPGLO","A","","","H","","","","","","00000000","0000","","0","","","","","1","1","1","0","0","","","","","","BMY8NKBEGSB1FPVY8A4F8W4IA","","","","","","","0000","","","",4,"8P8NYH0UHH6PE1EEKLY6F76ZW","AENJZ3D934GNT2TG4C4D2RFJR","CoGS/PC","0031","Y","F","","L","","","","","",null,null,null,null,null,null,5,"0CUSTOMER","0VENDOR","Vendor","0000","X","","0","0","","","",null,null,null,null,null,null,null,null,5,"5U2W4SBET1P1PDUABLYPXBGHB","0XOUE3TQ85XCLNJ97LK4N131O","","","","","","00","X","0","0","",""]
[null,null,null,null,null,null,null,null,null,null,null,null,null,null,null,null,null,null,null,null,null,null,null,null,null,null,null,null,null,null,4,"CHSIZE","Size","X","","","0020","","","","","","","","1","03","","","","00000000","K","CHSIZE","A","","","H","","","","","","00000000","0000","","0","","","","","1","1","1","0","0","","","","","","5SL7D89FNZK7NSA2JOY99M1PQ","","","","","","","0000","","","",4,"8P8NYH0UHH6PE1EEKLY6F76ZW","85QVA7GC0N47FZKDS2VNLBCSY","CoGS/PC (SSC)","0032","Y","F","","L","","","","","",null,null,null,null,null,null,5,"0CUSTOMER","0VISIT_RYT","Call frequency","0000","X","","0","0","","","",null,null,null,null,null,null,null,null,5,"5U2W4SBET1P1PDUABLYPXBGHB","40OMIIL7VXC390GHTHLXLN24I","","","","","","00","X","0","0","",""]
[null,null,null,null,null,null,null,null,null,null,null,null,null,null,null,null,null,null,null,null,null,null,null,null,null,null,null,null,null,null,4,"0AF_GRDVAL","Grid Value","X","","","0021","","","","","","","","2","03","","","","00000000","K","0AF_GRDVAL","A","","","H","","","","","","00000000","0000","","0","","","","","1","1","1","0","0","","","","","","BOT12PUIXVNXI9YEVSDC5K5US","","","","","","","0000","","","",4,"8P8NYH0UHH6PE1EEKLY6F76ZW","D9P2ZSBYJBQ5CAA55HXKAVQNS","CoGS/PC (SSH)","0033","Y","F","","L","","","","","",null,null,null,null,null,null,5,"0CUSTOMER","CHCUABM10","CU - ABM Traditonal","0000","X","","0","0","","","",null,null,null,null,null,null,null,null,5,"5U2W4SBET1P1PDUABLYPXBGHB","85T7YQIWK1QB9ILJLJ1SQZN8J","","","","","","00","X","0","0","",""]
[null,null,null,null,null,null,null,null,null,null,null,null,null,null,null,null,null,null,null,null,null,null,null,null,null,null,null,null,null,null,4,"0CUSTOMER__0REGION","Region (Cust)","X","","","0022","","","","","","","","0","03","","","","00000000","K","0CUSTOMER__0REGION","A","","","H","","","","","","00000000","0000","","1","","","","","1","1","1","0","0","","","","","","CN0AL4X85Z6QH8HVS8U7OLR12","","","","","","","0000","","","",4,"8P8NYH0UHH6PE1EEKLY6F76ZW","8Y8DPBILV38UA3DOTIHLDY6WW","CoGS","0034","Y","F","","L","","","","","",null,null,null,null,null,null,5,"0CUSTOMER","CHCUABM20","CU - ABM Counter","0000","X","","0","0","","","",null,null,null,null,null,null,null,null,5,"5U2W4SBET1P1PDUABLYPXBGHB","8VM70DOM0541L205HX82GQTS1","0","1","","","","00","X","0","0","",""]
[null,null,null,null,null,null,null,null,null,null,null,null,null,null,null,null,null,null,null,null,null,null,null,null,null,null,null,null,null,null,4,"0CUSTOMER__0COUNTRY","Country (Cust)","X","","","0023","","","","","","","","1","03","","","","00000000","K","0CUSTOMER__0COUNTRY","A","","","H","","","","","","00000000","0000","","1","","","","","1","1","1","0","0","","","","","","23KDQLHR833915HB84I8W5TFS","","","","","","","0000","","","",4,"8P8NYH0UHH6PE1EEKLY6F76ZW","DVU9TNJ1YQRJK3TUN9CHPH0AW","CoGS (Act)","0035","X","S","","L","X","","","","",null,null,null,null,null,null,5,"0CUSTOMER","CHCUABM25","CU - ABM Corner","0000","X","","0","0","","","",null,null,null,null,null,null,null,null,5,"5U2W4SBET1P1PDUABLYPXBGHB","9VEXAVKBGLVPRM2LYAWT8O2BM","0","1","","","","00","X","0","0","",""]
[null,null,null,null,null,null,null,null,null,null,null,null,null,null,null,null,null,null,null,null,null,null,null,null,null,null,null,null,null,null,4,"0SHIP_TO__0COUNTRY","Country (Ship-To)","X","","","0024","","","","","","","","1","03","","","","00000000","K","0SHIP_TO__0COUNTRY","A","","","H","","","","","","00000000","0000","","1","","","","","1","1","1","0","0","","","","","","4X0UZZAQKG1X2VQTRFUVRJT50","","","","","","","0000","","","",4,"8P8NYH0UHH6PE1EEKLY6F76ZW","C5CA4H28JD8OS7CUVK3X4L27S","CoGS (Bud)","0036","X","S","","L","X","","","","",null,null,null,null,null,null,5,"0CUSTOMER","CHCUABM30","CU - ABM ShopInShop","0000","X","","0","0","","","",null,null,null,null,null,null,null,null,5,"5U2W4SBET1P1PDUABLYPXBGHB","A4CNQYIEI3A4SAZQW9RFY18NV","","","","","","00","X","0","0","",""]
[null,null,null,null,null,null,null,null,null,null,null,null,null,null,null,null,null,null,null,null,null,null,null,null,null,null,null,null,null,null,4,"0BASE_UOM","Base Unit","X","","","0025","","","","","","","","1","03","","","","00000000","K","0BASE_UOM","A","","","H","","","","","","00000000","0000","","0","","","","","1","1","1","0","0","","","","","","2TDIDX2R1FIU2NYPBD9I91RJO","","","","","","","0000","","","",4,"8P8NYH0UHH6PE1EEKLY6F76ZW","D7S30SWTI7VSDMO1DQPA9FA9K","Reb","0037","Y","F","","L","","","","","",null,null,null,null,null,null,5,"0CUSTOMER","CHCUABM35","CU - ABM Partner Sto","0000","X","","0","0","","","",null,null,null,null,null,null,null,null,5,"5U2W4SBET1P1PDUABLYPXBGHB","CB4LNO5UGX170R82X1SKZYXQI","","","","","","00","X","0","0","",""]
[null,null,null,null,null,null,null,null,null,null,null,null,null,null,null,null,null,null,null,null,null,null,null,null,null,null,null,null,null,null,4,"0CUST_SALES","Cust. (Sales)","X","","","0026","","","","","","","","1","03","","TRIUMPH CUSTOMER HIERARCHY","","20110912","K","0CUST_SALES","A","","","H","0CUST_SALES","A","","","","00000000","0000","","0","","","","2","1","1","1","0","0","","","","","","2J9S7TULLLSAV79E3OEIHQHW6","","","","","","","0000","","","",4,"8P8NYH0UHH6PE1EEKLY6F76ZW","F3M56BBH87I3POUTTE692V0SE","Reb (Act)","0038","X","S","","L","X","","","","",null,null,null,null,null,null,5,"0CUSTOMER","CHCUABM40","CU - ABM Franchise","0000","X","","0","0","","","",null,null,null,null,null,null,null,null,5,"5U2W4SBET1P1PDUABLYPXBGHB","CLLNFQKTMRYLVSUHUSN173QAV","","","","","","00","X","0","0","",""]
[null,null,null,null,null,null,null,null,null,null,null,null,null,null,null,null,null,null,null,null,null,null,null,null,null,null,null,null,null,null,4,"0CUST_SALES__0AF_CGR7","Loc. Chan.","X","","","0027","","","","","","","","1","03","","","","00000000","K","0CUST_SALES__0AF_CGR7","A","","","H","","","","","","00000000","0000","","0","","","","","1","1","1","0","0","","","","","","BYRNHMDP0O7I0UZKHUR9RHPPA","","","","","","","0000","","","",4,"8P8NYH0UHH6PE1EEKLY6F76ZW","D7S30SWTI7WK28ZSPA4WBUOJC","Reb (Bud)","0039","X","S","","L","X","","","","",null,null,null,null,null,null,5,"0CUSTOMER","CHCUABM50","CU - ABM Cooperation","0000","X","","0","0","","","",null,null,null,null,null,null,null,null,5,"5U2W4SBET1P1PDUABLYPXBGHB","D3T5FYJK7PWFTR9ZIOUJLTV60","0","1","","","","00","X","0","0","",""]
[null,null,null,null,null,null,null,null,null,null,null,null,null,null,null,null,null,null,null,null,null,null,null,null,null,null,null,null,null,null,4,"0CUST_SALES__0AF_CGR8","Territory (Cust)","X","","","0028","","","","","","","","1","03","","","","00000000","K","0CUST_SALES__0AF_CGR8","A","","","H","","","","","","00000000","0000","","0","","","","","1","1","1","0","0","","","","","","1OYHU4ZQ1PC3LYF42HN24T07X","","","","","","","0000","","","",4,"8P8NYH0UHH6PE1EEKLY6F76ZW","18TMJFNY1EVHPJ8EOEUJK2P16","Cash Disc","0040","Y","S","","L","X","","","","",null,null,null,null,null,null,5,"0CUSTOMER","CHCUABM60","CU - ABM Outside FO","0000","X","","0","0","","","",null,null,null,null,null,null,null,null,5,"5U2W4SBET1P1PDUABLYPXBGHB","DLW9P54P4AT0OYHVG7ZL1IM5E","0","1","","","","00","X","0","0","",""]
[null,null,null,null,null,null,null,null,null,null,null,null,null,null,null,null,null,null,null,null,null,null,null,null,null,null,null,null,null,null,4,"0SALESORG__0G_CWWREG","TI Region","X","","","0029","","","","","","","","1","03","","","","00000000","K","0SALESORG__0G_CWWREG","A","","","H","","","","","","00000000","0000","","0","","","","","1","1","1","0","0","","","","","","6P6HWUKTJR8TS2HYNMKNH20ZJ","","","","","","","0000","","","",4,"8P8NYH0UHH6PE1EEKLY6F76ZW","ACLMZ5IJHJN9I4CC7W20ZLGCB","Sls. Disc","0041","Y","S","","L","X","","","","",null,null,null,null,null,null,5,"0CUSTOMER","CHCUABM70","CU - ABM Inhouse FO","0000","X","","0","0","","","",null,null,null,null,null,null,null,null,5,"65J5X21CQULHZQURVUFZI8HWN","0XOUE3TQ85XCLNJ97LK4N131O","","2","","","","00","X","0","0","",""]
[null,null,null,null,null,null,null,null,null,null,null,null,null,null,null,null,null,null,null,null,null,null,null,null,null,null,null,null,null,null,4,"0PLANT","Plant","X","","","0030","","","","","","","","0","03","","","","00000000","K","0PLANT","A","","","H","","","","","","00000000","0000","","3","0POSTCD_GIS","","","","1","1","1","0","0","","","","","","06NW2JW70NWMJBSC5OMLD0G9D","","","","","","","0000","","","",4,"8P8NYH0UHH6PE1EEKLY6F76ZW","CI5QTXV43N7K9QYW65C4L9G9R","STarg Value","0042","Y","S","","L","X","","","","",null,null,null,null,null,null,5,"0CUSTOMER","CHCUABM80","CU - ABM In-House","0000","X","","0","0","","","",null,null,null,null,null,null,null,null,5,"65J5X21CQULHZQURVUFZI8HWN","40OMIIL7VXC390GHTHLXLN24I","","2","","","","00","X","0","0","",""]
[null,null,null,null,null,null,null,null,null,null,null,null,null,null,null,null,null,null,null,null,null,null,null,null,null,null,null,null,null,null,4,"0SHIP_TO","Ship-To Party","X","","","0031","","","","","","","","0","03","","","","00000000","K","0SHIP_TO","A","","","H","","","","","","00000000","0000","","3","0POSTCD_GIS","","","","1","1","1","0","0","","","","","","D56RQ6DU3WC39HL6ZU17SNJ8A","","","","","","","0000","","","",4,"8P8NYH0UHH6PE1EEKLY6F76ZW","0OLHUTJRDZX91NEY0RDIJDQ9L","STarg Qty","0043","","S","","L","X","","","","",null,null,null,null,null,null,5,"0CUSTOMER","CHCUATTR1","Projection relevant","0000","X","","0","0","","","",null,null,null,null,null,null,null,null,5,"65J5X21CQULHZQURVUFZI8HWN","85T7YQIWK1QB9ILJLJ1SQZN8J","","2","","","","00","X","0","0","",""]
[null,null,null,null,null,null,null,null,null,null,null,null,null,null,null,null,null,null,null,null,null,null,null,null,null,null,null,null,null,null,4,"0MATERIAL__CHSERIESG","Glob. Series","X","","","0032","","","","","","","","2","03","","","","00000000","K","0MATERIAL__CHSERIESG","A","","","H","","","","","","00000000","0000","","0","","","","","1","1","1","0","0","","","","","","B5DQ17A75WXS5DTBNUNOYW7DB","","","","","","","0000","","","",4,"8P8NYH0UHH6PE1EEKLY6F76ZW","2YUYCV5ALLOO8OBJH2BWMFFWE","Shipping Qutb","0044","Y","S","","L","X","","","","",null,null,null,null,null,null,5,"0CUSTOMER","CHCUCNSLF","CU - Cent. Sales Frc","0000","X","","0","0","","","",null,null,null,null,null,null,null,null,5,"65J5X21CQULHZQURVUFZI8HWN","8VM70DOM0541L205HX82GQTS1","0","2","","","","00","X","0","0","",""]
[null,null,null,null,null,null,null,null,null,null,null,null,null,null,null,null,null,null,null,null,null,null,null,null,null,null,null,null,null,null,4,"0STOR_LOC","Stor. Loc.","X","","","0033","","","","","","","","0","03","","","","00000000","K","0STOR_LOC","A","","","H","","","","","","00000000","0000","","0","","","","","1","1","1","0","0","","","","","","421LMHSK5Y83JTCR3KWBS8Q5O","","","","","","","0000","","","",4,"8P8NYH0UHH6PE1EEKLY6F76ZW","EE2F0EO3F4TR8X88MYRIJC69T","VAS Value","0045","Y","S","","L","X","","","","",null,null,null,null,null,null,5,"0CUSTOMER","CHCUCON10","CU - Cons. Serv. SA","0000","X","","0","0","","","",null,null,null,null,null,null,null,null,5,"65J5X21CQULHZQURVUFZI8HWN","9VEXAVKBGLVPRM2LYAWT8O2BM","0","2","","","","00","X","0","0","",""]
[null,null,null,null,null,null,null,null,null,null,null,null,null,null,null,null,null,null,null,null,null,null,null,null,null,null,null,null,null,null,4,"0MATERIAL__CHPGSEG","Glob. Segm.","X","","","0034","","","","","","","","1","03","","","","00000000","K","0MATERIAL__CHPGSEG","A","","","H","","","","","","00000000","0000","","0","","","","","1","1","1","0","0","","","","","","BJX9HP501T7CBBY0CSYJ41O83","","","","","","","0000","","","",4,"8P8NYH0UHH6PE1EEKLY6F76ZW","A5IB8QLI432L5WY0GJC85X7BV","VAS Cost","0046","Y","S","","L","X","","","","",null,null,null,null,null,null,5,"0CUSTOMER","CHCUCON20","CU - Cons. Serv. tbd","0000","X","","0","0","","","",null,null,null,null,null,null,null,null,5,"65J5X21CQULHZQURVUFZI8HWN","A4CNQYIEI3A4SAZQW9RFY18NV","","2","","","","00","X","0","0","",""]
[null,null,null,null,null,null,null,null,null,null,null,null,null,null,null,null,null,null,null,null,null,null,null,null,null,null,null,null,null,null,4,"0MATERIAL__CHPGSUBSE","Glob. Sub-Segm.","X","","","0035","","","","","","","","1","03","","","","00000000","K","0MATERIAL__CHPGSUBSE","A","","","H","","","","","","00000000","0000","","0","","","","","1","1","1","0","0","","","","","","0CPIAXRL1CA3W18A3U2X6UOWA","","","","","","","0000","","","",4,"8P8NYH0UHH6PE1EEKLY6F76ZW","4R3QITW7542YG5L9A6AWGIUSC","Gross Value","0047","Y","S","","L","X","","","","",null,null,null,null,null,null,5,"0CUSTOMER","CHCUCON90","CU - Cons. Serv. No","0000","X","","0","0","","","",null,null,null,null,null,null,null,null,5,"65J5X21CQULHZQURVUFZI8HWN","CB4LNO5UGX170R82X1SKZYXQI","","2","","","","00","X","0","0","",""]
[null,null,null,null,null,null,null,null,null,null,null,null,null,null,null,null,null,null,null,null,null,null,null,null,null,null,null,null,null,null,4,"0MAT_SALES__0MATL_GRP_1","Loc. Segm.","X","","","0036","","","","","","","","0","03","","","","00000000","K","0MAT_SALES__0MATL_GRP_1","A","","","H","","","","","","00000000","0000","","0","","","","","1","1","1","0","0","","","","","","8DI1ACPORUGL1BIOIDK3QDH8N","","","","","","","0000","","","",4,"8P8NYH0UHH6PE1EEKLY6F76ZW","888ZW3EWP6IVG72YG9WNEMSST","Tax Value","0048","Y","S","","L","X","","","","",null,null,null,null,null,null,5,"0CUSTOMER","CHCUCUB10","CU - CBus Store","0000","X","","0","0","","","",null,null,null,null,null,null,null,null,5,"65J5X21CQULHZQURVUFZI8HWN","CLLNFQKTMRYLVSUHUSN173QAV","","2","","","","00","X","0","0","",""]
[null,null,null,null,null,null,null,null,null,null,null,null,null,null,null,null,null,null,null,null,null,null,null,null,null,null,null,null,null,null,4,"0MAT_SALES__0MATL_GRP_2","Loc. Sub-Segm.","X","","","0037","","","","","","","","0","03","","","","00000000","K","0MAT_SALES__0MATL_GRP_2","A","","","H","","","","","","00000000","0000","","0","","","","","1","1","1","0","0","","","","","","82HOKVELH4O64DUGJPWB7R0Z8","","","","","","","0000","","","",4,"8P8NYH0UHH6PE1EEKLY6F76ZW","D7KAWZ7T3OUY1DGAJ4Y216ZLK","MSGP","0049","Y","S","","L","X","","","","",null,null,null,null,null,null,5,"0CUSTOMER","CHCUCUB20","CU - CBus Mailorder","0000","X","","0","0","","","",null,null,null,null,null,null,null,null,5,"65J5X21CQULHZQURVUFZI8HWN","D3T5FYJK7PWFTR9ZIOUJLTV60","0","2","","","","00","X","0","0","",""]
[null,null,null,null,null,null,null,null,null,null,null,null,null,null,null,null,null,null,null,null,null,null,null,null,null,null,null,null,null,null,4,"0MATERIAL","Material","X","","","0038","","","","","","","","2","03","","","","00000000","K","0MATERIAL","A","","","H","","","","","","00000000","0000","","0","","","","","1","1","1","0","0","","","","","","2HD1NEQHARB6413PGTCMGONDF","","","","","","","0000","","","",4,"8P8NYH0UHH6PE1EEKLY6F76ZW","D7KAWZ7T3OVPPZS1UODO3MDVC","Cost of doing business","0050","Y","F","","L","","","","","",null,null,null,null,null,null,5,"0CUSTOMER","CHCUCUB30","CU - CBus Internet","0000","X","","0","0","","","",null,null,null,null,null,null,null,null,5,"65J5X21CQULHZQURVUFZI8HWN","DLW9P54P4AT0OYHVG7ZL1IM5E","0","2","","","","00","X","0","0","",""]
[null,null,null,null,null,null,null,null,null,null,null,null,null,null,null,null,null,null,null,null,null,null,null,null,null,null,null,null,null,null,4,"0DISTR_CHAN","Dist. Chan.","X","","","0039","","","","","","","","2","03","","","","00000000","K","0DISTR_CHAN","A","","","H","","","","","","00000000","0000","","0","","","","","1","1","1","0","0","","","","","","9YRC96274XNQ746VA84UB9MGQ","","","","","","","0000","","","",4,"8P8NYH0UHH6PE1EEKLY6F76ZW","B0LG7LONJDGK964QNMFEHQNBA","Assortment Qty","0051","Y","S","","L","X","","","","",null,null,null,null,null,null,5,"0CUSTOMER","CHCUCUB40","CU - CBus Inhouse","0000","X","","0","0","","","",null,null,null,null,null,null,null,null,5,"6781H30EC66VV0IURX8EUG44C","0XOUE3TQ85XCLNJ97LK4N131O","","2","","","","00","X","0","0","",""]
[null,null,null,null,null,null,null,null,null,null,null,null,null,null,null,null,null,null,null,null,null,null,null,null,null,null,null,null,null,null,4,"0MAT_SALES","Loc. Mat. Desc.","X","","","0040","","","","","","","U","1","03","","","","00000000","K","0MAT_SALES","A","","","H","","","","","","00000000","0000","","0","","","","","1","1","1","0","0","","","","","","9JP3DUCQXQQRW7NFGUMXBAI5O","","","","","","","0000","","","",null,null,null,null,null,null,null,null,null,null,null,null,null,null,null,null,null,null,null,null,5,"0CUSTOMER","CHCUFSF10","CU - FSF Sales Reps","0000","X","","0","0","","","",null,null,null,null,null,null,null,null,5,"6781H30EC66VV0IURX8EUG44C","40OMIIL7VXC390GHTHLXLN24I","","2","","","","00","X","0","0","",""]
[null,null,null,null,null,null,null,null,null,null,null,null,null,null,null,null,null,null,null,null,null,null,null,null,null,null,null,null,null,null,4,"0ORD_REASON","Order Reason","X","","","0041","","","","","","","","0","03","","","","00000000","K","0ORD_REASON","A","","","H","","","","","","00000000","0000","","0","","","","","1","1","1","0","0","","","","","","9G1340DJBGMY6K7TE7RTUZC3X","","","","","","","0000","","","",null,null,null,null,null,null,null,null,null,null,null,null,null,null,null,null,null,null,null,null,5,"0CUSTOMER","CHCUFSF20","CU - FSF Area Man.","0000","X","","0","0","","","",null,null,null,null,null,null,null,null,5,"6781H30EC66VV0IURX8EUG44C","85T7YQIWK1QB9ILJLJ1SQZN8J","","2","","","","00","X","0","0","",""]
[null,null,null,null,null,null,null,null,null,null,null,null,null,null,null,null,null,null,null,null,null,null,null,null,null,null,null,null,null,null,4,"CHTISEASN","TI Season","X","","","0042","","","","","","","","1","03","","","","00000000","K","CHTISEASN","A","","","H","","","","","","00000000","0000","","0","","","","","1","1","1","0","0","","","","","","407WELWWM031R3IIOG1GFF0SF","","","","","","","0000","","","",null,null,null,null,null,null,null,null,null,null,null,null,null,null,null,null,null,null,null,null,5,"0CUSTOMER","CHCUFSF30","CU - FSF Rack Jobber","0000","X","","0","0","","","",null,null,null,null,null,null,null,null,5,"6781H30EC66VV0IURX8EUG44C","8VM70DOM0541L205HX82GQTS1","0","2","","","","00","X","0","0","",""]
[null,null,null,null,null,null,null,null,null,null,null,null,null,null,null,null,null,null,null,null,null,null,null,null,null,null,null,null,null,null,4,"CHSTYLTYP","Style Type","X","","","0043","","","","","","","","5","03","","","","00000000","K","CHSTYLTYP","A","","","H","","","","","","00000000","0000","","0","","","","","1","1","1","0","0","","","","","","0IKWYTHUSHJXA0XDEKYXIKSEN","","","","","","","0000","","","",null,null,null,null,null,null,null,null,null,null,null,null,null,null,null,null,null,null,null,null,5,"0CUSTOMER","CHCUFSF40","CU - FSF Staff Sales","0000","X","","0","0","","","",null,null,null,null,null,null,null,null,5,"6781H30EC66VV0IURX8EUG44C","9VEXAVKBGLVPRM2LYAWT8O2BM","0","2","","","","00","X","0","0","",""]
[null,null,null,null,null,null,null,null,null,null,null,null,null,null,null,null,null,null,null,null,null,null,null,null,null,null,null,null,null,null,4,"0MATERIAL__CHMULTIP","Set/MPI","X","","","0044","","","","","","","","1","03","","","","00000000","K","0MATERIAL__CHMULTIP","A","","","H","","","","","","00000000","0000","","0","","","","","1","1","1","0","0","","","","","","2TGKQ3QXXYKAPUE7PRSK14PUF","","","","","","","0000","","","",null,null,null,null,null,null,null,null,null,null,null,null,null,null,null,null,null,null,null,null,5,"0CUSTOMER","CHCUGEN10","CU - Female","0000","X","","0","0","","","",null,null,null,null,null,null,null,null,5,"6781H30EC66VV0IURX8EUG44C","A4CNQYIEI3A4SAZQW9RFY18NV","","2","","","","00","X","0","0","",""]
[null,null,null,null,null,null,null,null,null,null,null,null,null,null,null,null,null,null,null,null,null,null,null,null,null,null,null,null,null,null,4,"0CUST_SALES__0SALES_OFF","Sales Office","X","","","0045","","","","","","","","1","03","","","","00000000","K","0CUST_SALES__0SALES_OFF","A","","","H","","","","","","00000000","0000","","0","","","","","1","1","1","0","0","","","","","","6SK1V0T75A3UMT13CUBZMW3LO","","","","","","","0000","","","",null,null,null,null,null,null,null,null,null,null,null,null,null,null,null,null,null,null,null,null,5,"0CUSTOMER","CHCUGEN20","CU - Male","0000","X","","0","0","","","",null,null,null,null,null,null,null,null,5,"6781H30EC66VV0IURX8EUG44C","CB4LNO5UGX170R82X1SKZYXQI","","2","","","","00","X","0","0","",""]
[null,null,null,null,null,null,null,null,null,null,null,null,null,null,null,null,null,null,null,null,null,null,null,null,null,null,null,null,null,null,4,"0LOC_CURRCY","Loc. Curr.","X","","","0046","","","","","","","U","2","03","","","","00000000","K","0LOC_CURRCY","A","","","H","","","","","","00000000","0000","","0","","","","","1","1","1","0","0","","","","","","DBVWA136FX1Y1OPE0M608EB05","","","","","","","0000","","","",null,null,null,null,null,null,null,null,null,null,null,null,null,null,null,null,null,null,null,null,5,"0CUSTOMER","CHCUKEY00","CU - KeyAcc No","0000","X","","0","0","","","",null,null,null,null,null,null,null,null,5,"6781H30EC66VV0IURX8EUG44C","CLLNFQKTMRYLVSUHUSN173QAV","","2","","","","00","X","0","0","",""]
[null,null,null,null,null,null,null,null,null,null,null,null,null,null,null,null,null,null,null,null,null,null,null,null,null,null,null,null,null,null,4,"0DOC_CURRCY","Doc. Curr.","X","","","0047","","","","","","","","2","03","","","","00000000","K","0DOC_CURRCY","A","","","H","","","","","","00000000","0000","","0","","","","","1","1","1","0","0","","","","","","52W2SY6FGHN0WL0WRPB927A5P","","","","","","","0000","","","",null,null,null,null,null,null,null,null,null,null,null,null,null,null,null,null,null,null,null,null,5,"0CUSTOMER","CHCUKEY10","CU - KeyAcc National","0000","X","","0","0","","","",null,null,null,null,null,null,null,null,5,"6781H30EC66VV0IURX8EUG44C","D3T5FYJK7PWFTR9ZIOUJLTV60","0","2","","","","00","X","0","0","",""]
[null,null,null,null,null,null,null,null,null,null,null,null,null,null,null,null,null,null,null,null,null,null,null,null,null,null,null,null,null,null,4,"0ITEM_CATEG__CHCONSCRE","Cons/Credit Sls","X","","","0048","","","","","","","","1","03","","","","00000000","K","0ITEM_CATEG__CHCONSCRE","A","","","H","","","","","","00000000","0000","","0","","","","","1","1","1","0","0","","","","","","6Y60YPVUSZK98VJXEZSTRWWZQ","","","","","","","0000","","","",null,null,null,null,null,null,null,null,null,null,null,null,null,null,null,null,null,null,null,null,5,"0CUSTOMER","CHCUKEY20","CU - KeyAcc Europe","0000","X","","0","0","","","",null,null,null,null,null,null,null,null,5,"6781H30EC66VV0IURX8EUG44C","DLW9P54P4AT0OYHVG7ZL1IM5E","0","2","","","","00","X","0","0","",""]
[null,null,null,null,null,null,null,null,null,null,null,null,null,null,null,null,null,null,null,null,null,null,null,null,null,null,null,null,null,null,4,"0ITEM_CATEG","Item Category","X","","","0049","","","","","","","","0","03","","","","00000000","K","0ITEM_CATEG","A","","","H","","","","","","00000000","0000","","0","","","","","1","1","1","0","0","","","","","","F0QRL1LYIAAIMN95OH0FLSAKW","","","","","","","0000","","","",null,null,null,null,null,null,null,null,null,null,null,null,null,null,null,null,null,null,null,null,5,"0CUSTOMER","CHCUKEY22","CU - KeyAcc Asia","0000","X","","0","0","","","",null,null,null,null,null,null,null,null,5,"7R6MCXJ9N6Z9QNVWZ48UAWW0Y","0XOUE3TQ85XCLNJ97LK4N131O","0","1","","","","00","X","0","0","",""]
[null,null,null,null,null,null,null,null,null,null,null,null,null,null,null,null,null,null,null,null,null,null,null,null,null,null,null,null,null,null,4,"CHPOTYPE","PO Type","X","","","0050","","","","","","","","1","03","","","","00000000","K","CHPOTYPE","A","","","H","","","","","","00000000","0000","","0","","","","","1","1","1","0","0","","","","","","4COD57CZL511SYVQ3TV72MYH6","","","","","","","0000","","","",null,null,null,null,null,null,null,null,null,null,null,null,null,null,null,null,null,null,null,null,5,"0CUSTOMER","CHCUKEY30","CU - KeyAcc Global","0000","X","","0","0","","","",null,null,null,null,null,null,null,null,5,"7R6MCXJ9N6Z9QNVWZ48UAWW0Y","40OMIIL7VXC390GHTHLXLN24I","0","1","","","","00","X","0","0","",""]
[null,null,null,null,null,null,null,null,null,null,null,null,null,null,null,null,null,null,null,null,null,null,null,null,null,null,null,null,null,null,4,"0PAYER","Payer","X","","","0051","","","","","","","","0","03","","","","00000000","K","0PAYER","A","","","H","","","","","","00000000","0000","","3","0POSTCD_GIS","","","","1","1","1","0","0","","","","","","D6RVS5UZWM8FD0SRFL3JHCGBH","","","","","","","0000","","","",null,null,null,null,null,null,null,null,null,null,null,null,null,null,null,null,null,null,null,null,5,"0CUSTOMER","CHCULFCYR","CU - LifeCycleReason","0000","X","","0","0","","","",null,null,null,null,null,null,null,null,5,"7R6MCXJ9N6Z9QNVWZ48UAWW0Y","85T7YQIWK1QB9ILJLJ1SQZN8J","0","1","","","","00","X","0","0","",""]
[null,null,null,null,null,null,null,null,null,null,null,null,null,null,null,null,null,null,null,null,null,null,null,null,null,null,null,null,null,null,4,"0MATERIAL__CHPGSUBBR","Sub - Brand","X","","","0052","","","","","","","","1","03","","","","00000000","K","0MATERIAL__CHPGSUBBR","A","","","H","","","","","","00000000","0000","","0","","","","","1","1","1","0","0","","","","","","4UUWYV40UV5LVLOMMTP8V1XUY","","","","","","","0000","","","",null,null,null,null,null,null,null,null,null,null,null,null,null,null,null,null,null,null,null,null,5,"0CUSTOMER","CHCULIFEC","CU - CustLifeCycle","0000","X","","0","0","","","",null,null,null,null,null,null,null,null,5,"7R6MCXJ9N6Z9QNVWZ48UAWW0Y","8VM70DOM0541L205HX82GQTS1","0","1","","","","00","X","0","0","",""]
[null,null,null,null,null,null,null,null,null,null,null,null,null,null,null,null,null,null,null,null,null,null,null,null,null,null,null,null,null,null,4,"0CUST_SALES__0SALES_DIST","Sales District","X","","","0053","","","","","","","","1","03","","","","00000000","K","0CUST_SALES__0SALES_DIST","A","","","H","","","","","","00000000","0000","","0","","","","","1","1","1","0","0","","","","","","6P0DJPCEHFHF8BSD1XTMG5JUW","","","","","","","0000","","","",null,null,null,null,null,null,null,null,null,null,null,null,null,null,null,null,null,null,null,null,5,"0CUSTOMER","CHCULOCMG","CU - LocMagnitude","0000","X","","0","0","","","",null,null,null,null,null,null,null,null,5,"7R6MCXJ9N6Z9QNVWZ48UAWW0Y","9VEXAVKBGLVPRM2LYAWT8O2BM","0","1","","","","00","X","0","0","",""]
[null,null,null,null,null,null,null,null,null,null,null,null,null,null,null,null,null,null,null,null,null,null,null,null,null,null,null,null,null,null,4,"CHSALSRE2","Add. Sales Rep.","X","","","0054","","","","","","","","1","03","","","","00000000","K","CHSALSRE2","A","","","H","","","","","","00000000","0000","","3","0POSTCD_GIS","","","","1","1","1","0","0","","","","","","8RIQCLBQBINL0ZHCTXXOCOSLH","","","","","","","0000","","","",null,null,null,null,null,null,null,null,null,null,null,null,null,null,null,null,null,null,null,null,5,"0CUSTOMER","CHCUORGDG","CU - Org Degree","0000","X","","0","0","","","",null,null,null,null,null,null,null,null,5,"7R6MCXJ9N6Z9QNVWZ48UAWW0Y","A4CNQYIEI3A4SAZQW9RFY18NV","0","1","","","","00","X","0","0","",""]
[null,null,null,null,null,null,null,null,null,null,null,null,null,null,null,null,null,null,null,null,null,null,null,null,null,null,null,null,null,null,4,"0CUST_SALES__0CUST_GRP1","Konzern","X","","","0055","","","","","","","","1","03","","","","00000000","K","0CUST_SALES__0CUST_GRP1","A","","","H","","","","","","00000000","0000","","0","","","","","1","1","1","0","0","","","","","","0I6AHWF46IWK1M4AYC9DSR16V","","","","","","","0000","","","",null,null,null,null,null,null,null,null,null,null,null,null,null,null,null,null,null,null,null,null,5,"0CUSTOMER","CHCUPOSLC","CU - POS Location","0000","X","","0","0","","","",null,null,null,null,null,null,null,null,5,"7R6MCXJ9N6Z9QNVWZ48UAWW0Y","CB4LNO5UGX170R82X1SKZYXQI","0","1","","","","00","X","0","0","",""]
[null,null,null,null,null,null,null,null,null,null,null,null,null,null,null,null,null,null,null,null,null,null,null,null,null,null,null,null,null,null,4,"0CUST_SALES__0SALES_GRP","Sales Group","X","","","0056","","","","","","","","1","03","","","","00000000","K","0CUST_SALES__0SALES_GRP","A","","","H","","","","","","00000000","0000","","0","","","","","1","1","1","0","0","","","","","","8M8HGXHT33IXSWOZLCRLFE0ZM","","","","","","","0000","","","",null,null,null,null,null,null,null,null,null,null,null,null,null,null,null,null,null,null,null,null,5,"0CUSTOMER","CHCUSEGPR","CU - Seg Price/Image","0000","X","","0","0","","","",null,null,null,null,null,null,null,null,5,"7R6MCXJ9N6Z9QNVWZ48UAWW0Y","CLLNFQKTMRYLVSUHUSN173QAV","0","1","","","","00","X","0","0","",""]
[null,null,null,null,null,null,null,null,null,null,null,null,null,null,null,null,null,null,null,null,null,null,null,null,null,null,null,null,null,null,4,"CHCATALOG","Catalogue","X","","","0057","","","","","","","","0","03","","","","00000000","K","CHCATALOG","A","","","H","","","","","","00000000","0000","","3","0POSTCD_GIS","","","","1","1","1","0","0","","","","","","3YUGURO5ELLK723AGSQ5G4HHS","","","","","","","0000","","","",null,null,null,null,null,null,null,null,null,null,null,null,null,null,null,null,null,null,null,null,5,"0CUSTOMER","CHCUSHOPM","CU - Shopping Mall","0000","X","","0","0","","","",null,null,null,null,null,null,null,null,5,"7R6MCXJ9N6Z9QNVWZ48UAWW0Y","D3T5FYJK7PWFTR9ZIOUJLTV60","0","1","","","","00","X","0","0","",""]
[null,null,null,null,null,null,null,null,null,null,null,null,null,null,null,null,null,null,null,null,null,null,null,null,null,null,null,null,null,null,4,"0CALMONTH","Cal. Year/Month","X","","","0058","","","","","","","","2","03","","","","00000000","K","0CALMONTH","A","","","H","","","","","","00000000","0000","","0","","","","","1","1","1","0","0","","","","","","ECLRMKWXQG1OLY1RLG1V2AITN","","","","","","","0000","","","",null,null,null,null,null,null,null,null,null,null,null,null,null,null,null,null,null,null,null,null,5,"0CUSTOMER","CHCUSLCHT","CU - Sales Chan Type","0000","X","","0","0","","","",null,null,null,null,null,null,null,null,5,"7R6MCXJ9N6Z9QNVWZ48UAWW0Y","DLW9P54P4AT0OYHVG7ZL1IM5E","0","1","","","","00","X","0","0","",""]
[null,null,null,null,null,null,null,null,null,null,null,null,null,null,null,null,null,null,null,null,null,null,null,null,null,null,null,null,null,null,4,"0CALWEEK","Cal. Week","X","","","0059","","","","","","","","2","03","","","","00000000","K","0CALWEEK","A","","","H","","","","","","00000000","0000","","0","","","","","1","1","1","0","0","","","","","","CU810GF7CPKI8RMFFXUEOMLRG","","","","","","","0000","","","",null,null,null,null,null,null,null,null,null,null,null,null,null,null,null,null,null,null,null,null,5,"0CUSTOMER","CHCUSLSCH","CU - Sales Channel","0000","X","","0","0","","","",null,null,null,null,null,null,null,null,5,"7W9DIFXSPC3TAEHE0QJ9NMQVF","0XOUE3TQ85XCLNJ97LK4N131O","","","","","","00","X","0","0","",""]
[null,null,null,null,null,null,null,null,null,null,null,null,null,null,null,null,null,null,null,null,null,null,null,null,null,null,null,null,null,null,4,"0CALDAY","Cal. Day","X","","","0060","","","","","","","","2","03","","","","00000000","K","0CALDAY","A","","","H","","","","","","00000000","0000","","0","","","","","1","1","1","0","0","","","","","","1YZ0HWAIN474PGEQCA0ICM8K8","","","","","","","0000","","","",null,null,null,null,null,null,null,null,null,null,null,null,null,null,null,null,null,null,null,null,5,"0CUSTOMER","CHCUSRV10","CU - SM Field Force","0000","X","","0","0","","","",null,null,null,null,null,null,null,null,5,"7W9DIFXSPC3TAEHE0QJ9NMQVF","40OMIIL7VXC390GHTHLXLN24I","","","","","","00","X","0","0","",""]
[null,null,null,null,null,null,null,null,null,null,null,null,null,null,null,null,null,null,null,null,null,null,null,null,null,null,null,null,null,null,4,"CHDAY","Day of Month","X","","","0061","","","","","","","","2","03","","","","00000000","K","CHDAY","A","","","H","","","","","","00000000","0000","","0","","","","","1","1","1","0","0","","","","","","F4PC3NNJ0GA27ZQXLCAC7MDLD","","","","","","","0000","","","",null,null,null,null,null,null,null,null,null,null,null,null,null,null,null,null,null,null,null,null,5,"0CUSTOMER","CHCUSRV20","CU - SM Tel/Fax/Mail","0000","X","","0","0","","","",null,null,null,null,null,null,null,null,5,"7W9DIFXSPC3TAEHE0QJ9NMQVF","85T7YQIWK1QB9ILJLJ1SQZN8J","","","","","","00","X","0","0","",""]
[null,null,null,null,null,null,null,null,null,null,null,null,null,null,null,null,null,null,null,null,null,null,null,null,null,null,null,null,null,null,4,"CHWEEKDAY","Weekday","X","","","0062","","","","","","","","1","03","","","","00000000","K","CHWEEKDAY","A","","","H","","","","","","00000000","0000","","0","","","","","1","1","1","0","0","","","","","","AT3LJPEI6CH1AE0HBNAC92CBO","","","","","","","0000","","","",null,null,null,null,null,null,null,null,null,null,null,null,null,null,null,null,null,null,null,null,5,"0CUSTOMER","CHCUSRV30","CU - SM noVisits","0000","X","","0","0","","","",null,null,null,null,null,null,null,null,5,"7W9DIFXSPC3TAEHE0QJ9NMQVF","8VM70DOM0541L205HX82GQTS1","0","1","","","","00","X","0","0","",""]
[null,null,null,null,null,null,null,null,null,null,null,null,null,null,null,null,null,null,null,null,null,null,null,null,null,null,null,null,null,null,4,"0CALMONTH2","Month","X","","","0063","","","","","","","","2","03","","","","00000000","K","0CALMONTH2","A","","","H","","","","","","00000000","0000","","0","","","","","1","1","1","0","0","","","","","","EJ3IIC6JTN0JDVKCOM2ZAZONO","","","","","","","0000","","","",null,null,null,null,null,null,null,null,null,null,null,null,null,null,null,null,null,null,null,null,5,"0CUSTOMER","CHCUSRV40","CU - SM Central SF","0000","X","","0","0","","","",null,null,null,null,null,null,null,null,5,"7W9DIFXSPC3TAEHE0QJ9NMQVF","9VEXAVKBGLVPRM2LYAWT8O2BM","0","1","","","","00","X","0","0","",""]
[null,null,null,null,null,null,null,null,null,null,null,null,null,null,null,null,null,null,null,null,null,null,null,null,null,null,null,null,null,null,4,"0DOC_NUMBER","Sales Document","X","","","0064","","","","","","","","2","03","","","","00000000","K","0DOC_NUMBER","A","","","H","","","","","","00000000","0000","","0","","","","","1","1","1","0","0","","","","","","9RIEQHV4V57VP1G3KSSPRSIEN","","","","","","","0000","","","",null,null,null,null,null,null,null,null,null,null,null,null,null,null,null,null,null,null,null,null,5,"0CUSTOMER","CHCUTRA10","CU - AT CredSales","0000","X","","0","0","","","",null,null,null,null,null,null,null,null,5,"7W9DIFXSPC3TAEHE0QJ9NMQVF","A4CNQYIEI3A4SAZQW9RFY18NV","","","","","","00","X","0","0","",""]
[null,null,null,null,null,null,null,null,null,null,null,null,null,null,null,null,null,null,null,null,null,null,null,null,null,null,null,null,null,null,4,"0BILL_NUM","Billing Document","X","","","0065","","","","","","","","2","03","","","","00000000","K","0BILL_NUM","A","","","H","","","","","","00000000","0000","","0","","","","","1","1","1","0","0","","","","","","1JEQF4ACBXZ2W2SY8UJ47PCSI","","","","","","","0000","","","",null,null,null,null,null,null,null,null,null,null,null,null,null,null,null,null,null,null,null,null,5,"0CUSTOMER","CHCUTRA20","CU - AT Consign","0000","X","","0","0","","","",null,null,null,null,null,null,null,null,5,"7W9DIFXSPC3TAEHE0QJ9NMQVF","CB4LNO5UGX170R82X1SKZYXQI","","","","","","00","X","0","0","",""]
[null,null,null,null,null,null,null,null,null,null,null,null,null,null,null,null,null,null,null,null,null,null,null,null,null,null,null,null,null,null,4,"0CUSTOMER__CHCUVOL","Sales Volume","X","","","0066","","","","","","","","1","03","","","","00000000","K","CHSORTORD","A","","","H","","","","","","00000000","0000","","0","","","","","1","1","1","0","0","","","","","","D98VJV0TPSEJWSD8N58LISRZS","","","","","","","0000","","","",null,null,null,null,null,null,null,null,null,null,null,null,null,null,null,null,null,null,null,null,5,"0CUSTOMER","CHNAME4","Name 4","0000","X","","0","0","","","",null,null,null,null,null,null,null,null,5,"7W9DIFXSPC3TAEHE0QJ9NMQVF","CLLNFQKTMRYLVSUHUSN173QAV","","","","","","00","X","0","0","",""]
[null,null,null,null,null,null,null,null,null,null,null,null,null,null,null,null,null,null,null,null,null,null,null,null,null,null,null,null,null,null,4,"0CUSTOMER__CHCUIMAGE","Image","X","","","0067","","","","","","","","1","03","","","","00000000","K","CHSORTORD","A","","","H","","","","","","00000000","0000","","0","","","","","1","1","1","0","0","","","","","","D98VJV0TPSFBLEOZYOO7L869K","","","","","","","0000","","","",null,null,null,null,null,null,null,null,null,null,null,null,null,null,null,null,null,null,null,null,5,"CHCUPGLO","CHCONAU","Conversion - AU","0000","X","","0","0","","","",null,null,null,null,null,null,null,null,5,"7W9DIFXSPC3TAEHE0QJ9NMQVF","D3T5FYJK7PWFTR9ZIOUJLTV60","0","1","","","","00","X","0","0","",""]
[null,null,null,null,null,null,null,null,null,null,null,null,null,null,null,null,null,null,null,null,null,null,null,null,null,null,null,null,null,null,4,"0CUSTOMER__CHCULOC","Location","X","","","0068","","","","","","","","1","03","","","","00000000","K","CHSORTORD","A","","","H","","","","","","00000000","0000","","0","","","","","1","1","1","0","0","","","","","","D98VJV0TPSG3A10RA83TNNKJC","","","","","","","0000","","","",null,null,null,null,null,null,null,null,null,null,null,null,null,null,null,null,null,null,null,null,5,"CHCUPGLO","CHCONCA","Conversion - CA","0000","X","","0","0","","","",null,null,null,null,null,null,null,null,5,"7W9DIFXSPC3TAEHE0QJ9NMQVF","DLW9P54P4AT0OYHVG7ZL1IM5E","0","1","","","","00","X","0","0","",""]
[null,null,null,null,null,null,null,null,null,null,null,null,null,null,null,null,null,null,null,null,null,null,null,null,null,null,null,null,null,null,4,"0CUSTOMER__CHCUBPTI","Brand Perf TI","X","","","0069","","","","","","","","1","03","","","","00000000","K","CHSORTORD","A","","","H","","","","","","00000000","0000","","0","","","","","1","1","1","0","0","","","","","","D98VJV0TPSGUYNCILRJFQ2YT4","","","","","","","0000","","","",null,null,null,null,null,null,null,null,null,null,null,null,null,null,null,null,null,null,null,null,5,"CHCUPGLO","CHCONCH","Conversion - CH","0000","X","","0","0","","","",null,null,null,null,null,null,null,null,5,"85QVA7GC0N47FZKDS2VNLBCSY","0XOUE3TQ85XCLNJ97LK4N131O","","2","","","","00","X","0","0","",""]
[null,null,null,null,null,null,null,null,null,null,null,null,null,null,null,null,null,null,null,null,null,null,null,null,null,null,null,null,null,null,4,"0CUSTOMER__CHCUBPSL","Brand Perf SL","X","","","0070","","","","","","","","1","03","","","","00000000","K","CHSORTORD","A","","","H","","","","","","00000000","0000","","0","","","","","1","1","1","0","0","","","","","","D98VJV0TPSHMN9O9XAZ1SID2W","","","","","","","0000","","","",null,null,null,null,null,null,null,null,null,null,null,null,null,null,null,null,null,null,null,null,5,"CHCUPGLO","CHCONCL","Conversion - CL","0000","X","","0","0","","","",null,null,null,null,null,null,null,null,5,"85QVA7GC0N47FZKDS2VNLBCSY","40OMIIL7VXC390GHTHLXLN24I","","2","","","","00","X","0","0","",""]
[null,null,null,null,null,null,null,null,null,null,null,null,null,null,null,null,null,null,null,null,null,null,null,null,null,null,null,null,null,null,4,"0CUSTOMER__CHCUBPVAL","Brand Perf VAL","X","","","0071","","","","","","","","1","03","","","","00000000","K","CHSORTORD","A","","","H","","","","","","00000000","0000","","0","","","","","1","1","1","0","0","","","","","","D98VJV0TPSIEBW018UENUXRCO","","","","","","","0000","","","",null,null,null,null,null,null,null,null,null,null,null,null,null,null,null,null,null,null,null,null,5,"CHCUPGLO","CHCONES","Conversion - ES","0000","X","","0","0","","","",null,null,null,null,null,null,null,null,5,"85QVA7GC0N47FZKDS2VNLBCSY","85T7YQIWK1QB9ILJLJ1SQZN8J","","2","","","","00","X","0","0","",""]
[null,null,null,null,null,null,null,null,null,null,null,null,null,null,null,null,null,null,null,null,null,null,null,null,null,null,null,null,null,null,4,"0CUSTOMER__CHCUBPHOM","Brand Perf HOM","X","","","0072","","","","","","","","1","03","","","","00000000","K","CHSORTORD","A","","","H","","","","","","00000000","0000","","0","","","","","1","1","1","0","0","","","","","","D98VJV0TPSJ60IBSKDU9XD5MG","","","","","","","0000","","","",null,null,null,null,null,null,null,null,null,null,null,null,null,null,null,null,null,null,null,null,5,"CHCUPGLO","CHCONFI","Conversion - FI","0000","X","","0","0","","","",null,null,null,null,null,null,null,null,5,"85QVA7GC0N47FZKDS2VNLBCSY","8VM70DOM0541L205HX82GQTS1","0","2","","","","00","X","0","0","",""]
[null,null,null,null,null,null,null,null,null,null,null,null,null,null,null,null,null,null,null,null,null,null,null,null,null,null,null,null,null,null,4,"0CUSTOMER__CHCUBPOTH","Brand Perf OTH","X","","","0073","","","","","","","","1","03","","","","00000000","K","CHSORTORD","A","","","H","","","","","","00000000","0000","","0","","","","","1","1","1","0","0","","","","","","D98VJV0TPSJXP4NJVX9VZSJW8","","","","","","","0000","","","",null,null,null,null,null,null,null,null,null,null,null,null,null,null,null,null,null,null,null,null,5,"CHCUPGLO","CHCONFR","Conversion - FR","0000","X","","0","0","","","",null,null,null,null,null,null,null,null,5,"85QVA7GC0N47FZKDS2VNLBCSY","9VEXAVKBGLVPRM2LYAWT8O2BM","0","2","","","","00","X","0","0","",""]
[null,null,null,null,null,null,null,null,null,null,null,null,null,null,null,null,null,null,null,null,null,null,null,null,null,null,null,null,null,null,4,"0CUSTOMER__CHCUSLCHL","Sales Channel","X","","","0074","","","","","","","","1","03","","","","00000000","K","CHSORTORD","A","","","H","","","","","","00000000","0000","","0","","","","","1","1","1","0","0","","","","","","D98VJV0TPSKPDQZB7GPI27Y60","","","","","","","0000","","","",null,null,null,null,null,null,null,null,null,null,null,null,null,null,null,null,null,null,null,null,5,"CHCUPGLO","CHCONGB","Conversion - GB","0000","X","","0","0","","","",null,null,null,null,null,null,null,null,5,"85QVA7GC0N47FZKDS2VNLBCSY","A4CNQYIEI3A4SAZQW9RFY18NV","","2","","","","00","X","0","0","",""]
[null,null,null,null,null,null,null,null,null,null,null,null,null,null,null,null,null,null,null,null,null,null,null,null,null,null,null,null,null,null,4,"0CUSTOMER__CHCUSCHTP","Sales Chan. Type","X","","","0075","","","","","","","","1","03","","","","00000000","K","CHSORTORD","A","","","H","","","","","","00000000","0000","","0","","","","","1","1","1","0","0","","","","","","D98VJV0TPSLH2DB2J0544NCFS","","","","","","","0000","","","",null,null,null,null,null,null,null,null,null,null,null,null,null,null,null,null,null,null,null,null,5,"CHCUPGLO","CHCONINTL","Conversion - INTL","0000","X","","0","0","","","",null,null,null,null,null,null,null,null,5,"85QVA7GC0N47FZKDS2VNLBCSY","CB4LNO5UGX170R82X1SKZYXQI","","2","","","","00","X","0","0","",""]
[null,null,null,null,null,null,null,null,null,null,null,null,null,null,null,null,null,null,null,null,null,null,null,null,null,null,null,null,null,null,4,"0CUSTOMER__CHCUBUSTY","Business Type","X","","","0076","","","","","","","","1","03","","","","00000000","K","CHSORTORD","A","","","H","","","","","","00000000","0000","","0","","","","","1","1","1","0","0","","","","","","D98VJV0TPSM8QZMTUJKQ72QPK","","","","","","","0000","","","",null,null,null,null,null,null,null,null,null,null,null,null,null,null,null,null,null,null,null,null,5,"CHCUPGLO","CHCONIT","Conversion - IT","0000","X","","0","0","","","",null,null,null,null,null,null,null,null,5,"85QVA7GC0N47FZKDS2VNLBCSY","CLLNFQKTMRYLVSUHUSN173QAV","","2","","","","00","X","0","0","",""]
[null,null,null,null,null,null,null,null,null,null,null,null,null,null,null,null,null,null,null,null,null,null,null,null,null,null,null,null,null,null,4,"0CUSTOMER__CHCUCUSPR","Cust Prioritization","X","","","0077","","","","","","","","1","03","","","","00000000","K","CHSORTORD","A","","","H","","","","","","00000000","0000","","0","","","","","1","1","1","0","0","","","","","","D98VJV0TPSN0FLYL630C9I4ZC","","","","","","","0000","","","",null,null,null,null,null,null,null,null,null,null,null,null,null,null,null,null,null,null,null,null,5,"CHCUPGLO","CHCONJP","Conversion - JP","0000","X","","0","0","","","",null,null,null,null,null,null,null,null,5,"85QVA7GC0N47FZKDS2VNLBCSY","D3T5FYJK7PWFTR9ZIOUJLTV60","0","2","","","","00","X","0","0","",""]
[null,null,null,null,null,null,null,null,null,null,null,null,null,null,null,null,null,null,null,null,null,null,null,null,null,null,null,null,null,null,4,"0CUSTOMER__0ACCNT_GRP","Account Group","X","","","0078","","","","","","","","1","03","","","","00000000","K","0CUSTOMER__0ACCNT_GRP","A","","","H","","","","","","00000000","0000","","0","","","","","1","1","1","0","0","","","","","","D9F2IM4Q86RVY8EUWRINGOCS8","","","","","","","0000","","","",null,null,null,null,null,null,null,null,null,null,null,null,null,null,null,null,null,null,null,null,5,"CHCUPGLO","CHCONKR","Conversion - KR","0000","X","","0","0","","","",null,null,null,null,null,null,null,null,5,"85QVA7GC0N47FZKDS2VNLBCSY","DLW9P54P4AT0OYHVG7ZL1IM5E","0","2","","","","00","X","0","0","",""]
[null,null,null,null,null,null,null,null,null,null,null,null,null,null,null,null,null,null,null,null,null,null,null,null,null,null,null,null,null,null,4,"0CUST_SALES__0AF_CGR6","Listing/Exclusion","X","","","0079","","","","","","","","1","03","","","","00000000","K","0CUST_SALES__0AF_CGR6","A","","","H","","","","","","00000000","0000","","0","","","","","1","1","1","0","0","","","","","","DB5VC9WGHF2UTSUD0YKRLYRW8","","","","","","","0000","","","",null,null,null,null,null,null,null,null,null,null,null,null,null,null,null,null,null,null,null,null,5,"CHCUPGLO","CHCONLK","Conversion - LK","0000","X","","0","0","","","",null,null,null,null,null,null,null,null,5,"888ZW3EWP6IVG72YG9WNEMSST","0XOUE3TQ85XCLNJ97LK4N131O","","","","","","00","X","0","0","",""]
[null,null,null,null,null,null,null,null,null,null,null,null,null,null,null,null,null,null,null,null,null,null,null,null,null,null,null,null,null,null,4,"0CUST_SALES__0AF_CGR10","Visit rythm","X","","","0080","","","","","","","","1","03","","","","00000000","K","0CUST_SALES__0AF_CGR10","A","","","H","","","","","","00000000","0000","","0","","","","","1","1","1","0","0","","","","","","DB5VC9WGHF3MIF64CI0DOE660","","","","","","","0000","","","",null,null,null,null,null,null,null,null,null,null,null,null,null,null,null,null,null,null,null,null,5,"CHCUPGLO","CHCONPD","Conversion - PD","0000","X","","0","0","","","",null,null,null,null,null,null,null,null,5,"888ZW3EWP6IVG72YG9WNEMSST","40OMIIL7VXC390GHTHLXLN24I","","","","","","00","X","0","0","",""]
[null,null,null,null,null,null,null,null,null,null,null,null,null,null,null,null,null,null,null,null,null,null,null,null,null,null,null,null,null,null,4,"8P8NYH0UHH6PE1EEKLY6F76ZW","Key Fig. (LC)","","X","X","0001","","*","","","","","U","","00","","","","","K","8P8NYH0UHH6PE1EEKLY6F76ZW","A","","","","","","","","","00000000","0000","X","0","","X","","","0","0","0","0","0","","","","","","8P8NYH0UHH6PE1EEKLY6F76ZW","","","","","","","0000","","","",null,null,null,null,null,null,null,null,null,null,null,null,null,null,null,null,null,null,null,null,5,"CHCUPGLO","CHCONUS","Conversion - USA","0000","X","","0","0","","","",null,null,null,null,null,null,null,null,5,"888ZW3EWP6IVG72YG9WNEMSST","85T7YQIWK1QB9ILJLJ1SQZN8J","","","","","","00","X","0","0","",""]
[null,null,null,null,null,null,null,null,null,null,null,null,null,null,null,null,null,null,null,null,null,null,null,null,null,null,null,null,null,null,4,"9EDW4DI8YCG2IA4PF83LZ9RRW","Header Monthly","","X","X","0002","","*","","","","","U","","00","","","","","K","9EDW4DI8YCG2IA4PF83LZ9RRW","A","","","","","","","","","00000000","0000","","0","","X","","","0","0","0","0","0","","","","","","9EDW4DI8YCG2IA4PF83LZ9RRW","","","","","","","0000","","","",null,null,null,null,null,null,null,null,null,null,null,null,null,null,null,null,null,null,null,null,5,"CHSIZE","CHCONAU","Conversion - AU","0000","X","","0","0","","","",null,null,null,null,null,null,null,null,5,"888ZW3EWP6IVG72YG9WNEMSST","8VM70DOM0541L205HX82GQTS1","0","1","","","","00","X","0","0","",""]
[null,null,null,null,null,null,null,null,null,null,null,null,null,null,null,null,null,null,null,null,null,null,null,null,null,null,null,null,null,null,4,"0MATERIAL__CHPGBRAND","Brand","X","","Y","0001","","","","","","","","1","03","","","","00000000","K","CHSORTORD","D","","","H","","","","","","00000000","0000","","0","","","","","1","1","1","0","0","","","","","","7072OAF5SO1XV99TSDCKYT6GR","","","","","","","0000","","","",null,null,null,null,null,null,null,null,null,null,null,null,null,null,null,null,null,null,null,null,5,"CHSIZE","CHCONCA","Conversion - CA","0000","X","","0","0","","","",null,null,null,null,null,null,null,null,5,"888ZW3EWP6IVG72YG9WNEMSST","9VEXAVKBGLVPRM2LYAWT8O2BM","0","1","","","","00","X","0","0","",""]
[null,null,null,null,null,null,null,null,null,null,null,null,null,null,null,null,null,null,null,null,null,null,null,null,null,null,null,null,null,null,4,"0MATERIAL__CHPGLINE","Prod. Line","X","","Y","0002","","","","","","","","1","03","","","","00000000","K","CHSORTORD","D","","","H","","","","","","00000000","0000","","0","","","","","1","1","1","0","0","","","","","","C0VS0U5DFVAKS8MNHJWDIJNQT","","","","","","","0000","","","",null,null,null,null,null,null,null,null,null,null,null,null,null,null,null,null,null,null,null,null,5,"CHSIZE","CHCONCH","Conversion - CH","0000","X","","0","0","","","",null,null,null,null,null,null,null,null,5,"888ZW3EWP6IVG72YG9WNEMSST","A4CNQYIEI3A4SAZQW9RFY18NV","","","","","","00","X","0","0","",""]
[null,null,null,null,null,null,null,null,null,null,null,null,null,null,null,null,null,null,null,null,null,null,null,null,null,null,null,null,null,null,null,null,null,null,null,null,null,null,null,null,null,null,null,null,null,null,null,null,null,null,null,null,null,null,null,null,null,null,null,null,null,null,null,null,null,null,null,null,null,null,null,null,null,null,null,null,null,null,null,null,null,null,null,null,null,null,null,null,null,null,null,null,null,null,null,null,null,null,null,null,null,null,null,null,null,null,null,null,null,null,5,"CHSIZE","CHCONCL","Conversion - CL","0000","X","","0","0","","","",null,null,null,null,null,null,null,null,5,"888ZW3EWP6IVG72YG9WNEMSST","CB4LNO5UGX170R82X1SKZYXQI","","","","","","00","X","0","0","",""]
[null,null,null,null,null,null,null,null,null,null,null,null,null,null,null,null,null,null,null,null,null,null,null,null,null,null,null,null,null,null,null,null,null,null,null,null,null,null,null,null,null,null,null,null,null,null,null,null,null,null,null,null,null,null,null,null,null,null,null,null,null,null,null,null,null,null,null,null,null,null,null,null,null,null,null,null,null,null,null,null,null,null,null,null,null,null,null,null,null,null,null,null,null,null,null,null,null,null,null,null,null,null,null,null,null,null,null,null,null,null,5,"CHSIZE","CHCONES","Conversion - ES","0000","X","","0","0","","","",null,null,null,null,null,null,null,null,5,"888ZW3EWP6IVG72YG9WNEMSST","CLLNFQKTMRYLVSUHUSN173QAV","","","","","","00","X","0","0","",""]
[null,null,null,null,null,null,null,null,null,null,null,null,null,null,null,null,null,null,null,null,null,null,null,null,null,null,null,null,null,null,null,null,null,null,null,null,null,null,null,null,null,null,null,null,null,null,null,null,null,null,null,null,null,null,null,null,null,null,null,null,null,null,null,null,null,null,null,null,null,null,null,null,null,null,null,null,null,null,null,null,null,null,null,null,null,null,null,null,null,null,null,null,null,null,null,null,null,null,null,null,null,null,null,null,null,null,null,null,null,null,5,"CHSIZE","CHCONFI","Conversion - FI","0000","X","","0","0","","","",null,null,null,null,null,null,null,null,5,"888ZW3EWP6IVG72YG9WNEMSST","D3T5FYJK7PWFTR9ZIOUJLTV60","0","1","","","","00","X","0","0","",""]
[null,null,null,null,null,null,null,null,null,null,null,null,null,null,null,null,null,null,null,null,null,null,null,null,null,null,null,null,null,null,null,null,null,null,null,null,null,null,null,null,null,null,null,null,null,null,null,null,null,null,null,null,null,null,null,null,null,null,null,null,null,null,null,null,null,null,null,null,null,null,null,null,null,null,null,null,null,null,null,null,null,null,null,null,null,null,null,null,null,null,null,null,null,null,null,null,null,null,null,null,null,null,null,null,null,null,null,null,null,null,5,"CHSIZE","CHCONFR","Conversion - FR","0000","X","","0","0","","","",null,null,null,null,null,null,null,null,5,"888ZW3EWP6IVG72YG9WNEMSST","DLW9P54P4AT0OYHVG7ZL1IM5E","0","1","","","","00","X","0","0","",""]
[null,null,null,null,null,null,null,null,null,null,null,null,null,null,null,null,null,null,null,null,null,null,null,null,null,null,null,null,null,null,null,null,null,null,null,null,null,null,null,null,null,null,null,null,null,null,null,null,null,null,null,null,null,null,null,null,null,null,null,null,null,null,null,null,null,null,null,null,null,null,null,null,null,null,null,null,null,null,null,null,null,null,null,null,null,null,null,null,null,null,null,null,null,null,null,null,null,null,null,null,null,null,null,null,null,null,null,null,null,null,5,"CHSIZE","CHCONGB","Conversion - GB","0000","X","","0","0","","","",null,null,null,null,null,null,null,null,5,"8Y8DPBILV38UA3DOTIHLDY6WW","0XOUE3TQ85XCLNJ97LK4N131O","","","","","","00","X","0","0","",""]
[null,null,null,null,null,null,null,null,null,null,null,null,null,null,null,null,null,null,null,null,null,null,null,null,null,null,null,null,null,null,null,null,null,null,null,null,null,null,null,null,null,null,null,null,null,null,null,null,null,null,null,null,null,null,null,null,null,null,null,null,null,null,null,null,null,null,null,null,null,null,null,null,null,null,null,null,null,null,null,null,null,null,null,null,null,null,null,null,null,null,null,null,null,null,null,null,null,null,null,null,null,null,null,null,null,null,null,null,null,null,5,"CHSIZE","CHCONINTL","Conversion - INTL","0000","X","","0","0","","","",null,null,null,null,null,null,null,null,5,"8Y8DPBILV38UA3DOTIHLDY6WW","40OMIIL7VXC390GHTHLXLN24I","","","","","","00","X","0","0","",""]
[null,null,null,null,null,null,null,null,null,null,null,null,null,null,null,null,null,null,null,null,null,null,null,null,null,null,null,null,null,null,null,null,null,null,null,null,null,null,null,null,null,null,null,null,null,null,null,null,null,null,null,null,null,null,null,null,null,null,null,null,null,null,null,null,null,null,null,null,null,null,null,null,null,null,null,null,null,null,null,null,null,null,null,null,null,null,null,null,null,null,null,null,null,null,null,null,null,null,null,null,null,null,null,null,null,null,null,null,null,null,5,"CHSIZE","CHCONIT","Conversion - IT","0000","X","","0","0","","","",null,null,null,null,null,null,null,null,5,"8Y8DPBILV38UA3DOTIHLDY6WW","85T7YQIWK1QB9ILJLJ1SQZN8J","","","","","","00","X","0","0","",""]
[null,null,null,null,null,null,null,null,null,null,null,null,null,null,null,null,null,null,null,null,null,null,null,null,null,null,null,null,null,null,null,null,null,null,null,null,null,null,null,null,null,null,null,null,null,null,null,null,null,null,null,null,null,null,null,null,null,null,null,null,null,null,null,null,null,null,null,null,null,null,null,null,null,null,null,null,null,null,null,null,null,null,null,null,null,null,null,null,null,null,null,null,null,null,null,null,null,null,null,null,null,null,null,null,null,null,null,null,null,null,5,"CHSIZE","CHCONJP","Conversion - JP","0000","X","","0","0","","","",null,null,null,null,null,null,null,null,5,"8Y8DPBILV38UA3DOTIHLDY6WW","8VM70DOM0541L205HX82GQTS1","0","1","","","","00","X","0","0","",""]
[null,null,null,null,null,null,null,null,null,null,null,null,null,null,null,null,null,null,null,null,null,null,null,null,null,null,null,null,null,null,null,null,null,null,null,null,null,null,null,null,null,null,null,null,null,null,null,null,null,null,null,null,null,null,null,null,null,null,null,null,null,null,null,null,null,null,null,null,null,null,null,null,null,null,null,null,null,null,null,null,null,null,null,null,null,null,null,null,null,null,null,null,null,null,null,null,null,null,null,null,null,null,null,null,null,null,null,null,null,null,5,"CHSIZE","CHCONKR","Conversion - KR","0000","X","","0","0","","","",null,null,null,null,null,null,null,null,5,"8Y8DPBILV38UA3DOTIHLDY6WW","9VEXAVKBGLVPRM2LYAWT8O2BM","0","1","","","","00","X","0","0","",""]
[null,null,null,null,null,null,null,null,null,null,null,null,null,null,null,null,null,null,null,null,null,null,null,null,null,null,null,null,null,null,null,null,null,null,null,null,null,null,null,null,null,null,null,null,null,null,null,null,null,null,null,null,null,null,null,null,null,null,null,null,null,null,null,null,null,null,null,null,null,null,null,null,null,null,null,null,null,null,null,null,null,null,null,null,null,null,null,null,null,null,null,null,null,null,null,null,null,null,null,null,null,null,null,null,null,null,null,null,null,null,5,"CHSIZE","CHCONLK","Conversion - LK","0000","X","","0","0","","","",null,null,null,null,null,null,null,null,5,"8Y8DPBILV38UA3DOTIHLDY6WW","A4CNQYIEI3A4SAZQW9RFY18NV","","","","","","00","X","0","0","",""]
[null,null,null,null,null,null,null,null,null,null,null,null,null,null,null,null,null,null,null,null,null,null,null,null,null,null,null,null,null,null,null,null,null,null,null,null,null,null,null,null,null,null,null,null,null,null,null,null,null,null,null,null,null,null,null,null,null,null,null,null,null,null,null,null,null,null,null,null,null,null,null,null,null,null,null,null,null,null,null,null,null,null,null,null,null,null,null,null,null,null,null,null,null,null,null,null,null,null,null,null,null,null,null,null,null,null,null,null,null,null,5,"CHSIZE","CHCONPD","Conversion - PD","0000","X","","0","0","","","",null,null,null,null,null,null,null,null,5,"8Y8DPBILV38UA3DOTIHLDY6WW","CB4LNO5UGX170R82X1SKZYXQI","","","","","","00","X","0","0","",""]
[null,null,null,null,null,null,null,null,null,null,null,null,null,null,null,null,null,null,null,null,null,null,null,null,null,null,null,null,null,null,null,null,null,null,null,null,null,null,null,null,null,null,null,null,null,null,null,null,null,null,null,null,null,null,null,null,null,null,null,null,null,null,null,null,null,null,null,null,null,null,null,null,null,null,null,null,null,null,null,null,null,null,null,null,null,null,null,null,null,null,null,null,null,null,null,null,null,null,null,null,null,null,null,null,null,null,null,null,null,null,5,"CHSIZE","CHCONUS","Conversion - USA","0000","X","","0","0","","","",null,null,null,null,null,null,null,null,5,"8Y8DPBILV38UA3DOTIHLDY6WW","CLLNFQKTMRYLVSUHUSN173QAV","","","","","","00","X","0","0","",""]
[null,null,null,null,null,null,null,null,null,null,null,null,null,null,null,null,null,null,null,null,null,null,null,null,null,null,null,null,null,null,null,null,null,null,null,null,null,null,null,null,null,null,null,null,null,null,null,null,null,null,null,null,null,null,null,null,null,null,null,null,null,null,null,null,null,null,null,null,null,null,null,null,null,null,null,null,null,null,null,null,null,null,null,null,null,null,null,null,null,null,null,null,null,null,null,null,null,null,null,null,null,null,null,null,null,null,null,null,null,null,5,"0CUST_SALES","0ACCNT_ASGN","AcctAssgGr","0000","X","","0","0","","","",null,null,null,null,null,null,null,null,5,"8Y8DPBILV38UA3DOTIHLDY6WW","D3T5FYJK7PWFTR9ZIOUJLTV60","0","1","","","","00","X","0","0","",""]
[null,null,null,null,null,null,null,null,null,null,null,null,null,null,null,null,null,null,null,null,null,null,null,null,null,null,null,null,null,null,null,null,null,null,null,null,null,null,null,null,null,null,null,null,null,null,null,null,null,null,null,null,null,null,null,null,null,null,null,null,null,null,null,null,null,null,null,null,null,null,null,null,null,null,null,null,null,null,null,null,null,null,null,null,null,null,null,null,null,null,null,null,null,null,null,null,null,null,null,null,null,null,null,null,null,null,null,null,null,null,5,"0CUST_SALES","0AF_CGR10","AFS Customer Grp 10","0000","X","","0","0","","","",null,null,null,null,null,null,null,null,5,"8Y8DPBILV38UA3DOTIHLDY6WW","DLW9P54P4AT0OYHVG7ZL1IM5E","0","1","","","","00","X","0","0","",""]
[null,null,null,null,null,null,null,null,null,null,null,null,null,null,null,null,null,null,null,null,null,null,null,null,null,null,null,null,null,null,null,null,null,null,null,null,null,null,null,null,null,null,null,null,null,null,null,null,null,null,null,null,null,null,null,null,null,null,null,null,null,null,null,null,null,null,null,null,null,null,null,null,null,null,null,null,null,null,null,null,null,null,null,null,null,null,null,null,null,null,null,null,null,null,null,null,null,null,null,null,null,null,null,null,null,null,null,null,null,null,5,"0CUST_SALES","0AF_CGR6","AFS Customer Group 6","0000","X","","0","0","","","",null,null,null,null,null,null,null,null,5,"9TEW6D5TSN73AJ1KEH06USQ1W","0XOUE3TQ85XCLNJ97LK4N131O","","","","","","00","X","0","0","",""]
[null,null,null,null,null,null,null,null,null,null,null,null,null,null,null,null,null,null,null,null,null,null,null,null,null,null,null,null,null,null,null,null,null,null,null,null,null,null,null,null,null,null,null,null,null,null,null,null,null,null,null,null,null,null,null,null,null,null,null,null,null,null,null,null,null,null,null,null,null,null,null,null,null,null,null,null,null,null,null,null,null,null,null,null,null,null,null,null,null,null,null,null,null,null,null,null,null,null,null,null,null,null,null,null,null,null,null,null,null,null,5,"0CUST_SALES","0AF_CGR7","AFS Customer Group 7","0000","X","","0","0","","","",null,null,null,null,null,null,null,null,5,"9TEW6D5TSN73AJ1KEH06USQ1W","40OMIIL7VXC390GHTHLXLN24I","","","","","","00","X","0","0","",""]
[null,null,null,null,null,null,null,null,null,null,null,null,null,null,null,null,null,null,null,null,null,null,null,null,null,null,null,null,null,null,null,null,null,null,null,null,null,null,null,null,null,null,null,null,null,null,null,null,null,null,null,null,null,null,null,null,null,null,null,null,null,null,null,null,null,null,null,null,null,null,null,null,null,null,null,null,null,null,null,null,null,null,null,null,null,null,null,null,null,null,null,null,null,null,null,null,null,null,null,null,null,null,null,null,null,null,null,null,null,null,5,"0CUST_SALES","0AF_CGR8","AFS Customer Group 8","0000","X","","0","0","","","",null,null,null,null,null,null,null,null,5,"9TEW6D5TSN73AJ1KEH06USQ1W","85T7YQIWK1QB9ILJLJ1SQZN8J","","","","","","00","X","0","0","",""]
[null,null,null,null,null,null,null,null,null,null,null,null,null,null,null,null,null,null,null,null,null,null,null,null,null,null,null,null,null,null,null,null,null,null,null,null,null,null,null,null,null,null,null,null,null,null,null,null,null,null,null,null,null,null,null,null,null,null,null,null,null,null,null,null,null,null,null,null,null,null,null,null,null,null,null,null,null,null,null,null,null,null,null,null,null,null,null,null,null,null,null,null,null,null,null,null,null,null,null,null,null,null,null,null,null,null,null,null,null,null,5,"0CUST_SALES","0AF_CGR9","Channel","0000","X","","0","0","","","",null,null,null,null,null,null,null,null,5,"9TEW6D5TSN73AJ1KEH06USQ1W","8VM70DOM0541L205HX82GQTS1","0","1","","","","00","X","0","0","",""]
[null,null,null,null,null,null,null,null,null,null,null,null,null,null,null,null,null,null,null,null,null,null,null,null,null,null,null,null,null,null,null,null,null,null,null,null,null,null,null,null,null,null,null,null,null,null,null,null,null,null,null,null,null,null,null,null,null,null,null,null,null,null,null,null,null,null,null,null,null,null,null,null,null,null,null,null,null,null,null,null,null,null,null,null,null,null,null,null,null,null,null,null,null,null,null,null,null,null,null,null,null,null,null,null,null,null,null,null,null,null,5,"0CUST_SALES","0AF_VASCG","AFS VAS Customer Grp","0000","X","","0","0","","","",null,null,null,null,null,null,null,null,5,"9TEW6D5TSN73AJ1KEH06USQ1W","9VEXAVKBGLVPRM2LYAWT8O2BM","0","1","","","","00","X","0","0","",""]
[null,null,null,null,null,null,null,null,null,null,null,null,null,null,null,null,null,null,null,null,null,null,null,null,null,null,null,null,null,null,null,null,null,null,null,null,null,null,null,null,null,null,null,null,null,null,null,null,null,null,null,null,null,null,null,null,null,null,null,null,null,null,null,null,null,null,null,null,null,null,null,null,null,null,null,null,null,null,null,null,null,null,null,null,null,null,null,null,null,null,null,null,null,null,null,null,null,null,null,null,null,null,null,null,null,null,null,null,null,null,5,"0CUST_SALES","0CRM_BP_SAL","BP: CRM Sales View","0000","X","","0","0","","","",null,null,null,null,null,null,null,null,5,"9TEW6D5TSN73AJ1KEH06USQ1W","A4CNQYIEI3A4SAZQW9RFY18NV","","","","","","00","X","0","0","",""]
[null,null,null,null,null,null,null,null,null,null,null,null,null,null,null,null,null,null,null,null,null,null,null,null,null,null,null,null,null,null,null,null,null,null,null,null,null,null,null,null,null,null,null,null,null,null,null,null,null,null,null,null,null,null,null,null,null,null,null,null,null,null,null,null,null,null,null,null,null,null,null,null,null,null,null,null,null,null,null,null,null,null,null,null,null,null,null,null,null,null,null,null,null,null,null,null,null,null,null,null,null,null,null,null,null,null,null,null,null,null,5,"0CUST_SALES","0CRM_SALORG","CRM Sales Org.","0000","X","","0","0","","","",null,null,null,null,null,null,null,null,5,"9TEW6D5TSN73AJ1KEH06USQ1W","CB4LNO5UGX170R82X1SKZYXQI","","","","","","00","X","0","0","",""]
[null,null,null,null,null,null,null,null,null,null,null,null,null,null,null,null,null,null,null,null,null,null,null,null,null,null,null,null,null,null,null,null,null,null,null,null,null,null,null,null,null,null,null,null,null,null,null,null,null,null,null,null,null,null,null,null,null,null,null,null,null,null,null,null,null,null,null,null,null,null,null,null,null,null,null,null,null,null,null,null,null,null,null,null,null,null,null,null,null,null,null,null,null,null,null,null,null,null,null,null,null,null,null,null,null,null,null,null,null,null,5,"0CUST_SALES","0CUST_CLA","ABC class","0000","X","","0","0","","","",null,null,null,null,null,null,null,null,5,"9TEW6D5TSN73AJ1KEH06USQ1W","CLLNFQKTMRYLVSUHUSN173QAV","","","","","","00","X","0","0","",""]
[null,null,null,null,null,null,null,null,null,null,null,null,null,null,null,null,null,null,null,null,null,null,null,null,null,null,null,null,null,null,null,null,null,null,null,null,null,null,null,null,null,null,null,null,null,null,null,null,null,null,null,null,null,null,null,null,null,null,null,null,null,null,null,null,null,null,null,null,null,null,null,null,null,null,null,null,null,null,null,null,null,null,null,null,null,null,null,null,null,null,null,null,null,null,null,null,null,null,null,null,null,null,null,null,null,null,null,null,null,null,5,"0CUST_SALES","0CUST_GROUP","Customer group","0000","X","","0","0","","","",null,null,null,null,null,null,null,null,5,"9TEW6D5TSN73AJ1KEH06USQ1W","D3T5FYJK7PWFTR9ZIOUJLTV60","0","1","","","","00","X","0","0","",""]
[null,null,null,null,null,null,null,null,null,null,null,null,null,null,null,null,null,null,null,null,null,null,null,null,null,null,null,null,null,null,null,null,null,null,null,null,null,null,null,null,null,null,null,null,null,null,null,null,null,null,null,null,null,null,null,null,null,null,null,null,null,null,null,null,null,null,null,null,null,null,null,null,null,null,null,null,null,null,null,null,null,null,null,null,null,null,null,null,null,null,null,null,null,null,null,null,null,null,null,null,null,null,null,null,null,null,null,null,null,null,5,"0CUST_SALES","0CUST_GRP1","Konzern","0000","X","","0","0","","","",null,null,null,null,null,null,null,null,5,"9TEW6D5TSN73AJ1KEH06USQ1W","DLW9P54P4AT0OYHVG7ZL1IM5E","0","1","","","","00","X","0","0","",""]
[null,null,null,null,null,null,null,null,null,null,null,null,null,null,null,null,null,null,null,null,null,null,null,null,null,null,null,null,null,null,null,null,null,null,null,null,null,null,null,null,null,null,null,null,null,null,null,null,null,null,null,null,null,null,null,null,null,null,null,null,null,null,null,null,null,null,null,null,null,null,null,null,null,null,null,null,null,null,null,null,null,null,null,null,null,null,null,null,null,null,null,null,null,null,null,null,null,null,null,null,null,null,null,null,null,null,null,null,null,null,5,"0CUST_SALES","0CUST_GRP2","Customer group 2","0000","X","","0","0","","","",null,null,null,null,null,null,null,null,5,"A5IB8QLI432L5WY0GJC85X7BV","0XOUE3TQ85XCLNJ97LK4N131O","","","","","","00","X","0","0","",""]
[null,null,null,null,null,null,null,null,null,null,null,null,null,null,null,null,null,null,null,null,null,null,null,null,null,null,null,null,null,null,null,null,null,null,null,null,null,null,null,null,null,null,null,null,null,null,null,null,null,null,null,null,null,null,null,null,null,null,null,null,null,null,null,null,null,null,null,null,null,null,null,null,null,null,null,null,null,null,null,null,null,null,null,null,null,null,null,null,null,null,null,null,null,null,null,null,null,null,null,null,null,null,null,null,null,null,null,null,null,null,5,"0CUST_SALES","0CUST_GRP3","Customer group 3","0000","X","","0","0","","","",null,null,null,null,null,null,null,null,5,"A5IB8QLI432L5WY0GJC85X7BV","40OMIIL7VXC390GHTHLXLN24I","","","","","","00","X","0","0","",""]
[null,null,null,null,null,null,null,null,null,null,null,null,null,null,null,null,null,null,null,null,null,null,null,null,null,null,null,null,null,null,null,null,null,null,null,null,null,null,null,null,null,null,null,null,null,null,null,null,null,null,null,null,null,null,null,null,null,null,null,null,null,null,null,null,null,null,null,null,null,null,null,null,null,null,null,null,null,null,null,null,null,null,null,null,null,null,null,null,null,null,null,null,null,null,null,null,null,null,null,null,null,null,null,null,null,null,null,null,null,null,5,"0CUST_SALES","0CUST_GRP4","Customer group 4","0000","X","","0","0","","","",null,null,null,null,null,null,null,null,5,"A5IB8QLI432L5WY0GJC85X7BV","85T7YQIWK1QB9ILJLJ1SQZN8J","","","","","","00","X","0","0","",""]
[null,null,null,null,null,null,null,null,null,null,null,null,null,null,null,null,null,null,null,null,null,null,null,null,null,null,null,null,null,null,null,null,null,null,null,null,null,null,null,null,null,null,null,null,null,null,null,null,null,null,null,null,null,null,null,null,null,null,null,null,null,null,null,null,null,null,null,null,null,null,null,null,null,null,null,null,null,null,null,null,null,null,null,null,null,null,null,null,null,null,null,null,null,null,null,null,null,null,null,null,null,null,null,null,null,null,null,null,null,null,5,"0CUST_SALES","0CUST_GRP5","Customer group 5","0000","X","","0","0","","","",null,null,null,null,null,null,null,null,5,"A5IB8QLI432L5WY0GJC85X7BV","8VM70DOM0541L205HX82GQTS1","0","1","","","","00","X","0","0","",""]
[null,null,null,null,null,null,null,null,null,null,null,null,null,null,null,null,null,null,null,null,null,null,null,null,null,null,null,null,null,null,null,null,null,null,null,null,null,null,null,null,null,null,null,null,null,null,null,null,null,null,null,null,null,null,null,null,null,null,null,null,null,null,null,null,null,null,null,null,null,null,null,null,null,null,null,null,null,null,null,null,null,null,null,null,null,null,null,null,null,null,null,null,null,null,null,null,null,null,null,null,null,null,null,null,null,null,null,null,null,null,5,"0CUST_SALES","0C_CTR_AREA","Credit Control Area","0000","X","","0","0","","","",null,null,null,null,null,null,null,null,5,"A5IB8QLI432L5WY0GJC85X7BV","9VEXAVKBGLVPRM2LYAWT8O2BM","0","1","","","","00","X","0","0","",""]
[null,null,null,null,null,null,null,null,null,null,null,null,null,null,null,null,null,null,null,null,null,null,null,null,null,null,null,null,null,null,null,null,null,null,null,null,null,null,null,null,null,null,null,null,null,null,null,null,null,null,null,null,null,null,null,null,null,null,null,null,null,null,null,null,null,null,null,null,null,null,null,null,null,null,null,null,null,null,null,null,null,null,null,null,null,null,null,null,null,null,null,null,null,null,null,null,null,null,null,null,null,null,null,null,null,null,null,null,null,null,5,"0CUST_SALES","0INCOTERMS","Incoterms","0000","X","","0","0","","","",null,null,null,null,null,null,null,null,5,"A5IB8QLI432L5WY0GJC85X7BV","A4CNQYIEI3A4SAZQW9RFY18NV","","","","","","00","X","0","0","",""]
[null,null,null,null,null,null,null,null,null,null,null,null,null,null,null,null,null,null,null,null,null,null,null,null,null,null,null,null,null,null,null,null,null,null,null,null,null,null,null,null,null,null,null,null,null,null,null,null,null,null,null,null,null,null,null,null,null,null,null,null,null,null,null,null,null,null,null,null,null,null,null,null,null,null,null,null,null,null,null,null,null,null,null,null,null,null,null,null,null,null,null,null,null,null,null,null,null,null,null,null,null,null,null,null,null,null,null,null,null,null,5,"0CUST_SALES","0INCOTERMS2","Incoterms 2","0000","X","","0","0","","","",null,null,null,null,null,null,null,null,5,"A5IB8QLI432L5WY0GJC85X7BV","CB4LNO5UGX170R82X1SKZYXQI","","","","","","00","X","0","0","",""]
[null,null,null,null,null,null,null,null,null,null,null,null,null,null,null,null,null,null,null,null,null,null,null,null,null,null,null,null,null,null,null,null,null,null,null,null,null,null,null,null,null,null,null,null,null,null,null,null,null,null,null,null,null,null,null,null,null,null,null,null,null,null,null,null,null,null,null,null,null,null,null,null,null,null,null,null,null,null,null,null,null,null,null,null,null,null,null,null,null,null,null,null,null,null,null,null,null,null,null,null,null,null,null,null,null,null,null,null,null,null,5,"0CUST_SALES","0PLANT","Plant","0000","X","","0","0","","","",null,null,null,null,null,null,null,null,5,"A5IB8QLI432L5WY0GJC85X7BV","CLLNFQKTMRYLVSUHUSN173QAV","","","","","","00","X","0","0","",""]
[null,null,null,null,null,null,null,null,null,null,null,null,null,null,null,null,null,null,null,null,null,null,null,null,null,null,null,null,null,null,null,null,null,null,null,null,null,null,null,null,null,null,null,null,null,null,null,null,null,null,null,null,null,null,null,null,null,null,null,null,null,null,null,null,null,null,null,null,null,null,null,null,null,null,null,null,null,null,null,null,null,null,null,null,null,null,null,null,null,null,null,null,null,null,null,null,null,null,null,null,null,null,null,null,null,null,null,null,null,null,5,"0CUST_SALES","0PMNTTRMS","Payment terms","0000","X","","0","0","","","",null,null,null,null,null,null,null,null,5,"A5IB8QLI432L5WY0GJC85X7BV","D3T5FYJK7PWFTR9ZIOUJLTV60","0","1","","","","00","X","0","0","",""]
[null,null,null,null,null,null,null,null,null,null,null,null,null,null,null,null,null,null,null,null,null,null,null,null,null,null,null,null,null,null,null,null,null,null,null,null,null,null,null,null,null,null,null,null,null,null,null,null,null,null,null,null,null,null,null,null,null,null,null,null,null,null,null,null,null,null,null,null,null,null,null,null,null,null,null,null,null,null,null,null,null,null,null,null,null,null,null,null,null,null,null,null,null,null,null,null,null,null,null,null,null,null,null,null,null,null,null,null,null,null,5,"0CUST_SALES","0SALES_DIST","Sales District","0000","X","","0","0","","","",null,null,null,null,null,null,null,null,5,"A5IB8QLI432L5WY0GJC85X7BV","DLW9P54P4AT0OYHVG7ZL1IM5E","0","1","","","","00","X","0","0","",""]
[null,null,null,null,null,null,null,null,null,null,null,null,null,null,null,null,null,null,null,null,null,null,null,null,null,null,null,null,null,null,null,null,null,null,null,null,null,null,null,null,null,null,null,null,null,null,null,null,null,null,null,null,null,null,null,null,null,null,null,null,null,null,null,null,null,null,null,null,null,null,null,null,null,null,null,null,null,null,null,null,null,null,null,null,null,null,null,null,null,null,null,null,null,null,null,null,null,null,null,null,null,null,null,null,null,null,null,null,null,null,5,"0CUST_SALES","0SALES_GRP","Sales group","0000","X","","0","0","","","",null,null,null,null,null,null,null,null,5,"A6WWZSIB3TPP37GSQPKIEBAZW","0XOUE3TQ85XCLNJ97LK4N131O","","","","","","00","X","0","0","",""]
[null,null,null,null,null,null,null,null,null,null,null,null,null,null,null,null,null,null,null,null,null,null,null,null,null,null,null,null,null,null,null,null,null,null,null,null,null,null,null,null,null,null,null,null,null,null,null,null,null,null,null,null,null,null,null,null,null,null,null,null,null,null,null,null,null,null,null,null,null,null,null,null,null,null,null,null,null,null,null,null,null,null,null,null,null,null,null,null,null,null,null,null,null,null,null,null,null,null,null,null,null,null,null,null,null,null,null,null,null,null,5,"0CUST_SALES","0SALES_OFF","Sales Office","0000","X","","0","0","","","",null,null,null,null,null,null,null,null,5,"A6WWZSIB3TPP37GSQPKIEBAZW","40OMIIL7VXC390GHTHLXLN24I","","","","","","00","X","0","0","",""]
[null,null,null,null,null,null,null,null,null,null,null,null,null,null,null,null,null,null,null,null,null,null,null,null,null,null,null,null,null,null,null,null,null,null,null,null,null,null,null,null,null,null,null,null,null,null,null,null,null,null,null,null,null,null,null,null,null,null,null,null,null,null,null,null,null,null,null,null,null,null,null,null,null,null,null,null,null,null,null,null,null,null,null,null,null,null,null,null,null,null,null,null,null,null,null,null,null,null,null,null,null,null,null,null,null,null,null,null,null,null,5,"0CUST_SALES","CHCOMP","Company","0000","X","","0","0","","","",null,null,null,null,null,null,null,null,5,"A6WWZSIB3TPP37GSQPKIEBAZW","85T7YQIWK1QB9ILJLJ1SQZN8J","","","","","","00","X","0","0","",""]
[null,null,null,null,null,null,null,null,null,null,null,null,null,null,null,null,null,null,null,null,null,null,null,null,null,null,null,null,null,null,null,null,null,null,null,null,null,null,null,null,null,null,null,null,null,null,null,null,null,null,null,null,null,null,null,null,null,null,null,null,null,null,null,null,null,null,null,null,null,null,null,null,null,null,null,null,null,null,null,null,null,null,null,null,null,null,null,null,null,null,null,null,null,null,null,null,null,null,null,null,null,null,null,null,null,null,null,null,null,null,5,"0CUST_SALES","CHSHOP","Shop","0000","X","","0","0","","","",null,null,null,null,null,null,null,null,5,"A6WWZSIB3TPP37GSQPKIEBAZW","8VM70DOM0541L205HX82GQTS1","0","1","","","","00","X","0","0","",""]
[null,null,null,null,null,null,null,null,null,null,null,null,null,null,null,null,null,null,null,null,null,null,null,null,null,null,null,null,null,null,null,null,null,null,null,null,null,null,null,null,null,null,null,null,null,null,null,null,null,null,null,null,null,null,null,null,null,null,null,null,null,null,null,null,null,null,null,null,null,null,null,null,null,null,null,null,null,null,null,null,null,null,null,null,null,null,null,null,null,null,null,null,null,null,null,null,null,null,null,null,null,null,null,null,null,null,null,null,null,null,5,"0CUST_SALES","CHSREPSHI","Sales Rep (Ship-To)","0000","X","","0","0","","","",null,null,null,null,null,null,null,null,5,"A6WWZSIB3TPP37GSQPKIEBAZW","9VEXAVKBGLVPRM2LYAWT8O2BM","0","1","","","","00","X","0","0","",""]
[null,null,null,null,null,null,null,null,null,null,null,null,null,null,null,null,null,null,null,null,null,null,null,null,null,null,null,null,null,null,null,null,null,null,null,null,null,null,null,null,null,null,null,null,null,null,null,null,null,null,null,null,null,null,null,null,null,null,null,null,null,null,null,null,null,null,null,null,null,null,null,null,null,null,null,null,null,null,null,null,null,null,null,null,null,null,null,null,null,null,null,null,null,null,null,null,null,null,null,null,null,null,null,null,null,null,null,null,null,null,5,"0CUST_SALES","CHSREPSOL","Sales Rep (Sold-To)","0000","X","","0","0","","","",null,null,null,null,null,null,null,null,5,"A6WWZSIB3TPP37GSQPKIEBAZW","A4CNQYIEI3A4SAZQW9RFY18NV","","","","","","00","X","0","0","",""]
[null,null,null,null,null,null,null,null,null,null,null,null,null,null,null,null,null,null,null,null,null,null,null,null,null,null,null,null,null,null,null,null,null,null,null,null,null,null,null,null,null,null,null,null,null,null,null,null,null,null,null,null,null,null,null,null,null,null,null,null,null,null,null,null,null,null,null,null,null,null,null,null,null,null,null,null,null,null,null,null,null,null,null,null,null,null,null,null,null,null,null,null,null,null,null,null,null,null,null,null,null,null,null,null,null,null,null,null,null,null,5,"0CUSTOMER__CHCUSLCHT","CHCUSLSCH","CU - Sales Channel","0000","X","","0","0","","","",null,null,null,null,null,null,null,null,5,"A6WWZSIB3TPP37GSQPKIEBAZW","CB4LNO5UGX170R82X1SKZYXQI","","","","","","00","X","0","0","",""]
[null,null,null,null,null,null,null,null,null,null,null,null,null,null,null,null,null,null,null,null,null,null,null,null,null,null,null,null,null,null,null,null,null,null,null,null,null,null,null,null,null,null,null,null,null,null,null,null,null,null,null,null,null,null,null,null,null,null,null,null,null,null,null,null,null,null,null,null,null,null,null,null,null,null,null,null,null,null,null,null,null,null,null,null,null,null,null,null,null,null,null,null,null,null,null,null,null,null,null,null,null,null,null,null,null,null,null,null,null,null,5,"0PLANT","0ALTITUDE","Geographical Height","0000","X","","0","0","","","",null,null,null,null,null,null,null,null,5,"A6WWZSIB3TPP37GSQPKIEBAZW","CLLNFQKTMRYLVSUHUSN173QAV","","","","","","00","X","0","0","",""]
[null,null,null,null,null,null,null,null,null,null,null,null,null,null,null,null,null,null,null,null,null,null,null,null,null,null,null,null,null,null,null,null,null,null,null,null,null,null,null,null,null,null,null,null,null,null,null,null,null,null,null,null,null,null,null,null,null,null,null,null,null,null,null,null,null,null,null,null,null,null,null,null,null,null,null,null,null,null,null,null,null,null,null,null,null,null,null,null,null,null,null,null,null,null,null,null,null,null,null,null,null,null,null,null,null,null,null,null,null,null,5,"0PLANT","0BPARTNER","Business Partner","0000","X","","0","0","","","",null,null,null,null,null,null,null,null,5,"A6WWZSIB3TPP37GSQPKIEBAZW","D3T5FYJK7PWFTR9ZIOUJLTV60","0","1","","","","00","X","0","0","",""]
[null,null,null,null,null,null,null,null,null,null,null,null,null,null,null,null,null,null,null,null,null,null,null,null,null,null,null,null,null,null,null,null,null,null,null,null,null,null,null,null,null,null,null,null,null,null,null,null,null,null,null,null,null,null,null,null,null,null,null,null,null,null,null,null,null,null,null,null,null,null,null,null,null,null,null,null,null,null,null,null,null,null,null,null,null,null,null,null,null,null,null,null,null,null,null,null,null,null,null,null,null,null,null,null,null,null,null,null,null,null,5,"0PLANT","0COUNTRY","Country","0000","X","","0","0","","","",null,null,null,null,null,null,null,null,5,"A6WWZSIB3TPP37GSQPKIEBAZW","DLW9P54P4AT0OYHVG7ZL1IM5E","0","1","","","","00","X","0","0","",""]
[null,null,null,null,null,null,null,null,null,null,null,null,null,null,null,null,null,null,null,null,null,null,null,null,null,null,null,null,null,null,null,null,null,null,null,null,null,null,null,null,null,null,null,null,null,null,null,null,null,null,null,null,null,null,null,null,null,null,null,null,null,null,null,null,null,null,null,null,null,null,null,null,null,null,null,null,null,null,null,null,null,null,null,null,null,null,null,null,null,null,null,null,null,null,null,null,null,null,null,null,null,null,null,null,null,null,null,null,null,null,5,"0PLANT","0COUNTY_CDE","County Code","0000","X","","0","0","","","",null,null,null,null,null,null,null,null,5,"ACLMZ5IJHJN9I4CC7W20ZLGCB","0XOUE3TQ85XCLNJ97LK4N131O","","","","","","00","X","0","0","",""]
[null,null,null,null,null,null,null,null,null,null,null,null,null,null,null,null,null,null,null,null,null,null,null,null,null,null,null,null,null,null,null,null,null,null,null,null,null,null,null,null,null,null,null,null,null,null,null,null,null,null,null,null,null,null,null,null,null,null,null,null,null,null,null,null,null,null,null,null,null,null,null,null,null,null,null,null,null,null,null,null,null,null,null,null,null,null,null,null,null,null,null,null,null,null,null,null,null,null,null,null,null,null,null,null,null,null,null,null,null,null,5,"0PLANT","0DISTR_CHAN","Distribution Channel","0000","X","","0","0","","","",null,null,null,null,null,null,null,null,5,"ACLMZ5IJHJN9I4CC7W20ZLGCB","40OMIIL7VXC390GHTHLXLN24I","","","","","","00","X","0","0","",""]
[null,null,null,null,null,null,null,null,null,null,null,null,null,null,null,null,null,null,null,null,null,null,null,null,null,null,null,null,null,null,null,null,null,null,null,null,null,null,null,null,null,null,null,null,null,null,null,null,null,null,null,null,null,null,null,null,null,null,null,null,null,null,null,null,null,null,null,null,null,null,null,null,null,null,null,null,null,null,null,null,null,null,null,null,null,null,null,null,null,null,null,null,null,null,null,null,null,null,null,null,null,null,null,null,null,null,null,null,null,null,5,"0PLANT","0FACTCAL_ID","Factory Calendar ID","0000","X","","0","0","","","",null,null,null,null,null,null,null,null,5,"ACLMZ5IJHJN9I4CC7W20ZLGCB","85T7YQIWK1QB9ILJLJ1SQZN8J","","","","","","00","X","0","0","",""]
[null,null,null,null,null,null,null,null,null,null,null,null,null,null,null,null,null,null,null,null,null,null,null,null,null,null,null,null,null,null,null,null,null,null,null,null,null,null,null,null,null,null,null,null,null,null,null,null,null,null,null,null,null,null,null,null,null,null,null,null,null,null,null,null,null,null,null,null,null,null,null,null,null,null,null,null,null,null,null,null,null,null,null,null,null,null,null,null,null,null,null,null,null,null,null,null,null,null,null,null,null,null,null,null,null,null,null,null,null,null,5,"0PLANT","0GN_PAR_SSY","Partner Srce System","0000","X","","0","0","","","",null,null,null,null,null,null,null,null,5,"ACLMZ5IJHJN9I4CC7W20ZLGCB","8VM70DOM0541L205HX82GQTS1","0","1","","","","00","X","0","0","",""]
[null,null,null,null,null,null,null,null,null,null,null,null,null,null,null,null,null,null,null,null,null,null,null,null,null,null,null,null,null,null,null,null,null,null,null,null,null,null,null,null,null,null,null,null,null,null,null,null,null,null,null,null,null,null,null,null,null,null,null,null,null,null,null,null,null,null,null,null,null,null,null,null,null,null,null,null,null,null,null,null,null,null,null,null,null,null,null,null,null,null,null,null,null,null,null,null,null,null,null,null,null,null,null,null,null,null,null,null,null,null,5,"0PLANT","0LATITUDE","Latitude","0000","X","","0","0","","","",null,null,null,null,null,null,null,null,5,"ACLMZ5IJHJN9I4CC7W20ZLGCB","9VEXAVKBGLVPRM2LYAWT8O2BM","0","1","","","","00","X","0","0","",""]
[null,null,null,null,null,null,null,null,null,null,null,null,null,null,null,null,null,null,null,null,null,null,null,null,null,null,null,null,null,null,null,null,null,null,null,null,null,null,null,null,null,null,null,null,null,null,null,null,null,null,null,null,null,null,null,null,null,null,null,null,null,null,null,null,null,null,null,null,null,null,null,null,null,null,null,null,null,null,null,null,null,null,null,null,null,null,null,null,null,null,null,null,null,null,null,null,null,null,null,null,null,null,null,null,null,null,null,null,null,null,5,"0PLANT","0LOC_CURRCY","Local currency","0000","X","","0","0","","","",null,null,null,null,null,null,null,null,5,"ACLMZ5IJHJN9I4CC7W20ZLGCB","A4CNQYIEI3A4SAZQW9RFY18NV","","","","","","00","X","0","0","",""]
[null,null,null,null,null,null,null,null,null,null,null,null,null,null,null,null,null,null,null,null,null,null,null,null,null,null,null,null,null,null,null,null,null,null,null,null,null,null,null,null,null,null,null,null,null,null,null,null,null,null,null,null,null,null,null,null,null,null,null,null,null,null,null,null,null,null,null,null,null,null,null,null,null,null,null,null,null,null,null,null,null,null,null,null,null,null,null,null,null,null,null,null,null,null,null,null,null,null,null,null,null,null,null,null,null,null,null,null,null,null,5,"0PLANT","0LOGSYS","Source System","0000","X","","0","0","","","",null,null,null,null,null,null,null,null,5,"ACLMZ5IJHJN9I4CC7W20ZLGCB","CB4LNO5UGX170R82X1SKZYXQI","","","","","","00","X","0","0","",""]
[null,null,null,null,null,null,null,null,null,null,null,null,null,null,null,null,null,null,null,null,null,null,null,null,null,null,null,null,null,null,null,null,null,null,null,null,null,null,null,null,null,null,null,null,null,null,null,null,null,null,null,null,null,null,null,null,null,null,null,null,null,null,null,null,null,null,null,null,null,null,null,null,null,null,null,null,null,null,null,null,null,null,null,null,null,null,null,null,null,null,null,null,null,null,null,null,null,null,null,null,null,null,null,null,null,null,null,null,null,null,5,"0PLANT","0LONGITUDE","Longitude","0000","X","","0","0","","","",null,null,null,null,null,null,null,null,5,"ACLMZ5IJHJN9I4CC7W20ZLGCB","CLLNFQKTMRYLVSUHUSN173QAV","","","","","","00","X","0","0","",""]
[null,null,null,null,null,null,null,null,null,null,null,null,null,null,null,null,null,null,null,null,null,null,null,null,null,null,null,null,null,null,null,null,null,null,null,null,null,null,null,null,null,null,null,null,null,null,null,null,null,null,null,null,null,null,null,null,null,null,null,null,null,null,null,null,null,null,null,null,null,null,null,null,null,null,null,null,null,null,null,null,null,null,null,null,null,null,null,null,null,null,null,null,null,null,null,null,null,null,null,null,null,null,null,null,null,null,null,null,null,null,5,"0PLANT","0PLANTCAT","Plant category","0000","X","","0","0","","","",null,null,null,null,null,null,null,null,5,"ACLMZ5IJHJN9I4CC7W20ZLGCB","D3T5FYJK7PWFTR9ZIOUJLTV60","0","1","","","","00","X","0","0","",""]
[null,null,null,null,null,null,null,null,null,null,null,null,null,null,null,null,null,null,null,null,null,null,null,null,null,null,null,null,null,null,null,null,null,null,null,null,null,null,null,null,null,null,null,null,null,null,null,null,null,null,null,null,null,null,null,null,null,null,null,null,null,null,null,null,null,null,null,null,null,null,null,null,null,null,null,null,null,null,null,null,null,null,null,null,null,null,null,null,null,null,null,null,null,null,null,null,null,null,null,null,null,null,null,null,null,null,null,null,null,null,5,"0PLANT","0POSTAL_CD","Postal Code","0000","X","","0","0","","","",null,null,null,null,null,null,null,null,5,"ACLMZ5IJHJN9I4CC7W20ZLGCB","DLW9P54P4AT0OYHVG7ZL1IM5E","0","1","","","","00","X","0","0","",""]
[null,null,null,null,null,null,null,null,null,null,null,null,null,null,null,null,null,null,null,null,null,null,null,null,null,null,null,null,null,null,null,null,null,null,null,null,null,null,null,null,null,null,null,null,null,null,null,null,null,null,null,null,null,null,null,null,null,null,null,null,null,null,null,null,null,null,null,null,null,null,null,null,null,null,null,null,null,null,null,null,null,null,null,null,null,null,null,null,null,null,null,null,null,null,null,null,null,null,null,null,null,null,null,null,null,null,null,null,null,null,5,"0PLANT","0POSTCD_GIS","CAM:PstCde(Geo-Rel.)","0000","X","","0","0","","","",null,null,null,null,null,null,null,null,5,"AENJZ3D934GNT2TG4C4D2RFJR","0XOUE3TQ85XCLNJ97LK4N131O","","2","","","","00","X","0","0","",""]
[null,null,null,null,null,null,null,null,null,null,null,null,null,null,null,null,null,null,null,null,null,null,null,null,null,null,null,null,null,null,null,null,null,null,null,null,null,null,null,null,null,null,null,null,null,null,null,null,null,null,null,null,null,null,null,null,null,null,null,null,null,null,null,null,null,null,null,null,null,null,null,null,null,null,null,null,null,null,null,null,null,null,null,null,null,null,null,null,null,null,null,null,null,null,null,null,null,null,null,null,null,null,null,null,null,null,null,null,null,null,5,"0PLANT","0PRECISID","Geo-precision","0000","X","","0","0","","","",null,null,null,null,null,null,null,null,5,"AENJZ3D934GNT2TG4C4D2RFJR","40OMIIL7VXC390GHTHLXLN24I","","2","","","","00","X","0","0","",""]
[null,null,null,null,null,null,null,null,null,null,null,null,null,null,null,null,null,null,null,null,null,null,null,null,null,null,null,null,null,null,null,null,null,null,null,null,null,null,null,null,null,null,null,null,null,null,null,null,null,null,null,null,null,null,null,null,null,null,null,null,null,null,null,null,null,null,null,null,null,null,null,null,null,null,null,null,null,null,null,null,null,null,null,null,null,null,null,null,null,null,null,null,null,null,null,null,null,null,null,null,null,null,null,null,null,null,null,null,null,null,5,"0PLANT","0PURCH_ORG","Purchasing org.","0000","X","","0","0","","","",null,null,null,null,null,null,null,null,5,"AENJZ3D934GNT2TG4C4D2RFJR","85T7YQIWK1QB9ILJLJ1SQZN8J","","2","","","","00","X","0","0","",""]
[null,null,null,null,null,null,null,null,null,null,null,null,null,null,null,null,null,null,null,null,null,null,null,null,null,null,null,null,null,null,null,null,null,null,null,null,null,null,null,null,null,null,null,null,null,null,null,null,null,null,null,null,null,null,null,null,null,null,null,null,null,null,null,null,null,null,null,null,null,null,null,null,null,null,null,null,null,null,null,null,null,null,null,null,null,null,null,null,null,null,null,null,null,null,null,null,null,null,null,null,null,null,null,null,null,null,null,null,null,null,5,"0PLANT","0REGION","Region","0000","X","","0","0","","","",null,null,null,null,null,null,null,null,5,"AENJZ3D934GNT2TG4C4D2RFJR","8VM70DOM0541L205HX82GQTS1","0","2","","","","00","X","0","0","",""]
[null,null,null,null,null,null,null,null,null,null,null,null,null,null,null,null,null,null,null,null,null,null,null,null,null,null,null,null,null,null,null,null,null,null,null,null,null,null,null,null,null,null,null,null,null,null,null,null,null,null,null,null,null,null,null,null,null,null,null,null,null,null,null,null,null,null,null,null,null,null,null,null,null,null,null,null,null,null,null,null,null,null,null,null,null,null,null,null,null,null,null,null,null,null,null,null,null,null,null,null,null,null,null,null,null,null,null,null,null,null,5,"0PLANT","0RF_DEPSTOR","Superor. Dept. Store","0000","X","","0","0","","","",null,null,null,null,null,null,null,null,5,"AENJZ3D934GNT2TG4C4D2RFJR","9VEXAVKBGLVPRM2LYAWT8O2BM","0","2","","","","00","X","0","0","",""]
[null,null,null,null,null,null,null,null,null,null,null,null,null,null,null,null,null,null,null,null,null,null,null,null,null,null,null,null,null,null,null,null,null,null,null,null,null,null,null,null,null,null,null,null,null,null,null,null,null,null,null,null,null,null,null,null,null,null,null,null,null,null,null,null,null,null,null,null,null,null,null,null,null,null,null,null,null,null,null,null,null,null,null,null,null,null,null,null,null,null,null,null,null,null,null,null,null,null,null,null,null,null,null,null,null,null,null,null,null,null,5,"0PLANT","0RF_STORETY","Store Category","0000","X","","0","0","","","",null,null,null,null,null,null,null,null,5,"AENJZ3D934GNT2TG4C4D2RFJR","A4CNQYIEI3A4SAZQW9RFY18NV","","2","","","","00","X","0","0","",""]
[null,null,null,null,null,null,null,null,null,null,null,null,null,null,null,null,null,null,null,null,null,null,null,null,null,null,null,null,null,null,null,null,null,null,null,null,null,null,null,null,null,null,null,null,null,null,null,null,null,null,null,null,null,null,null,null,null,null,null,null,null,null,null,null,null,null,null,null,null,null,null,null,null,null,null,null,null,null,null,null,null,null,null,null,null,null,null,null,null,null,null,null,null,null,null,null,null,null,null,null,null,null,null,null,null,null,null,null,null,null,5,"0PLANT","0RT_AREA","Sales Area","0000","X","","0","0","","","",null,null,null,null,null,null,null,null,5,"AENJZ3D934GNT2TG4C4D2RFJR","CB4LNO5UGX170R82X1SKZYXQI","","2","","","","00","X","0","0","",""]
[null,null,null,null,null,null,null,null,null,null,null,null,null,null,null,null,null,null,null,null,null,null,null,null,null,null,null,null,null,null,null,null,null,null,null,null,null,null,null,null,null,null,null,null,null,null,null,null,null,null,null,null,null,null,null,null,null,null,null,null,null,null,null,null,null,null,null,null,null,null,null,null,null,null,null,null,null,null,null,null,null,null,null,null,null,null,null,null,null,null,null,null,null,null,null,null,null,null,null,null,null,null,null,null,null,null,null,null,null,null,5,"0PLANT","0RT_CUSTPL","Cust. Number of Plnt","0000","X","","0","0","","","",null,null,null,null,null,null,null,null,5,"AENJZ3D934GNT2TG4C4D2RFJR","CLLNFQKTMRYLVSUHUSN173QAV","","2","","","","00","X","0","0","",""]
[null,null,null,null,null,null,null,null,null,null,null,null,null,null,null,null,null,null,null,null,null,null,null,null,null,null,null,null,null,null,null,null,null,null,null,null,null,null,null,null,null,null,null,null,null,null,null,null,null,null,null,null,null,null,null,null,null,null,null,null,null,null,null,null,null,null,null,null,null,null,null,null,null,null,null,null,null,null,null,null,null,null,null,null,null,null,null,null,null,null,null,null,null,null,null,null,null,null,null,null,null,null,null,null,null,null,null,null,null,null,5,"0PLANT","0RT_LBLDATF","Store Lock Time (fr)","0000","X","","0","0","","","",null,null,null,null,null,null,null,null,5,"AENJZ3D934GNT2TG4C4D2RFJR","D3T5FYJK7PWFTR9ZIOUJLTV60","0","2","","","","00","X","0","0","",""]
[null,null,null,null,null,null,null,null,null,null,null,null,null,null,null,null,null,null,null,null,null,null,null,null,null,null,null,null,null,null,null,null,null,null,null,null,null,null,null,null,null,null,null,null,null,null,null,null,null,null,null,null,null,null,null,null,null,null,null,null,null,null,null,null,null,null,null,null,null,null,null,null,null,null,null,null,null,null,null,null,null,null,null,null,null,null,null,null,null,null,null,null,null,null,null,null,null,null,null,null,null,null,null,null,null,null,null,null,null,null,5,"0PLANT","0RT_LBLDATT","Store Lock Time (to)","0000","X","","0","0","","","",null,null,null,null,null,null,null,null,5,"AENJZ3D934GNT2TG4C4D2RFJR","DLW9P54P4AT0OYHVG7ZL1IM5E","0","2","","","","00","X","0","0","",""]
[null,null,null,null,null,null,null,null,null,null,null,null,null,null,null,null,null,null,null,null,null,null,null,null,null,null,null,null,null,null,null,null,null,null,null,null,null,null,null,null,null,null,null,null,null,null,null,null,null,null,null,null,null,null,null,null,null,null,null,null,null,null,null,null,null,null,null,null,null,null,null,null,null,null,null,null,null,null,null,null,null,null,null,null,null,null,null,null,null,null,null,null,null,null,null,null,null,null,null,null,null,null,null,null,null,null,null,null,null,null,5,"0PLANT","0RT_LCLDAT","Store Closing Date","0000","X","","0","0","","","",null,null,null,null,null,null,null,null,5,"B0LG7LONJDGK964QNMFEHQNBA","0XOUE3TQ85XCLNJ97LK4N131O","","","","","","00","X","0","0","",""]
[null,null,null,null,null,null,null,null,null,null,null,null,null,null,null,null,null,null,null,null,null,null,null,null,null,null,null,null,null,null,null,null,null,null,null,null,null,null,null,null,null,null,null,null,null,null,null,null,null,null,null,null,null,null,null,null,null,null,null,null,null,null,null,null,null,null,null,null,null,null,null,null,null,null,null,null,null,null,null,null,null,null,null,null,null,null,null,null,null,null,null,null,null,null,null,null,null,null,null,null,null,null,null,null,null,null,null,null,null,null,5,"0PLANT","0RT_LOPDAT","Store Opening Date","0000","X","","0","0","","","",null,null,null,null,null,null,null,null,5,"B0LG7LONJDGK964QNMFEHQNBA","40OMIIL7VXC390GHTHLXLN24I","","","","","","00","X","0","0","",""]
[null,null,null,null,null,null,null,null,null,null,null,null,null,null,null,null,null,null,null,null,null,null,null,null,null,null,null,null,null,null,null,null,null,null,null,null,null,null,null,null,null,null,null,null,null,null,null,null,null,null,null,null,null,null,null,null,null,null,null,null,null,null,null,null,null,null,null,null,null,null,null,null,null,null,null,null,null,null,null,null,null,null,null,null,null,null,null,null,null,null,null,null,null,null,null,null,null,null,null,null,null,null,null,null,null,null,null,null,null,null,5,"0PLANT","0SALESORG","Sales Organization","0000","X","","0","0","","","",null,null,null,null,null,null,null,null,5,"B0LG7LONJDGK964QNMFEHQNBA","85T7YQIWK1QB9ILJLJ1SQZN8J","","","","","","00","X","0","0","",""]
[null,null,null,null,null,null,null,null,null,null,null,null,null,null,null,null,null,null,null,null,null,null,null,null,null,null,null,null,null,null,null,null,null,null,null,null,null,null,null,null,null,null,null,null,null,null,null,null,null,null,null,null,null,null,null,null,null,null,null,null,null,null,null,null,null,null,null,null,null,null,null,null,null,null,null,null,null,null,null,null,null,null,null,null,null,null,null,null,null,null,null,null,null,null,null,null,null,null,null,null,null,null,null,null,null,null,null,null,null,null,5,"0PLANT","0SALES_DIST","Sales District","0000","X","","0","0","","","",null,null,null,null,null,null,null,null,5,"B0LG7LONJDGK964QNMFEHQNBA","8VM70DOM0541L205HX82GQTS1","0","1","","","","00","X","0","0","",""]
[null,null,null,null,null,null,null,null,null,null,null,null,null,null,null,null,null,null,null,null,null,null,null,null,null,null,null,null,null,null,null,null,null,null,null,null,null,null,null,null,null,null,null,null,null,null,null,null,null,null,null,null,null,null,null,null,null,null,null,null,null,null,null,null,null,null,null,null,null,null,null,null,null,null,null,null,null,null,null,null,null,null,null,null,null,null,null,null,null,null,null,null,null,null,null,null,null,null,null,null,null,null,null,null,null,null,null,null,null,null,5,"0PLANT","0SRCID","DatSrc.ID of GeoLoct","0000","X","","0","0","","","",null,null,null,null,null,null,null,null,5,"B0LG7LONJDGK964QNMFEHQNBA","9VEXAVKBGLVPRM2LYAWT8O2BM","0","1","","","","00","X","0","0","",""]
[null,null,null,null,null,null,null,null,null,null,null,null,null,null,null,null,null,null,null,null,null,null,null,null,null,null,null,null,null,null,null,null,null,null,null,null,null,null,null,null,null,null,null,null,null,null,null,null,null,null,null,null,null,null,null,null,null,null,null,null,null,null,null,null,null,null,null,null,null,null,null,null,null,null,null,null,null,null,null,null,null,null,null,null,null,null,null,null,null,null,null,null,null,null,null,null,null,null,null,null,null,null,null,null,null,null,null,null,null,null,5,"0SHIP_TO","0ACCNT_GRP","Account group","0000","X","","0","0","","","",null,null,null,null,null,null,null,null,5,"B0LG7LONJDGK964QNMFEHQNBA","A4CNQYIEI3A4SAZQW9RFY18NV","","","","","","00","X","0","0","",""]
[null,null,null,null,null,null,null,null,null,null,null,null,null,null,null,null,null,null,null,null,null,null,null,null,null,null,null,null,null,null,null,null,null,null,null,null,null,null,null,null,null,null,null,null,null,null,null,null,null,null,null,null,null,null,null,null,null,null,null,null,null,null,null,null,null,null,null,null,null,null,null,null,null,null,null,null,null,null,null,null,null,null,null,null,null,null,null,null,null,null,null,null,null,null,null,null,null,null,null,null,null,null,null,null,null,null,null,null,null,null,5,"0SHIP_TO","0ADDR_NUMBR","Address","0000","X","","0","0","","","",null,null,null,null,null,null,null,null,5,"B0LG7LONJDGK964QNMFEHQNBA","CB4LNO5UGX170R82X1SKZYXQI","","","","","","00","X","0","0","",""]
[null,null,null,null,null,null,null,null,null,null,null,null,null,null,null,null,null,null,null,null,null,null,null,null,null,null,null,null,null,null,null,null,null,null,null,null,null,null,null,null,null,null,null,null,null,null,null,null,null,null,null,null,null,null,null,null,null,null,null,null,null,null,null,null,null,null,null,null,null,null,null,null,null,null,null,null,null,null,null,null,null,null,null,null,null,null,null,null,null,null,null,null,null,null,null,null,null,null,null,null,null,null,null,null,null,null,null,null,null,null,5,"0SHIP_TO","0AF_CUSTDC","No. Customer-DC","0000","X","","0","0","","","",null,null,null,null,null,null,null,null,5,"B0LG7LONJDGK964QNMFEHQNBA","CLLNFQKTMRYLVSUHUSN173QAV","","","","","","00","X","0","0","",""]
[null,null,null,null,null,null,null,null,null,null,null,null,null,null,null,null,null,null,null,null,null,null,null,null,null,null,null,null,null,null,null,null,null,null,null,null,null,null,null,null,null,null,null,null,null,null,null,null,null,null,null,null,null,null,null,null,null,null,null,null,null,null,null,null,null,null,null,null,null,null,null,null,null,null,null,null,null,null,null,null,null,null,null,null,null,null,null,null,null,null,null,null,null,null,null,null,null,null,null,null,null,null,null,null,null,null,null,null,null,null,5,"0SHIP_TO","0AF_CUSTID","Cust.ID Partnersyst.","0000","X","","0","0","","","",null,null,null,null,null,null,null,null,5,"B0LG7LONJDGK964QNMFEHQNBA","D3T5FYJK7PWFTR9ZIOUJLTV60","0","1","","","","00","X","0","0","",""]
[null,null,null,null,null,null,null,null,null,null,null,null,null,null,null,null,null,null,null,null,null,null,null,null,null,null,null,null,null,null,null,null,null,null,null,null,null,null,null,null,null,null,null,null,null,null,null,null,null,null,null,null,null,null,null,null,null,null,null,null,null,null,null,null,null,null,null,null,null,null,null,null,null,null,null,null,null,null,null,null,null,null,null,null,null,null,null,null,null,null,null,null,null,null,null,null,null,null,null,null,null,null,null,null,null,null,null,null,null,null,5,"0SHIP_TO","0ALTITUDE","Geographical Height","0000","X","","0","0","","","",null,null,null,null,null,null,null,null,5,"B0LG7LONJDGK964QNMFEHQNBA","DLW9P54P4AT0OYHVG7ZL1IM5E","0","1","","","","00","X","0","0","",""]
[null,null,null,null,null,null,null,null,null,null,null,null,null,null,null,null,null,null,null,null,null,null,null,null,null,null,null,null,null,null,null,null,null,null,null,null,null,null,null,null,null,null,null,null,null,null,null,null,null,null,null,null,null,null,null,null,null,null,null,null,null,null,null,null,null,null,null,null,null,null,null,null,null,null,null,null,null,null,null,null,null,null,null,null,null,null,null,null,null,null,null,null,null,null,null,null,null,null,null,null,null,null,null,null,null,null,null,null,null,null,5,"0SHIP_TO","0APO_LOCNO","APO Location","0000","X","","0","0","","","",null,null,null,null,null,null,null,null,5,"B0NC9O6WHUMWA7VXWT62I0MSN","0XOUE3TQ85XCLNJ97LK4N131O","","","","","","00","X","0","0","",""]
[null,null,null,null,null,null,null,null,null,null,null,null,null,null,null,null,null,null,null,null,null,null,null,null,null,null,null,null,null,null,null,null,null,null,null,null,null,null,null,null,null,null,null,null,null,null,null,null,null,null,null,null,null,null,null,null,null,null,null,null,null,null,null,null,null,null,null,null,null,null,null,null,null,null,null,null,null,null,null,null,null,null,null,null,null,null,null,null,null,null,null,null,null,null,null,null,null,null,null,null,null,null,null,null,null,null,null,null,null,null,5,"0SHIP_TO","0BPARTNER","Business Partner","0000","X","","0","0","","","",null,null,null,null,null,null,null,null,5,"B0NC9O6WHUMWA7VXWT62I0MSN","40OMIIL7VXC390GHTHLXLN24I","","","","","","00","X","0","0","",""]
[null,null,null,null,null,null,null,null,null,null,null,null,null,null,null,null,null,null,null,null,null,null,null,null,null,null,null,null,null,null,null,null,null,null,null,null,null,null,null,null,null,null,null,null,null,null,null,null,null,null,null,null,null,null,null,null,null,null,null,null,null,null,null,null,null,null,null,null,null,null,null,null,null,null,null,null,null,null,null,null,null,null,null,null,null,null,null,null,null,null,null,null,null,null,null,null,null,null,null,null,null,null,null,null,null,null,null,null,null,null,5,"0SHIP_TO","0CITY","Location","0000","X","","0","0","","","",null,null,null,null,null,null,null,null,5,"B0NC9O6WHUMWA7VXWT62I0MSN","85T7YQIWK1QB9ILJLJ1SQZN8J","","","","","","00","X","0","0","",""]
[null,null,null,null,null,null,null,null,null,null,null,null,null,null,null,null,null,null,null,null,null,null,null,null,null,null,null,null,null,null,null,null,null,null,null,null,null,null,null,null,null,null,null,null,null,null,null,null,null,null,null,null,null,null,null,null,null,null,null,null,null,null,null,null,null,null,null,null,null,null,null,null,null,null,null,null,null,null,null,null,null,null,null,null,null,null,null,null,null,null,null,null,null,null,null,null,null,null,null,null,null,null,null,null,null,null,null,null,null,null,5,"0SHIP_TO","0CITY_2","CAM: City District","0000","X","","0","0","","","",null,null,null,null,null,null,null,null,5,"B0NC9O6WHUMWA7VXWT62I0MSN","8VM70DOM0541L205HX82GQTS1","0","1","","","","00","X","0","0","",""]
[null,null,null,null,null,null,null,null,null,null,null,null,null,null,null,null,null,null,null,null,null,null,null,null,null,null,null,null,null,null,null,null,null,null,null,null,null,null,null,null,null,null,null,null,null,null,null,null,null,null,null,null,null,null,null,null,null,null,null,null,null,null,null,null,null,null,null,null,null,null,null,null,null,null,null,null,null,null,null,null,null,null,null,null,null,null,null,null,null,null,null,null,null,null,null,null,null,null,null,null,null,null,null,null,null,null,null,null,null,null,5,"0SHIP_TO","0COUNTRY","Country","0000","X","","0","0","","","",null,null,null,null,null,null,null,null,5,"B0NC9O6WHUMWA7VXWT62I0MSN","9VEXAVKBGLVPRM2LYAWT8O2BM","0","1","","","","00","X","0","0","",""]
[null,null,null,null,null,null,null,null,null,null,null,null,null,null,null,null,null,null,null,null,null,null,null,null,null,null,null,null,null,null,null,null,null,null,null,null,null,null,null,null,null,null,null,null,null,null,null,null,null,null,null,null,null,null,null,null,null,null,null,null,null,null,null,null,null,null,null,null,null,null,null,null,null,null,null,null,null,null,null,null,null,null,null,null,null,null,null,null,null,null,null,null,null,null,null,null,null,null,null,null,null,null,null,null,null,null,null,null,null,null,5,"0SHIP_TO","0CUST_CLASS","Customer Classific.","0000","X","","0","0","","","",null,null,null,null,null,null,null,null,5,"B0NC9O6WHUMWA7VXWT62I0MSN","A4CNQYIEI3A4SAZQW9RFY18NV","","","","","","00","X","0","0","",""]
[null,null,null,null,null,null,null,null,null,null,null,null,null,null,null,null,null,null,null,null,null,null,null,null,null,null,null,null,null,null,null,null,null,null,null,null,null,null,null,null,null,null,null,null,null,null,null,null,null,null,null,null,null,null,null,null,null,null,null,null,null,null,null,null,null,null,null,null,null,null,null,null,null,null,null,null,null,null,null,null,null,null,null,null,null,null,null,null,null,null,null,null,null,null,null,null,null,null,null,null,null,null,null,null,null,null,null,null,null,null,5,"0SHIP_TO","0CUST_MKT","Customer Market","0000","X","","0","0","","","",null,null,null,null,null,null,null,null,5,"B0NC9O6WHUMWA7VXWT62I0MSN","CB4LNO5UGX170R82X1SKZYXQI","","","","","","00","X","0","0","",""]
[null,null,null,null,null,null,null,null,null,null,null,null,null,null,null,null,null,null,null,null,null,null,null,null,null,null,null,null,null,null,null,null,null,null,null,null,null,null,null,null,null,null,null,null,null,null,null,null,null,null,null,null,null,null,null,null,null,null,null,null,null,null,null,null,null,null,null,null,null,null,null,null,null,null,null,null,null,null,null,null,null,null,null,null,null,null,null,null,null,null,null,null,null,null,null,null,null,null,null,null,null,null,null,null,null,null,null,null,null,null,5,"0SHIP_TO","0CUS_F_CONS","Customer is consumer","0000","X","","0","0","","","",null,null,null,null,null,null,null,null,5,"B0NC9O6WHUMWA7VXWT62I0MSN","CLLNFQKTMRYLVSUHUSN173QAV","","","","","","00","X","0","0","",""]
[null,null,null,null,null,null,null,null,null,null,null,null,null,null,null,null,null,null,null,null,null,null,null,null,null,null,null,null,null,null,null,null,null,null,null,null,null,null,null,null,null,null,null,null,null,null,null,null,null,null,null,null,null,null,null,null,null,null,null,null,null,null,null,null,null,null,null,null,null,null,null,null,null,null,null,null,null,null,null,null,null,null,null,null,null,null,null,null,null,null,null,null,null,null,null,null,null,null,null,null,null,null,null,null,null,null,null,null,null,null,5,"0SHIP_TO","0DBDUNS_NUM","D-U-N-S Number","0000","X","","0","0","","","",null,null,null,null,null,null,null,null,5,"B0NC9O6WHUMWA7VXWT62I0MSN","D3T5FYJK7PWFTR9ZIOUJLTV60","0","1","","","","00","X","0","0","",""]
[null,null,null,null,null,null,null,null,null,null,null,null,null,null,null,null,null,null,null,null,null,null,null,null,null,null,null,null,null,null,null,null,null,null,null,null,null,null,null,null,null,null,null,null,null,null,null,null,null,null,null,null,null,null,null,null,null,null,null,null,null,null,null,null,null,null,null,null,null,null,null,null,null,null,null,null,null,null,null,null,null,null,null,null,null,null,null,null,null,null,null,null,null,null,null,null,null,null,null,null,null,null,null,null,null,null,null,null,null,null,5,"0SHIP_TO","0EMAIL_ADDR","E-Mail Address","0000","X","","0","0","","","",null,null,null,null,null,null,null,null,5,"B0NC9O6WHUMWA7VXWT62I0MSN","DLW9P54P4AT0OYHVG7ZL1IM5E","0","1","","","","00","X","0","0","",""]
[null,null,null,null,null,null,null,null,null,null,null,null,null,null,null,null,null,null,null,null,null,null,null,null,null,null,null,null,null,null,null,null,null,null,null,null,null,null,null,null,null,null,null,null,null,null,null,null,null,null,null,null,null,null,null,null,null,null,null,null,null,null,null,null,null,null,null,null,null,null,null,null,null,null,null,null,null,null,null,null,null,null,null,null,null,null,null,null,null,null,null,null,null,null,null,null,null,null,null,null,null,null,null,null,null,null,null,null,null,null,5,"0SHIP_TO","0FAX_NUM","Fax Number","0000","X","","0","0","","","",null,null,null,null,null,null,null,null,5,"BAI19GP8IE8J4WJN7LSTLARIP","0XOUE3TQ85XCLNJ97LK4N131O","","","","","","00","X","0","0","",""]
[null,null,null,null,null,null,null,null,null,null,null,null,null,null,null,null,null,null,null,null,null,null,null,null,null,null,null,null,null,null,null,null,null,null,null,null,null,null,null,null,null,null,null,null,null,null,null,null,null,null,null,null,null,null,null,null,null,null,null,null,null,null,null,null,null,null,null,null,null,null,null,null,null,null,null,null,null,null,null,null,null,null,null,null,null,null,null,null,null,null,null,null,null,null,null,null,null,null,null,null,null,null,null,null,null,null,null,null,null,null,5,"0SHIP_TO","0FISCVARNT","Fiscal Year Variant","0000","X","","0","0","","","",null,null,null,null,null,null,null,null,5,"BAI19GP8IE8J4WJN7LSTLARIP","40OMIIL7VXC390GHTHLXLN24I","","","","","","00","X","0","0","",""]
[null,null,null,null,null,null,null,null,null,null,null,null,null,null,null,null,null,null,null,null,null,null,null,null,null,null,null,null,null,null,null,null,null,null,null,null,null,null,null,null,null,null,null,null,null,null,null,null,null,null,null,null,null,null,null,null,null,null,null,null,null,null,null,null,null,null,null,null,null,null,null,null,null,null,null,null,null,null,null,null,null,null,null,null,null,null,null,null,null,null,null,null,null,null,null,null,null,null,null,null,null,null,null,null,null,null,null,null,null,null,5,"0SHIP_TO","0ID_TXNUMB3","Tax Number 3","0000","X","","0","0","","","",null,null,null,null,null,null,null,null,5,"BAI19GP8IE8J4WJN7LSTLARIP","85T7YQIWK1QB9ILJLJ1SQZN8J","","","","","","00","X","0","0","",""]
[null,null,null,null,null,null,null,null,null,null,null,null,null,null,null,null,null,null,null,null,null,null,null,null,null,null,null,null,null,null,null,null,null,null,null,null,null,null,null,null,null,null,null,null,null,null,null,null,null,null,null,null,null,null,null,null,null,null,null,null,null,null,null,null,null,null,null,null,null,null,null,null,null,null,null,null,null,null,null,null,null,null,null,null,null,null,null,null,null,null,null,null,null,null,null,null,null,null,null,null,null,null,null,null,null,null,null,null,null,null,5,"0SHIP_TO","0ID_XCPD","One-Time Account","0000","X","","0","0","","","",null,null,null,null,null,null,null,null,5,"BAI19GP8IE8J4WJN7LSTLARIP","8VM70DOM0541L205HX82GQTS1","0","1","","","","00","X","0","0","",""]
[null,null,null,null,null,null,null,null,null,null,null,null,null,null,null,null,null,null,null,null,null,null,null,null,null,null,null,null,null,null,null,null,null,null,null,null,null,null,null,null,null,null,null,null,null,null,null,null,null,null,null,null,null,null,null,null,null,null,null,null,null,null,null,null,null,null,null,null,null,null,null,null,null,null,null,null,null,null,null,null,null,null,null,null,null,null,null,null,null,null,null,null,null,null,null,null,null,null,null,null,null,null,null,null,null,null,null,null,null,null,5,"0SHIP_TO","0INDUSTRY","Industry","0000","X","","0","0","","","",null,null,null,null,null,null,null,null,5,"BAI19GP8IE8J4WJN7LSTLARIP","9VEXAVKBGLVPRM2LYAWT8O2BM","0","1","","","","00","X","0","0","",""]
[null,null,null,null,null,null,null,null,null,null,null,null,null,null,null,null,null,null,null,null,null,null,null,null,null,null,null,null,null,null,null,null,null,null,null,null,null,null,null,null,null,null,null,null,null,null,null,null,null,null,null,null,null,null,null,null,null,null,null,null,null,null,null,null,null,null,null,null,null,null,null,null,null,null,null,null,null,null,null,null,null,null,null,null,null,null,null,null,null,null,null,null,null,null,null,null,null,null,null,null,null,null,null,null,null,null,null,null,null,null,5,"0SHIP_TO","0IND_CODE_1","Industry code 1","0000","X","","0","0","","","",null,null,null,null,null,null,null,null,5,"BAI19GP8IE8J4WJN7LSTLARIP","A4CNQYIEI3A4SAZQW9RFY18NV","","","","","","00","X","0","0","",""]
[null,null,null,null,null,null,null,null,null,null,null,null,null,null,null,null,null,null,null,null,null,null,null,null,null,null,null,null,null,null,null,null,null,null,null,null,null,null,null,null,null,null,null,null,null,null,null,null,null,null,null,null,null,null,null,null,null,null,null,null,null,null,null,null,null,null,null,null,null,null,null,null,null,null,null,null,null,null,null,null,null,null,null,null,null,null,null,null,null,null,null,null,null,null,null,null,null,null,null,null,null,null,null,null,null,null,null,null,null,null,5,"0SHIP_TO","0IND_CODE_2","Industry Code 2","0000","X","","0","0","","","",null,null,null,null,null,null,null,null,5,"BAI19GP8IE8J4WJN7LSTLARIP","CB4LNO5UGX170R82X1SKZYXQI","","","","","","00","X","0","0","",""]
[null,null,null,null,null,null,null,null,null,null,null,null,null,null,null,null,null,null,null,null,null,null,null,null,null,null,null,null,null,null,null,null,null,null,null,null,null,null,null,null,null,null,null,null,null,null,null,null,null,null,null,null,null,null,null,null,null,null,null,null,null,null,null,null,null,null,null,null,null,null,null,null,null,null,null,null,null,null,null,null,null,null,null,null,null,null,null,null,null,null,null,null,null,null,null,null,null,null,null,null,null,null,null,null,null,null,null,null,null,null,5,"0SHIP_TO","0IND_CODE_4","Industry Code 4","0000","X","","0","0","","","",null,null,null,null,null,null,null,null,5,"BAI19GP8IE8J4WJN7LSTLARIP","D3T5FYJK7PWFTR9ZIOUJLTV60","0","1","","","","00","X","0","0","",""]
[null,null,null,null,null,null,null,null,null,null,null,null,null,null,null,null,null,null,null,null,null,null,null,null,null,null,null,null,null,null,null,null,null,null,null,null,null,null,null,null,null,null,null,null,null,null,null,null,null,null,null,null,null,null,null,null,null,null,null,null,null,null,null,null,null,null,null,null,null,null,null,null,null,null,null,null,null,null,null,null,null,null,null,null,null,null,null,null,null,null,null,null,null,null,null,null,null,null,null,null,null,null,null,null,null,null,null,null,null,null,5,"0SHIP_TO","0LOGSYS","Source System","0000","X","","0","0","","","",null,null,null,null,null,null,null,null,5,"C3QHLF000YWITR7D3MHAGFAQC","8VM70DOM0541L205HX82GQTS1","0","2","","","","00","X","0","0","",""]
[null,null,null,null,null,null,null,null,null,null,null,null,null,null,null,null,null,null,null,null,null,null,null,null,null,null,null,null,null,null,null,null,null,null,null,null,null,null,null,null,null,null,null,null,null,null,null,null,null,null,null,null,null,null,null,null,null,null,null,null,null,null,null,null,null,null,null,null,null,null,null,null,null,null,null,null,null,null,null,null,null,null,null,null,null,null,null,null,null,null,null,null,null,null,null,null,null,null,null,null,null,null,null,null,null,null,null,null,null,null,5,"0SHIP_TO","0NAME2","Name 2","0000","X","","0","0","","","",null,null,null,null,null,null,null,null,5,"C3QHLF000YWITR7D3MHAGFAQC","CB4LNO5UGX170R82X1SKZYXQI","","2","","","","00","X","0","0","",""]
[null,null,null,null,null,null,null,null,null,null,null,null,null,null,null,null,null,null,null,null,null,null,null,null,null,null,null,null,null,null,null,null,null,null,null,null,null,null,null,null,null,null,null,null,null,null,null,null,null,null,null,null,null,null,null,null,null,null,null,null,null,null,null,null,null,null,null,null,null,null,null,null,null,null,null,null,null,null,null,null,null,null,null,null,null,null,null,null,null,null,null,null,null,null,null,null,null,null,null,null,null,null,null,null,null,null,null,null,null,null,5,"0SHIP_TO","0PCOMPANY","Trading partner","0000","X","","0","0","","","",null,null,null,null,null,null,null,null,5,"C5CA4H28JD8OS7CUVK3X4L27S","0XOUE3TQ85XCLNJ97LK4N131O","","","","","","00","X","0","0","",""]
[null,null,null,null,null,null,null,null,null,null,null,null,null,null,null,null,null,null,null,null,null,null,null,null,null,null,null,null,null,null,null,null,null,null,null,null,null,null,null,null,null,null,null,null,null,null,null,null,null,null,null,null,null,null,null,null,null,null,null,null,null,null,null,null,null,null,null,null,null,null,null,null,null,null,null,null,null,null,null,null,null,null,null,null,null,null,null,null,null,null,null,null,null,null,null,null,null,null,null,null,null,null,null,null,null,null,null,null,null,null,5,"0SHIP_TO","0POSTCD_BOX","CAM:POBox PostalCode","0000","X","","0","0","","","",null,null,null,null,null,null,null,null,5,"C5CA4H28JD8OS7CUVK3X4L27S","CB4LNO5UGX170R82X1SKZYXQI","","","","","","00","X","0","0","",""]
[null,null,null,null,null,null,null,null,null,null,null,null,null,null,null,null,null,null,null,null,null,null,null,null,null,null,null,null,null,null,null,null,null,null,null,null,null,null,null,null,null,null,null,null,null,null,null,null,null,null,null,null,null,null,null,null,null,null,null,null,null,null,null,null,null,null,null,null,null,null,null,null,null,null,null,null,null,null,null,null,null,null,null,null,null,null,null,null,null,null,null,null,null,null,null,null,null,null,null,null,null,null,null,null,null,null,null,null,null,null,5,"0SHIP_TO","0SRCID","DatSrc.ID of GeoLoct","0000","X","","0","0","","","",null,null,null,null,null,null,null,null,5,"CI5QTXV43N7K9QYW65C4L9G9R","40OMIIL7VXC390GHTHLXLN24I","","","","","","00","X","0","0","",""]
[null,null,null,null,null,null,null,null,null,null,null,null,null,null,null,null,null,null,null,null,null,null,null,null,null,null,null,null,null,null,null,null,null,null,null,null,null,null,null,null,null,null,null,null,null,null,null,null,null,null,null,null,null,null,null,null,null,null,null,null,null,null,null,null,null,null,null,null,null,null,null,null,null,null,null,null,null,null,null,null,null,null,null,null,null,null,null,null,null,null,null,null,null,null,null,null,null,null,null,null,null,null,null,null,null,null,null,null,null,null,5,"0SHIP_TO","0VENDOR","Vendor","0000","X","","0","0","","","",null,null,null,null,null,null,null,null,5,"CI5QTXV43N7K9QYW65C4L9G9R","CB4LNO5UGX170R82X1SKZYXQI","","","","","","00","X","0","0","",""]
[null,null,null,null,null,null,null,null,null,null,null,null,null,null,null,null,null,null,null,null,null,null,null,null,null,null,null,null,null,null,null,null,null,null,null,null,null,null,null,null,null,null,null,null,null,null,null,null,null,null,null,null,null,null,null,null,null,null,null,null,null,null,null,null,null,null,null,null,null,null,null,null,null,null,null,null,null,null,null,null,null,null,null,null,null,null,null,null,null,null,null,null,null,null,null,null,null,null,null,null,null,null,null,null,null,null,null,null,null,null,5,"0SHIP_TO","CHCUABM25","CU - ABM Corner","0000","X","","0","0","","","",null,null,null,null,null,null,null,null,5,"D9IU0A9VZZTKIRVEDLAM7Z4ZP","0XOUE3TQ85XCLNJ97LK4N131O","","2","","","","00","X","0","0","",""]
[null,null,null,null,null,null,null,null,null,null,null,null,null,null,null,null,null,null,null,null,null,null,null,null,null,null,null,null,null,null,null,null,null,null,null,null,null,null,null,null,null,null,null,null,null,null,null,null,null,null,null,null,null,null,null,null,null,null,null,null,null,null,null,null,null,null,null,null,null,null,null,null,null,null,null,null,null,null,null,null,null,null,null,null,null,null,null,null,null,null,null,null,null,null,null,null,null,null,null,null,null,null,null,null,null,null,null,null,null,null,5,"0SHIP_TO","CHCUABM40","CU - ABM Franchise","0000","X","","0","0","","","",null,null,null,null,null,null,null,null,5,"D9IU0A9VZZTKIRVEDLAM7Z4ZP","8VM70DOM0541L205HX82GQTS1","0","2","","","","00","X","0","0","",""]
[null,null,null,null,null,null,null,null,null,null,null,null,null,null,null,null,null,null,null,null,null,null,null,null,null,null,null,null,null,null,null,null,null,null,null,null,null,null,null,null,null,null,null,null,null,null,null,null,null,null,null,null,null,null,null,null,null,null,null,null,null,null,null,null,null,null,null,null,null,null,null,null,null,null,null,null,null,null,null,null,null,null,null,null,null,null,null,null,null,null,null,null,null,null,null,null,null,null,null,null,null,null,null,null,null,null,null,null,null,null,5,"0SHIP_TO","CHCUCON10","CU - Cons. Serv. SA","0000","X","","0","0","","","",null,null,null,null,null,null,null,null,5,"DR91OMEBWU18XF8TEK57T76H6","0XOUE3TQ85XCLNJ97LK4N131O","","2","","","","00","X","0","0","",""]
[null,null,null,null,null,null,null,null,null,null,null,null,null,null,null,null,null,null,null,null,null,null,null,null,null,null,null,null,null,null,null,null,null,null,null,null,null,null,null,null,null,null,null,null,null,null,null,null,null,null,null,null,null,null,null,null,null,null,null,null,null,null,null,null,null,null,null,null,null,null,null,null,null,null,null,null,null,null,null,null,null,null,null,null,null,null,null,null,null,null,null,null,null,null,null,null,null,null,null,null,null,null,null,null,null,null,null,null,null,null,5,"0SHIP_TO","CHCUCUB20","CU - CBus Mailorder","0000","X","","0","0","","","",null,null,null,null,null,null,null,null,5,"DR91OMEBWU18XF8TEK57T76H6","9VEXAVKBGLVPRM2LYAWT8O2BM","0","2","","","","00","X","0","0","",""]
[null,null,null,null,null,null,null,null,null,null,null,null,null,null,null,null,null,null,null,null,null,null,null,null,null,null,null,null,null,null,null,null,null,null,null,null,null,null,null,null,null,null,null,null,null,null,null,null,null,null,null,null,null,null,null,null,null,null,null,null,null,null,null,null,null,null,null,null,null,null,null,null,null,null,null,null,null,null,null,null,null,null,null,null,null,null,null,null,null,null,null,null,null,null,null,null,null,null,null,null,null,null,null,null,null,null,null,null,null,null,5,"0SHIP_TO","CHCUCUB30","CU - CBus Internet","0000","X","","0","0","","","",null,null,null,null,null,null,null,null,5,"DR91OMEBWU18XF8TEK57T76H6","A4CNQYIEI3A4SAZQW9RFY18NV","","2","","","","00","X","0","0","",""]
[null,null,null,null,null,null,null,null,null,null,null,null,null,null,null,null,null,null,null,null,null,null,null,null,null,null,null,null,null,null,null,null,null,null,null,null,null,null,null,null,null,null,null,null,null,null,null,null,null,null,null,null,null,null,null,null,null,null,null,null,null,null,null,null,null,null,null,null,null,null,null,null,null,null,null,null,null,null,null,null,null,null,null,null,null,null,null,null,null,null,null,null,null,null,null,null,null,null,null,null,null,null,null,null,null,null,null,null,null,null,5,"0SHIP_TO","CHCUFSF30","CU - FSF Rack Jobber","0000","X","","0","0","","","",null,null,null,null,null,null,null,null,5,"DR91OMEBWU18XF8TEK57T76H6","DLW9P54P4AT0OYHVG7ZL1IM5E","0","2","","","","00","X","0","0","",""]
[null,null,null,null,null,null,null,null,null,null,null,null,null,null,null,null,null,null,null,null,null,null,null,null,null,null,null,null,null,null,null,null,null,null,null,null,null,null,null,null,null,null,null,null,null,null,null,null,null,null,null,null,null,null,null,null,null,null,null,null,null,null,null,null,null,null,null,null,null,null,null,null,null,null,null,null,null,null,null,null,null,null,null,null,null,null,null,null,null,null,null,null,null,null,null,null,null,null,null,null,null,null,null,null,null,null,null,null,null,null,5,"0SHIP_TO","CHCUKEY22","CU - KeyAcc Asia","0000","X","","0","0","","","",null,null,null,null,null,null,null,null,5,"DTTDHH3GJNUXWGV5PDD7U5Y60","CB4LNO5UGX170R82X1SKZYXQI","","","","","","00","X","0","0","",""]
[null,null,null,null,null,null,null,null,null,null,null,null,null,null,null,null,null,null,null,null,null,null,null,null,null,null,null,null,null,null,null,null,null,null,null,null,null,null,null,null,null,null,null,null,null,null,null,null,null,null,null,null,null,null,null,null,null,null,null,null,null,null,null,null,null,null,null,null,null,null,null,null,null,null,null,null,null,null,null,null,null,null,null,null,null,null,null,null,null,null,null,null,null,null,null,null,null,null,null,null,null,null,null,null,null,null,null,null,null,null,5,"0SHIP_TO","CHCULIFEC","CU - CustLifeCycle","0000","X","","0","0","","","",null,null,null,null,null,null,null,null,5,"DTTDHH3GJNUXWGV5PDD7U5Y60","DLW9P54P4AT0OYHVG7ZL1IM5E","0","1","","","","00","X","0","0","",""]
[null,null,null,null,null,null,null,null,null,null,null,null,null,null,null,null,null,null,null,null,null,null,null,null,null,null,null,null,null,null,null,null,null,null,null,null,null,null,null,null,null,null,null,null,null,null,null,null,null,null,null,null,null,null,null,null,null,null,null,null,null,null,null,null,null,null,null,null,null,null,null,null,null,null,null,null,null,null,null,null,null,null,null,null,null,null,null,null,null,null,null,null,null,null,null,null,null,null,null,null,null,null,null,null,null,null,null,null,null,null,5,"0SHIP_TO","CHCUSEGPR","CU - Seg Price/Image","0000","X","","0","0","","","",null,null,null,null,null,null,null,null,5,"DVU9TNJ1YQRJK3TUN9CHPH0AW","8VM70DOM0541L205HX82GQTS1","0","1","","","","00","X","0","0","",""]
[null,null,null,null,null,null,null,null,null,null,null,null,null,null,null,null,null,null,null,null,null,null,null,null,null,null,null,null,null,null,null,null,null,null,null,null,null,null,null,null,null,null,null,null,null,null,null,null,null,null,null,null,null,null,null,null,null,null,null,null,null,null,null,null,null,null,null,null,null,null,null,null,null,null,null,null,null,null,null,null,null,null,null,null,null,null,null,null,null,null,null,null,null,null,null,null,null,null,null,null,null,null,null,null,null,null,null,null,null,null,5,"0SHIP_TO","CHCUSRV30","CU - SM noVisits","0000","X","","0","0","","","",null,null,null,null,null,null,null,null,5,"DVU9TNJ1YQRJK3TUN9CHPH0AW","DLW9P54P4AT0OYHVG7ZL1IM5E","0","1","","","","00","X","0","0","",""]
[null,null,null,null,null,null,null,null,null,null,null,null,null,null,null,null,null,null,null,null,null,null,null,null,null,null,null,null,null,null,null,null,null,null,null,null,null,null,null,null,null,null,null,null,null,null,null,null,null,null,null,null,null,null,null,null,null,null,null,null,null,null,null,null,null,null,null,null,null,null,null,null,null,null,null,null,null,null,null,null,null,null,null,null,null,null,null,null,null,null,null,null,null,null,null,null,null,null,null,null,null,null,null,null,null,null,null,null,null,null,5,"0STOR_LOC","CHDISCHAN","Dist. Chan. (Plant)","0000","X","","0","0","","","",null,null,null,null,null,null,null,null,5,"DZX7TY4YPKA1MXHB5MJKWVCSC","9VEXAVKBGLVPRM2LYAWT8O2BM","0","1","","","","00","X","0","0","",""]
[null,null,null,null,null,null,null,null,null,null,null,null,null,null,null,null,null,null,null,null,null,null,null,null,null,null,null,null,null,null,null,null,null,null,null,null,null,null,null,null,null,null,null,null,null,null,null,null,null,null,null,null,null,null,null,null,null,null,null,null,null,null,null,null,null,null,null,null,null,null,null,null,null,null,null,null,null,null,null,null,null,null,null,null,null,null,null,null,null,null,null,null,null,null,null,null,null,null,null,null,null,null,null,null,null,null,null,null,null,null,5,"0MATERIAL","0AF_GRID","AFS Grid","0000","X","","0","0","","","",null,null,null,null,null,null,null,null,5,"DZX7TY4YPKA1MXHB5MJKWVCSC","DLW9P54P4AT0OYHVG7ZL1IM5E","0","1","","","","00","X","0","0","",""]
[null,null,null,null,null,null,null,null,null,null,null,null,null,null,null,null,null,null,null,null,null,null,null,null,null,null,null,null,null,null,null,null,null,null,null,null,null,null,null,null,null,null,null,null,null,null,null,null,null,null,null,null,null,null,null,null,null,null,null,null,null,null,null,null,null,null,null,null,null,null,null,null,null,null,null,null,null,null,null,null,null,null,null,null,null,null,null,null,null,null,null,null,null,null,null,null,null,null,null,null,null,null,null,null,null,null,null,null,null,null,5,"0MATERIAL","0BASIC_MATL","Basic material","0000","X","","0","0","","","",null,null,null,null,null,null,null,null,5,"E1KKQC1GPBNM8G9Q2MDF76EAP","8VM70DOM0541L205HX82GQTS1","0","1","","","","00","X","0","0","",""]
[null,null,null,null,null,null,null,null,null,null,null,null,null,null,null,null,null,null,null,null,null,null,null,null,null,null,null,null,null,null,null,null,null,null,null,null,null,null,null,null,null,null,null,null,null,null,null,null,null,null,null,null,null,null,null,null,null,null,null,null,null,null,null,null,null,null,null,null,null,null,null,null,null,null,null,null,null,null,null,null,null,null,null,null,null,null,null,null,null,null,null,null,null,null,null,null,null,null,null,null,null,null,null,null,null,null,null,null,null,null,5,"0MATERIAL","0CONT_UNIT","Content unit","0000","X","","0","0","","","",null,null,null,null,null,null,null,null,5,"E1KKQC1GPBNM8G9Q2MDF76EAP","CB4LNO5UGX170R82X1SKZYXQI","","","","","","00","X","0","0","",""]
[null,null,null,null,null,null,null,null,null,null,null,null,null,null,null,null,null,null,null,null,null,null,null,null,null,null,null,null,null,null,null,null,null,null,null,null,null,null,null,null,null,null,null,null,null,null,null,null,null,null,null,null,null,null,null,null,null,null,null,null,null,null,null,null,null,null,null,null,null,null,null,null,null,null,null,null,null,null,null,null,null,null,null,null,null,null,null,null,null,null,null,null,null,null,null,null,null,null,null,null,null,null,null,null,null,null,null,null,null,null,5,"0MATERIAL","0GROSS_WT","Gross weight","0000","X","","0","0","","","",null,null,null,null,null,null,null,null,5,"E3FJ8ERLJU845UJO3V3FXN76J","8VM70DOM0541L205HX82GQTS1","0","1","","","","00","X","0","0","",""]
[null,null,null,null,null,null,null,null,null,null,null,null,null,null,null,null,null,null,null,null,null,null,null,null,null,null,null,null,null,null,null,null,null,null,null,null,null,null,null,null,null,null,null,null,null,null,null,null,null,null,null,null,null,null,null,null,null,null,null,null,null,null,null,null,null,null,null,null,null,null,null,null,null,null,null,null,null,null,null,null,null,null,null,null,null,null,null,null,null,null,null,null,null,null,null,null,null,null,null,null,null,null,null,null,null,null,null,null,null,null,5,"0MATERIAL","0MANU_MATNR","Manufacturer Part Number","0000","X","","0","0","","","",null,null,null,null,null,null,null,null,5,"E3FJ8ERLJU845UJO3V3FXN76J","CLLNFQKTMRYLVSUHUSN173QAV","","","","","","00","X","0","0","",""]
[null,null,null,null,null,null,null,null,null,null,null,null,null,null,null,null,null,null,null,null,null,null,null,null,null,null,null,null,null,null,null,null,null,null,null,null,null,null,null,null,null,null,null,null,null,null,null,null,null,null,null,null,null,null,null,null,null,null,null,null,null,null,null,null,null,null,null,null,null,null,null,null,null,null,null,null,null,null,null,null,null,null,null,null,null,null,null,null,null,null,null,null,null,null,null,null,null,null,null,null,null,null,null,null,null,null,null,null,null,null,5,"0MATERIAL","0MATL_CAT","Material category","0000","X","","0","0","","","",null,null,null,null,null,null,null,null,5,"E3FJ8ERLJU845UJO3V3FXN76J","D3T5FYJK7PWFTR9ZIOUJLTV60","0","1","","","","00","X","0","0","",""]
[null,null,null,null,null,null,null,null,null,null,null,null,null,null,null,null,null,null,null,null,null,null,null,null,null,null,null,null,null,null,null,null,null,null,null,null,null,null,null,null,null,null,null,null,null,null,null,null,null,null,null,null,null,null,null,null,null,null,null,null,null,null,null,null,null,null,null,null,null,null,null,null,null,null,null,null,null,null,null,null,null,null,null,null,null,null,null,null,null,null,null,null,null,null,null,null,null,null,null,null,null,null,null,null,null,null,null,null,null,null,5,"0MATERIAL","0NET_CONT","Net contents","0000","X","","0","0","","","",null,null,null,null,null,null,null,null,5,"E9E64DW2H5TW5C821HZU4B4RO","85T7YQIWK1QB9ILJLJ1SQZN8J","0","1","","","","00","X","0","0","",""]
[null,null,null,null,null,null,null,null,null,null,null,null,null,null,null,null,null,null,null,null,null,null,null,null,null,null,null,null,null,null,null,null,null,null,null,null,null,null,null,null,null,null,null,null,null,null,null,null,null,null,null,null,null,null,null,null,null,null,null,null,null,null,null,null,null,null,null,null,null,null,null,null,null,null,null,null,null,null,null,null,null,null,null,null,null,null,null,null,null,null,null,null,null,null,null,null,null,null,null,null,null,null,null,null,null,null,null,null,null,null,5,"0MATERIAL","0RT_SEASON","Season","0000","X","","0","0","","","",null,null,null,null,null,null,null,null,5,"E9E64DW2H5TW5C821HZU4B4RO","DLW9P54P4AT0OYHVG7ZL1IM5E","0","1","","","","00","X","0","0","",""]
[null,null,null,null,null,null,null,null,null,null,null,null,null,null,null,null,null,null,null,null,null,null,null,null,null,null,null,null,null,null,null,null,null,null,null,null,null,null,null,null,null,null,null,null,null,null,null,null,null,null,null,null,null,null,null,null,null,null,null,null,null,null,null,null,null,null,null,null,null,null,null,null,null,null,null,null,null,null,null,null,null,null,null,null,null,null,null,null,null,null,null,null,null,null,null,null,null,null,null,null,null,null,null,null,null,null,null,null,null,null,5,"0MATERIAL","0RT_SUPS","Source of Supply","0000","X","","0","0","","","",null,null,null,null,null,null,null,null,5,"EAYTKKPI5LLOOQDFMTH1E15VF","40OMIIL7VXC390GHTHLXLN24I","","2","","","","00","X","0","0","",""]
[null,null,null,null,null,null,null,null,null,null,null,null,null,null,null,null,null,null,null,null,null,null,null,null,null,null,null,null,null,null,null,null,null,null,null,null,null,null,null,null,null,null,null,null,null,null,null,null,null,null,null,null,null,null,null,null,null,null,null,null,null,null,null,null,null,null,null,null,null,null,null,null,null,null,null,null,null,null,null,null,null,null,null,null,null,null,null,null,null,null,null,null,null,null,null,null,null,null,null,null,null,null,null,null,null,null,null,null,null,null,5,"0MATERIAL","0UCFUNCCLAS","Function Class","0000","X","","0","0","","","",null,null,null,null,null,null,null,null,5,"EAYTKKPI5LLOOQDFMTH1E15VF","CB4LNO5UGX170R82X1SKZYXQI","","2","","","","00","X","0","0","",""]
[null,null,null,null,null,null,null,null,null,null,null,null,null,null,null,null,null,null,null,null,null,null,null,null,null,null,null,null,null,null,null,null,null,null,null,null,null,null,null,null,null,null,null,null,null,null,null,null,null,null,null,null,null,null,null,null,null,null,null,null,null,null,null,null,null,null,null,null,null,null,null,null,null,null,null,null,null,null,null,null,null,null,null,null,null,null,null,null,null,null,null,null,null,null,null,null,null,null,null,null,null,null,null,null,null,null,null,null,null,null,5,"0MATERIAL","CHCATSTRU","AFS Category Structu","0000","X","","0","0","","","",null,null,null,null,null,null,null,null,5,"EE2F0EO3F4TR8X88MYRIJC69T","40OMIIL7VXC390GHTHLXLN24I","","","","","","00","X","0","0","",""]
[null,null,null,null,null,null,null,null,null,null,null,null,null,null,null,null,null,null,null,null,null,null,null,null,null,null,null,null,null,null,null,null,null,null,null,null,null,null,null,null,null,null,null,null,null,null,null,null,null,null,null,null,null,null,null,null,null,null,null,null,null,null,null,null,null,null,null,null,null,null,null,null,null,null,null,null,null,null,null,null,null,null,null,null,null,null,null,null,null,null,null,null,null,null,null,null,null,null,null,null,null,null,null,null,null,null,null,null,null,null,5,"0MATERIAL","CHGRID_D3","AFS Grid Dimension 3","0000","X","","0","0","","","",null,null,null,null,null,null,null,null,5,"EE2F0EO3F4TR8X88MYRIJC69T","CLLNFQKTMRYLVSUHUSN173QAV","","","","","","00","X","0","0","",""]
[null,null,null,null,null,null,null,null,null,null,null,null,null,null,null,null,null,null,null,null,null,null,null,null,null,null,null,null,null,null,null,null,null,null,null,null,null,null,null,null,null,null,null,null,null,null,null,null,null,null,null,null,null,null,null,null,null,null,null,null,null,null,null,null,null,null,null,null,null,null,null,null,null,null,null,null,null,null,null,null,null,null,null,null,null,null,null,null,null,null,null,null,null,null,null,null,null,null,null,null,null,null,null,null,null,null,null,null,null,null,5,"0MATERIAL","CHPGBRAND","Brand","0000","X","","0","0","","","",null,null,null,null,null,null,null,null,5,"EK035X7VEQYJPDWIQ6JCMKQHJ","85T7YQIWK1QB9ILJLJ1SQZN8J","","","","","","00","X","0","0","",""]
[null,null,null,null,null,null,null,null,null,null,null,null,null,null,null,null,null,null,null,null,null,null,null,null,null,null,null,null,null,null,null,null,null,null,null,null,null,null,null,null,null,null,null,null,null,null,null,null,null,null,null,null,null,null,null,null,null,null,null,null,null,null,null,null,null,null,null,null,null,null,null,null,null,null,null,null,null,null,null,null,null,null,null,null,null,null,null,null,null,null,null,null,null,null,null,null,null,null,null,null,null,null,null,null,null,null,null,null,null,null,5,"0MATERIAL","CHPGLINE","Product Line","0000","X","","0","0","","","",null,null,null,null,null,null,null,null,5,"EK035X7VEQYJPDWIQ6JCMKQHJ","A4CNQYIEI3A4SAZQW9RFY18NV","","","","","","00","X","0","0","",""]
[null,null,null,null,null,null,null,null,null,null,null,null,null,null,null,null,null,null,null,null,null,null,null,null,null,null,null,null,null,null,null,null,null,null,null,null,null,null,null,null,null,null,null,null,null,null,null,null,null,null,null,null,null,null,null,null,null,null,null,null,null,null,null,null,null,null,null,null,null,null,null,null,null,null,null,null,null,null,null,null,null,null,null,null,null,null,null,null,null,null,null,null,null,null,null,null,null,null,null,null,null,null,null,null,null,null,null,null,null,null,5,"0MATERIAL","CHPGSUBSE","Sub-Segment","0000","X","","0","0","","","",null,null,null,null,null,null,null,null,5,"EK035X7VEQYJPDWIQ6JCMKQHJ","DLW9P54P4AT0OYHVG7ZL1IM5E","0","1","","","","00","X","0","0","",""]
[null,null,null,null,null,null,null,null,null,null,null,null,null,null,null,null,null,null,null,null,null,null,null,null,null,null,null,null,null,null,null,null,null,null,null,null,null,null,null,null,null,null,null,null,null,null,null,null,null,null,null,null,null,null,null,null,null,null,null,null,null,null,null,null,null,null,null,null,null,null,null,null,null,null,null,null,null,null,null,null,null,null,null,null,null,null,null,null,null,null,null,null,null,null,null,null,null,null,null,null,null,null,null,null,null,null,null,null,null,null,5,"0MATERIAL","CHUSAGE","Usage","0000","X","","0","0","","","",null,null,null,null,null,null,null,null,5,"F3M56BBH87I3POUTTE692V0SE","A4CNQYIEI3A4SAZQW9RFY18NV","","","","","","00","X","0","0","",""]
[null,null,null,null,null,null,null,null,null,null,null,null,null,null,null,null,null,null,null,null,null,null,null,null,null,null,null,null,null,null,null,null,null,null,null,null,null,null,null,null,null,null,null,null,null,null,null,null,null,null,null,null,null,null,null,null,null,null,null,null,null,null,null,null,null,null,null,null,null,null,null,null,null,null,null,null,null,null,null,null,null,null,null,null,null,null,null,null,null,null,null,null,null,null,null,null,null,null,null,null,null,null,null,null,null,null,null,null,null,null,5,"0MAT_SALES","0BASE_UOM","Base Unit","0000","X","","0","0","","","",null,null,null,null,null,null,null,null,4,"042N13AJJDL9ZIZ9M827VFW77","0XOUE3TQ85XCLNJ97LK4N131O","","","","","","00","X","0","0","",""]
[null,null,null,null,null,null,null,null,null,null,null,null,null,null,null,null,null,null,null,null,null,null,null,null,null,null,null,null,null,null,null,null,null,null,null,null,null,null,null,null,null,null,null,null,null,null,null,null,null,null,null,null,null,null,null,null,null,null,null,null,null,null,null,null,null,null,null,null,null,null,null,null,null,null,null,null,null,null,null,null,null,null,null,null,null,null,null,null,null,null,null,null,null,null,null,null,null,null,null,null,null,null,null,null,null,null,null,null,null,null,5,"0MAT_SALES","0DEL_FLAG","Deletion flag","0000","X","","0","0","","","",null,null,null,null,null,null,null,null,4,"042N13AJJDL9ZIZ9M827VFW77","40OMIIL7VXC390GHTHLXLN24I","","","","","","00","X","0","0","",""]
[null,null,null,null,null,null,null,null,null,null,null,null,null,null,null,null,null,null,null,null,null,null,null,null,null,null,null,null,null,null,null,null,null,null,null,null,null,null,null,null,null,null,null,null,null,null,null,null,null,null,null,null,null,null,null,null,null,null,null,null,null,null,null,null,null,null,null,null,null,null,null,null,null,null,null,null,null,null,null,null,null,null,null,null,null,null,null,null,null,null,null,null,null,null,null,null,null,null,null,null,null,null,null,null,null,null,null,null,null,null,5,"0MAT_SALES","0PH_REFNR","Pharma Central No.","0000","X","","0","0","","","",null,null,null,null,null,null,null,null,4,"042N13AJJDL9ZIZ9M827VFW77","DLW9P54P4AT0OYHVG7ZL1IM5E","0","1","","","","00","X","0","0","",""]
[null,null,null,null,null,null,null,null,null,null,null,null,null,null,null,null,null,null,null,null,null,null,null,null,null,null,null,null,null,null,null,null,null,null,null,null,null,null,null,null,null,null,null,null,null,null,null,null,null,null,null,null,null,null,null,null,null,null,null,null,null,null,null,null,null,null,null,null,null,null,null,null,null,null,null,null,null,null,null,null,null,null,null,null,null,null,null,null,null,null,null,null,null,null,null,null,null,null,null,null,null,null,null,null,null,null,null,null,null,null,5,"0MAT_SALES","0PROV_GROUP","Commission grp","0000","X","","0","0","","","",null,null,null,null,null,null,null,null,4,"06NAHOMZG40HMPJ8PUOAMHG5H","85T7YQIWK1QB9ILJLJ1SQZN8J","","","","","","00","X","0","0","",""]
[null,null,null,null,null,null,null,null,null,null,null,null,null,null,null,null,null,null,null,null,null,null,null,null,null,null,null,null,null,null,null,null,null,null,null,null,null,null,null,null,null,null,null,null,null,null,null,null,null,null,null,null,null,null,null,null,null,null,null,null,null,null,null,null,null,null,null,null,null,null,null,null,null,null,null,null,null,null,null,null,null,null,null,null,null,null,null,null,null,null,null,null,null,null,null,null,null,null,null,null,null,null,null,null,null,null,null,null,null,null,5,"0MAT_SALES","0RT_ASSGRAD","Assortment Grade","0000","X","","0","0","","","",null,null,null,null,null,null,null,null,4,"06NAHOMZG40HMPJ8PUOAMHG5H","9VEXAVKBGLVPRM2LYAWT8O2BM","0","1","","","","00","X","0","0","",""]
[null,null,null,null,null,null,null,null,null,null,null,null,null,null,null,null,null,null,null,null,null,null,null,null,null,null,null,null,null,null,null,null,null,null,null,null,null,null,null,null,null,null,null,null,null,null,null,null,null,null,null,null,null,null,null,null,null,null,null,null,null,null,null,null,null,null,null,null,null,null,null,null,null,null,null,null,null,null,null,null,null,null,null,null,null,null,null,null,null,null,null,null,null,null,null,null,null,null,null,null,null,null,null,null,null,null,null,null,null,null,5,"0MAT_SALES","CHPGSEG","Segment","0000","X","","0","0","","","",null,null,null,null,null,null,null,null,4,"06NAHOMZG40HMPJ8PUOAMHG5H","DLW9P54P4AT0OYHVG7ZL1IM5E","0","1","","","","00","X","0","0","",""]
[null,null,null,null,null,null,null,null,null,null,null,null,null,null,null,null,null,null,null,null,null,null,null,null,null,null,null,null,null,null,null,null,null,null,null,null,null,null,null,null,null,null,null,null,null,null,null,null,null,null,null,null,null,null,null,null,null,null,null,null,null,null,null,null,null,null,null,null,null,null,null,null,null,null,null,null,null,null,null,null,null,null,null,null,null,null,null,null,null,null,null,null,null,null,null,null,null,null,null,null,null,null,null,null,null,null,null,null,null,null,5,"0ITEM_CATEG","CHCONSCRE","Cons. / Credit Sales","0000","X","","0","0","","","",null,null,null,null,null,null,null,null,4,"0OLHUTJRDZX91NEY0RDIJDQ9L","9VEXAVKBGLVPRM2LYAWT8O2BM","0","1","","","","00","X","0","0","",""]
[null,null,null,null,null,null,null,null,null,null,null,null,null,null,null,null,null,null,null,null,null,null,null,null,null,null,null,null,null,null,null,null,null,null,null,null,null,null,null,null,null,null,null,null,null,null,null,null,null,null,null,null,null,null,null,null,null,null,null,null,null,null,null,null,null,null,null,null,null,null,null,null,null,null,null,null,null,null,null,null,null,null,null,null,null,null,null,null,null,null,null,null,null,null,null,null,null,null,null,null,null,null,null,null,null,null,null,null,null,null,5,"0PAYER","0AF_CUSTID","Cust.ID Partnersyst.","0000","X","","0","0","","","",null,null,null,null,null,null,null,null,4,"18TMJFNY1EVHPJ8EOEUJK2P16","0XOUE3TQ85XCLNJ97LK4N131O","","","","","","00","X","0","0","",""]
[null,null,null,null,null,null,null,null,null,null,null,null,null,null,null,null,null,null,null,null,null,null,null,null,null,null,null,null,null,null,null,null,null,null,null,null,null,null,null,null,null,null,null,null,null,null,null,null,null,null,null,null,null,null,null,null,null,null,null,null,null,null,null,null,null,null,null,null,null,null,null,null,null,null,null,null,null,null,null,null,null,null,null,null,null,null,null,null,null,null,null,null,null,null,null,null,null,null,null,null,null,null,null,null,null,null,null,null,null,null,5,"0PAYER","0CITY_2","CAM: City District","0000","X","","0","0","","","",null,null,null,null,null,null,null,null,4,"18TMJFNY1EVHPJ8EOEUJK2P16","A4CNQYIEI3A4SAZQW9RFY18NV","","","","","","00","X","0","0","",""]
[null,null,null,null,null,null,null,null,null,null,null,null,null,null,null,null,null,null,null,null,null,null,null,null,null,null,null,null,null,null,null,null,null,null,null,null,null,null,null,null,null,null,null,null,null,null,null,null,null,null,null,null,null,null,null,null,null,null,null,null,null,null,null,null,null,null,null,null,null,null,null,null,null,null,null,null,null,null,null,null,null,null,null,null,null,null,null,null,null,null,null,null,null,null,null,null,null,null,null,null,null,null,null,null,null,null,null,null,null,null,5,"0PAYER","0CUST_MKT","Customer Market","0000","X","","0","0","","","",null,null,null,null,null,null,null,null,4,"18TMJFNY1EVHPJ8EOEUJK2P16","D3T5FYJK7PWFTR9ZIOUJLTV60","0","1","","","","00","X","0","0","",""]
[null,null,null,null,null,null,null,null,null,null,null,null,null,null,null,null,null,null,null,null,null,null,null,null,null,null,null,null,null,null,null,null,null,null,null,null,null,null,null,null,null,null,null,null,null,null,null,null,null,null,null,null,null,null,null,null,null,null,null,null,null,null,null,null,null,null,null,null,null,null,null,null,null,null,null,null,null,null,null,null,null,null,null,null,null,null,null,null,null,null,null,null,null,null,null,null,null,null,null,null,null,null,null,null,null,null,null,null,null,null,5,"0PAYER","0FAX_NUM","Fax Number","0000","X","","0","0","","","",null,null,null,null,null,null,null,null,4,"2SZSALJ9IGVAXXL91ZLR2M70B","85T7YQIWK1QB9ILJLJ1SQZN8J","","","","","","00","X","0","0","",""]
[null,null,null,null,null,null,null,null,null,null,null,null,null,null,null,null,null,null,null,null,null,null,null,null,null,null,null,null,null,null,null,null,null,null,null,null,null,null,null,null,null,null,null,null,null,null,null,null,null,null,null,null,null,null,null,null,null,null,null,null,null,null,null,null,null,null,null,null,null,null,null,null,null,null,null,null,null,null,null,null,null,null,null,null,null,null,null,null,null,null,null,null,null,null,null,null,null,null,null,null,null,null,null,null,null,null,null,null,null,null,5,"0PAYER","0IND_CODE_2","Industry Code 2","0000","X","","0","0","","","",null,null,null,null,null,null,null,null,4,"2SZSALJ9IGVAXXL91ZLR2M70B","D3T5FYJK7PWFTR9ZIOUJLTV60","0","1","","","","00","X","0","0","",""]
[null,null,null,null,null,null,null,null,null,null,null,null,null,null,null,null,null,null,null,null,null,null,null,null,null,null,null,null,null,null,null,null,null,null,null,null,null,null,null,null,null,null,null,null,null,null,null,null,null,null,null,null,null,null,null,null,null,null,null,null,null,null,null,null,null,null,null,null,null,null,null,null,null,null,null,null,null,null,null,null,null,null,null,null,null,null,null,null,null,null,null,null,null,null,null,null,null,null,null,null,null,null,null,null,null,null,null,null,null,null,5,"0PAYER","0LANGU","Language key","0000","X","","0","0","","","",null,null,null,null,null,null,null,null,4,"2YUYCV5ALLOO8OBJH2BWMFFWE","8VM70DOM0541L205HX82GQTS1","0","1","","","","00","X","0","0","",""]
[null,null,null,null,null,null,null,null,null,null,null,null,null,null,null,null,null,null,null,null,null,null,null,null,null,null,null,null,null,null,null,null,null,null,null,null,null,null,null,null,null,null,null,null,null,null,null,null,null,null,null,null,null,null,null,null,null,null,null,null,null,null,null,null,null,null,null,null,null,null,null,null,null,null,null,null,null,null,null,null,null,null,null,null,null,null,null,null,null,null,null,null,null,null,null,null,null,null,null,null,null,null,null,null,null,null,null,null,null,null,5,"0PAYER","0LATITUDE","Latitude","0000","X","","0","0","","","",null,null,null,null,null,null,null,null,4,"2YUYCV5ALLOO8OBJH2BWMFFWE","9VEXAVKBGLVPRM2LYAWT8O2BM","0","1","","","","00","X","0","0","",""]
[null,null,null,null,null,null,null,null,null,null,null,null,null,null,null,null,null,null,null,null,null,null,null,null,null,null,null,null,null,null,null,null,null,null,null,null,null,null,null,null,null,null,null,null,null,null,null,null,null,null,null,null,null,null,null,null,null,null,null,null,null,null,null,null,null,null,null,null,null,null,null,null,null,null,null,null,null,null,null,null,null,null,null,null,null,null,null,null,null,null,null,null,null,null,null,null,null,null,null,null,null,null,null,null,null,null,null,null,null,null,5,"0PAYER","0PCOMPANY","Trading partner","0000","X","","0","0","","","",null,null,null,null,null,null,null,null,4,"3EJEUPB6ZMLP0NMQQDYFPRSMQ","85T7YQIWK1QB9ILJLJ1SQZN8J","","","","","","00","X","0","0","",""]
[null,null,null,null,null,null,null,null,null,null,null,null,null,null,null,null,null,null,null,null,null,null,null,null,null,null,null,null,null,null,null,null,null,null,null,null,null,null,null,null,null,null,null,null,null,null,null,null,null,null,null,null,null,null,null,null,null,null,null,null,null,null,null,null,null,null,null,null,null,null,null,null,null,null,null,null,null,null,null,null,null,null,null,null,null,null,null,null,null,null,null,null,null,null,null,null,null,null,null,null,null,null,null,null,null,null,null,null,null,null,5,"0PAYER","0POBOX","P.O. Box","0000","X","","0","0","","","",null,null,null,null,null,null,null,null,4,"3EJEUPB6ZMLP0NMQQDYFPRSMQ","A4CNQYIEI3A4SAZQW9RFY18NV","","","","","","00","X","0","0","",""]
[null,null,null,null,null,null,null,null,null,null,null,null,null,null,null,null,null,null,null,null,null,null,null,null,null,null,null,null,null,null,null,null,null,null,null,null,null,null,null,null,null,null,null,null,null,null,null,null,null,null,null,null,null,null,null,null,null,null,null,null,null,null,null,null,null,null,null,null,null,null,null,null,null,null,null,null,null,null,null,null,null,null,null,null,null,null,null,null,null,null,null,null,null,null,null,null,null,null,null,null,null,null,null,null,null,null,null,null,null,null,5,"0PAYER","0POSTAL_CD","Postal Code","0000","X","","0","0","","","",null,null,null,null,null,null,null,null,4,"3EJEUPB6ZMLP0NMQQDYFPRSMQ","CLLNFQKTMRYLVSUHUSN173QAV","","","","","","00","X","0","0","",""]
[null,null,null,null,null,null,null,null,null,null,null,null,null,null,null,null,null,null,null,null,null,null,null,null,null,null,null,null,null,null,null,null,null,null,null,null,null,null,null,null,null,null,null,null,null,null,null,null,null,null,null,null,null,null,null,null,null,null,null,null,null,null,null,null,null,null,null,null,null,null,null,null,null,null,null,null,null,null,null,null,null,null,null,null,null,null,null,null,null,null,null,null,null,null,null,null,null,null,null,null,null,null,null,null,null,null,null,null,null,null,5,"0PAYER","0SORTL","Sort Field","0000","X","","0","0","","","",null,null,null,null,null,null,null,null,4,"4LO68SM2XLA6M4L9O873WNV6J","85T7YQIWK1QB9ILJLJ1SQZN8J","","","","","","00","X","0","0","",""]
[null,null,null,null,null,null,null,null,null,null,null,null,null,null,null,null,null,null,null,null,null,null,null,null,null,null,null,null,null,null,null,null,null,null,null,null,null,null,null,null,null,null,null,null,null,null,null,null,null,null,null,null,null,null,null,null,null,null,null,null,null,null,null,null,null,null,null,null,null,null,null,null,null,null,null,null,null,null,null,null,null,null,null,null,null,null,null,null,null,null,null,null,null,null,null,null,null,null,null,null,null,null,null,null,null,null,null,null,null,null,5,"0PAYER","0TAX_NUMB2","Tax Number 2","0000","X","","0","0","","","",null,null,null,null,null,null,null,null,4,"4LO68SM2XLA6M4L9O873WNV6J","CB4LNO5UGX170R82X1SKZYXQI","","","","","","00","X","0","0","",""]
[null,null,null,null,null,null,null,null,null,null,null,null,null,null,null,null,null,null,null,null,null,null,null,null,null,null,null,null,null,null,null,null,null,null,null,null,null,null,null,null,null,null,null,null,null,null,null,null,null,null,null,null,null,null,null,null,null,null,null,null,null,null,null,null,null,null,null,null,null,null,null,null,null,null,null,null,null,null,null,null,null,null,null,null,null,null,null,null,null,null,null,null,null,null,null,null,null,null,null,null,null,null,null,null,null,null,null,null,null,null,5,"0PAYER","CHCUABM30","CU - ABM ShopInShop","0000","X","","0","0","","","",null,null,null,null,null,null,null,null,4,"4R3QITW7542YG5L9A6AWGIUSC","8VM70DOM0541L205HX82GQTS1","0","1","","","","00","X","0","0","",""]
[null,null,null,null,null,null,null,null,null,null,null,null,null,null,null,null,null,null,null,null,null,null,null,null,null,null,null,null,null,null,null,null,null,null,null,null,null,null,null,null,null,null,null,null,null,null,null,null,null,null,null,null,null,null,null,null,null,null,null,null,null,null,null,null,null,null,null,null,null,null,null,null,null,null,null,null,null,null,null,null,null,null,null,null,null,null,null,null,null,null,null,null,null,null,null,null,null,null,null,null,null,null,null,null,null,null,null,null,null,null,5,"0PAYER","CHCUABM70","CU - ABM Inhouse FO","0000","X","","0","0","","","",null,null,null,null,null,null,null,null,4,"4R3QITW7542YG5L9A6AWGIUSC","D3T5FYJK7PWFTR9ZIOUJLTV60","0","1","","","","00","X","0","0","",""]
[null,null,null,null,null,null,null,null,null,null,null,null,null,null,null,null,null,null,null,null,null,null,null,null,null,null,null,null,null,null,null,null,null,null,null,null,null,null,null,null,null,null,null,null,null,null,null,null,null,null,null,null,null,null,null,null,null,null,null,null,null,null,null,null,null,null,null,null,null,null,null,null,null,null,null,null,null,null,null,null,null,null,null,null,null,null,null,null,null,null,null,null,null,null,null,null,null,null,null,null,null,null,null,null,null,null,null,null,null,null,5,"0PAYER","CHCUCNSLF","CU - Cent. Sales Frc","0000","X","","0","0","","","",null,null,null,null,null,null,null,null,4,"5U2W4SBET1P1PDUABLYPXBGHB","40OMIIL7VXC390GHTHLXLN24I","","","","","","00","X","0","0","",""]
[null,null,null,null,null,null,null,null,null,null,null,null,null,null,null,null,null,null,null,null,null,null,null,null,null,null,null,null,null,null,null,null,null,null,null,null,null,null,null,null,null,null,null,null,null,null,null,null,null,null,null,null,null,null,null,null,null,null,null,null,null,null,null,null,null,null,null,null,null,null,null,null,null,null,null,null,null,null,null,null,null,null,null,null,null,null,null,null,null,null,null,null,null,null,null,null,null,null,null,null,null,null,null,null,null,null,null,null,null,null,5,"0PAYER","CHCUCUB10","CU - CBus Store","0000","X","","0","0","","","",null,null,null,null,null,null,null,null,4,"5U2W4SBET1P1PDUABLYPXBGHB","A4CNQYIEI3A4SAZQW9RFY18NV","","","","","","00","X","0","0","",""]
[null,null,null,null,null,null,null,null,null,null,null,null,null,null,null,null,null,null,null,null,null,null,null,null,null,null,null,null,null,null,null,null,null,null,null,null,null,null,null,null,null,null,null,null,null,null,null,null,null,null,null,null,null,null,null,null,null,null,null,null,null,null,null,null,null,null,null,null,null,null,null,null,null,null,null,null,null,null,null,null,null,null,null,null,null,null,null,null,null,null,null,null,null,null,null,null,null,null,null,null,null,null,null,null,null,null,null,null,null,null,5,"0PAYER","CHCUFSF20","CU - FSF Area Man.","0000","X","","0","0","","","",null,null,null,null,null,null,null,null,4,"65J5X21CQULHZQURVUFZI8HWN","0XOUE3TQ85XCLNJ97LK4N131O","","2","","","","00","X","0","0","",""]
[null,null,null,null,null,null,null,null,null,null,null,null,null,null,null,null,null,null,null,null,null,null,null,null,null,null,null,null,null,null,null,null,null,null,null,null,null,null,null,null,null,null,null,null,null,null,null,null,null,null,null,null,null,null,null,null,null,null,null,null,null,null,null,null,null,null,null,null,null,null,null,null,null,null,null,null,null,null,null,null,null,null,null,null,null,null,null,null,null,null,null,null,null,null,null,null,null,null,null,null,null,null,null,null,null,null,null,null,null,null,5,"0PAYER","CHCUKEY10","CU - KeyAcc National","0000","X","","0","0","","","",null,null,null,null,null,null,null,null,4,"65J5X21CQULHZQURVUFZI8HWN","CB4LNO5UGX170R82X1SKZYXQI","","2","","","","00","X","0","0","",""]
[null,null,null,null,null,null,null,null,null,null,null,null,null,null,null,null,null,null,null,null,null,null,null,null,null,null,null,null,null,null,null,null,null,null,null,null,null,null,null,null,null,null,null,null,null,null,null,null,null,null,null,null,null,null,null,null,null,null,null,null,null,null,null,null,null,null,null,null,null,null,null,null,null,null,null,null,null,null,null,null,null,null,null,null,null,null,null,null,null,null,null,null,null,null,null,null,null,null,null,null,null,null,null,null,null,null,null,null,null,null,5,"0PAYER","CHCUKEY20","CU - KeyAcc Europe","0000","X","","0","0","","","",null,null,null,null,null,null,null,null,4,"65J5X21CQULHZQURVUFZI8HWN","CLLNFQKTMRYLVSUHUSN173QAV","","2","","","","00","X","0","0","",""]
[null,null,null,null,null,null,null,null,null,null,null,null,null,null,null,null,null,null,null,null,null,null,null,null,null,null,null,null,null,null,null,null,null,null,null,null,null,null,null,null,null,null,null,null,null,null,null,null,null,null,null,null,null,null,null,null,null,null,null,null,null,null,null,null,null,null,null,null,null,null,null,null,null,null,null,null,null,null,null,null,null,null,null,null,null,null,null,null,null,null,null,null,null,null,null,null,null,null,null,null,null,null,null,null,null,null,null,null,null,null,5,"0PAYER","CHCUPOSLC","CU - POS Location","0000","X","","0","0","","","",null,null,null,null,null,null,null,null,4,"6781H30EC66VV0IURX8EUG44C","9VEXAVKBGLVPRM2LYAWT8O2BM","0","2","","","","00","X","0","0","",""]
[null,null,null,null,null,null,null,null,null,null,null,null,null,null,null,null,null,null,null,null,null,null,null,null,null,null,null,null,null,null,null,null,null,null,null,null,null,null,null,null,null,null,null,null,null,null,null,null,null,null,null,null,null,null,null,null,null,null,null,null,null,null,null,null,null,null,null,null,null,null,null,null,null,null,null,null,null,null,null,null,null,null,null,null,null,null,null,null,null,null,null,null,null,null,null,null,null,null,null,null,null,null,null,null,null,null,null,null,null,null,5,"0PAYER","CHCUSLSCH","CU - Sales Channel","0000","X","","0","0","","","",null,null,null,null,null,null,null,null,4,"6781H30EC66VV0IURX8EUG44C","D3T5FYJK7PWFTR9ZIOUJLTV60","0","2","","","","00","X","0","0","",""]
[null,null,null,null,null,null,null,null,null,null,null,null,null,null,null,null,null,null,null,null,null,null,null,null,null,null,null,null,null,null,null,null,null,null,null,null,null,null,null,null,null,null,null,null,null,null,null,null,null,null,null,null,null,null,null,null,null,null,null,null,null,null,null,null,null,null,null,null,null,null,null,null,null,null,null,null,null,null,null,null,null,null,null,null,null,null,null,null,null,null,null,null,null,null,null,null,null,null,null,null,null,null,null,null,null,null,null,null,null,null,5,"0PAYER","CHCUTRA20","CU - AT Consign","0000","X","","0","0","","","",null,null,null,null,null,null,null,null,4,"7R6MCXJ9N6Z9QNVWZ48UAWW0Y","9VEXAVKBGLVPRM2LYAWT8O2BM","0","1","","","","00","X","0","0","",""]
[null,null,null,null,null,null,null,null,null,null,null,null,null,null,null,null,null,null,null,null,null,null,null,null,null,null,null,null,null,null,null,null,null,null,null,null,null,null,null,null,null,null,null,null,null,null,null,null,null,null,null,null,null,null,null,null,null,null,null,null,null,null,null,null,null,null,null,null,null,null,null,null,null,null,null,null,null,null,null,null,null,null,null,null,null,null,null,null,null,null,null,null,null,null,null,null,null,null,null,null,null,null,null,null,null,null,null,null,null,null,5,"0PAYER","CHNAME4","Name 4","0000","X","","0","0","","","",null,null,null,null,null,null,null,null,4,"7R6MCXJ9N6Z9QNVWZ48UAWW0Y","A4CNQYIEI3A4SAZQW9RFY18NV","0","1","","","","00","X","0","0","",""]
[null,null,null,null,null,null,null,null,null,null,null,null,null,null,null,null,null,null,null,null,null,null,null,null,null,null,null,null,null,null,null,null,null,null,null,null,null,null,null,null,null,null,null,null,null,null,null,null,null,null,null,null,null,null,null,null,null,null,null,null,null,null,null,null,null,null,null,null,null,null,null,null,null,null,null,null,null,null,null,null,null,null,null,null,null,null,null,null,null,null,null,null,null,null,null,null,null,null,null,null,null,null,null,null,null,null,null,null,null,null,5,"CHSALSRE2","0COUNTRY","Country","0000","X","","0","0","","","",null,null,null,null,null,null,null,null,4,"7R6MCXJ9N6Z9QNVWZ48UAWW0Y","DLW9P54P4AT0OYHVG7ZL1IM5E","0","1","","","","00","X","0","0","",""]
[null,null,null,null,null,null,null,null,null,null,null,null,null,null,null,null,null,null,null,null,null,null,null,null,null,null,null,null,null,null,null,null,null,null,null,null,null,null,null,null,null,null,null,null,null,null,null,null,null,null,null,null,null,null,null,null,null,null,null,null,null,null,null,null,null,null,null,null,null,null,null,null,null,null,null,null,null,null,null,null,null,null,null,null,null,null,null,null,null,null,null,null,null,null,null,null,null,null,null,null,null,null,null,null,null,null,null,null,null,null,5,"CHSALSRE2","0IND_CODE_4","Industry Code 4","0000","X","","0","0","","","",null,null,null,null,null,null,null,null,4,"7W9DIFXSPC3TAEHE0QJ9NMQVF","CB4LNO5UGX170R82X1SKZYXQI","","","","","","00","X","0","0","",""]
[null,null,null,null,null,null,null,null,null,null,null,null,null,null,null,null,null,null,null,null,null,null,null,null,null,null,null,null,null,null,null,null,null,null,null,null,null,null,null,null,null,null,null,null,null,null,null,null,null,null,null,null,null,null,null,null,null,null,null,null,null,null,null,null,null,null,null,null,null,null,null,null,null,null,null,null,null,null,null,null,null,null,null,null,null,null,null,null,null,null,null,null,null,null,null,null,null,null,null,null,null,null,null,null,null,null,null,null,null,null,5,"CHSALSRE2","0NAME2","Name 2","0000","X","","0","0","","","",null,null,null,null,null,null,null,null,4,"85QVA7GC0N47FZKDS2VNLBCSY","40OMIIL7VXC390GHTHLXLN24I","","2","","","","00","X","0","0","",""]
[null,null,null,null,null,null,null,null,null,null,null,null,null,null,null,null,null,null,null,null,null,null,null,null,null,null,null,null,null,null,null,null,null,null,null,null,null,null,null,null,null,null,null,null,null,null,null,null,null,null,null,null,null,null,null,null,null,null,null,null,null,null,null,null,null,null,null,null,null,null,null,null,null,null,null,null,null,null,null,null,null,null,null,null,null,null,null,null,null,null,null,null,null,null,null,null,null,null,null,null,null,null,null,null,null,null,null,null,null,null,5,"CHSALSRE2","0PHONE","Telephone 1","0000","X","","0","0","","","",null,null,null,null,null,null,null,null,4,"85QVA7GC0N47FZKDS2VNLBCSY","8VM70DOM0541L205HX82GQTS1","0","2","","","","00","X","0","0","",""]
[null,null,null,null,null,null,null,null,null,null,null,null,null,null,null,null,null,null,null,null,null,null,null,null,null,null,null,null,null,null,null,null,null,null,null,null,null,null,null,null,null,null,null,null,null,null,null,null,null,null,null,null,null,null,null,null,null,null,null,null,null,null,null,null,null,null,null,null,null,null,null,null,null,null,null,null,null,null,null,null,null,null,null,null,null,null,null,null,null,null,null,null,null,null,null,null,null,null,null,null,null,null,null,null,null,null,null,null,null,null,5,"CHSALSRE2","0POSTCD_GIS","CAM:PstCde(Geo-Rel.)","0000","X","","0","0","","","",null,null,null,null,null,null,null,null,4,"85QVA7GC0N47FZKDS2VNLBCSY","D3T5FYJK7PWFTR9ZIOUJLTV60","0","2","","","","00","X","0","0","",""]
[null,null,null,null,null,null,null,null,null,null,null,null,null,null,null,null,null,null,null,null,null,null,null,null,null,null,null,null,null,null,null,null,null,null,null,null,null,null,null,null,null,null,null,null,null,null,null,null,null,null,null,null,null,null,null,null,null,null,null,null,null,null,null,null,null,null,null,null,null,null,null,null,null,null,null,null,null,null,null,null,null,null,null,null,null,null,null,null,null,null,null,null,null,null,null,null,null,null,null,null,null,null,null,null,null,null,null,null,null,null,5,"CHCATALOG","0ACCNT_GRP","Account group","0000","X","","0","0","","","",null,null,null,null,null,null,null,null,4,"888ZW3EWP6IVG72YG9WNEMSST","8VM70DOM0541L205HX82GQTS1","0","1","","","","00","X","0","0","",""]
[null,null,null,null,null,null,null,null,null,null,null,null,null,null,null,null,null,null,null,null,null,null,null,null,null,null,null,null,null,null,null,null,null,null,null,null,null,null,null,null,null,null,null,null,null,null,null,null,null,null,null,null,null,null,null,null,null,null,null,null,null,null,null,null,null,null,null,null,null,null,null,null,null,null,null,null,null,null,null,null,null,null,null,null,null,null,null,null,null,null,null,null,null,null,null,null,null,null,null,null,null,null,null,null,null,null,null,null,null,null,5,"CHCATALOG","0BPARTNER","Business Partner","0000","X","","0","0","","","",null,null,null,null,null,null,null,null,4,"888ZW3EWP6IVG72YG9WNEMSST","DLW9P54P4AT0OYHVG7ZL1IM5E","0","1","","","","00","X","0","0","",""]
[null,null,null,null,null,null,null,null,null,null,null,null,null,null,null,null,null,null,null,null,null,null,null,null,null,null,null,null,null,null,null,null,null,null,null,null,null,null,null,null,null,null,null,null,null,null,null,null,null,null,null,null,null,null,null,null,null,null,null,null,null,null,null,null,null,null,null,null,null,null,null,null,null,null,null,null,null,null,null,null,null,null,null,null,null,null,null,null,null,null,null,null,null,null,null,null,null,null,null,null,null,null,null,null,null,null,null,null,null,null,5,"CHCATALOG","0CITY","Location","0000","X","","0","0","","","",null,null,null,null,null,null,null,null,4,"8Y8DPBILV38UA3DOTIHLDY6WW","0XOUE3TQ85XCLNJ97LK4N131O","","","","","","00","X","0","0","",""]
[null,null,null,null,null,null,null,null,null,null,null,null,null,null,null,null,null,null,null,null,null,null,null,null,null,null,null,null,null,null,null,null,null,null,null,null,null,null,null,null,null,null,null,null,null,null,null,null,null,null,null,null,null,null,null,null,null,null,null,null,null,null,null,null,null,null,null,null,null,null,null,null,null,null,null,null,null,null,null,null,null,null,null,null,null,null,null,null,null,null,null,null,null,null,null,null,null,null,null,null,null,null,null,null,null,null,null,null,null,null,5,"CHCATALOG","0EMAIL_ADDR","E-Mail Address","0000","X","","0","0","","","",null,null,null,null,null,null,null,null,4,"8Y8DPBILV38UA3DOTIHLDY6WW","CLLNFQKTMRYLVSUHUSN173QAV","","","","","","00","X","0","0","",""]
[null,null,null,null,null,null,null,null,null,null,null,null,null,null,null,null,null,null,null,null,null,null,null,null,null,null,null,null,null,null,null,null,null,null,null,null,null,null,null,null,null,null,null,null,null,null,null,null,null,null,null,null,null,null,null,null,null,null,null,null,null,null,null,null,null,null,null,null,null,null,null,null,null,null,null,null,null,null,null,null,null,null,null,null,null,null,null,null,null,null,null,null,null,null,null,null,null,null,null,null,null,null,null,null,null,null,null,null,null,null,5,"CHCATALOG","0ID_XCPD","One-Time Account","0000","X","","0","0","","","",null,null,null,null,null,null,null,null,4,"9TEW6D5TSN73AJ1KEH06USQ1W","40OMIIL7VXC390GHTHLXLN24I","","","","","","00","X","0","0","",""]
[null,null,null,null,null,null,null,null,null,null,null,null,null,null,null,null,null,null,null,null,null,null,null,null,null,null,null,null,null,null,null,null,null,null,null,null,null,null,null,null,null,null,null,null,null,null,null,null,null,null,null,null,null,null,null,null,null,null,null,null,null,null,null,null,null,null,null,null,null,null,null,null,null,null,null,null,null,null,null,null,null,null,null,null,null,null,null,null,null,null,null,null,null,null,null,null,null,null,null,null,null,null,null,null,null,null,null,null,null,null,5,"CHCATALOG","0IND_CODE_5","Industry Code 5","0000","X","","0","0","","","",null,null,null,null,null,null,null,null,4,"9TEW6D5TSN73AJ1KEH06USQ1W","CLLNFQKTMRYLVSUHUSN173QAV","","","","","","00","X","0","0","",""]
[null,null,null,null,null,null,null,null,null,null,null,null,null,null,null,null,null,null,null,null,null,null,null,null,null,null,null,null,null,null,null,null,null,null,null,null,null,null,null,null,null,null,null,null,null,null,null,null,null,null,null,null,null,null,null,null,null,null,null,null,null,null,null,null,null,null,null,null,null,null,null,null,null,null,null,null,null,null,null,null,null,null,null,null,null,null,null,null,null,null,null,null,null,null,null,null,null,null,null,null,null,null,null,null,null,null,null,null,null,null,5,"CHCATALOG","0KEYACCOUNT","Key Account","0000","X","","0","0","","","",null,null,null,null,null,null,null,null,4,"9TEW6D5TSN73AJ1KEH06USQ1W","D3T5FYJK7PWFTR9ZIOUJLTV60","0","1","","","","00","X","0","0","",""]
[null,null,null,null,null,null,null,null,null,null,null,null,null,null,null,null,null,null,null,null,null,null,null,null,null,null,null,null,null,null,null,null,null,null,null,null,null,null,null,null,null,null,null,null,null,null,null,null,null,null,null,null,null,null,null,null,null,null,null,null,null,null,null,null,null,null,null,null,null,null,null,null,null,null,null,null,null,null,null,null,null,null,null,null,null,null,null,null,null,null,null,null,null,null,null,null,null,null,null,null,null,null,null,null,null,null,null,null,null,null,5,"CHCATALOG","0LONGITUDE","Longitude","0000","X","","0","0","","","",null,null,null,null,null,null,null,null,4,"A5IB8QLI432L5WY0GJC85X7BV","85T7YQIWK1QB9ILJLJ1SQZN8J","","","","","","00","X","0","0","",""]
[null,null,null,null,null,null,null,null,null,null,null,null,null,null,null,null,null,null,null,null,null,null,null,null,null,null,null,null,null,null,null,null,null,null,null,null,null,null,null,null,null,null,null,null,null,null,null,null,null,null,null,null,null,null,null,null,null,null,null,null,null,null,null,null,null,null,null,null,null,null,null,null,null,null,null,null,null,null,null,null,null,null,null,null,null,null,null,null,null,null,null,null,null,null,null,null,null,null,null,null,null,null,null,null,null,null,null,null,null,null,5,"CHCATALOG","0PHONE","Telephone 1","0000","X","","0","0","","","",null,null,null,null,null,null,null,null,4,"A5IB8QLI432L5WY0GJC85X7BV","DLW9P54P4AT0OYHVG7ZL1IM5E","0","1","","","","00","X","0","0","",""]
[null,null,null,null,null,null,null,null,null,null,null,null,null,null,null,null,null,null,null,null,null,null,null,null,null,null,null,null,null,null,null,null,null,null,null,null,null,null,null,null,null,null,null,null,null,null,null,null,null,null,null,null,null,null,null,null,null,null,null,null,null,null,null,null,null,null,null,null,null,null,null,null,null,null,null,null,null,null,null,null,null,null,null,null,null,null,null,null,null,null,null,null,null,null,null,null,null,null,null,null,null,null,null,null,null,null,null,null,null,null,5,"CHCATALOG","0POSTCD_BOX","CAM:POBox PostalCode","0000","X","","0","0","","","",null,null,null,null,null,null,null,null,4,"A6WWZSIB3TPP37GSQPKIEBAZW","9VEXAVKBGLVPRM2LYAWT8O2BM","0","1","","","","00","X","0","0","",""]
[null,null,null,null,null,null,null,null,null,null,null,null,null,null,null,null,null,null,null,null,null,null,null,null,null,null,null,null,null,null,null,null,null,null,null,null,null,null,null,null,null,null,null,null,null,null,null,null,null,null,null,null,null,null,null,null,null,null,null,null,null,null,null,null,null,null,null,null,null,null,null,null,null,null,null,null,null,null,null,null,null,null,null,null,null,null,null,null,null,null,null,null,null,null,null,null,null,null,null,null,null,null,null,null,null,null,null,null,null,null,5,"CHCATALOG","0PRECISID","Geo-precision","0000","X","","0","0","","","",null,null,null,null,null,null,null,null,4,"A6WWZSIB3TPP37GSQPKIEBAZW","CB4LNO5UGX170R82X1SKZYXQI","","","","","","00","X","0","0","",""]
[null,null,null,null,null,null,null,null,null,null,null,null,null,null,null,null,null,null,null,null,null,null,null,null,null,null,null,null,null,null,null,null,null,null,null,null,null,null,null,null,null,null,null,null,null,null,null,null,null,null,null,null,null,null,null,null,null,null,null,null,null,null,null,null,null,null,null,null,null,null,null,null,null,null,null,null,null,null,null,null,null,null,null,null,null,null,null,null,null,null,null,null,null,null,null,null,null,null,null,null,null,null,null,null,null,null,null,null,null,null,5,"CHCATALOG","0TAX_NUMB","Tax code 1","0000","X","","0","0","","","",null,null,null,null,null,null,null,null,4,"ACLMZ5IJHJN9I4CC7W20ZLGCB","40OMIIL7VXC390GHTHLXLN24I","","","","","","00","X","0","0","",""]
[null,null,null,null,null,null,null,null,null,null,null,null,null,null,null,null,null,null,null,null,null,null,null,null,null,null,null,null,null,null,null,null,null,null,null,null,null,null,null,null,null,null,null,null,null,null,null,null,null,null,null,null,null,null,null,null,null,null,null,null,null,null,null,null,null,null,null,null,null,null,null,null,null,null,null,null,null,null,null,null,null,null,null,null,null,null,null,null,null,null,null,null,null,null,null,null,null,null,null,null,null,null,null,null,null,null,null,null,null,null,5,"CHCATALOG","0VISIT_RYT","Call frequency","0000","X","","0","0","","","",null,null,null,null,null,null,null,null,4,"ACLMZ5IJHJN9I4CC7W20ZLGCB","A4CNQYIEI3A4SAZQW9RFY18NV","","","","","","00","X","0","0","",""]
[null,null,null,null,null,null,null,null,null,null,null,null,null,null,null,null,null,null,null,null,null,null,null,null,null,null,null,null,null,null,null,null,null,null,null,null,null,null,null,null,null,null,null,null,null,null,null,null,null,null,null,null,null,null,null,null,null,null,null,null,null,null,null,null,null,null,null,null,null,null,null,null,null,null,null,null,null,null,null,null,null,null,null,null,null,null,null,null,null,null,null,null,null,null,null,null,null,null,null,null,null,null,null,null,null,null,null,null,null,null,5,"CHCATALOG","CHCUABM50","CU - ABM Cooperation","0000","X","","0","0","","","",null,null,null,null,null,null,null,null,4,"AENJZ3D934GNT2TG4C4D2RFJR","85T7YQIWK1QB9ILJLJ1SQZN8J","","2","","","","00","X","0","0","",""]
[null,null,null,null,null,null,null,null,null,null,null,null,null,null,null,null,null,null,null,null,null,null,null,null,null,null,null,null,null,null,null,null,null,null,null,null,null,null,null,null,null,null,null,null,null,null,null,null,null,null,null,null,null,null,null,null,null,null,null,null,null,null,null,null,null,null,null,null,null,null,null,null,null,null,null,null,null,null,null,null,null,null,null,null,null,null,null,null,null,null,null,null,null,null,null,null,null,null,null,null,null,null,null,null,null,null,null,null,null,null,5,"CHCATALOG","CHCUABM60","CU - ABM Outside FO","0000","X","","0","0","","","",null,null,null,null,null,null,null,null,4,"AENJZ3D934GNT2TG4C4D2RFJR","8VM70DOM0541L205HX82GQTS1","0","2","","","","00","X","0","0","",""]
[null,null,null,null,null,null,null,null,null,null,null,null,null,null,null,null,null,null,null,null,null,null,null,null,null,null,null,null,null,null,null,null,null,null,null,null,null,null,null,null,null,null,null,null,null,null,null,null,null,null,null,null,null,null,null,null,null,null,null,null,null,null,null,null,null,null,null,null,null,null,null,null,null,null,null,null,null,null,null,null,null,null,null,null,null,null,null,null,null,null,null,null,null,null,null,null,null,null,null,null,null,null,null,null,null,null,null,null,null,null,5,"CHCATALOG","CHCUCON90","CU - Cons. Serv. No","0000","X","","0","0","","","",null,null,null,null,null,null,null,null,4,"B0LG7LONJDGK964QNMFEHQNBA","0XOUE3TQ85XCLNJ97LK4N131O","","","","","","00","X","0","0","",""]
[null,null,null,null,null,null,null,null,null,null,null,null,null,null,null,null,null,null,null,null,null,null,null,null,null,null,null,null,null,null,null,null,null,null,null,null,null,null,null,null,null,null,null,null,null,null,null,null,null,null,null,null,null,null,null,null,null,null,null,null,null,null,null,null,null,null,null,null,null,null,null,null,null,null,null,null,null,null,null,null,null,null,null,null,null,null,null,null,null,null,null,null,null,null,null,null,null,null,null,null,null,null,null,null,null,null,null,null,null,null,5,"CHCATALOG","CHCUCUB40","CU - CBus Inhouse","0000","X","","0","0","","","",null,null,null,null,null,null,null,null,4,"B0LG7LONJDGK964QNMFEHQNBA","9VEXAVKBGLVPRM2LYAWT8O2BM","0","1","","","","00","X","0","0","",""]
[null,null,null,null,null,null,null,null,null,null,null,null,null,null,null,null,null,null,null,null,null,null,null,null,null,null,null,null,null,null,null,null,null,null,null,null,null,null,null,null,null,null,null,null,null,null,null,null,null,null,null,null,null,null,null,null,null,null,null,null,null,null,null,null,null,null,null,null,null,null,null,null,null,null,null,null,null,null,null,null,null,null,null,null,null,null,null,null,null,null,null,null,null,null,null,null,null,null,null,null,null,null,null,null,null,null,null,null,null,null,5,"CHCATALOG","CHCUGEN10","CU - Female","0000","X","","0","0","","","",null,null,null,null,null,null,null,null,4,"B0LG7LONJDGK964QNMFEHQNBA","DLW9P54P4AT0OYHVG7ZL1IM5E","0","1","","","","00","X","0","0","",""]
[null,null,null,null,null,null,null,null,null,null,null,null,null,null,null,null,null,null,null,null,null,null,null,null,null,null,null,null,null,null,null,null,null,null,null,null,null,null,null,null,null,null,null,null,null,null,null,null,null,null,null,null,null,null,null,null,null,null,null,null,null,null,null,null,null,null,null,null,null,null,null,null,null,null,null,null,null,null,null,null,null,null,null,null,null,null,null,null,null,null,null,null,null,null,null,null,null,null,null,null,null,null,null,null,null,null,null,null,null,null,5,"CHCATALOG","CHCUKEY00","CU - KeyAcc No","0000","X","","0","0","","","",null,null,null,null,null,null,null,null,4,"B0NC9O6WHUMWA7VXWT62I0MSN","40OMIIL7VXC390GHTHLXLN24I","","","","","","00","X","0","0","",""]
[null,null,null,null,null,null,null,null,null,null,null,null,null,null,null,null,null,null,null,null,null,null,null,null,null,null,null,null,null,null,null,null,null,null,null,null,null,null,null,null,null,null,null,null,null,null,null,null,null,null,null,null,null,null,null,null,null,null,null,null,null,null,null,null,null,null,null,null,null,null,null,null,null,null,null,null,null,null,null,null,null,null,null,null,null,null,null,null,null,null,null,null,null,null,null,null,null,null,null,null,null,null,null,null,null,null,null,null,null,null,5,"CHCATALOG","CHCUORGDG","CU - Org Degree","0000","X","","0","0","","","",null,null,null,null,null,null,null,null,4,"B0NC9O6WHUMWA7VXWT62I0MSN","DLW9P54P4AT0OYHVG7ZL1IM5E","0","1","","","","00","X","0","0","",""]
[null,null,null,null,null,null,null,null,null,null,null,null,null,null,null,null,null,null,null,null,null,null,null,null,null,null,null,null,null,null,null,null,null,null,null,null,null,null,null,null,null,null,null,null,null,null,null,null,null,null,null,null,null,null,null,null,null,null,null,null,null,null,null,null,null,null,null,null,null,null,null,null,null,null,null,null,null,null,null,null,null,null,null,null,null,null,null,null,null,null,null,null,null,null,null,null,null,null,null,null,null,null,null,null,null,null,null,null,null,null,5,"CHCATALOG","CHCUSHOPM","CU - Shopping Mall","0000","X","","0","0","","","",null,null,null,null,null,null,null,null,4,"BAI19GP8IE8J4WJN7LSTLARIP","85T7YQIWK1QB9ILJLJ1SQZN8J","","","","","","00","X","0","0","",""]
[null,null,null,null,null,null,null,null,null,null,null,null,null,null,null,null,null,null,null,null,null,null,null,null,null,null,null,null,null,null,null,null,null,null,null,null,null,null,null,null,null,null,null,null,null,null,null,null,null,null,null,null,null,null,null,null,null,null,null,null,null,null,null,null,null,null,null,null,null,null,null,null,null,null,null,null,null,null,null,null,null,null,null,null,null,null,null,null,null,null,null,null,null,null,null,null,null,null,null,null,null,null,null,null,null,null,null,null,null,null,5,"CHCATALOG","CHCUSRV30","CU - SM noVisits","0000","X","","0","0","","","",null,null,null,null,null,null,null,null,4,"BAI19GP8IE8J4WJN7LSTLARIP","CLLNFQKTMRYLVSUHUSN173QAV","","","","","","00","X","0","0","",""]
[null,null,null,null,null,null,null,null,null,null,null,null,null,null,null,null,null,null,null,null,null,null,null,null,null,null,null,null,null,null,null,null,null,null,null,null,null,null,null,null,null,null,null,null,null,null,null,null,null,null,null,null,null,null,null,null,null,null,null,null,null,null,null,null,null,null,null,null,null,null,null,null,null,null,null,null,null,null,null,null,null,null,null,null,null,null,null,null,null,null,null,null,null,null,null,null,null,null,null,null,null,null,null,null,null,null,null,null,null,null,5,"CHCATALOG","CHCUSRV40","CU - SM Central SF","0000","X","","0","0","","","",null,null,null,null,null,null,null,null,4,"BAI19GP8IE8J4WJN7LSTLARIP","D3T5FYJK7PWFTR9ZIOUJLTV60","0","1","","","","00","X","0","0","",""]
[null,null,null,null,null,null,null,null,null,null,null,null,null,null,null,null,null,null,null,null,null,null,null,null,null,null,null,null,null,null,null,null,null,null,null,null,null,null,null,null,null,null,null,null,null,null,null,null,null,null,null,null,null,null,null,null,null,null,null,null,null,null,null,null,null,null,null,null,null,null,null,null,null,null,null,null,null,null,null,null,null,null,null,null,null,null,null,null,null,null,null,null,null,null,null,null,null,null,null,null,null,null,null,null,null,null,null,null,null,null,5,"0SALESORG","0C_CTR_AREA","Credit Control Area","0001","X","","0","0","","","",null,null,null,null,null,null,null,null,4,"C3QHLF000YWITR7D3MHAGFAQC","9VEXAVKBGLVPRM2LYAWT8O2BM","0","2","","","","00","X","0","0","",""]
[null,null,null,null,null,null,null,null,null,null,null,null,null,null,null,null,null,null,null,null,null,null,null,null,null,null,null,null,null,null,null,null,null,null,null,null,null,null,null,null,null,null,null,null,null,null,null,null,null,null,null,null,null,null,null,null,null,null,null,null,null,null,null,null,null,null,null,null,null,null,null,null,null,null,null,null,null,null,null,null,null,null,null,null,null,null,null,null,null,null,null,null,null,null,null,null,null,null,null,null,null,null,null,null,null,null,null,null,null,null,5,"0DOC_NUMBER","0LOGSYS","Source System","0005","X","","0","0","","","",null,null,null,null,null,null,null,null,4,"C3QHLF000YWITR7D3MHAGFAQC","D3T5FYJK7PWFTR9ZIOUJLTV60","0","2","","","","00","X","0","0","",""]
[null,null,null,null,null,null,null,null,null,null,null,null,null,null,null,null,null,null,null,null,null,null,null,null,null,null,null,null,null,null,null,null,null,null,null,null,null,null,null,null,null,null,null,null,null,null,null,null,null,null,null,null,null,null,null,null,null,null,null,null,null,null,null,null,null,null,null,null,null,null,null,null,null,null,null,null,null,null,null,null,null,null,null,null,null,null,null,null,null,null,null,null,null,null,null,null,null,null,null,null,null,null,null,null,null,null,null,null,null,null,5,"0DOC_NUMBER","CHCMGST","Overall Status of CC","0012","X","","0","0","","","",null,null,null,null,null,null,null,null,4,"C5CA4H28JD8OS7CUVK3X4L27S","A4CNQYIEI3A4SAZQW9RFY18NV","","","","","","00","X","0","0","",""]
[null,null,null,null,null,null,null,null,null,null,null,null,null,null,null,null,null,null,null,null,null,null,null,null,null,null,null,null,null,null,null,null,null,null,null,null,null,null,null,null,null,null,null,null,null,null,null,null,null,null,null,null,null,null,null,null,null,null,null,null,null,null,null,null,null,null,null,null,null,null,null,null,null,null,null,null,null,null,null,null,null,null,null,null,null,null,null,null,null,null,null,null,null,null,null,null,null,null,null,null,null,null,null,null,null,null,null,null,null,null,5,"0DOC_NUMBER","CHSPSTG","Overall Blocked Stat","0013","X","","0","0","","","",null,null,null,null,null,null,null,null,4,"C5CA4H28JD8OS7CUVK3X4L27S","CB4LNO5UGX170R82X1SKZYXQI","","","","","","00","X","0","0","",""]
[null,null,null,null,null,null,null,null,null,null,null,null,null,null,null,null,null,null,null,null,null,null,null,null,null,null,null,null,null,null,null,null,null,null,null,null,null,null,null,null,null,null,null,null,null,null,null,null,null,null,null,null,null,null,null,null,null,null,null,null,null,null,null,null,null,null,null,null,null,null,null,null,null,null,null,null,null,null,null,null,null,null,null,null,null,null,null,null,null,null,null,null,null,null,null,null,null,null,null,null,null,null,null,null,null,null,null,null,null,null,4,"CHSALSREP","0COUNTRY","Country","0000","X","1","0","0","","","","","0000","",null,null,null,null,null,4,"CI5QTXV43N7K9QYW65C4L9G9R","85T7YQIWK1QB9ILJLJ1SQZN8J","","","","","","00","X","0","0","",""]
[null,null,null,null,null,null,null,null,null,null,null,null,null,null,null,null,null,null,null,null,null,null,null,null,null,null,null,null,null,null,null,null,null,null,null,null,null,null,null,null,null,null,null,null,null,null,null,null,null,null,null,null,null,null,null,null,null,null,null,null,null,null,null,null,null,null,null,null,null,null,null,null,null,null,null,null,null,null,null,null,null,null,null,null,null,null,null,null,null,null,null,null,null,null,null,null,null,null,null,null,null,null,null,null,null,null,null,null,null,null,4,"CHSALSREP","0IND_CODE_2","Industry Code 2","0000","X","2","0","0","","","","","0000","",null,null,null,null,null,4,"CI5QTXV43N7K9QYW65C4L9G9R","CLLNFQKTMRYLVSUHUSN173QAV","","","","","","00","X","0","0","",""]
[null,null,null,null,null,null,null,null,null,null,null,null,null,null,null,null,null,null,null,null,null,null,null,null,null,null,null,null,null,null,null,null,null,null,null,null,null,null,null,null,null,null,null,null,null,null,null,null,null,null,null,null,null,null,null,null,null,null,null,null,null,null,null,null,null,null,null,null,null,null,null,null,null,null,null,null,null,null,null,null,null,null,null,null,null,null,null,null,null,null,null,null,null,null,null,null,null,null,null,null,null,null,null,null,null,null,null,null,null,null,4,"CHSALSREP","0LOGSYS","Source System","0000","X","1","0","0","","","","","0000","",null,null,null,null,null,4,"D7KAWZ7T3OUY1DGAJ4Y216ZLK","85T7YQIWK1QB9ILJLJ1SQZN8J","","","","","","00","X","0","0","",""]
[null,null,null,null,null,null,null,null,null,null,null,null,null,null,null,null,null,null,null,null,null,null,null,null,null,null,null,null,null,null,null,null,null,null,null,null,null,null,null,null,null,null,null,null,null,null,null,null,null,null,null,null,null,null,null,null,null,null,null,null,null,null,null,null,null,null,null,null,null,null,null,null,null,null,null,null,null,null,null,null,null,null,null,null,null,null,null,null,null,null,null,null,null,null,null,null,null,null,null,null,null,null,null,null,null,null,null,null,null,null,4,"CHSALSREP","0NAME2","Name 2","0000","X","2","0","0","","","","","0000","",null,null,null,null,null,4,"D7KAWZ7T3OUY1DGAJ4Y216ZLK","9VEXAVKBGLVPRM2LYAWT8O2BM","0","1","","","","00","X","0","0","",""]
[null,null,null,null,null,null,null,null,null,null,null,null,null,null,null,null,null,null,null,null,null,null,null,null,null,null,null,null,null,null,null,null,null,null,null,null,null,null,null,null,null,null,null,null,null,null,null,null,null,null,null,null,null,null,null,null,null,null,null,null,null,null,null,null,null,null,null,null,null,null,null,null,null,null,null,null,null,null,null,null,null,null,null,null,null,null,null,null,null,null,null,null,null,null,null,null,null,null,null,null,null,null,null,null,null,null,null,null,null,null,4,"CHSALSREP","0REGION","Region","0000","X","1","0","0","","","","","0000","",null,null,null,null,null,4,"D7KAWZ7T3OVPPZS1UODO3MDVC","85T7YQIWK1QB9ILJLJ1SQZN8J","","","","","","00","X","0","0","",""]
[null,null,null,null,null,null,null,null,null,null,null,null,null,null,null,null,null,null,null,null,null,null,null,null,null,null,null,null,null,null,null,null,null,null,null,null,null,null,null,null,null,null,null,null,null,null,null,null,null,null,null,null,null,null,null,null,null,null,null,null,null,null,null,null,null,null,null,null,null,null,null,null,null,null,null,null,null,null,null,null,null,null,null,null,null,null,null,null,null,null,null,null,null,null,null,null,null,null,null,null,null,null,null,null,null,null,null,null,null,null,4,"CHSALSREP","0TAX_NUMB2","Tax Number 2","0000","X","2","0","0","","","","","0000","",null,null,null,null,null,4,"D7KAWZ7T3OVPPZS1UODO3MDVC","A4CNQYIEI3A4SAZQW9RFY18NV","","","","","","00","X","0","0","",""]
[null,null,null,null,null,null,null,null,null,null,null,null,null,null,null,null,null,null,null,null,null,null,null,null,null,null,null,null,null,null,null,null,null,null,null,null,null,null,null,null,null,null,null,null,null,null,null,null,null,null,null,null,null,null,null,null,null,null,null,null,null,null,null,null,null,null,null,null,null,null,null,null,null,null,null,null,null,null,null,null,null,null,null,null,null,null,null,null,null,null,null,null,null,null,null,null,null,null,null,null,null,null,null,null,null,null,null,null,null,null,4,"0SALESORG","0CURRENCY","Currency","0000","X","1","0","0","","","","","0000","",null,null,null,null,null,4,"D7S30SWTI7VSDMO1DQPA9FA9K","0XOUE3TQ85XCLNJ97LK4N131O","","","","","","00","X","0","0","",""]
[null,null,null,null,null,null,null,null,null,null,null,null,null,null,null,null,null,null,null,null,null,null,null,null,null,null,null,null,null,null,null,null,null,null,null,null,null,null,null,null,null,null,null,null,null,null,null,null,null,null,null,null,null,null,null,null,null,null,null,null,null,null,null,null,null,null,null,null,null,null,null,null,null,null,null,null,null,null,null,null,null,null,null,null,null,null,null,null,null,null,null,null,null,null,null,null,null,null,null,null,null,null,null,null,null,null,null,null,null,null,4,"0SALESORG","0C_CTR_AREA","Credit Control Area","0000","X","0","0","0","","","","","0000","",null,null,null,null,null,4,"D7S30SWTI7VSDMO1DQPA9FA9K","40OMIIL7VXC390GHTHLXLN24I","","","","","","00","X","0","0","",""]
[null,null,null,null,null,null,null,null,null,null,null,null,null,null,null,null,null,null,null,null,null,null,null,null,null,null,null,null,null,null,null,null,null,null,null,null,null,null,null,null,null,null,null,null,null,null,null,null,null,null,null,null,null,null,null,null,null,null,null,null,null,null,null,null,null,null,null,null,null,null,null,null,null,null,null,null,null,null,null,null,null,null,null,null,null,null,null,null,null,null,null,null,null,null,null,null,null,null,null,null,null,null,null,null,null,null,null,null,null,null,4,"0SALESORG","CHCOMP","Company","0000","X","2","0","0","","","","","0000","",null,null,null,null,null,4,"D7S30SWTI7VSDMO1DQPA9FA9K","CLLNFQKTMRYLVSUHUSN173QAV","","","","","","00","X","0","0","",""]
[null,null,null,null,null,null,null,null,null,null,null,null,null,null,null,null,null,null,null,null,null,null,null,null,null,null,null,null,null,null,null,null,null,null,null,null,null,null,null,null,null,null,null,null,null,null,null,null,null,null,null,null,null,null,null,null,null,null,null,null,null,null,null,null,null,null,null,null,null,null,null,null,null,null,null,null,null,null,null,null,null,null,null,null,null,null,null,null,null,null,null,null,null,null,null,null,null,null,null,null,null,null,null,null,null,null,null,null,null,null,4,"0CUSTOMER","0AF_CUSTID","Cust.ID Partnersyst.","0000","X","2","0","0","","","","","0000","",null,null,null,null,null,4,"D7S30SWTI7WK28ZSPA4WBUOJC","40OMIIL7VXC390GHTHLXLN24I","","","","","","00","X","0","0","",""]
[null,null,null,null,null,null,null,null,null,null,null,null,null,null,null,null,null,null,null,null,null,null,null,null,null,null,null,null,null,null,null,null,null,null,null,null,null,null,null,null,null,null,null,null,null,null,null,null,null,null,null,null,null,null,null,null,null,null,null,null,null,null,null,null,null,null,null,null,null,null,null,null,null,null,null,null,null,null,null,null,null,null,null,null,null,null,null,null,null,null,null,null,null,null,null,null,null,null,null,null,null,null,null,null,null,null,null,null,null,null,4,"0CUSTOMER","0CUST_CLASS","Customer Classific.","0000","X","0","0","0","","","","","0000","",null,null,null,null,null,4,"D7S30SWTI7WK28ZSPA4WBUOJC","D3T5FYJK7PWFTR9ZIOUJLTV60","0","1","","","","00","X","0","0","",""]
[null,null,null,null,null,null,null,null,null,null,null,null,null,null,null,null,null,null,null,null,null,null,null,null,null,null,null,null,null,null,null,null,null,null,null,null,null,null,null,null,null,null,null,null,null,null,null,null,null,null,null,null,null,null,null,null,null,null,null,null,null,null,null,null,null,null,null,null,null,null,null,null,null,null,null,null,null,null,null,null,null,null,null,null,null,null,null,null,null,null,null,null,null,null,null,null,null,null,null,null,null,null,null,null,null,null,null,null,null,null,4,"0CUSTOMER","0CUST_MKT","Customer Market","0000","X","1","0","0","","","","","0000","",null,null,null,null,null,4,"D7S30SWTI7WK28ZSPA4WBUOJC","DLW9P54P4AT0OYHVG7ZL1IM5E","0","1","","","","00","X","0","0","",""]
[null,null,null,null,null,null,null,null,null,null,null,null,null,null,null,null,null,null,null,null,null,null,null,null,null,null,null,null,null,null,null,null,null,null,null,null,null,null,null,null,null,null,null,null,null,null,null,null,null,null,null,null,null,null,null,null,null,null,null,null,null,null,null,null,null,null,null,null,null,null,null,null,null,null,null,null,null,null,null,null,null,null,null,null,null,null,null,null,null,null,null,null,null,null,null,null,null,null,null,null,null,null,null,null,null,null,null,null,null,null,4,"0CUSTOMER","0ID_TXNUMB3","Tax Number 3","0000","X","2","0","0","","","","","0000","",null,null,null,null,null,4,"D9IU0A9VZZTKIRVEDLAM7Z4ZP","A4CNQYIEI3A4SAZQW9RFY18NV","","2","","","","00","X","0","0","",""]
[null,null,null,null,null,null,null,null,null,null,null,null,null,null,null,null,null,null,null,null,null,null,null,null,null,null,null,null,null,null,null,null,null,null,null,null,null,null,null,null,null,null,null,null,null,null,null,null,null,null,null,null,null,null,null,null,null,null,null,null,null,null,null,null,null,null,null,null,null,null,null,null,null,null,null,null,null,null,null,null,null,null,null,null,null,null,null,null,null,null,null,null,null,null,null,null,null,null,null,null,null,null,null,null,null,null,null,null,null,null,4,"0CUSTOMER","0IND_CODE_3","Industry Code 3","0000","X","1","0","0","","","","","0000","",null,null,null,null,null,4,"D9P2ZSBYJBLJ8KBL89BVWBD14","0XOUE3TQ85XCLNJ97LK4N131O","","","","","","00","X","0","0","",""]
[null,null,null,null,null,null,null,null,null,null,null,null,null,null,null,null,null,null,null,null,null,null,null,null,null,null,null,null,null,null,null,null,null,null,null,null,null,null,null,null,null,null,null,null,null,null,null,null,null,null,null,null,null,null,null,null,null,null,null,null,null,null,null,null,null,null,null,null,null,null,null,null,null,null,null,null,null,null,null,null,null,null,null,null,null,null,null,null,null,null,null,null,null,null,null,null,null,null,null,null,null,null,null,null,null,null,null,null,null,null,4,"0CUSTOMER","0LATITUDE","Latitude","0000","X","2","0","0","","","","","0000","",null,null,null,null,null,4,"D9P2ZSBYJBLJ8KBL89BVWBD14","A4CNQYIEI3A4SAZQW9RFY18NV","","","","","","00","X","0","0","",""]
[null,null,null,null,null,null,null,null,null,null,null,null,null,null,null,null,null,null,null,null,null,null,null,null,null,null,null,null,null,null,null,null,null,null,null,null,null,null,null,null,null,null,null,null,null,null,null,null,null,null,null,null,null,null,null,null,null,null,null,null,null,null,null,null,null,null,null,null,null,null,null,null,null,null,null,null,null,null,null,null,null,null,null,null,null,null,null,null,null,null,null,null,null,null,null,null,null,null,null,null,null,null,null,null,null,null,null,null,null,null,4,"0CUSTOMER","0LONGITUDE","Longitude","0000","X","2","0","0","","","","","0000","",null,null,null,null,null,4,"D9P2ZSBYJBLJ8KBL89BVWBD14","CLLNFQKTMRYLVSUHUSN173QAV","","","","","","00","X","0","0","",""]
[null,null,null,null,null,null,null,null,null,null,null,null,null,null,null,null,null,null,null,null,null,null,null,null,null,null,null,null,null,null,null,null,null,null,null,null,null,null,null,null,null,null,null,null,null,null,null,null,null,null,null,null,null,null,null,null,null,null,null,null,null,null,null,null,null,null,null,null,null,null,null,null,null,null,null,null,null,null,null,null,null,null,null,null,null,null,null,null,null,null,null,null,null,null,null,null,null,null,null,null,null,null,null,null,null,null,null,null,null,null,4,"0CUSTOMER","0PHONE","Telephone 1","0000","X","2","0","0","","","","","0000","",null,null,null,null,null,4,"D9P2ZSBYJBMAX6NCJSRHYQRAW","9VEXAVKBGLVPRM2LYAWT8O2BM","0","1","","","","00","X","0","0","",""]
[null,null,null,null,null,null,null,null,null,null,null,null,null,null,null,null,null,null,null,null,null,null,null,null,null,null,null,null,null,null,null,null,null,null,null,null,null,null,null,null,null,null,null,null,null,null,null,null,null,null,null,null,null,null,null,null,null,null,null,null,null,null,null,null,null,null,null,null,null,null,null,null,null,null,null,null,null,null,null,null,null,null,null,null,null,null,null,null,null,null,null,null,null,null,null,null,null,null,null,null,null,null,null,null,null,null,null,null,null,null,4,"0CUSTOMER","0POSTAL_CD","Postal Code","0000","X","2","0","0","","","","","0000","",null,null,null,null,null,4,"D9P2ZSBYJBMAX6NCJSRHYQRAW","D3T5FYJK7PWFTR9ZIOUJLTV60","0","1","","","","00","X","0","0","",""]
[null,null,null,null,null,null,null,null,null,null,null,null,null,null,null,null,null,null,null,null,null,null,null,null,null,null,null,null,null,null,null,null,null,null,null,null,null,null,null,null,null,null,null,null,null,null,null,null,null,null,null,null,null,null,null,null,null,null,null,null,null,null,null,null,null,null,null,null,null,null,null,null,null,null,null,null,null,null,null,null,null,null,null,null,null,null,null,null,null,null,null,null,null,null,null,null,null,null,null,null,null,null,null,null,null,null,null,null,null,null,4,"0CUSTOMER","0SORTL","Sort Field","0000","X","2","0","0","","","","","0000","",null,null,null,null,null,4,"D9P2ZSBYJBN2LSZ3VC74165KO","8VM70DOM0541L205HX82GQTS1","0","1","","","","00","X","0","0","",""]
[null,null,null,null,null,null,null,null,null,null,null,null,null,null,null,null,null,null,null,null,null,null,null,null,null,null,null,null,null,null,null,null,null,null,null,null,null,null,null,null,null,null,null,null,null,null,null,null,null,null,null,null,null,null,null,null,null,null,null,null,null,null,null,null,null,null,null,null,null,null,null,null,null,null,null,null,null,null,null,null,null,null,null,null,null,null,null,null,null,null,null,null,null,null,null,null,null,null,null,null,null,null,null,null,null,null,null,null,null,null,4,"0CUSTOMER","0USAGE_IND","Usage indicator","0000","X","1","0","0","","","","","0000","",null,null,null,null,null,4,"D9P2ZSBYJBN2LSZ3VC74165KO","D3T5FYJK7PWFTR9ZIOUJLTV60","0","1","","","","00","X","0","0","",""]
[null,null,null,null,null,null,null,null,null,null,null,null,null,null,null,null,null,null,null,null,null,null,null,null,null,null,null,null,null,null,null,null,null,null,null,null,null,null,null,null,null,null,null,null,null,null,null,null,null,null,null,null,null,null,null,null,null,null,null,null,null,null,null,null,null,null,null,null,null,null,null,null,null,null,null,null,null,null,null,null,null,null,null,null,null,null,null,null,null,null,null,null,null,null,null,null,null,null,null,null,null,null,null,null,null,null,null,null,null,null,4,"0CUSTOMER","0VISIT_RYT","Call frequency","0000","X","2","0","0","","","","","0000","",null,null,null,null,null,4,"D9P2ZSBYJBNUAFAV6VMQ3LJUG","0XOUE3TQ85XCLNJ97LK4N131O","","2","","","","00","X","0","0","",""]
[null,null,null,null,null,null,null,null,null,null,null,null,null,null,null,null,null,null,null,null,null,null,null,null,null,null,null,null,null,null,null,null,null,null,null,null,null,null,null,null,null,null,null,null,null,null,null,null,null,null,null,null,null,null,null,null,null,null,null,null,null,null,null,null,null,null,null,null,null,null,null,null,null,null,null,null,null,null,null,null,null,null,null,null,null,null,null,null,null,null,null,null,null,null,null,null,null,null,null,null,null,null,null,null,null,null,null,null,null,null,4,"0CUSTOMER","CHCUABM25","CU - ABM Corner","0000","X","2","0","0","","","","","0000","",null,null,null,null,null,4,"D9P2ZSBYJBNUAFAV6VMQ3LJUG","8VM70DOM0541L205HX82GQTS1","0","2","","","","00","X","0","0","",""]
[null,null,null,null,null,null,null,null,null,null,null,null,null,null,null,null,null,null,null,null,null,null,null,null,null,null,null,null,null,null,null,null,null,null,null,null,null,null,null,null,null,null,null,null,null,null,null,null,null,null,null,null,null,null,null,null,null,null,null,null,null,null,null,null,null,null,null,null,null,null,null,null,null,null,null,null,null,null,null,null,null,null,null,null,null,null,null,null,null,null,null,null,null,null,null,null,null,null,null,null,null,null,null,null,null,null,null,null,null,null,4,"0CUSTOMER","CHCUATTR1","Projection relevant","0000","X","2","0","0","","","","","0000","",null,null,null,null,null,4,"D9P2ZSBYJBOLZ1MMIF2C60Y48","40OMIIL7VXC390GHTHLXLN24I","","2","","","","00","X","0","0","",""]
[null,null,null,null,null,null,null,null,null,null,null,null,null,null,null,null,null,null,null,null,null,null,null,null,null,null,null,null,null,null,null,null,null,null,null,null,null,null,null,null,null,null,null,null,null,null,null,null,null,null,null,null,null,null,null,null,null,null,null,null,null,null,null,null,null,null,null,null,null,null,null,null,null,null,null,null,null,null,null,null,null,null,null,null,null,null,null,null,null,null,null,null,null,null,null,null,null,null,null,null,null,null,null,null,null,null,null,null,null,null,4,"0CUSTOMER","CHCUBPHOM","CU - Brand Perf HOM","0000","X","1","0","0","","","","","0000","",null,null,null,null,null,4,"D9P2ZSBYJBOLZ1MMIF2C60Y48","85T7YQIWK1QB9ILJLJ1SQZN8J","","2","","","","00","X","0","0","",""]
[null,null,null,null,null,null,null,null,null,null,null,null,null,null,null,null,null,null,null,null,null,null,null,null,null,null,null,null,null,null,null,null,null,null,null,null,null,null,null,null,null,null,null,null,null,null,null,null,null,null,null,null,null,null,null,null,null,null,null,null,null,null,null,null,null,null,null,null,null,null,null,null,null,null,null,null,null,null,null,null,null,null,null,null,null,null,null,null,null,null,null,null,null,null,null,null,null,null,null,null,null,null,null,null,null,null,null,null,null,null,4,"0CUSTOMER","CHCUBUSTY","CU - Business Type","0000","X","1","0","0","","","","","0000","",null,null,null,null,null,4,"D9P2ZSBYJBOLZ1MMIF2C60Y48","CLLNFQKTMRYLVSUHUSN173QAV","","2","","","","00","X","0","0","",""]
[null,null,null,null,null,null,null,null,null,null,null,null,null,null,null,null,null,null,null,null,null,null,null,null,null,null,null,null,null,null,null,null,null,null,null,null,null,null,null,null,null,null,null,null,null,null,null,null,null,null,null,null,null,null,null,null,null,null,null,null,null,null,null,null,null,null,null,null,null,null,null,null,null,null,null,null,null,null,null,null,null,null,null,null,null,null,null,null,null,null,null,null,null,null,null,null,null,null,null,null,null,null,null,null,null,null,null,null,null,null,4,"0CUSTOMER","CHCUCUB20","CU - CBus Mailorder","0000","X","2","0","0","","","","","0000","",null,null,null,null,null,4,"D9P2ZSBYJBPDNNYDTYHY8GCE0","8VM70DOM0541L205HX82GQTS1","0","2","","","","00","X","0","0","",""]
[null,null,null,null,null,null,null,null,null,null,null,null,null,null,null,null,null,null,null,null,null,null,null,null,null,null,null,null,null,null,null,null,null,null,null,null,null,null,null,null,null,null,null,null,null,null,null,null,null,null,null,null,null,null,null,null,null,null,null,null,null,null,null,null,null,null,null,null,null,null,null,null,null,null,null,null,null,null,null,null,null,null,null,null,null,null,null,null,null,null,null,null,null,null,null,null,null,null,null,null,null,null,null,null,null,null,null,null,null,null,4,"0CUSTOMER","CHCUCUSPR","CU - Cust Prioritiza","0000","X","1","0","0","","","","","0000","",null,null,null,null,null,4,"D9P2ZSBYJBPDNNYDTYHY8GCE0","CLLNFQKTMRYLVSUHUSN173QAV","","2","","","","00","X","0","0","",""]
[null,null,null,null,null,null,null,null,null,null,null,null,null,null,null,null,null,null,null,null,null,null,null,null,null,null,null,null,null,null,null,null,null,null,null,null,null,null,null,null,null,null,null,null,null,null,null,null,null,null,null,null,null,null,null,null,null,null,null,null,null,null,null,null,null,null,null,null,null,null,null,null,null,null,null,null,null,null,null,null,null,null,null,null,null,null,null,null,null,null,null,null,null,null,null,null,null,null,null,null,null,null,null,null,null,null,null,null,null,null,4,"0CUSTOMER","CHCUFSF30","CU - FSF Rack Jobber","0000","X","2","0","0","","","","","0000","",null,null,null,null,null,4,"D9P2ZSBYJBQ5CAA55HXKAVQNS","0XOUE3TQ85XCLNJ97LK4N131O","","2","","","","00","X","0","0","",""]
[null,null,null,null,null,null,null,null,null,null,null,null,null,null,null,null,null,null,null,null,null,null,null,null,null,null,null,null,null,null,null,null,null,null,null,null,null,null,null,null,null,null,null,null,null,null,null,null,null,null,null,null,null,null,null,null,null,null,null,null,null,null,null,null,null,null,null,null,null,null,null,null,null,null,null,null,null,null,null,null,null,null,null,null,null,null,null,null,null,null,null,null,null,null,null,null,null,null,null,null,null,null,null,null,null,null,null,null,null,null,4,"0CUSTOMER","CHCUKEY20","CU - KeyAcc Europe","0000","X","2","0","0","","","","","0000","",null,null,null,null,null,4,"D9P2ZSBYJBQ5CAA55HXKAVQNS","CLLNFQKTMRYLVSUHUSN173QAV","","2","","","","00","X","0","0","",""]
[null,null,null,null,null,null,null,null,null,null,null,null,null,null,null,null,null,null,null,null,null,null,null,null,null,null,null,null,null,null,null,null,null,null,null,null,null,null,null,null,null,null,null,null,null,null,null,null,null,null,null,null,null,null,null,null,null,null,null,null,null,null,null,null,null,null,null,null,null,null,null,null,null,null,null,null,null,null,null,null,null,null,null,null,null,null,null,null,null,null,null,null,null,null,null,null,null,null,null,null,null,null,null,null,null,null,null,null,null,null,4,"0CUSTOMER","CHCULIFEC","CU - CustLifeCycle","0000","X","1","0","0","","","","","0000","",null,null,null,null,null,4,"DR91OMEBWU18XF8TEK57T76H6","40OMIIL7VXC390GHTHLXLN24I","","2","","","","00","X","0","0","",""]
[null,null,null,null,null,null,null,null,null,null,null,null,null,null,null,null,null,null,null,null,null,null,null,null,null,null,null,null,null,null,null,null,null,null,null,null,null,null,null,null,null,null,null,null,null,null,null,null,null,null,null,null,null,null,null,null,null,null,null,null,null,null,null,null,null,null,null,null,null,null,null,null,null,null,null,null,null,null,null,null,null,null,null,null,null,null,null,null,null,null,null,null,null,null,null,null,null,null,null,null,null,null,null,null,null,null,null,null,null,null,4,"0CUSTOMER","CHCUSCHTP","CU - Sales Chan Type","0000","X","1","0","0","","","","","0000","",null,null,null,null,null,4,"DR91OMEBWU18XF8TEK57T76H6","CB4LNO5UGX170R82X1SKZYXQI","","2","","","","00","X","0","0","",""]
[null,null,null,null,null,null,null,null,null,null,null,null,null,null,null,null,null,null,null,null,null,null,null,null,null,null,null,null,null,null,null,null,null,null,null,null,null,null,null,null,null,null,null,null,null,null,null,null,null,null,null,null,null,null,null,null,null,null,null,null,null,null,null,null,null,null,null,null,null,null,null,null,null,null,null,null,null,null,null,null,null,null,null,null,null,null,null,null,null,null,null,null,null,null,null,null,null,null,null,null,null,null,null,null,null,null,null,null,null,null,4,"0CUSTOMER","CHCUSLSCH","CU - Sales Channel","0000","X","1","0","0","","","","","0000","",null,null,null,null,null,4,"DTTDHH3GJNUXWGV5PDD7U5Y60","40OMIIL7VXC390GHTHLXLN24I","","","","","","00","X","0","0","",""]
[null,null,null,null,null,null,null,null,null,null,null,null,null,null,null,null,null,null,null,null,null,null,null,null,null,null,null,null,null,null,null,null,null,null,null,null,null,null,null,null,null,null,null,null,null,null,null,null,null,null,null,null,null,null,null,null,null,null,null,null,null,null,null,null,null,null,null,null,null,null,null,null,null,null,null,null,null,null,null,null,null,null,null,null,null,null,null,null,null,null,null,null,null,null,null,null,null,null,null,null,null,null,null,null,null,null,null,null,null,null,4,"0CUSTOMER","CHCUSRV20","CU - SM Tel/Fax/Mail","0000","X","2","0","0","","","","","0000","",null,null,null,null,null,4,"DTTDHH3GJNUXWGV5PDD7U5Y60","8VM70DOM0541L205HX82GQTS1","0","1","","","","00","X","0","0","",""]
[null,null,null,null,null,null,null,null,null,null,null,null,null,null,null,null,null,null,null,null,null,null,null,null,null,null,null,null,null,null,null,null,null,null,null,null,null,null,null,null,null,null,null,null,null,null,null,null,null,null,null,null,null,null,null,null,null,null,null,null,null,null,null,null,null,null,null,null,null,null,null,null,null,null,null,null,null,null,null,null,null,null,null,null,null,null,null,null,null,null,null,null,null,null,null,null,null,null,null,null,null,null,null,null,null,null,null,null,null,null,4,"0CUSTOMER","CHCUTRA10","CU - AT CredSales","0000","X","2","0","0","","","","","0000","",null,null,null,null,null,4,"DTTDHH3GJNUXWGV5PDD7U5Y60","CB4LNO5UGX170R82X1SKZYXQI","","","","","","00","X","0","0","",""]
[null,null,null,null,null,null,null,null,null,null,null,null,null,null,null,null,null,null,null,null,null,null,null,null,null,null,null,null,null,null,null,null,null,null,null,null,null,null,null,null,null,null,null,null,null,null,null,null,null,null,null,null,null,null,null,null,null,null,null,null,null,null,null,null,null,null,null,null,null,null,null,null,null,null,null,null,null,null,null,null,null,null,null,null,null,null,null,null,null,null,null,null,null,null,null,null,null,null,null,null,null,null,null,null,null,null,null,null,null,null,4,"CHCUPGLO","CHCONES","Conversion - ES","0000","X","1","0","0","","","","","0000","",null,null,null,null,null,4,"DVU9TNJ1YQRJK3TUN9CHPH0AW","9VEXAVKBGLVPRM2LYAWT8O2BM","0","1","","","","00","X","0","0","",""]
[null,null,null,null,null,null,null,null,null,null,null,null,null,null,null,null,null,null,null,null,null,null,null,null,null,null,null,null,null,null,null,null,null,null,null,null,null,null,null,null,null,null,null,null,null,null,null,null,null,null,null,null,null,null,null,null,null,null,null,null,null,null,null,null,null,null,null,null,null,null,null,null,null,null,null,null,null,null,null,null,null,null,null,null,null,null,null,null,null,null,null,null,null,null,null,null,null,null,null,null,null,null,null,null,null,null,null,null,null,null,4,"CHCUPGLO","CHCONFI","Conversion - FI","0000","X","1","0","0","","","","","0000","",null,null,null,null,null,4,"DVU9TNJ1YQRJK3TUN9CHPH0AW","A4CNQYIEI3A4SAZQW9RFY18NV","","","","","","00","X","0","0","",""]
[null,null,null,null,null,null,null,null,null,null,null,null,null,null,null,null,null,null,null,null,null,null,null,null,null,null,null,null,null,null,null,null,null,null,null,null,null,null,null,null,null,null,null,null,null,null,null,null,null,null,null,null,null,null,null,null,null,null,null,null,null,null,null,null,null,null,null,null,null,null,null,null,null,null,null,null,null,null,null,null,null,null,null,null,null,null,null,null,null,null,null,null,null,null,null,null,null,null,null,null,null,null,null,null,null,null,null,null,null,null,4,"CHCUPGLO","CHCONJP","Conversion - JP","0000","X","1","0","0","","","","","0000","",null,null,null,null,null,4,"DZX7TY4YPKA1MXHB5MJKWVCSC","0XOUE3TQ85XCLNJ97LK4N131O","","","","","","00","X","0","0","",""]
[null,null,null,null,null,null,null,null,null,null,null,null,null,null,null,null,null,null,null,null,null,null,null,null,null,null,null,null,null,null,null,null,null,null,null,null,null,null,null,null,null,null,null,null,null,null,null,null,null,null,null,null,null,null,null,null,null,null,null,null,null,null,null,null,null,null,null,null,null,null,null,null,null,null,null,null,null,null,null,null,null,null,null,null,null,null,null,null,null,null,null,null,null,null,null,null,null,null,null,null,null,null,null,null,null,null,null,null,null,null,4,"CHSIZE","CHCONAU","Conversion - AU","0000","X","1","0","0","","","","","0000","",null,null,null,null,null,4,"DZX7TY4YPKA1MXHB5MJKWVCSC","CB4LNO5UGX170R82X1SKZYXQI","","","","","","00","X","0","0","",""]
[null,null,null,null,null,null,null,null,null,null,null,null,null,null,null,null,null,null,null,null,null,null,null,null,null,null,null,null,null,null,null,null,null,null,null,null,null,null,null,null,null,null,null,null,null,null,null,null,null,null,null,null,null,null,null,null,null,null,null,null,null,null,null,null,null,null,null,null,null,null,null,null,null,null,null,null,null,null,null,null,null,null,null,null,null,null,null,null,null,null,null,null,null,null,null,null,null,null,null,null,null,null,null,null,null,null,null,null,null,null,4,"CHSIZE","CHCONES","Conversion - ES","0000","X","1","0","0","","","","","0000","",null,null,null,null,null,4,"E1KKQC1GPBNM8G9Q2MDF76EAP","0XOUE3TQ85XCLNJ97LK4N131O","","","","","","00","X","0","0","",""]
[null,null,null,null,null,null,null,null,null,null,null,null,null,null,null,null,null,null,null,null,null,null,null,null,null,null,null,null,null,null,null,null,null,null,null,null,null,null,null,null,null,null,null,null,null,null,null,null,null,null,null,null,null,null,null,null,null,null,null,null,null,null,null,null,null,null,null,null,null,null,null,null,null,null,null,null,null,null,null,null,null,null,null,null,null,null,null,null,null,null,null,null,null,null,null,null,null,null,null,null,null,null,null,null,null,null,null,null,null,null,4,"CHSIZE","CHCONGB","Conversion - GB","0000","X","1","0","0","","","","","0000","",null,null,null,null,null,4,"E1KKQC1GPBNM8G9Q2MDF76EAP","8VM70DOM0541L205HX82GQTS1","0","1","","","","00","X","0","0","",""]
[null,null,null,null,null,null,null,null,null,null,null,null,null,null,null,null,null,null,null,null,null,null,null,null,null,null,null,null,null,null,null,null,null,null,null,null,null,null,null,null,null,null,null,null,null,null,null,null,null,null,null,null,null,null,null,null,null,null,null,null,null,null,null,null,null,null,null,null,null,null,null,null,null,null,null,null,null,null,null,null,null,null,null,null,null,null,null,null,null,null,null,null,null,null,null,null,null,null,null,null,null,null,null,null,null,null,null,null,null,null,4,"CHSIZE","CHCONLK","Conversion - LK","0000","X","1","0","0","","","","","0000","",null,null,null,null,null,4,"E1KKQC1GPBNM8G9Q2MDF76EAP","D3T5FYJK7PWFTR9ZIOUJLTV60","0","1","","","","00","X","0","0","",""]
[null,null,null,null,null,null,null,null,null,null,null,null,null,null,null,null,null,null,null,null,null,null,null,null,null,null,null,null,null,null,null,null,null,null,null,null,null,null,null,null,null,null,null,null,null,null,null,null,null,null,null,null,null,null,null,null,null,null,null,null,null,null,null,null,null,null,null,null,null,null,null,null,null,null,null,null,null,null,null,null,null,null,null,null,null,null,null,null,null,null,null,null,null,null,null,null,null,null,null,null,null,null,null,null,null,null,null,null,null,null,4,"0CUST_SALES","0AF_CGR6","AFS Customer Group 6","0000","X","1","0","0","","","","","0000","",null,null,null,null,null,4,"E3FJ8ERLJU845UJO3V3FXN76J","9VEXAVKBGLVPRM2LYAWT8O2BM","0","1","","","","00","X","0","0","",""]
[null,null,null,null,null,null,null,null,null,null,null,null,null,null,null,null,null,null,null,null,null,null,null,null,null,null,null,null,null,null,null,null,null,null,null,null,null,null,null,null,null,null,null,null,null,null,null,null,null,null,null,null,null,null,null,null,null,null,null,null,null,null,null,null,null,null,null,null,null,null,null,null,null,null,null,null,null,null,null,null,null,null,null,null,null,null,null,null,null,null,null,null,null,null,null,null,null,null,null,null,null,null,null,null,null,null,null,null,null,null,4,"0CUST_SALES","0CRM_BP_SAL","BP: CRM Sales View","0000","X","2","0","0","","","","","0000","",null,null,null,null,null,4,"E3FJ8ERLJU845UJO3V3FXN76J","DLW9P54P4AT0OYHVG7ZL1IM5E","0","1","","","","00","X","0","0","",""]
[null,null,null,null,null,null,null,null,null,null,null,null,null,null,null,null,null,null,null,null,null,null,null,null,null,null,null,null,null,null,null,null,null,null,null,null,null,null,null,null,null,null,null,null,null,null,null,null,null,null,null,null,null,null,null,null,null,null,null,null,null,null,null,null,null,null,null,null,null,null,null,null,null,null,null,null,null,null,null,null,null,null,null,null,null,null,null,null,null,null,null,null,null,null,null,null,null,null,null,null,null,null,null,null,null,null,null,null,null,null,4,"0CUST_SALES","0CUST_GRP2","Customer group 2","0000","X","1","0","0","","","","","0000","",null,null,null,null,null,4,"E9E64DW2H5TW5C821HZU4B4RO","9VEXAVKBGLVPRM2LYAWT8O2BM","0","1","","","","00","X","0","0","",""]
[null,null,null,null,null,null,null,null,null,null,null,null,null,null,null,null,null,null,null,null,null,null,null,null,null,null,null,null,null,null,null,null,null,null,null,null,null,null,null,null,null,null,null,null,null,null,null,null,null,null,null,null,null,null,null,null,null,null,null,null,null,null,null,null,null,null,null,null,null,null,null,null,null,null,null,null,null,null,null,null,null,null,null,null,null,null,null,null,null,null,null,null,null,null,null,null,null,null,null,null,null,null,null,null,null,null,null,null,null,null,4,"0CUST_SALES","0CUST_GRP4","Customer group 4","0000","X","1","0","0","","","","","0000","",null,null,null,null,null,4,"E9E64DW2H5TW5C821HZU4B4RO","CB4LNO5UGX170R82X1SKZYXQI","0","1","","","","00","X","0","0","",""]
[null,null,null,null,null,null,null,null,null,null,null,null,null,null,null,null,null,null,null,null,null,null,null,null,null,null,null,null,null,null,null,null,null,null,null,null,null,null,null,null,null,null,null,null,null,null,null,null,null,null,null,null,null,null,null,null,null,null,null,null,null,null,null,null,null,null,null,null,null,null,null,null,null,null,null,null,null,null,null,null,null,null,null,null,null,null,null,null,null,null,null,null,null,null,null,null,null,null,null,null,null,null,null,null,null,null,null,null,null,null,4,"0CUST_SALES","0SALES_DIST","Sales District","0000","X","1","0","0","","","","","0000","",null,null,null,null,null,4,"EAYTKKPI5LLOOQDFMTH1E15VF","8VM70DOM0541L205HX82GQTS1","0","2","","","","00","X","0","0","",""]
[null,null,null,null,null,null,null,null,null,null,null,null,null,null,null,null,null,null,null,null,null,null,null,null,null,null,null,null,null,null,null,null,null,null,null,null,null,null,null,null,null,null,null,null,null,null,null,null,null,null,null,null,null,null,null,null,null,null,null,null,null,null,null,null,null,null,null,null,null,null,null,null,null,null,null,null,null,null,null,null,null,null,null,null,null,null,null,null,null,null,null,null,null,null,null,null,null,null,null,null,null,null,null,null,null,null,null,null,null,null,4,"0CUST_SALES","CHSHOP","Shop","0000","X","2","0","0","","","","","0000","",null,null,null,null,null,4,"EAYTKKPI5LLOOQDFMTH1E15VF","CLLNFQKTMRYLVSUHUSN173QAV","","2","","","","00","X","0","0","",""]
[null,null,null,null,null,null,null,null,null,null,null,null,null,null,null,null,null,null,null,null,null,null,null,null,null,null,null,null,null,null,null,null,null,null,null,null,null,null,null,null,null,null,null,null,null,null,null,null,null,null,null,null,null,null,null,null,null,null,null,null,null,null,null,null,null,null,null,null,null,null,null,null,null,null,null,null,null,null,null,null,null,null,null,null,null,null,null,null,null,null,null,null,null,null,null,null,null,null,null,null,null,null,null,null,null,null,null,null,null,null,4,"0CUST_SALES","CHSREPSHI","Sales Rep (Ship-To)","0000","X","1","0","0","","","","","0000","",null,null,null,null,null,4,"EAYTKKPI5LLOOQDFMTH1E15VF","D3T5FYJK7PWFTR9ZIOUJLTV60","0","2","","","","00","X","0","0","",""]
[null,null,null,null,null,null,null,null,null,null,null,null,null,null,null,null,null,null,null,null,null,null,null,null,null,null,null,null,null,null,null,null,null,null,null,null,null,null,null,null,null,null,null,null,null,null,null,null,null,null,null,null,null,null,null,null,null,null,null,null,null,null,null,null,null,null,null,null,null,null,null,null,null,null,null,null,null,null,null,null,null,null,null,null,null,null,null,null,null,null,null,null,null,null,null,null,null,null,null,null,null,null,null,null,null,null,null,null,null,null,4,"0PLANT","0COMP_CODE","Company code","0000","X","0","0","0","","","","","0000","",null,null,null,null,null,4,"EE2F0EO3F4TR8X88MYRIJC69T","8VM70DOM0541L205HX82GQTS1","0","1","","","","00","X","0","0","",""]
[null,null,null,null,null,null,null,null,null,null,null,null,null,null,null,null,null,null,null,null,null,null,null,null,null,null,null,null,null,null,null,null,null,null,null,null,null,null,null,null,null,null,null,null,null,null,null,null,null,null,null,null,null,null,null,null,null,null,null,null,null,null,null,null,null,null,null,null,null,null,null,null,null,null,null,null,null,null,null,null,null,null,null,null,null,null,null,null,null,null,null,null,null,null,null,null,null,null,null,null,null,null,null,null,null,null,null,null,null,null,4,"0PLANT","0LATITUDE","Latitude","0000","X","2","0","0","","","","","0000","",null,null,null,null,null,4,"EE2F0EO3F4TR8X88MYRIJC69T","DLW9P54P4AT0OYHVG7ZL1IM5E","0","1","","","","00","X","0","0","",""]
[null,null,null,null,null,null,null,null,null,null,null,null,null,null,null,null,null,null,null,null,null,null,null,null,null,null,null,null,null,null,null,null,null,null,null,null,null,null,null,null,null,null,null,null,null,null,null,null,null,null,null,null,null,null,null,null,null,null,null,null,null,null,null,null,null,null,null,null,null,null,null,null,null,null,null,null,null,null,null,null,null,null,null,null,null,null,null,null,null,null,null,null,null,null,null,null,null,null,null,null,null,null,null,null,null,null,null,null,null,null,4,"0PLANT","0LONGITUDE","Longitude","0000","X","2","0","0","","","","","0000","",null,null,null,null,null,4,"EK035X7VEQYJPDWIQ6JCMKQHJ","85T7YQIWK1QB9ILJLJ1SQZN8J","","","","","","00","X","0","0","",""]
[null,null,null,null,null,null,null,null,null,null,null,null,null,null,null,null,null,null,null,null,null,null,null,null,null,null,null,null,null,null,null,null,null,null,null,null,null,null,null,null,null,null,null,null,null,null,null,null,null,null,null,null,null,null,null,null,null,null,null,null,null,null,null,null,null,null,null,null,null,null,null,null,null,null,null,null,null,null,null,null,null,null,null,null,null,null,null,null,null,null,null,null,null,null,null,null,null,null,null,null,null,null,null,null,null,null,null,null,null,null,4,"0PLANT","0PRECISID","Geo-precision","0000","X","2","0","0","","","","","0000","",null,null,null,null,null,4,"EK035X7VEQYJPDWIQ6JCMKQHJ","CB4LNO5UGX170R82X1SKZYXQI","","","","","","00","X","0","0","",""]
[null,null,null,null,null,null,null,null,null,null,null,null,null,null,null,null,null,null,null,null,null,null,null,null,null,null,null,null,null,null,null,null,null,null,null,null,null,null,null,null,null,null,null,null,null,null,null,null,null,null,null,null,null,null,null,null,null,null,null,null,null,null,null,null,null,null,null,null,null,null,null,null,null,null,null,null,null,null,null,null,null,null,null,null,null,null,null,null,null,null,null,null,null,null,null,null,null,null,null,null,null,null,null,null,null,null,null,null,null,null,4,"0PLANT","0RMA_ALLOC","Allocation Target","0000","X","2","0","0","","","","","0000","",null,null,null,null,null,4,"F3M56BBH87I3POUTTE692V0SE","40OMIIL7VXC390GHTHLXLN24I","","","","","","00","X","0","0","",""]
[null,null,null,null,null,null,null,null,null,null,null,null,null,null,null,null,null,null,null,null,null,null,null,null,null,null,null,null,null,null,null,null,null,null,null,null,null,null,null,null,null,null,null,null,null,null,null,null,null,null,null,null,null,null,null,null,null,null,null,null,null,null,null,null,null,null,null,null,null,null,null,null,null,null,null,null,null,null,null,null,null,null,null,null,null,null,null,null,null,null,null,null,null,null,null,null,null,null,null,null,null,null,null,null,null,null,null,null,null,null,4,"0PLANT","0RT_AREA","Sales Area","0000","X","2","0","0","","","","","0000","",null,null,null,null,null,4,"F3M56BBH87I3POUTTE692V0SE","CB4LNO5UGX170R82X1SKZYXQI","","","","","","00","X","0","0","",""]
[null,null,null,null,null,null,null,null,null,null,null,null,null,null,null,null,null,null,null,null,null,null,null,null,null,null,null,null,null,null,null,null,null,null,null,null,null,null,null,null,null,null,null,null,null,null,null,null,null,null,null,null,null,null,null,null,null,null,null,null,null,null,null,null,null,null,null,null,null,null,null,null,null,null,null,null,null,null,null,null,null,null,null,null,null,null,null,null,null,null,null,null,null,null,null,null,null,null,null,null,null,null,null,null,null,null,null,null,null,null,4,"0PLANT","0SALESORG","Sales Organization","0000","X","0","0","0","","","","","0000",""]
[null,null,null,null,null,null,null,null,null,null,null,null,null,null,null,null,null,null,null,null,null,null,null,null,null,null,null,null,null,null,null,null,null,null,null,null,null,null,null,null,null,null,null,null,null,null,null,null,null,null,null,null,null,null,null,null,null,null,null,null,null,null,null,null,null,null,null,null,null,null,null,null,null,null,null,null,null,null,null,null,null,null,null,null,null,null,null,null,null,null,null,null,null,null,null,null,null,null,null,null,null,null,null,null,null,null,null,null,null,null,4,"0SHIP_TO","0ADDR_NUMBR","Address","0000","X","2","0","0","","","","","0000",""]
[null,null,null,null,null,null,null,null,null,null,null,null,null,null,null,null,null,null,null,null,null,null,null,null,null,null,null,null,null,null,null,null,null,null,null,null,null,null,null,null,null,null,null,null,null,null,null,null,null,null,null,null,null,null,null,null,null,null,null,null,null,null,null,null,null,null,null,null,null,null,null,null,null,null,null,null,null,null,null,null,null,null,null,null,null,null,null,null,null,null,null,null,null,null,null,null,null,null,null,null,null,null,null,null,null,null,null,null,null,null,4,"0SHIP_TO","0ALTITUDE","Geographical Height","0000","X","2","0","0","","","","","0000",""]
[null,null,null,null,null,null,null,null,null,null,null,null,null,null,null,null,null,null,null,null,null,null,null,null,null,null,null,null,null,null,null,null,null,null,null,null,null,null,null,null,null,null,null,null,null,null,null,null,null,null,null,null,null,null,null,null,null,null,null,null,null,null,null,null,null,null,null,null,null,null,null,null,null,null,null,null,null,null,null,null,null,null,null,null,null,null,null,null,null,null,null,null,null,null,null,null,null,null,null,null,null,null,null,null,null,null,null,null,null,null,4,"0SHIP_TO","0CUST_MKT","Customer Market","0000","X","1","0","0","","","","","0000",""]
[null,null,null,null,null,null,null,null,null,null,null,null,null,null,null,null,null,null,null,null,null,null,null,null,null,null,null,null,null,null,null,null,null,null,null,null,null,null,null,null,null,null,null,null,null,null,null,null,null,null,null,null,null,null,null,null,null,null,null,null,null,null,null,null,null,null,null,null,null,null,null,null,null,null,null,null,null,null,null,null,null,null,null,null,null,null,null,null,null,null,null,null,null,null,null,null,null,null,null,null,null,null,null,null,null,null,null,null,null,null,4,"0SHIP_TO","0FAX_NUM","Fax Number","0000","X","2","0","0","","","","","0000",""]
[null,null,null,null,null,null,null,null,null,null,null,null,null,null,null,null,null,null,null,null,null,null,null,null,null,null,null,null,null,null,null,null,null,null,null,null,null,null,null,null,null,null,null,null,null,null,null,null,null,null,null,null,null,null,null,null,null,null,null,null,null,null,null,null,null,null,null,null,null,null,null,null,null,null,null,null,null,null,null,null,null,null,null,null,null,null,null,null,null,null,null,null,null,null,null,null,null,null,null,null,null,null,null,null,null,null,null,null,null,null,4,"0SHIP_TO","0FISCVARNT","Fiscal Year Variant","0000","X","2","0","0","","","","","0000",""]
[null,null,null,null,null,null,null,null,null,null,null,null,null,null,null,null,null,null,null,null,null,null,null,null,null,null,null,null,null,null,null,null,null,null,null,null,null,null,null,null,null,null,null,null,null,null,null,null,null,null,null,null,null,null,null,null,null,null,null,null,null,null,null,null,null,null,null,null,null,null,null,null,null,null,null,null,null,null,null,null,null,null,null,null,null,null,null,null,null,null,null,null,null,null,null,null,null,null,null,null,null,null,null,null,null,null,null,null,null,null,4,"0SHIP_TO","0IND_CODE_1","Industry code 1","0000","X","1","0","0","","","","","0000",""]
[null,null,null,null,null,null,null,null,null,null,null,null,null,null,null,null,null,null,null,null,null,null,null,null,null,null,null,null,null,null,null,null,null,null,null,null,null,null,null,null,null,null,null,null,null,null,null,null,null,null,null,null,null,null,null,null,null,null,null,null,null,null,null,null,null,null,null,null,null,null,null,null,null,null,null,null,null,null,null,null,null,null,null,null,null,null,null,null,null,null,null,null,null,null,null,null,null,null,null,null,null,null,null,null,null,null,null,null,null,null,4,"0SHIP_TO","0LATITUDE","Latitude","0000","X","2","0","0","","","","","0000",""]
[null,null,null,null,null,null,null,null,null,null,null,null,null,null,null,null,null,null,null,null,null,null,null,null,null,null,null,null,null,null,null,null,null,null,null,null,null,null,null,null,null,null,null,null,null,null,null,null,null,null,null,null,null,null,null,null,null,null,null,null,null,null,null,null,null,null,null,null,null,null,null,null,null,null,null,null,null,null,null,null,null,null,null,null,null,null,null,null,null,null,null,null,null,null,null,null,null,null,null,null,null,null,null,null,null,null,null,null,null,null,4,"0SHIP_TO","0NAME","Name","0000","X","2","0","0","","","","","0000",""]
[null,null,null,null,null,null,null,null,null,null,null,null,null,null,null,null,null,null,null,null,null,null,null,null,null,null,null,null,null,null,null,null,null,null,null,null,null,null,null,null,null,null,null,null,null,null,null,null,null,null,null,null,null,null,null,null,null,null,null,null,null,null,null,null,null,null,null,null,null,null,null,null,null,null,null,null,null,null,null,null,null,null,null,null,null,null,null,null,null,null,null,null,null,null,null,null,null,null,null,null,null,null,null,null,null,null,null,null,null,null,4,"0SHIP_TO","0OUTL_TYPE","Branch Category","0000","X","1","0","0","","","","","0000",""]
[null,null,null,null,null,null,null,null,null,null,null,null,null,null,null,null,null,null,null,null,null,null,null,null,null,null,null,null,null,null,null,null,null,null,null,null,null,null,null,null,null,null,null,null,null,null,null,null,null,null,null,null,null,null,null,null,null,null,null,null,null,null,null,null,null,null,null,null,null,null,null,null,null,null,null,null,null,null,null,null,null,null,null,null,null,null,null,null,null,null,null,null,null,null,null,null,null,null,null,null,null,null,null,null,null,null,null,null,null,null,4,"0SHIP_TO","0POBOX_LOC","CAM: PO Box Location","0000","X","2","0","0","","","","","0000",""]
[null,null,null,null,null,null,null,null,null,null,null,null,null,null,null,null,null,null,null,null,null,null,null,null,null,null,null,null,null,null,null,null,null,null,null,null,null,null,null,null,null,null,null,null,null,null,null,null,null,null,null,null,null,null,null,null,null,null,null,null,null,null,null,null,null,null,null,null,null,null,null,null,null,null,null,null,null,null,null,null,null,null,null,null,null,null,null,null,null,null,null,null,null,null,null,null,null,null,null,null,null,null,null,null,null,null,null,null,null,null,4,"0SHIP_TO","0REGION","Region","0000","X","1","0","0","","","","","0000",""]
[null,null,null,null,null,null,null,null,null,null,null,null,null,null,null,null,null,null,null,null,null,null,null,null,null,null,null,null,null,null,null,null,null,null,null,null,null,null,null,null,null,null,null,null,null,null,null,null,null,null,null,null,null,null,null,null,null,null,null,null,null,null,null,null,null,null,null,null,null,null,null,null,null,null,null,null,null,null,null,null,null,null,null,null,null,null,null,null,null,null,null,null,null,null,null,null,null,null,null,null,null,null,null,null,null,null,null,null,null,null,4,"0SHIP_TO","0USAGE_IND","Usage indicator","0000","X","1","0","0","","","","","0000",""]
[null,null,null,null,null,null,null,null,null,null,null,null,null,null,null,null,null,null,null,null,null,null,null,null,null,null,null,null,null,null,null,null,null,null,null,null,null,null,null,null,null,null,null,null,null,null,null,null,null,null,null,null,null,null,null,null,null,null,null,null,null,null,null,null,null,null,null,null,null,null,null,null,null,null,null,null,null,null,null,null,null,null,null,null,null,null,null,null,null,null,null,null,null,null,null,null,null,null,null,null,null,null,null,null,null,null,null,null,null,null,4,"0SHIP_TO","CHCUABM20","CU - ABM Counter","0000","X","2","0","0","","","","","0000",""]
[null,null,null,null,null,null,null,null,null,null,null,null,null,null,null,null,null,null,null,null,null,null,null,null,null,null,null,null,null,null,null,null,null,null,null,null,null,null,null,null,null,null,null,null,null,null,null,null,null,null,null,null,null,null,null,null,null,null,null,null,null,null,null,null,null,null,null,null,null,null,null,null,null,null,null,null,null,null,null,null,null,null,null,null,null,null,null,null,null,null,null,null,null,null,null,null,null,null,null,null,null,null,null,null,null,null,null,null,null,null,4,"0SHIP_TO","CHCUABM35","CU - ABM Partner Sto","0000","X","2","0","0","","","","","0000",""]
[null,null,null,null,null,null,null,null,null,null,null,null,null,null,null,null,null,null,null,null,null,null,null,null,null,null,null,null,null,null,null,null,null,null,null,null,null,null,null,null,null,null,null,null,null,null,null,null,null,null,null,null,null,null,null,null,null,null,null,null,null,null,null,null,null,null,null,null,null,null,null,null,null,null,null,null,null,null,null,null,null,null,null,null,null,null,null,null,null,null,null,null,null,null,null,null,null,null,null,null,null,null,null,null,null,null,null,null,null,null,4,"0SHIP_TO","CHCUBPHOM","CU - Brand Perf HOM","0000","X","1","0","0","","","","","0000",""]
[null,null,null,null,null,null,null,null,null,null,null,null,null,null,null,null,null,null,null,null,null,null,null,null,null,null,null,null,null,null,null,null,null,null,null,null,null,null,null,null,null,null,null,null,null,null,null,null,null,null,null,null,null,null,null,null,null,null,null,null,null,null,null,null,null,null,null,null,null,null,null,null,null,null,null,null,null,null,null,null,null,null,null,null,null,null,null,null,null,null,null,null,null,null,null,null,null,null,null,null,null,null,null,null,null,null,null,null,null,null,4,"0SHIP_TO","CHCUBPVAL","CU - Brand Perf VAL","0000","X","1","0","0","","","","","0000",""]
[null,null,null,null,null,null,null,null,null,null,null,null,null,null,null,null,null,null,null,null,null,null,null,null,null,null,null,null,null,null,null,null,null,null,null,null,null,null,null,null,null,null,null,null,null,null,null,null,null,null,null,null,null,null,null,null,null,null,null,null,null,null,null,null,null,null,null,null,null,null,null,null,null,null,null,null,null,null,null,null,null,null,null,null,null,null,null,null,null,null,null,null,null,null,null,null,null,null,null,null,null,null,null,null,null,null,null,null,null,null,4,"0SHIP_TO","CHCUBUSTY","CU - Business Type","0000","X","1","0","0","","","","","0000",""]
[null,null,null,null,null,null,null,null,null,null,null,null,null,null,null,null,null,null,null,null,null,null,null,null,null,null,null,null,null,null,null,null,null,null,null,null,null,null,null,null,null,null,null,null,null,null,null,null,null,null,null,null,null,null,null,null,null,null,null,null,null,null,null,null,null,null,null,null,null,null,null,null,null,null,null,null,null,null,null,null,null,null,null,null,null,null,null,null,null,null,null,null,null,null,null,null,null,null,null,null,null,null,null,null,null,null,null,null,null,null,4,"0SHIP_TO","CHCUCON90","CU - Cons. Serv. No","0000","X","2","0","0","","","","","0000",""]
[null,null,null,null,null,null,null,null,null,null,null,null,null,null,null,null,null,null,null,null,null,null,null,null,null,null,null,null,null,null,null,null,null,null,null,null,null,null,null,null,null,null,null,null,null,null,null,null,null,null,null,null,null,null,null,null,null,null,null,null,null,null,null,null,null,null,null,null,null,null,null,null,null,null,null,null,null,null,null,null,null,null,null,null,null,null,null,null,null,null,null,null,null,null,null,null,null,null,null,null,null,null,null,null,null,null,null,null,null,null,4,"0SHIP_TO","CHCUFSF10","CU - FSF Sales Reps","0000","X","2","0","0","","","","","0000",""]
[null,null,null,null,null,null,null,null,null,null,null,null,null,null,null,null,null,null,null,null,null,null,null,null,null,null,null,null,null,null,null,null,null,null,null,null,null,null,null,null,null,null,null,null,null,null,null,null,null,null,null,null,null,null,null,null,null,null,null,null,null,null,null,null,null,null,null,null,null,null,null,null,null,null,null,null,null,null,null,null,null,null,null,null,null,null,null,null,null,null,null,null,null,null,null,null,null,null,null,null,null,null,null,null,null,null,null,null,null,null,4,"0SHIP_TO","CHCUFSF30","CU - FSF Rack Jobber","0000","X","2","0","0","","","","","0000",""]
[null,null,null,null,null,null,null,null,null,null,null,null,null,null,null,null,null,null,null,null,null,null,null,null,null,null,null,null,null,null,null,null,null,null,null,null,null,null,null,null,null,null,null,null,null,null,null,null,null,null,null,null,null,null,null,null,null,null,null,null,null,null,null,null,null,null,null,null,null,null,null,null,null,null,null,null,null,null,null,null,null,null,null,null,null,null,null,null,null,null,null,null,null,null,null,null,null,null,null,null,null,null,null,null,null,null,null,null,null,null,4,"0SHIP_TO","CHCUKEY00","CU - KeyAcc No","0000","X","2","0","0","","","","","0000",""]
[null,null,null,null,null,null,null,null,null,null,null,null,null,null,null,null,null,null,null,null,null,null,null,null,null,null,null,null,null,null,null,null,null,null,null,null,null,null,null,null,null,null,null,null,null,null,null,null,null,null,null,null,null,null,null,null,null,null,null,null,null,null,null,null,null,null,null,null,null,null,null,null,null,null,null,null,null,null,null,null,null,null,null,null,null,null,null,null,null,null,null,null,null,null,null,null,null,null,null,null,null,null,null,null,null,null,null,null,null,null,4,"0SHIP_TO","CHCULFCYR","CU - LifeCycleReason","0000","X","1","0","0","","","","","0000",""]
[null,null,null,null,null,null,null,null,null,null,null,null,null,null,null,null,null,null,null,null,null,null,null,null,null,null,null,null,null,null,null,null,null,null,null,null,null,null,null,null,null,null,null,null,null,null,null,null,null,null,null,null,null,null,null,null,null,null,null,null,null,null,null,null,null,null,null,null,null,null,null,null,null,null,null,null,null,null,null,null,null,null,null,null,null,null,null,null,null,null,null,null,null,null,null,null,null,null,null,null,null,null,null,null,null,null,null,null,null,null,4,"0SHIP_TO","CHCUPOSLC","CU - POS Location","0000","X","1","0","0","","","","","0000",""]
[null,null,null,null,null,null,null,null,null,null,null,null,null,null,null,null,null,null,null,null,null,null,null,null,null,null,null,null,null,null,null,null,null,null,null,null,null,null,null,null,null,null,null,null,null,null,null,null,null,null,null,null,null,null,null,null,null,null,null,null,null,null,null,null,null,null,null,null,null,null,null,null,null,null,null,null,null,null,null,null,null,null,null,null,null,null,null,null,null,null,null,null,null,null,null,null,null,null,null,null,null,null,null,null,null,null,null,null,null,null,4,"0SHIP_TO","CHCUSLSCH","CU - Sales Channel","0000","X","1","0","0","","","","","0000",""]
[null,null,null,null,null,null,null,null,null,null,null,null,null,null,null,null,null,null,null,null,null,null,null,null,null,null,null,null,null,null,null,null,null,null,null,null,null,null,null,null,null,null,null,null,null,null,null,null,null,null,null,null,null,null,null,null,null,null,null,null,null,null,null,null,null,null,null,null,null,null,null,null,null,null,null,null,null,null,null,null,null,null,null,null,null,null,null,null,null,null,null,null,null,null,null,null,null,null,null,null,null,null,null,null,null,null,null,null,null,null,4,"0SHIP_TO","CHCUSRV30","CU - SM noVisits","0000","X","2","0","0","","","","","0000",""]
[null,null,null,null,null,null,null,null,null,null,null,null,null,null,null,null,null,null,null,null,null,null,null,null,null,null,null,null,null,null,null,null,null,null,null,null,null,null,null,null,null,null,null,null,null,null,null,null,null,null,null,null,null,null,null,null,null,null,null,null,null,null,null,null,null,null,null,null,null,null,null,null,null,null,null,null,null,null,null,null,null,null,null,null,null,null,null,null,null,null,null,null,null,null,null,null,null,null,null,null,null,null,null,null,null,null,null,null,null,null,4,"0SHIP_TO","CHCUVOL","CU - Sales Volume","0000","X","1","0","0","","","","","0000",""]
[null,null,null,null,null,null,null,null,null,null,null,null,null,null,null,null,null,null,null,null,null,null,null,null,null,null,null,null,null,null,null,null,null,null,null,null,null,null,null,null,null,null,null,null,null,null,null,null,null,null,null,null,null,null,null,null,null,null,null,null,null,null,null,null,null,null,null,null,null,null,null,null,null,null,null,null,null,null,null,null,null,null,null,null,null,null,null,null,null,null,null,null,null,null,null,null,null,null,null,null,null,null,null,null,null,null,null,null,null,null,4,"0MATERIAL","0AF_COLOR","Colour","0000","X","1","0","0","","","","","0000",""]
[null,null,null,null,null,null,null,null,null,null,null,null,null,null,null,null,null,null,null,null,null,null,null,null,null,null,null,null,null,null,null,null,null,null,null,null,null,null,null,null,null,null,null,null,null,null,null,null,null,null,null,null,null,null,null,null,null,null,null,null,null,null,null,null,null,null,null,null,null,null,null,null,null,null,null,null,null,null,null,null,null,null,null,null,null,null,null,null,null,null,null,null,null,null,null,null,null,null,null,null,null,null,null,null,null,null,null,null,null,null,4,"0MATERIAL","0APO_PROD","Product","0000","X","1","0","0","","","","","0000",""]
[null,null,null,null,null,null,null,null,null,null,null,null,null,null,null,null,null,null,null,null,null,null,null,null,null,null,null,null,null,null,null,null,null,null,null,null,null,null,null,null,null,null,null,null,null,null,null,null,null,null,null,null,null,null,null,null,null,null,null,null,null,null,null,null,null,null,null,null,null,null,null,null,null,null,null,null,null,null,null,null,null,null,null,null,null,null,null,null,null,null,null,null,null,null,null,null,null,null,null,null,null,null,null,null,null,null,null,null,null,null,4,"0MATERIAL","0BASE_UOM","Base Unit","0000","X","1","0","0","","","","","0000",""]
[null,null,null,null,null,null,null,null,null,null,null,null,null,null,null,null,null,null,null,null,null,null,null,null,null,null,null,null,null,null,null,null,null,null,null,null,null,null,null,null,null,null,null,null,null,null,null,null,null,null,null,null,null,null,null,null,null,null,null,null,null,null,null,null,null,null,null,null,null,null,null,null,null,null,null,null,null,null,null,null,null,null,null,null,null,null,null,null,null,null,null,null,null,null,null,null,null,null,null,null,null,null,null,null,null,null,null,null,null,null,4,"0MATERIAL","0EANUPC","EAN/UPC","0000","X","2","0","0","","","","","0000",""]
[null,null,null,null,null,null,null,null,null,null,null,null,null,null,null,null,null,null,null,null,null,null,null,null,null,null,null,null,null,null,null,null,null,null,null,null,null,null,null,null,null,null,null,null,null,null,null,null,null,null,null,null,null,null,null,null,null,null,null,null,null,null,null,null,null,null,null,null,null,null,null,null,null,null,null,null,null,null,null,null,null,null,null,null,null,null,null,null,null,null,null,null,null,null,null,null,null,null,null,null,null,null,null,null,null,null,null,null,null,null,4,"0MATERIAL","0GROSS_WT","Gross weight","0000","X","2","0","0","","","","","0000",""]
[null,null,null,null,null,null,null,null,null,null,null,null,null,null,null,null,null,null,null,null,null,null,null,null,null,null,null,null,null,null,null,null,null,null,null,null,null,null,null,null,null,null,null,null,null,null,null,null,null,null,null,null,null,null,null,null,null,null,null,null,null,null,null,null,null,null,null,null,null,null,null,null,null,null,null,null,null,null,null,null,null,null,null,null,null,null,null,null,null,null,null,null,null,null,null,null,null,null,null,null,null,null,null,null,null,null,null,null,null,null,4,"0MATERIAL","0LOGSYS","Source System","0000","X","1","0","0","","","","","0000",""]
[null,null,null,null,null,null,null,null,null,null,null,null,null,null,null,null,null,null,null,null,null,null,null,null,null,null,null,null,null,null,null,null,null,null,null,null,null,null,null,null,null,null,null,null,null,null,null,null,null,null,null,null,null,null,null,null,null,null,null,null,null,null,null,null,null,null,null,null,null,null,null,null,null,null,null,null,null,null,null,null,null,null,null,null,null,null,null,null,null,null,null,null,null,null,null,null,null,null,null,null,null,null,null,null,null,null,null,null,null,null,4,"0MATERIAL","0MATL_TYPE","Material type","0000","X","1","0","0","","","","","0000",""]
[null,null,null,null,null,null,null,null,null,null,null,null,null,null,null,null,null,null,null,null,null,null,null,null,null,null,null,null,null,null,null,null,null,null,null,null,null,null,null,null,null,null,null,null,null,null,null,null,null,null,null,null,null,null,null,null,null,null,null,null,null,null,null,null,null,null,null,null,null,null,null,null,null,null,null,null,null,null,null,null,null,null,null,null,null,null,null,null,null,null,null,null,null,null,null,null,null,null,null,null,null,null,null,null,null,null,null,null,null,null,4,"0MATERIAL","0PROD_HIER","Prod.hierarchy","0000","X","1","0","0","","","","","0000",""]
[null,null,null,null,null,null,null,null,null,null,null,null,null,null,null,null,null,null,null,null,null,null,null,null,null,null,null,null,null,null,null,null,null,null,null,null,null,null,null,null,null,null,null,null,null,null,null,null,null,null,null,null,null,null,null,null,null,null,null,null,null,null,null,null,null,null,null,null,null,null,null,null,null,null,null,null,null,null,null,null,null,null,null,null,null,null,null,null,null,null,null,null,null,null,null,null,null,null,null,null,null,null,null,null,null,null,null,null,null,null,4,"0MATERIAL","0RT_SEASON","Season","0000","X","1","0","0","","","","","0000",""]
[null,null,null,null,null,null,null,null,null,null,null,null,null,null,null,null,null,null,null,null,null,null,null,null,null,null,null,null,null,null,null,null,null,null,null,null,null,null,null,null,null,null,null,null,null,null,null,null,null,null,null,null,null,null,null,null,null,null,null,null,null,null,null,null,null,null,null,null,null,null,null,null,null,null,null,null,null,null,null,null,null,null,null,null,null,null,null,null,null,null,null,null,null,null,null,null,null,null,null,null,null,null,null,null,null,null,null,null,null,null,4,"0MATERIAL","0UCFUNCCLAS","Function Class","0000","X","1","0","0","","","","","0000",""]
[null,null,null,null,null,null,null,null,null,null,null,null,null,null,null,null,null,null,null,null,null,null,null,null,null,null,null,null,null,null,null,null,null,null,null,null,null,null,null,null,null,null,null,null,null,null,null,null,null,null,null,null,null,null,null,null,null,null,null,null,null,null,null,null,null,null,null,null,null,null,null,null,null,null,null,null,null,null,null,null,null,null,null,null,null,null,null,null,null,null,null,null,null,null,null,null,null,null,null,null,null,null,null,null,null,null,null,null,null,null,4,"0MATERIAL","0VOLUME","Volume","0000","X","2","0","0","","","","","0000",""]
[null,null,null,null,null,null,null,null,null,null,null,null,null,null,null,null,null,null,null,null,null,null,null,null,null,null,null,null,null,null,null,null,null,null,null,null,null,null,null,null,null,null,null,null,null,null,null,null,null,null,null,null,null,null,null,null,null,null,null,null,null,null,null,null,null,null,null,null,null,null,null,null,null,null,null,null,null,null,null,null,null,null,null,null,null,null,null,null,null,null,null,null,null,null,null,null,null,null,null,null,null,null,null,null,null,null,null,null,null,null,4,"0MATERIAL","CHCOVSTRA","Coverage strategy","0000","X","2","0","0","","","","","0000",""]
[null,null,null,null,null,null,null,null,null,null,null,null,null,null,null,null,null,null,null,null,null,null,null,null,null,null,null,null,null,null,null,null,null,null,null,null,null,null,null,null,null,null,null,null,null,null,null,null,null,null,null,null,null,null,null,null,null,null,null,null,null,null,null,null,null,null,null,null,null,null,null,null,null,null,null,null,null,null,null,null,null,null,null,null,null,null,null,null,null,null,null,null,null,null,null,null,null,null,null,null,null,null,null,null,null,null,null,null,null,null,4,"0MATERIAL","CHGRID_V1","AFS Grid Dim Length1","0000","X","1","0","0","","","","","0000",""]
[null,null,null,null,null,null,null,null,null,null,null,null,null,null,null,null,null,null,null,null,null,null,null,null,null,null,null,null,null,null,null,null,null,null,null,null,null,null,null,null,null,null,null,null,null,null,null,null,null,null,null,null,null,null,null,null,null,null,null,null,null,null,null,null,null,null,null,null,null,null,null,null,null,null,null,null,null,null,null,null,null,null,null,null,null,null,null,null,null,null,null,null,null,null,null,null,null,null,null,null,null,null,null,null,null,null,null,null,null,null,4,"0MATERIAL","CHPGCATEG","Product Category","0000","X","1","0","0","","","","","0000",""]
[null,null,null,null,null,null,null,null,null,null,null,null,null,null,null,null,null,null,null,null,null,null,null,null,null,null,null,null,null,null,null,null,null,null,null,null,null,null,null,null,null,null,null,null,null,null,null,null,null,null,null,null,null,null,null,null,null,null,null,null,null,null,null,null,null,null,null,null,null,null,null,null,null,null,null,null,null,null,null,null,null,null,null,null,null,null,null,null,null,null,null,null,null,null,null,null,null,null,null,null,null,null,null,null,null,null,null,null,null,null,4,"0MATERIAL","CHPGGROUP","Product Group","0000","X","1","0","0","","","","","0000",""]
[null,null,null,null,null,null,null,null,null,null,null,null,null,null,null,null,null,null,null,null,null,null,null,null,null,null,null,null,null,null,null,null,null,null,null,null,null,null,null,null,null,null,null,null,null,null,null,null,null,null,null,null,null,null,null,null,null,null,null,null,null,null,null,null,null,null,null,null,null,null,null,null,null,null,null,null,null,null,null,null,null,null,null,null,null,null,null,null,null,null,null,null,null,null,null,null,null,null,null,null,null,null,null,null,null,null,null,null,null,null,4,"0MATERIAL","CHSERIESG","Sales Series (glob.)","0000","X","0","0","0","","","","","0000",""]
[null,null,null,null,null,null,null,null,null,null,null,null,null,null,null,null,null,null,null,null,null,null,null,null,null,null,null,null,null,null,null,null,null,null,null,null,null,null,null,null,null,null,null,null,null,null,null,null,null,null,null,null,null,null,null,null,null,null,null,null,null,null,null,null,null,null,null,null,null,null,null,null,null,null,null,null,null,null,null,null,null,null,null,null,null,null,null,null,null,null,null,null,null,null,null,null,null,null,null,null,null,null,null,null,null,null,null,null,null,null,4,"0MATERIAL","CHTCG","TCG technical capaci","0000","X","1","0","0","","","","","0000",""]
[null,null,null,null,null,null,null,null,null,null,null,null,null,null,null,null,null,null,null,null,null,null,null,null,null,null,null,null,null,null,null,null,null,null,null,null,null,null,null,null,null,null,null,null,null,null,null,null,null,null,null,null,null,null,null,null,null,null,null,null,null,null,null,null,null,null,null,null,null,null,null,null,null,null,null,null,null,null,null,null,null,null,null,null,null,null,null,null,null,null,null,null,null,null,null,null,null,null,null,null,null,null,null,null,null,null,null,null,null,null,4,"0MATERIAL","CH_MSTAE","X-plant status","0000","X","1","0","0","","","","","0000",""]
[null,null,null,null,null,null,null,null,null,null,null,null,null,null,null,null,null,null,null,null,null,null,null,null,null,null,null,null,null,null,null,null,null,null,null,null,null,null,null,null,null,null,null,null,null,null,null,null,null,null,null,null,null,null,null,null,null,null,null,null,null,null,null,null,null,null,null,null,null,null,null,null,null,null,null,null,null,null,null,null,null,null,null,null,null,null,null,null,null,null,null,null,null,null,null,null,null,null,null,null,null,null,null,null,null,null,null,null,null,null,4,"0MAT_SALES","0BASE_UOM","Base Unit","0000","X","1","0","0","","","","","0000",""]
[null,null,null,null,null,null,null,null,null,null,null,null,null,null,null,null,null,null,null,null,null,null,null,null,null,null,null,null,null,null,null,null,null,null,null,null,null,null,null,null,null,null,null,null,null,null,null,null,null,null,null,null,null,null,null,null,null,null,null,null,null,null,null,null,null,null,null,null,null,null,null,null,null,null,null,null,null,null,null,null,null,null,null,null,null,null,null,null,null,null,null,null,null,null,null,null,null,null,null,null,null,null,null,null,null,null,null,null,null,null,4,"0MAT_SALES","0MATL_GRP_4","MaterialGroup 4","0000","X","0","0","0","","","","","0000",""]
[null,null,null,null,null,null,null,null,null,null,null,null,null,null,null,null,null,null,null,null,null,null,null,null,null,null,null,null,null,null,null,null,null,null,null,null,null,null,null,null,null,null,null,null,null,null,null,null,null,null,null,null,null,null,null,null,null,null,null,null,null,null,null,null,null,null,null,null,null,null,null,null,null,null,null,null,null,null,null,null,null,null,null,null,null,null,null,null,null,null,null,null,null,null,null,null,null,null,null,null,null,null,null,null,null,null,null,null,null,null,4,"0MAT_SALES","0PH_REFNR","Pharma Central No.","0000","X","2","0","0","","","","","0000",""]
[null,null,null,null,null,null,null,null,null,null,null,null,null,null,null,null,null,null,null,null,null,null,null,null,null,null,null,null,null,null,null,null,null,null,null,null,null,null,null,null,null,null,null,null,null,null,null,null,null,null,null,null,null,null,null,null,null,null,null,null,null,null,null,null,null,null,null,null,null,null,null,null,null,null,null,null,null,null,null,null,null,null,null,null,null,null,null,null,null,null,null,null,null,null,null,null,null,null,null,null,null,null,null,null,null,null,null,null,null,null,4,"0MAT_SALES","CHPGBRAND","Brand","0000","X","1","0","0","","","","","0000",""]
[null,null,null,null,null,null,null,null,null,null,null,null,null,null,null,null,null,null,null,null,null,null,null,null,null,null,null,null,null,null,null,null,null,null,null,null,null,null,null,null,null,null,null,null,null,null,null,null,null,null,null,null,null,null,null,null,null,null,null,null,null,null,null,null,null,null,null,null,null,null,null,null,null,null,null,null,null,null,null,null,null,null,null,null,null,null,null,null,null,null,null,null,null,null,null,null,null,null,null,null,null,null,null,null,null,null,null,null,null,null,4,"0MAT_SALES","CHPGSEG","Glob. Segment","0000","X","1","0","0","","","","","0000",""]
[null,null,null,null,null,null,null,null,null,null,null,null,null,null,null,null,null,null,null,null,null,null,null,null,null,null,null,null,null,null,null,null,null,null,null,null,null,null,null,null,null,null,null,null,null,null,null,null,null,null,null,null,null,null,null,null,null,null,null,null,null,null,null,null,null,null,null,null,null,null,null,null,null,null,null,null,null,null,null,null,null,null,null,null,null,null,null,null,null,null,null,null,null,null,null,null,null,null,null,null,null,null,null,null,null,null,null,null,null,null,4,"0MAT_SALES","CHSERIESL","Sales Series (local)","0000","X","0","0","0","","","","","0000",""]
[null,null,null,null,null,null,null,null,null,null,null,null,null,null,null,null,null,null,null,null,null,null,null,null,null,null,null,null,null,null,null,null,null,null,null,null,null,null,null,null,null,null,null,null,null,null,null,null,null,null,null,null,null,null,null,null,null,null,null,null,null,null,null,null,null,null,null,null,null,null,null,null,null,null,null,null,null,null,null,null,null,null,null,null,null,null,null,null,null,null,null,null,null,null,null,null,null,null,null,null,null,null,null,null,null,null,null,null,null,null,4,"0PAYER","0ADDR_NUMBR","Address","0000","X","2","0","0","","","","","0000",""]
[null,null,null,null,null,null,null,null,null,null,null,null,null,null,null,null,null,null,null,null,null,null,null,null,null,null,null,null,null,null,null,null,null,null,null,null,null,null,null,null,null,null,null,null,null,null,null,null,null,null,null,null,null,null,null,null,null,null,null,null,null,null,null,null,null,null,null,null,null,null,null,null,null,null,null,null,null,null,null,null,null,null,null,null,null,null,null,null,null,null,null,null,null,null,null,null,null,null,null,null,null,null,null,null,null,null,null,null,null,null,4,"0PAYER","0CITY","Location","0000","X","2","0","0","","","","","0000",""]
[null,null,null,null,null,null,null,null,null,null,null,null,null,null,null,null,null,null,null,null,null,null,null,null,null,null,null,null,null,null,null,null,null,null,null,null,null,null,null,null,null,null,null,null,null,null,null,null,null,null,null,null,null,null,null,null,null,null,null,null,null,null,null,null,null,null,null,null,null,null,null,null,null,null,null,null,null,null,null,null,null,null,null,null,null,null,null,null,null,null,null,null,null,null,null,null,null,null,null,null,null,null,null,null,null,null,null,null,null,null,4,"0PAYER","0CITY_2","CAM: City District","0000","X","2","0","0","","","","","0000",""]
[null,null,null,null,null,null,null,null,null,null,null,null,null,null,null,null,null,null,null,null,null,null,null,null,null,null,null,null,null,null,null,null,null,null,null,null,null,null,null,null,null,null,null,null,null,null,null,null,null,null,null,null,null,null,null,null,null,null,null,null,null,null,null,null,null,null,null,null,null,null,null,null,null,null,null,null,null,null,null,null,null,null,null,null,null,null,null,null,null,null,null,null,null,null,null,null,null,null,null,null,null,null,null,null,null,null,null,null,null,null,4,"0PAYER","0FAX_NUM","Fax Number","0000","X","2","0","0","","","","","0000",""]
[null,null,null,null,null,null,null,null,null,null,null,null,null,null,null,null,null,null,null,null,null,null,null,null,null,null,null,null,null,null,null,null,null,null,null,null,null,null,null,null,null,null,null,null,null,null,null,null,null,null,null,null,null,null,null,null,null,null,null,null,null,null,null,null,null,null,null,null,null,null,null,null,null,null,null,null,null,null,null,null,null,null,null,null,null,null,null,null,null,null,null,null,null,null,null,null,null,null,null,null,null,null,null,null,null,null,null,null,null,null,4,"0PAYER","0INDUSTRY","Industry","0000","X","0","0","0","","","","","0000",""]
[null,null,null,null,null,null,null,null,null,null,null,null,null,null,null,null,null,null,null,null,null,null,null,null,null,null,null,null,null,null,null,null,null,null,null,null,null,null,null,null,null,null,null,null,null,null,null,null,null,null,null,null,null,null,null,null,null,null,null,null,null,null,null,null,null,null,null,null,null,null,null,null,null,null,null,null,null,null,null,null,null,null,null,null,null,null,null,null,null,null,null,null,null,null,null,null,null,null,null,null,null,null,null,null,null,null,null,null,null,null,4,"0PAYER","0KEYACCOUNT","Key Account","0000","X","2","0","0","","","","","0000",""]
[null,null,null,null,null,null,null,null,null,null,null,null,null,null,null,null,null,null,null,null,null,null,null,null,null,null,null,null,null,null,null,null,null,null,null,null,null,null,null,null,null,null,null,null,null,null,null,null,null,null,null,null,null,null,null,null,null,null,null,null,null,null,null,null,null,null,null,null,null,null,null,null,null,null,null,null,null,null,null,null,null,null,null,null,null,null,null,null,null,null,null,null,null,null,null,null,null,null,null,null,null,null,null,null,null,null,null,null,null,null,4,"0PAYER","0LANGU","Language Key","0000","X","2","0","0","","","","","0000",""]
[null,null,null,null,null,null,null,null,null,null,null,null,null,null,null,null,null,null,null,null,null,null,null,null,null,null,null,null,null,null,null,null,null,null,null,null,null,null,null,null,null,null,null,null,null,null,null,null,null,null,null,null,null,null,null,null,null,null,null,null,null,null,null,null,null,null,null,null,null,null,null,null,null,null,null,null,null,null,null,null,null,null,null,null,null,null,null,null,null,null,null,null,null,null,null,null,null,null,null,null,null,null,null,null,null,null,null,null,null,null,4,"0PAYER","0NAME2","Name 2","0000","X","2","0","0","","","","","0000",""]
[null,null,null,null,null,null,null,null,null,null,null,null,null,null,null,null,null,null,null,null,null,null,null,null,null,null,null,null,null,null,null,null,null,null,null,null,null,null,null,null,null,null,null,null,null,null,null,null,null,null,null,null,null,null,null,null,null,null,null,null,null,null,null,null,null,null,null,null,null,null,null,null,null,null,null,null,null,null,null,null,null,null,null,null,null,null,null,null,null,null,null,null,null,null,null,null,null,null,null,null,null,null,null,null,null,null,null,null,null,null,4,"0PAYER","0OUTL_TYPE","Branch Category","0000","X","1","0","0","","","","","0000",""]
[null,null,null,null,null,null,null,null,null,null,null,null,null,null,null,null,null,null,null,null,null,null,null,null,null,null,null,null,null,null,null,null,null,null,null,null,null,null,null,null,null,null,null,null,null,null,null,null,null,null,null,null,null,null,null,null,null,null,null,null,null,null,null,null,null,null,null,null,null,null,null,null,null,null,null,null,null,null,null,null,null,null,null,null,null,null,null,null,null,null,null,null,null,null,null,null,null,null,null,null,null,null,null,null,null,null,null,null,null,null,4,"0PAYER","0POSTCD_GIS","CAM:PstCde(Geo-Rel.)","0000","X","2","0","0","","","","","0000",""]
[null,null,null,null,null,null,null,null,null,null,null,null,null,null,null,null,null,null,null,null,null,null,null,null,null,null,null,null,null,null,null,null,null,null,null,null,null,null,null,null,null,null,null,null,null,null,null,null,null,null,null,null,null,null,null,null,null,null,null,null,null,null,null,null,null,null,null,null,null,null,null,null,null,null,null,null,null,null,null,null,null,null,null,null,null,null,null,null,null,null,null,null,null,null,null,null,null,null,null,null,null,null,null,null,null,null,null,null,null,null,4,"0PAYER","0REGION","Region","0000","X","1","0","0","","","","","0000",""]
[null,null,null,null,null,null,null,null,null,null,null,null,null,null,null,null,null,null,null,null,null,null,null,null,null,null,null,null,null,null,null,null,null,null,null,null,null,null,null,null,null,null,null,null,null,null,null,null,null,null,null,null,null,null,null,null,null,null,null,null,null,null,null,null,null,null,null,null,null,null,null,null,null,null,null,null,null,null,null,null,null,null,null,null,null,null,null,null,null,null,null,null,null,null,null,null,null,null,null,null,null,null,null,null,null,null,null,null,null,null,4,"0PAYER","0TAX_NUMB2","Tax Number 2","0000","X","2","0","0","","","","","0000",""]
[null,null,null,null,null,null,null,null,null,null,null,null,null,null,null,null,null,null,null,null,null,null,null,null,null,null,null,null,null,null,null,null,null,null,null,null,null,null,null,null,null,null,null,null,null,null,null,null,null,null,null,null,null,null,null,null,null,null,null,null,null,null,null,null,null,null,null,null,null,null,null,null,null,null,null,null,null,null,null,null,null,null,null,null,null,null,null,null,null,null,null,null,null,null,null,null,null,null,null,null,null,null,null,null,null,null,null,null,null,null,4,"0PAYER","CHCUABM20","CU - ABM Counter","0000","X","2","0","0","","","","","0000",""]
[null,null,null,null,null,null,null,null,null,null,null,null,null,null,null,null,null,null,null,null,null,null,null,null,null,null,null,null,null,null,null,null,null,null,null,null,null,null,null,null,null,null,null,null,null,null,null,null,null,null,null,null,null,null,null,null,null,null,null,null,null,null,null,null,null,null,null,null,null,null,null,null,null,null,null,null,null,null,null,null,null,null,null,null,null,null,null,null,null,null,null,null,null,null,null,null,null,null,null,null,null,null,null,null,null,null,null,null,null,null,4,"0PAYER","CHCUABM60","CU - ABM Outside FO","0000","X","2","0","0","","","","","0000",""]
[null,null,null,null,null,null,null,null,null,null,null,null,null,null,null,null,null,null,null,null,null,null,null,null,null,null,null,null,null,null,null,null,null,null,null,null,null,null,null,null,null,null,null,null,null,null,null,null,null,null,null,null,null,null,null,null,null,null,null,null,null,null,null,null,null,null,null,null,null,null,null,null,null,null,null,null,null,null,null,null,null,null,null,null,null,null,null,null,null,null,null,null,null,null,null,null,null,null,null,null,null,null,null,null,null,null,null,null,null,null,4,"0PAYER","CHCUABM70","CU - ABM Inhouse FO","0000","X","2","0","0","","","","","0000",""]
[null,null,null,null,null,null,null,null,null,null,null,null,null,null,null,null,null,null,null,null,null,null,null,null,null,null,null,null,null,null,null,null,null,null,null,null,null,null,null,null,null,null,null,null,null,null,null,null,null,null,null,null,null,null,null,null,null,null,null,null,null,null,null,null,null,null,null,null,null,null,null,null,null,null,null,null,null,null,null,null,null,null,null,null,null,null,null,null,null,null,null,null,null,null,null,null,null,null,null,null,null,null,null,null,null,null,null,null,null,null,4,"0PAYER","CHCUBPVAL","CU - Brand Perf VAL","0000","X","1","0","0","","","","","0000",""]
[null,null,null,null,null,null,null,null,null,null,null,null,null,null,null,null,null,null,null,null,null,null,null,null,null,null,null,null,null,null,null,null,null,null,null,null,null,null,null,null,null,null,null,null,null,null,null,null,null,null,null,null,null,null,null,null,null,null,null,null,null,null,null,null,null,null,null,null,null,null,null,null,null,null,null,null,null,null,null,null,null,null,null,null,null,null,null,null,null,null,null,null,null,null,null,null,null,null,null,null,null,null,null,null,null,null,null,null,null,null,4,"0PAYER","CHCUCON20","CU - Cons. Serv. tbd","0000","X","2","0","0","","","","","0000",""]
[null,null,null,null,null,null,null,null,null,null,null,null,null,null,null,null,null,null,null,null,null,null,null,null,null,null,null,null,null,null,null,null,null,null,null,null,null,null,null,null,null,null,null,null,null,null,null,null,null,null,null,null,null,null,null,null,null,null,null,null,null,null,null,null,null,null,null,null,null,null,null,null,null,null,null,null,null,null,null,null,null,null,null,null,null,null,null,null,null,null,null,null,null,null,null,null,null,null,null,null,null,null,null,null,null,null,null,null,null,null,4,"0PAYER","CHCUCUSPM","CU - Cust Prior Manu","0000","X","1","0","0","","","","","0000",""]
[null,null,null,null,null,null,null,null,null,null,null,null,null,null,null,null,null,null,null,null,null,null,null,null,null,null,null,null,null,null,null,null,null,null,null,null,null,null,null,null,null,null,null,null,null,null,null,null,null,null,null,null,null,null,null,null,null,null,null,null,null,null,null,null,null,null,null,null,null,null,null,null,null,null,null,null,null,null,null,null,null,null,null,null,null,null,null,null,null,null,null,null,null,null,null,null,null,null,null,null,null,null,null,null,null,null,null,null,null,null,4,"0PAYER","CHCUCUSPR","CU - Cust Prioritiza","0000","X","1","0","0","","","","","0000",""]
[null,null,null,null,null,null,null,null,null,null,null,null,null,null,null,null,null,null,null,null,null,null,null,null,null,null,null,null,null,null,null,null,null,null,null,null,null,null,null,null,null,null,null,null,null,null,null,null,null,null,null,null,null,null,null,null,null,null,null,null,null,null,null,null,null,null,null,null,null,null,null,null,null,null,null,null,null,null,null,null,null,null,null,null,null,null,null,null,null,null,null,null,null,null,null,null,null,null,null,null,null,null,null,null,null,null,null,null,null,null,4,"0PAYER","CHCUGEN10","CU - Female","0000","X","2","0","0","","","","","0000",""]
[null,null,null,null,null,null,null,null,null,null,null,null,null,null,null,null,null,null,null,null,null,null,null,null,null,null,null,null,null,null,null,null,null,null,null,null,null,null,null,null,null,null,null,null,null,null,null,null,null,null,null,null,null,null,null,null,null,null,null,null,null,null,null,null,null,null,null,null,null,null,null,null,null,null,null,null,null,null,null,null,null,null,null,null,null,null,null,null,null,null,null,null,null,null,null,null,null,null,null,null,null,null,null,null,null,null,null,null,null,null,4,"0PAYER","CHCUKEY00","CU - KeyAcc No","0000","X","2","0","0","","","","","0000",""]
[null,null,null,null,null,null,null,null,null,null,null,null,null,null,null,null,null,null,null,null,null,null,null,null,null,null,null,null,null,null,null,null,null,null,null,null,null,null,null,null,null,null,null,null,null,null,null,null,null,null,null,null,null,null,null,null,null,null,null,null,null,null,null,null,null,null,null,null,null,null,null,null,null,null,null,null,null,null,null,null,null,null,null,null,null,null,null,null,null,null,null,null,null,null,null,null,null,null,null,null,null,null,null,null,null,null,null,null,null,null,4,"0PAYER","CHCULOCMG","CU - LocMagnitude","0000","X","1","0","0","","","","","0000",""]
[null,null,null,null,null,null,null,null,null,null,null,null,null,null,null,null,null,null,null,null,null,null,null,null,null,null,null,null,null,null,null,null,null,null,null,null,null,null,null,null,null,null,null,null,null,null,null,null,null,null,null,null,null,null,null,null,null,null,null,null,null,null,null,null,null,null,null,null,null,null,null,null,null,null,null,null,null,null,null,null,null,null,null,null,null,null,null,null,null,null,null,null,null,null,null,null,null,null,null,null,null,null,null,null,null,null,null,null,null,null,4,"0PAYER","CHCUPOSLC","CU - POS Location","0000","X","1","0","0","","","","","0000",""]
[null,null,null,null,null,null,null,null,null,null,null,null,null,null,null,null,null,null,null,null,null,null,null,null,null,null,null,null,null,null,null,null,null,null,null,null,null,null,null,null,null,null,null,null,null,null,null,null,null,null,null,null,null,null,null,null,null,null,null,null,null,null,null,null,null,null,null,null,null,null,null,null,null,null,null,null,null,null,null,null,null,null,null,null,null,null,null,null,null,null,null,null,null,null,null,null,null,null,null,null,null,null,null,null,null,null,null,null,null,null,4,"0PAYER","CHCUSLCHT","CU - Sales Chan Type","0000","X","1","0","0","","","","","0000",""]
[null,null,null,null,null,null,null,null,null,null,null,null,null,null,null,null,null,null,null,null,null,null,null,null,null,null,null,null,null,null,null,null,null,null,null,null,null,null,null,null,null,null,null,null,null,null,null,null,null,null,null,null,null,null,null,null,null,null,null,null,null,null,null,null,null,null,null,null,null,null,null,null,null,null,null,null,null,null,null,null,null,null,null,null,null,null,null,null,null,null,null,null,null,null,null,null,null,null,null,null,null,null,null,null,null,null,null,null,null,null,4,"0PAYER","CHCUSRV30","CU - SM noVisits","0000","X","2","0","0","","","","","0000",""]
[null,null,null,null,null,null,null,null,null,null,null,null,null,null,null,null,null,null,null,null,null,null,null,null,null,null,null,null,null,null,null,null,null,null,null,null,null,null,null,null,null,null,null,null,null,null,null,null,null,null,null,null,null,null,null,null,null,null,null,null,null,null,null,null,null,null,null,null,null,null,null,null,null,null,null,null,null,null,null,null,null,null,null,null,null,null,null,null,null,null,null,null,null,null,null,null,null,null,null,null,null,null,null,null,null,null,null,null,null,null,4,"CHSALSRE2","0ADDR_NUMBR","Address","0000","X","2","0","0","","","","","0000",""]
[null,null,null,null,null,null,null,null,null,null,null,null,null,null,null,null,null,null,null,null,null,null,null,null,null,null,null,null,null,null,null,null,null,null,null,null,null,null,null,null,null,null,null,null,null,null,null,null,null,null,null,null,null,null,null,null,null,null,null,null,null,null,null,null,null,null,null,null,null,null,null,null,null,null,null,null,null,null,null,null,null,null,null,null,null,null,null,null,null,null,null,null,null,null,null,null,null,null,null,null,null,null,null,null,null,null,null,null,null,null,4,"CHSALSRE2","0CITY","Location","0000","X","2","0","0","","","","","0000",""]
[null,null,null,null,null,null,null,null,null,null,null,null,null,null,null,null,null,null,null,null,null,null,null,null,null,null,null,null,null,null,null,null,null,null,null,null,null,null,null,null,null,null,null,null,null,null,null,null,null,null,null,null,null,null,null,null,null,null,null,null,null,null,null,null,null,null,null,null,null,null,null,null,null,null,null,null,null,null,null,null,null,null,null,null,null,null,null,null,null,null,null,null,null,null,null,null,null,null,null,null,null,null,null,null,null,null,null,null,null,null,4,"CHSALSRE2","0IND_CODE_3","Industry Code 3","0000","X","1","0","0","","","","","0000",""]
[null,null,null,null,null,null,null,null,null,null,null,null,null,null,null,null,null,null,null,null,null,null,null,null,null,null,null,null,null,null,null,null,null,null,null,null,null,null,null,null,null,null,null,null,null,null,null,null,null,null,null,null,null,null,null,null,null,null,null,null,null,null,null,null,null,null,null,null,null,null,null,null,null,null,null,null,null,null,null,null,null,null,null,null,null,null,null,null,null,null,null,null,null,null,null,null,null,null,null,null,null,null,null,null,null,null,null,null,null,null,4,"CHSALSRE2","0LOGSYS","Source System","0000","X","1","0","0","","","","","0000",""]
[null,null,null,null,null,null,null,null,null,null,null,null,null,null,null,null,null,null,null,null,null,null,null,null,null,null,null,null,null,null,null,null,null,null,null,null,null,null,null,null,null,null,null,null,null,null,null,null,null,null,null,null,null,null,null,null,null,null,null,null,null,null,null,null,null,null,null,null,null,null,null,null,null,null,null,null,null,null,null,null,null,null,null,null,null,null,null,null,null,null,null,null,null,null,null,null,null,null,null,null,null,null,null,null,null,null,null,null,null,null,4,"CHSALSRE2","0POBOX","P.O. Box","0000","X","2","0","0","","","","","0000",""]
[null,null,null,null,null,null,null,null,null,null,null,null,null,null,null,null,null,null,null,null,null,null,null,null,null,null,null,null,null,null,null,null,null,null,null,null,null,null,null,null,null,null,null,null,null,null,null,null,null,null,null,null,null,null,null,null,null,null,null,null,null,null,null,null,null,null,null,null,null,null,null,null,null,null,null,null,null,null,null,null,null,null,null,null,null,null,null,null,null,null,null,null,null,null,null,null,null,null,null,null,null,null,null,null,null,null,null,null,null,null,4,"CHSALSRE2","0POSTAL_CD","Postal Code","0000","X","2","0","0","","","","","0000",""]
[null,null,null,null,null,null,null,null,null,null,null,null,null,null,null,null,null,null,null,null,null,null,null,null,null,null,null,null,null,null,null,null,null,null,null,null,null,null,null,null,null,null,null,null,null,null,null,null,null,null,null,null,null,null,null,null,null,null,null,null,null,null,null,null,null,null,null,null,null,null,null,null,null,null,null,null,null,null,null,null,null,null,null,null,null,null,null,null,null,null,null,null,null,null,null,null,null,null,null,null,null,null,null,null,null,null,null,null,null,null,4,"CHSALSRE2","0TAX_NUMB","Tax code 1","0000","X","2","0","0","","","","","0000",""]
[null,null,null,null,null,null,null,null,null,null,null,null,null,null,null,null,null,null,null,null,null,null,null,null,null,null,null,null,null,null,null,null,null,null,null,null,null,null,null,null,null,null,null,null,null,null,null,null,null,null,null,null,null,null,null,null,null,null,null,null,null,null,null,null,null,null,null,null,null,null,null,null,null,null,null,null,null,null,null,null,null,null,null,null,null,null,null,null,null,null,null,null,null,null,null,null,null,null,null,null,null,null,null,null,null,null,null,null,null,null,4,"CHCATALOG","0APO_LOCNO","APO Location","0000","X","1","0","0","","","","","0000",""]
[null,null,null,null,null,null,null,null,null,null,null,null,null,null,null,null,null,null,null,null,null,null,null,null,null,null,null,null,null,null,null,null,null,null,null,null,null,null,null,null,null,null,null,null,null,null,null,null,null,null,null,null,null,null,null,null,null,null,null,null,null,null,null,null,null,null,null,null,null,null,null,null,null,null,null,null,null,null,null,null,null,null,null,null,null,null,null,null,null,null,null,null,null,null,null,null,null,null,null,null,null,null,null,null,null,null,null,null,null,null,4,"CHCATALOG","0COUNTRY","Country","0000","X","1","0","0","","","","","0000",""]
[null,null,null,null,null,null,null,null,null,null,null,null,null,null,null,null,null,null,null,null,null,null,null,null,null,null,null,null,null,null,null,null,null,null,null,null,null,null,null,null,null,null,null,null,null,null,null,null,null,null,null,null,null,null,null,null,null,null,null,null,null,null,null,null,null,null,null,null,null,null,null,null,null,null,null,null,null,null,null,null,null,null,null,null,null,null,null,null,null,null,null,null,null,null,null,null,null,null,null,null,null,null,null,null,null,null,null,null,null,null,4,"CHCATALOG","0CUST_CLASS","Customer Classific.","0000","X","0","0","0","","","","","0000",""]
[null,null,null,null,null,null,null,null,null,null,null,null,null,null,null,null,null,null,null,null,null,null,null,null,null,null,null,null,null,null,null,null,null,null,null,null,null,null,null,null,null,null,null,null,null,null,null,null,null,null,null,null,null,null,null,null,null,null,null,null,null,null,null,null,null,null,null,null,null,null,null,null,null,null,null,null,null,null,null,null,null,null,null,null,null,null,null,null,null,null,null,null,null,null,null,null,null,null,null,null,null,null,null,null,null,null,null,null,null,null,4,"CHCATALOG","0FISCVARNT","Fiscal Year Variant","0000","X","2","0","0","","","","","0000",""]
[null,null,null,null,null,null,null,null,null,null,null,null,null,null,null,null,null,null,null,null,null,null,null,null,null,null,null,null,null,null,null,null,null,null,null,null,null,null,null,null,null,null,null,null,null,null,null,null,null,null,null,null,null,null,null,null,null,null,null,null,null,null,null,null,null,null,null,null,null,null,null,null,null,null,null,null,null,null,null,null,null,null,null,null,null,null,null,null,null,null,null,null,null,null,null,null,null,null,null,null,null,null,null,null,null,null,null,null,null,null,4,"CHCATALOG","0IND_CODE_1","Industry code 1","0000","X","1","0","0","","","","","0000",""]
[null,null,null,null,null,null,null,null,null,null,null,null,null,null,null,null,null,null,null,null,null,null,null,null,null,null,null,null,null,null,null,null,null,null,null,null,null,null,null,null,null,null,null,null,null,null,null,null,null,null,null,null,null,null,null,null,null,null,null,null,null,null,null,null,null,null,null,null,null,null,null,null,null,null,null,null,null,null,null,null,null,null,null,null,null,null,null,null,null,null,null,null,null,null,null,null,null,null,null,null,null,null,null,null,null,null,null,null,null,null,4,"CHCATALOG","0LATITUDE","Latitude","0000","X","2","0","0","","","","","0000",""]
[null,null,null,null,null,null,null,null,null,null,null,null,null,null,null,null,null,null,null,null,null,null,null,null,null,null,null,null,null,null,null,null,null,null,null,null,null,null,null,null,null,null,null,null,null,null,null,null,null,null,null,null,null,null,null,null,null,null,null,null,null,null,null,null,null,null,null,null,null,null,null,null,null,null,null,null,null,null,null,null,null,null,null,null,null,null,null,null,null,null,null,null,null,null,null,null,null,null,null,null,null,null,null,null,null,null,null,null,null,null,4,"CHCATALOG","0LOGSYS","Source System","0000","X","1","0","0","","","","","0000",""]
[null,null,null,null,null,null,null,null,null,null,null,null,null,null,null,null,null,null,null,null,null,null,null,null,null,null,null,null,null,null,null,null,null,null,null,null,null,null,null,null,null,null,null,null,null,null,null,null,null,null,null,null,null,null,null,null,null,null,null,null,null,null,null,null,null,null,null,null,null,null,null,null,null,null,null,null,null,null,null,null,null,null,null,null,null,null,null,null,null,null,null,null,null,null,null,null,null,null,null,null,null,null,null,null,null,null,null,null,null,null,4,"CHCATALOG","0OUTL_TYPE","Branch Category","0000","X","1","0","0","","","","","0000",""]
[null,null,null,null,null,null,null,null,null,null,null,null,null,null,null,null,null,null,null,null,null,null,null,null,null,null,null,null,null,null,null,null,null,null,null,null,null,null,null,null,null,null,null,null,null,null,null,null,null,null,null,null,null,null,null,null,null,null,null,null,null,null,null,null,null,null,null,null,null,null,null,null,null,null,null,null,null,null,null,null,null,null,null,null,null,null,null,null,null,null,null,null,null,null,null,null,null,null,null,null,null,null,null,null,null,null,null,null,null,null,4,"CHCATALOG","0POBOX_LOC","CAM: PO Box Location","0000","X","2","0","0","","","","","0000",""]
[null,null,null,null,null,null,null,null,null,null,null,null,null,null,null,null,null,null,null,null,null,null,null,null,null,null,null,null,null,null,null,null,null,null,null,null,null,null,null,null,null,null,null,null,null,null,null,null,null,null,null,null,null,null,null,null,null,null,null,null,null,null,null,null,null,null,null,null,null,null,null,null,null,null,null,null,null,null,null,null,null,null,null,null,null,null,null,null,null,null,null,null,null,null,null,null,null,null,null,null,null,null,null,null,null,null,null,null,null,null,4,"CHCATALOG","0REGION","Region","0000","X","1","0","0","","","","","0000",""]
[null,null,null,null,null,null,null,null,null,null,null,null,null,null,null,null,null,null,null,null,null,null,null,null,null,null,null,null,null,null,null,null,null,null,null,null,null,null,null,null,null,null,null,null,null,null,null,null,null,null,null,null,null,null,null,null,null,null,null,null,null,null,null,null,null,null,null,null,null,null,null,null,null,null,null,null,null,null,null,null,null,null,null,null,null,null,null,null,null,null,null,null,null,null,null,null,null,null,null,null,null,null,null,null,null,null,null,null,null,null,4,"CHCATALOG","0SRCID","DatSrc.ID of GeoLoct","0000","X","2","0","0","","","","","0000",""]
[null,null,null,null,null,null,null,null,null,null,null,null,null,null,null,null,null,null,null,null,null,null,null,null,null,null,null,null,null,null,null,null,null,null,null,null,null,null,null,null,null,null,null,null,null,null,null,null,null,null,null,null,null,null,null,null,null,null,null,null,null,null,null,null,null,null,null,null,null,null,null,null,null,null,null,null,null,null,null,null,null,null,null,null,null,null,null,null,null,null,null,null,null,null,null,null,null,null,null,null,null,null,null,null,null,null,null,null,null,null,4,"CHCATALOG","0VENDOR","Vendor","0000","X","0","0","0","","","","","0000",""]
[null,null,null,null,null,null,null,null,null,null,null,null,null,null,null,null,null,null,null,null,null,null,null,null,null,null,null,null,null,null,null,null,null,null,null,null,null,null,null,null,null,null,null,null,null,null,null,null,null,null,null,null,null,null,null,null,null,null,null,null,null,null,null,null,null,null,null,null,null,null,null,null,null,null,null,null,null,null,null,null,null,null,null,null,null,null,null,null,null,null,null,null,null,null,null,null,null,null,null,null,null,null,null,null,null,null,null,null,null,null,4,"CHCATALOG","CHCUABM40","CU - ABM Franchise","0000","X","2","0","0","","","","","0000",""]
[null,null,null,null,null,null,null,null,null,null,null,null,null,null,null,null,null,null,null,null,null,null,null,null,null,null,null,null,null,null,null,null,null,null,null,null,null,null,null,null,null,null,null,null,null,null,null,null,null,null,null,null,null,null,null,null,null,null,null,null,null,null,null,null,null,null,null,null,null,null,null,null,null,null,null,null,null,null,null,null,null,null,null,null,null,null,null,null,null,null,null,null,null,null,null,null,null,null,null,null,null,null,null,null,null,null,null,null,null,null,4,"CHCATALOG","CHCUABM80","CU - ABM In-House","0000","X","2","0","0","","","","","0000",""]
[null,null,null,null,null,null,null,null,null,null,null,null,null,null,null,null,null,null,null,null,null,null,null,null,null,null,null,null,null,null,null,null,null,null,null,null,null,null,null,null,null,null,null,null,null,null,null,null,null,null,null,null,null,null,null,null,null,null,null,null,null,null,null,null,null,null,null,null,null,null,null,null,null,null,null,null,null,null,null,null,null,null,null,null,null,null,null,null,null,null,null,null,null,null,null,null,null,null,null,null,null,null,null,null,null,null,null,null,null,null,4,"CHCATALOG","CHCUATTR1","Projection relevant","0000","X","2","0","0","","","","","0000",""]
[null,null,null,null,null,null,null,null,null,null,null,null,null,null,null,null,null,null,null,null,null,null,null,null,null,null,null,null,null,null,null,null,null,null,null,null,null,null,null,null,null,null,null,null,null,null,null,null,null,null,null,null,null,null,null,null,null,null,null,null,null,null,null,null,null,null,null,null,null,null,null,null,null,null,null,null,null,null,null,null,null,null,null,null,null,null,null,null,null,null,null,null,null,null,null,null,null,null,null,null,null,null,null,null,null,null,null,null,null,null,4,"CHCATALOG","CHCUBUSTY","CU - Business Type","0000","X","1","0","0","","","","","0000",""]
[null,null,null,null,null,null,null,null,null,null,null,null,null,null,null,null,null,null,null,null,null,null,null,null,null,null,null,null,null,null,null,null,null,null,null,null,null,null,null,null,null,null,null,null,null,null,null,null,null,null,null,null,null,null,null,null,null,null,null,null,null,null,null,null,null,null,null,null,null,null,null,null,null,null,null,null,null,null,null,null,null,null,null,null,null,null,null,null,null,null,null,null,null,null,null,null,null,null,null,null,null,null,null,null,null,null,null,null,null,null,4,"CHCATALOG","CHCUCON90","CU - Cons. Serv. No","0000","X","2","0","0","","","","","0000",""]
[null,null,null,null,null,null,null,null,null,null,null,null,null,null,null,null,null,null,null,null,null,null,null,null,null,null,null,null,null,null,null,null,null,null,null,null,null,null,null,null,null,null,null,null,null,null,null,null,null,null,null,null,null,null,null,null,null,null,null,null,null,null,null,null,null,null,null,null,null,null,null,null,null,null,null,null,null,null,null,null,null,null,null,null,null,null,null,null,null,null,null,null,null,null,null,null,null,null,null,null,null,null,null,null,null,null,null,null,null,null,4,"CHCATALOG","CHCUCUB40","CU - CBus Inhouse","0000","X","2","0","0","","","","","0000",""]
[null,null,null,null,null,null,null,null,null,null,null,null,null,null,null,null,null,null,null,null,null,null,null,null,null,null,null,null,null,null,null,null,null,null,null,null,null,null,null,null,null,null,null,null,null,null,null,null,null,null,null,null,null,null,null,null,null,null,null,null,null,null,null,null,null,null,null,null,null,null,null,null,null,null,null,null,null,null,null,null,null,null,null,null,null,null,null,null,null,null,null,null,null,null,null,null,null,null,null,null,null,null,null,null,null,null,null,null,null,null,4,"CHCATALOG","CHCUCUSPM","CU - Cust Prior Manu","0000","X","1","0","0","","","","","0000",""]
[null,null,null,null,null,null,null,null,null,null,null,null,null,null,null,null,null,null,null,null,null,null,null,null,null,null,null,null,null,null,null,null,null,null,null,null,null,null,null,null,null,null,null,null,null,null,null,null,null,null,null,null,null,null,null,null,null,null,null,null,null,null,null,null,null,null,null,null,null,null,null,null,null,null,null,null,null,null,null,null,null,null,null,null,null,null,null,null,null,null,null,null,null,null,null,null,null,null,null,null,null,null,null,null,null,null,null,null,null,null,4,"CHCATALOG","CHCUCUSPR","CU - Cust Prioritiza","0000","X","1","0","0","","","","","0000",""]
[null,null,null,null,null,null,null,null,null,null,null,null,null,null,null,null,null,null,null,null,null,null,null,null,null,null,null,null,null,null,null,null,null,null,null,null,null,null,null,null,null,null,null,null,null,null,null,null,null,null,null,null,null,null,null,null,null,null,null,null,null,null,null,null,null,null,null,null,null,null,null,null,null,null,null,null,null,null,null,null,null,null,null,null,null,null,null,null,null,null,null,null,null,null,null,null,null,null,null,null,null,null,null,null,null,null,null,null,null,null,4,"CHCATALOG","CHCUFSF10","CU - FSF Sales Reps","0000","X","2","0","0","","","","","0000",""]
[null,null,null,null,null,null,null,null,null,null,null,null,null,null,null,null,null,null,null,null,null,null,null,null,null,null,null,null,null,null,null,null,null,null,null,null,null,null,null,null,null,null,null,null,null,null,null,null,null,null,null,null,null,null,null,null,null,null,null,null,null,null,null,null,null,null,null,null,null,null,null,null,null,null,null,null,null,null,null,null,null,null,null,null,null,null,null,null,null,null,null,null,null,null,null,null,null,null,null,null,null,null,null,null,null,null,null,null,null,null,4,"CHCATALOG","CHCUFSF20","CU - FSF Area Man.","0000","X","2","0","0","","","","","0000",""]
[null,null,null,null,null,null,null,null,null,null,null,null,null,null,null,null,null,null,null,null,null,null,null,null,null,null,null,null,null,null,null,null,null,null,null,null,null,null,null,null,null,null,null,null,null,null,null,null,null,null,null,null,null,null,null,null,null,null,null,null,null,null,null,null,null,null,null,null,null,null,null,null,null,null,null,null,null,null,null,null,null,null,null,null,null,null,null,null,null,null,null,null,null,null,null,null,null,null,null,null,null,null,null,null,null,null,null,null,null,null,4,"CHCATALOG","CHCUFSF30","CU - FSF Rack Jobber","0000","X","2","0","0","","","","","0000",""]
[null,null,null,null,null,null,null,null,null,null,null,null,null,null,null,null,null,null,null,null,null,null,null,null,null,null,null,null,null,null,null,null,null,null,null,null,null,null,null,null,null,null,null,null,null,null,null,null,null,null,null,null,null,null,null,null,null,null,null,null,null,null,null,null,null,null,null,null,null,null,null,null,null,null,null,null,null,null,null,null,null,null,null,null,null,null,null,null,null,null,null,null,null,null,null,null,null,null,null,null,null,null,null,null,null,null,null,null,null,null,4,"CHCATALOG","CHCUFSF40","CU - FSF Staff Sales","0000","X","2","0","0","","","","","0000",""]
[null,null,null,null,null,null,null,null,null,null,null,null,null,null,null,null,null,null,null,null,null,null,null,null,null,null,null,null,null,null,null,null,null,null,null,null,null,null,null,null,null,null,null,null,null,null,null,null,null,null,null,null,null,null,null,null,null,null,null,null,null,null,null,null,null,null,null,null,null,null,null,null,null,null,null,null,null,null,null,null,null,null,null,null,null,null,null,null,null,null,null,null,null,null,null,null,null,null,null,null,null,null,null,null,null,null,null,null,null,null,4,"CHCATALOG","CHCUGEN10","CU - Female","0000","X","2","0","0","","","","","0000",""]
[null,null,null,null,null,null,null,null,null,null,null,null,null,null,null,null,null,null,null,null,null,null,null,null,null,null,null,null,null,null,null,null,null,null,null,null,null,null,null,null,null,null,null,null,null,null,null,null,null,null,null,null,null,null,null,null,null,null,null,null,null,null,null,null,null,null,null,null,null,null,null,null,null,null,null,null,null,null,null,null,null,null,null,null,null,null,null,null,null,null,null,null,null,null,null,null,null,null,null,null,null,null,null,null,null,null,null,null,null,null,4,"CHCATALOG","CHCUGEN20","CU - Male","0000","X","2","0","0","","","","","0000",""]
[null,null,null,null,null,null,null,null,null,null,null,null,null,null,null,null,null,null,null,null,null,null,null,null,null,null,null,null,null,null,null,null,null,null,null,null,null,null,null,null,null,null,null,null,null,null,null,null,null,null,null,null,null,null,null,null,null,null,null,null,null,null,null,null,null,null,null,null,null,null,null,null,null,null,null,null,null,null,null,null,null,null,null,null,null,null,null,null,null,null,null,null,null,null,null,null,null,null,null,null,null,null,null,null,null,null,null,null,null,null,4,"CHCATALOG","CHCUIMAGE","CU - Image","0000","X","1","0","0","","","","","0000",""]
[null,null,null,null,null,null,null,null,null,null,null,null,null,null,null,null,null,null,null,null,null,null,null,null,null,null,null,null,null,null,null,null,null,null,null,null,null,null,null,null,null,null,null,null,null,null,null,null,null,null,null,null,null,null,null,null,null,null,null,null,null,null,null,null,null,null,null,null,null,null,null,null,null,null,null,null,null,null,null,null,null,null,null,null,null,null,null,null,null,null,null,null,null,null,null,null,null,null,null,null,null,null,null,null,null,null,null,null,null,null,4,"CHCATALOG","CHCUKEY00","CU - KeyAcc No","0000","X","2","0","0","","","","","0000",""]
[null,null,null,null,null,null,null,null,null,null,null,null,null,null,null,null,null,null,null,null,null,null,null,null,null,null,null,null,null,null,null,null,null,null,null,null,null,null,null,null,null,null,null,null,null,null,null,null,null,null,null,null,null,null,null,null,null,null,null,null,null,null,null,null,null,null,null,null,null,null,null,null,null,null,null,null,null,null,null,null,null,null,null,null,null,null,null,null,null,null,null,null,null,null,null,null,null,null,null,null,null,null,null,null,null,null,null,null,null,null,4,"CHCATALOG","CHCUKEY10","CU - KeyAcc National","0000","X","2","0","0","","","","","0000",""]
[null,null,null,null,null,null,null,null,null,null,null,null,null,null,null,null,null,null,null,null,null,null,null,null,null,null,null,null,null,null,null,null,null,null,null,null,null,null,null,null,null,null,null,null,null,null,null,null,null,null,null,null,null,null,null,null,null,null,null,null,null,null,null,null,null,null,null,null,null,null,null,null,null,null,null,null,null,null,null,null,null,null,null,null,null,null,null,null,null,null,null,null,null,null,null,null,null,null,null,null,null,null,null,null,null,null,null,null,null,null,4,"CHCATALOG","CHCUKEY20","CU - KeyAcc Europe","0000","X","2","0","0","","","","","0000",""]
[null,null,null,null,null,null,null,null,null,null,null,null,null,null,null,null,null,null,null,null,null,null,null,null,null,null,null,null,null,null,null,null,null,null,null,null,null,null,null,null,null,null,null,null,null,null,null,null,null,null,null,null,null,null,null,null,null,null,null,null,null,null,null,null,null,null,null,null,null,null,null,null,null,null,null,null,null,null,null,null,null,null,null,null,null,null,null,null,null,null,null,null,null,null,null,null,null,null,null,null,null,null,null,null,null,null,null,null,null,null,4,"CHCATALOG","CHCUKEY22","CU - KeyAcc Asia","0000","X","2","0","0","","","","","0000",""]
[null,null,null,null,null,null,null,null,null,null,null,null,null,null,null,null,null,null,null,null,null,null,null,null,null,null,null,null,null,null,null,null,null,null,null,null,null,null,null,null,null,null,null,null,null,null,null,null,null,null,null,null,null,null,null,null,null,null,null,null,null,null,null,null,null,null,null,null,null,null,null,null,null,null,null,null,null,null,null,null,null,null,null,null,null,null,null,null,null,null,null,null,null,null,null,null,null,null,null,null,null,null,null,null,null,null,null,null,null,null,4,"CHCATALOG","CHCUKEY30","CU - KeyAcc Global","0000","X","2","0","0","","","","","0000",""]
[null,null,null,null,null,null,null,null,null,null,null,null,null,null,null,null,null,null,null,null,null,null,null,null,null,null,null,null,null,null,null,null,null,null,null,null,null,null,null,null,null,null,null,null,null,null,null,null,null,null,null,null,null,null,null,null,null,null,null,null,null,null,null,null,null,null,null,null,null,null,null,null,null,null,null,null,null,null,null,null,null,null,null,null,null,null,null,null,null,null,null,null,null,null,null,null,null,null,null,null,null,null,null,null,null,null,null,null,null,null,4,"CHCATALOG","CHCULFCYR","CU - LifeCycleReason","0000","X","1","0","0","","","","","0000",""]
[null,null,null,null,null,null,null,null,null,null,null,null,null,null,null,null,null,null,null,null,null,null,null,null,null,null,null,null,null,null,null,null,null,null,null,null,null,null,null,null,null,null,null,null,null,null,null,null,null,null,null,null,null,null,null,null,null,null,null,null,null,null,null,null,null,null,null,null,null,null,null,null,null,null,null,null,null,null,null,null,null,null,null,null,null,null,null,null,null,null,null,null,null,null,null,null,null,null,null,null,null,null,null,null,null,null,null,null,null,null,4,"CHCATALOG","CHCULIFEC","CU - CustLifeCycle","0000","X","1","0","0","","","","","0000",""]
[null,null,null,null,null,null,null,null,null,null,null,null,null,null,null,null,null,null,null,null,null,null,null,null,null,null,null,null,null,null,null,null,null,null,null,null,null,null,null,null,null,null,null,null,null,null,null,null,null,null,null,null,null,null,null,null,null,null,null,null,null,null,null,null,null,null,null,null,null,null,null,null,null,null,null,null,null,null,null,null,null,null,null,null,null,null,null,null,null,null,null,null,null,null,null,null,null,null,null,null,null,null,null,null,null,null,null,null,null,null,4,"CHCATALOG","CHCULOC","CU - Location","0000","X","1","0","0","","","","","0000",""]
[null,null,null,null,null,null,null,null,null,null,null,null,null,null,null,null,null,null,null,null,null,null,null,null,null,null,null,null,null,null,null,null,null,null,null,null,null,null,null,null,null,null,null,null,null,null,null,null,null,null,null,null,null,null,null,null,null,null,null,null,null,null,null,null,null,null,null,null,null,null,null,null,null,null,null,null,null,null,null,null,null,null,null,null,null,null,null,null,null,null,null,null,null,null,null,null,null,null,null,null,null,null,null,null,null,null,null,null,null,null,4,"CHCATALOG","CHCULOCMG","CU - LocMagnitude","0000","X","1","0","0","","","","","0000",""]
[null,null,null,null,null,null,null,null,null,null,null,null,null,null,null,null,null,null,null,null,null,null,null,null,null,null,null,null,null,null,null,null,null,null,null,null,null,null,null,null,null,null,null,null,null,null,null,null,null,null,null,null,null,null,null,null,null,null,null,null,null,null,null,null,null,null,null,null,null,null,null,null,null,null,null,null,null,null,null,null,null,null,null,null,null,null,null,null,null,null,null,null,null,null,null,null,null,null,null,null,null,null,null,null,null,null,null,null,null,null,4,"CHCATALOG","CHCUORGDG","CU - Org Degree","0000","X","1","0","0","","","","","0000",""]
[null,null,null,null,null,null,null,null,null,null,null,null,null,null,null,null,null,null,null,null,null,null,null,null,null,null,null,null,null,null,null,null,null,null,null,null,null,null,null,null,null,null,null,null,null,null,null,null,null,null,null,null,null,null,null,null,null,null,null,null,null,null,null,null,null,null,null,null,null,null,null,null,null,null,null,null,null,null,null,null,null,null,null,null,null,null,null,null,null,null,null,null,null,null,null,null,null,null,null,null,null,null,null,null,null,null,null,null,null,null,4,"CHCATALOG","CHCUPOSLC","CU - POS Location","0000","X","1","0","0","","","","","0000",""]
[null,null,null,null,null,null,null,null,null,null,null,null,null,null,null,null,null,null,null,null,null,null,null,null,null,null,null,null,null,null,null,null,null,null,null,null,null,null,null,null,null,null,null,null,null,null,null,null,null,null,null,null,null,null,null,null,null,null,null,null,null,null,null,null,null,null,null,null,null,null,null,null,null,null,null,null,null,null,null,null,null,null,null,null,null,null,null,null,null,null,null,null,null,null,null,null,null,null,null,null,null,null,null,null,null,null,null,null,null,null,4,"CHCATALOG","CHCUSCHTP","CU - Sales Chan Type","0000","X","1","0","0","","","","","0000",""]
[null,null,null,null,null,null,null,null,null,null,null,null,null,null,null,null,null,null,null,null,null,null,null,null,null,null,null,null,null,null,null,null,null,null,null,null,null,null,null,null,null,null,null,null,null,null,null,null,null,null,null,null,null,null,null,null,null,null,null,null,null,null,null,null,null,null,null,null,null,null,null,null,null,null,null,null,null,null,null,null,null,null,null,null,null,null,null,null,null,null,null,null,null,null,null,null,null,null,null,null,null,null,null,null,null,null,null,null,null,null,4,"CHCATALOG","CHCUSEGPR","CU - Seg Price/Image","0000","X","1","0","0","","","","","0000",""]
[null,null,null,null,null,null,null,null,null,null,null,null,null,null,null,null,null,null,null,null,null,null,null,null,null,null,null,null,null,null,null,null,null,null,null,null,null,null,null,null,null,null,null,null,null,null,null,null,null,null,null,null,null,null,null,null,null,null,null,null,null,null,null,null,null,null,null,null,null,null,null,null,null,null,null,null,null,null,null,null,null,null,null,null,null,null,null,null,null,null,null,null,null,null,null,null,null,null,null,null,null,null,null,null,null,null,null,null,null,null,4,"CHCATALOG","CHCUSHOPM","CU - Shopping Mall","0000","X","1","0","0","","","","","0000",""]
[null,null,null,null,null,null,null,null,null,null,null,null,null,null,null,null,null,null,null,null,null,null,null,null,null,null,null,null,null,null,null,null,null,null,null,null,null,null,null,null,null,null,null,null,null,null,null,null,null,null,null,null,null,null,null,null,null,null,null,null,null,null,null,null,null,null,null,null,null,null,null,null,null,null,null,null,null,null,null,null,null,null,null,null,null,null,null,null,null,null,null,null,null,null,null,null,null,null,null,null,null,null,null,null,null,null,null,null,null,null,4,"CHCATALOG","CHCUSLCHL","CU - Sales Channel","0000","X","1","0","0","","","","","0000",""]
[null,null,null,null,null,null,null,null,null,null,null,null,null,null,null,null,null,null,null,null,null,null,null,null,null,null,null,null,null,null,null,null,null,null,null,null,null,null,null,null,null,null,null,null,null,null,null,null,null,null,null,null,null,null,null,null,null,null,null,null,null,null,null,null,null,null,null,null,null,null,null,null,null,null,null,null,null,null,null,null,null,null,null,null,null,null,null,null,null,null,null,null,null,null,null,null,null,null,null,null,null,null,null,null,null,null,null,null,null,null,4,"CHCATALOG","CHCUSLCHT","CU - Sales Chan Type","0000","X","1","0","0","","","","","0000",""]
[null,null,null,null,null,null,null,null,null,null,null,null,null,null,null,null,null,null,null,null,null,null,null,null,null,null,null,null,null,null,null,null,null,null,null,null,null,null,null,null,null,null,null,null,null,null,null,null,null,null,null,null,null,null,null,null,null,null,null,null,null,null,null,null,null,null,null,null,null,null,null,null,null,null,null,null,null,null,null,null,null,null,null,null,null,null,null,null,null,null,null,null,null,null,null,null,null,null,null,null,null,null,null,null,null,null,null,null,null,null,4,"CHCATALOG","CHCUSLSCH","CU - Sales Channel","0000","X","1","0","0","","","","","0000",""]
[null,null,null,null,null,null,null,null,null,null,null,null,null,null,null,null,null,null,null,null,null,null,null,null,null,null,null,null,null,null,null,null,null,null,null,null,null,null,null,null,null,null,null,null,null,null,null,null,null,null,null,null,null,null,null,null,null,null,null,null,null,null,null,null,null,null,null,null,null,null,null,null,null,null,null,null,null,null,null,null,null,null,null,null,null,null,null,null,null,null,null,null,null,null,null,null,null,null,null,null,null,null,null,null,null,null,null,null,null,null,4,"CHCATALOG","CHCUSRV10","CU - SM Field Force","0000","X","2","0","0","","","","","0000",""]
[null,null,null,null,null,null,null,null,null,null,null,null,null,null,null,null,null,null,null,null,null,null,null,null,null,null,null,null,null,null,null,null,null,null,null,null,null,null,null,null,null,null,null,null,null,null,null,null,null,null,null,null,null,null,null,null,null,null,null,null,null,null,null,null,null,null,null,null,null,null,null,null,null,null,null,null,null,null,null,null,null,null,null,null,null,null,null,null,null,null,null,null,null,null,null,null,null,null,null,null,null,null,null,null,null,null,null,null,null,null,4,"CHCATALOG","CHCUSRV20","CU - SM Tel/Fax/Mail","0000","X","2","0","0","","","","","0000",""]
[null,null,null,null,null,null,null,null,null,null,null,null,null,null,null,null,null,null,null,null,null,null,null,null,null,null,null,null,null,null,null,null,null,null,null,null,null,null,null,null,null,null,null,null,null,null,null,null,null,null,null,null,null,null,null,null,null,null,null,null,null,null,null,null,null,null,null,null,null,null,null,null,null,null,null,null,null,null,null,null,null,null,null,null,null,null,null,null,null,null,null,null,null,null,null,null,null,null,null,null,null,null,null,null,null,null,null,null,null,null,4,"CHCATALOG","CHCUSRV30","CU - SM noVisits","0000","X","2","0","0","","","","","0000",""]
[null,null,null,null,null,null,null,null,null,null,null,null,null,null,null,null,null,null,null,null,null,null,null,null,null,null,null,null,null,null,null,null,null,null,null,null,null,null,null,null,null,null,null,null,null,null,null,null,null,null,null,null,null,null,null,null,null,null,null,null,null,null,null,null,null,null,null,null,null,null,null,null,null,null,null,null,null,null,null,null,null,null,null,null,null,null,null,null,null,null,null,null,null,null,null,null,null,null,null,null,null,null,null,null,null,null,null,null,null,null,4,"CHCATALOG","CHCUSRV40","CU - SM Central SF","0000","X","2","0","0","","","","","0000",""]
[null,null,null,null,null,null,null,null,null,null,null,null,null,null,null,null,null,null,null,null,null,null,null,null,null,null,null,null,null,null,null,null,null,null,null,null,null,null,null,null,null,null,null,null,null,null,null,null,null,null,null,null,null,null,null,null,null,null,null,null,null,null,null,null,null,null,null,null,null,null,null,null,null,null,null,null,null,null,null,null,null,null,null,null,null,null,null,null,null,null,null,null,null,null,null,null,null,null,null,null,null,null,null,null,null,null,null,null,null,null,4,"CHCATALOG","CHCUTRA10","CU - AT CredSales","0000","X","2","0","0","","","","","0000",""]
[null,null,null,null,null,null,null,null,null,null,null,null,null,null,null,null,null,null,null,null,null,null,null,null,null,null,null,null,null,null,null,null,null,null,null,null,null,null,null,null,null,null,null,null,null,null,null,null,null,null,null,null,null,null,null,null,null,null,null,null,null,null,null,null,null,null,null,null,null,null,null,null,null,null,null,null,null,null,null,null,null,null,null,null,null,null,null,null,null,null,null,null,null,null,null,null,null,null,null,null,null,null,null,null,null,null,null,null,null,null,4,"CHCATALOG","CHCUTRA20","CU - AT Consign","0000","X","2","0","0","","","","","0000",""]
[null,null,null,null,null,null,null,null,null,null,null,null,null,null,null,null,null,null,null,null,null,null,null,null,null,null,null,null,null,null,null,null,null,null,null,null,null,null,null,null,null,null,null,null,null,null,null,null,null,null,null,null,null,null,null,null,null,null,null,null,null,null,null,null,null,null,null,null,null,null,null,null,null,null,null,null,null,null,null,null,null,null,null,null,null,null,null,null,null,null,null,null,null,null,null,null,null,null,null,null,null,null,null,null,null,null,null,null,null,null,4,"CHCATALOG","CHCUVOL","CU - Sales Volume","0000","X","1","0","0","","","","","0000",""]
[null,null,null,null,null,null,null,null,null,null,null,null,null,null,null,null,null,null,null,null,null,null,null,null,null,null,null,null,null,null,null,null,null,null,null,null,null,null,null,null,null,null,null,null,null,null,null,null,null,null,null,null,null,null,null,null,null,null,null,null,null,null,null,null,null,null,null,null,null,null,null,null,null,null,null,null,null,null,null,null,null,null,null,null,null,null,null,null,null,null,null,null,null,null,null,null,null,null,null,null,null,null,null,null,null,null,null,null,null,null,4,"CHCATALOG","CHNAME4","Name 4","0000","X","2","0","0","","","","","0000",""]
[null,null,null,null,null,null,null,null,null,null,null,null,null,null,null,null,null,null,null,null,null,null,null,null,null,null,null,null,null,null,null,null,null,null,null,null,null,null,null,null,null,null,null,null,null,null,null,null,null,null,null,null,null,null,null,null,null,null,null,null,null,null,null,null,null,null,null,null,null,null,null,null,null,null,null,null,null,null,null,null,null,null,null,null,null,null,null,null,null,null,null,null,null,null,null,null,null,null,null,null,null,null,null,null,null,null,null,null,null,null,4,"0DOC_NUMBER","0CAMPAIGN","Sales Promotion","0000","X","1","0","0","","","","","0000",""]
[null,null,null,null,null,null,null,null,null,null,null,null,null,null,null,null,null,null,null,null,null,null,null,null,null,null,null,null,null,null,null,null,null,null,null,null,null,null,null,null,null,null,null,null,null,null,null,null,null,null,null,null,null,null,null,null,null,null,null,null,null,null,null,null,null,null,null,null,null,null,null,null,null,null,null,null,null,null,null,null,null,null,null,null,null,null,null,null,null,null,null,null,null,null,null,null,null,null,null,null,null,null,null,null,null,null,null,null,null,null,4,"0DOC_NUMBER","0DEL_BLOCK","Delivery block","0000","X","0","0","0","","","","","0000",""]
[null,null,null,null,null,null,null,null,null,null,null,null,null,null,null,null,null,null,null,null,null,null,null,null,null,null,null,null,null,null,null,null,null,null,null,null,null,null,null,null,null,null,null,null,null,null,null,null,null,null,null,null,null,null,null,null,null,null,null,null,null,null,null,null,null,null,null,null,null,null,null,null,null,null,null,null,null,null,null,null,null,null,null,null,null,null,null,null,null,null,null,null,null,null,null,null,null,null,null,null,null,null,null,null,null,null,null,null,null,null,4,"0DOC_NUMBER","0LOGSYS","Source System","0000","X","1","0","0","","","","","0000",""]
[null,null,null,null,null,null,null,null,null,null,null,null,null,null,null,null,null,null,null,null,null,null,null,null,null,null,null,null,null,null,null,null,null,null,null,null,null,null,null,null,null,null,null,null,null,null,null,null,null,null,null,null,null,null,null,null,null,null,null,null,null,null,null,null,null,null,null,null,null,null,null,null,null,null,null,null,null,null,null,null,null,null,null,null,null,null,null,null,null,null,null,null,null,null,null,null,null,null,null,null,null,null,null,null,null,null,null,null,null,null,4,"0DOC_NUMBER","0OPP_NUM","Opportunity","0000","X","1","0","0","","","","","0000",""]
[null,null,null,null,null,null,null,null,null,null,null,null,null,null,null,null,null,null,null,null,null,null,null,null,null,null,null,null,null,null,null,null,null,null,null,null,null,null,null,null,null,null,null,null,null,null,null,null,null,null,null,null,null,null,null,null,null,null,null,null,null,null,null,null,null,null,null,null,null,null,null,null,null,null,null,null,null,null,null,null,null,null,null,null,null,null,null,null,null,null,null,null,null,null,null,null,null,null,null,null,null,null,null,null,null,null,null,null,null,null,4,"0DOC_NUMBER","0PMNTTRMS","Payment terms","0000","X","2","0","0","","","","","0000",""]
[null,null,null,null,null,null,null,null,null,null,null,null,null,null,null,null,null,null,null,null,null,null,null,null,null,null,null,null,null,null,null,null,null,null,null,null,null,null,null,null,null,null,null,null,null,null,null,null,null,null,null,null,null,null,null,null,null,null,null,null,null,null,null,null,null,null,null,null,null,null,null,null,null,null,null,null,null,null,null,null,null,null,null,null,null,null,null,null,null,null,null,null,null,null,null,null,null,null,null,null,null,null,null,null,null,null,null,null,null,null,4,"0DOC_NUMBER","0SAL_PROM","Promotion of Sales","0000","X","1","0","0","","","","","0000",""]
[null,null,null,null,null,null,null,null,null,null,null,null,null,null,null,null,null,null,null,null,null,null,null,null,null,null,null,null,null,null,null,null,null,null,null,null,null,null,null,null,null,null,null,null,null,null,null,null,null,null,null,null,null,null,null,null,null,null,null,null,null,null,null,null,null,null,null,null,null,null,null,null,null,null,null,null,null,null,null,null,null,null,null,null,null,null,null,null,null,null,null,null,null,null,null,null,null,null,null,null,null,null,null,null,null,null,null,null,null,null,4,"0DOC_NUMBER","0SLS_ACTIV","Promotional Activity","0000","X","1","0","0","","","","","0000",""]
[null,null,null,null,null,null,null,null,null,null,null,null,null,null,null,null,null,null,null,null,null,null,null,null,null,null,null,null,null,null,null,null,null,null,null,null,null,null,null,null,null,null,null,null,null,null,null,null,null,null,null,null,null,null,null,null,null,null,null,null,null,null,null,null,null,null,null,null,null,null,null,null,null,null,null,null,null,null,null,null,null,null,null,null,null,null,null,null,null,null,null,null,null,null,null,null,null,null,null,null,null,null,null,null,null,null,null,null,null,null,4,"0DOC_NUMBER","CH3ARUN0","Overall Allocation S","0000","X","1","0","0","","","","","0000",""]
[null,null,null,null,null,null,null,null,null,null,null,null,null,null,null,null,null,null,null,null,null,null,null,null,null,null,null,null,null,null,null,null,null,null,null,null,null,null,null,null,null,null,null,null,null,null,null,null,null,null,null,null,null,null,null,null,null,null,null,null,null,null,null,null,null,null,null,null,null,null,null,null,null,null,null,null,null,null,null,null,null,null,null,null,null,null,null,null,null,null,null,null,null,null,null,null,null,null,null,null,null,null,null,null,null,null,null,null,null,null,4,"0DOC_NUMBER","CH3ARUN1","Alloc. Sts of Sls. D","0000","X","1","0","0","","","","","0000",""]
[null,null,null,null,null,null,null,null,null,null,null,null,null,null,null,null,null,null,null,null,null,null,null,null,null,null,null,null,null,null,null,null,null,null,null,null,null,null,null,null,null,null,null,null,null,null,null,null,null,null,null,null,null,null,null,null,null,null,null,null,null,null,null,null,null,null,null,null,null,null,null,null,null,null,null,null,null,null,null,null,null,null,null,null,null,null,null,null,null,null,null,null,null,null,null,null,null,null,null,null,null,null,null,null,null,null,null,null,null,null,4,"0DOC_NUMBER","CHAUTLF","Complete Delivery De","0000","X","1","0","0","","","","","0000",""]
[null,null,null,null,null,null,null,null,null,null,null,null,null,null,null,null,null,null,null,null,null,null,null,null,null,null,null,null,null,null,null,null,null,null,null,null,null,null,null,null,null,null,null,null,null,null,null,null,null,null,null,null,null,null,null,null,null,null,null,null,null,null,null,null,null,null,null,null,null,null,null,null,null,null,null,null,null,null,null,null,null,null,null,null,null,null,null,null,null,null,null,null,null,null,null,null,null,null,null,null,null,null,null,null,null,null,null,null,null,null,4,"0DOC_NUMBER","CHCMGST","Overall Status of CC","0000","X","1","0","0","","","","","0000",""]
[null,null,null,null,null,null,null,null,null,null,null,null,null,null,null,null,null,null,null,null,null,null,null,null,null,null,null,null,null,null,null,null,null,null,null,null,null,null,null,null,null,null,null,null,null,null,null,null,null,null,null,null,null,null,null,null,null,null,null,null,null,null,null,null,null,null,null,null,null,null,null,null,null,null,null,null,null,null,null,null,null,null,null,null,null,null,null,null,null,null,null,null,null,null,null,null,null,null,null,null,null,null,null,null,null,null,null,null,null,null,4,"0DOC_NUMBER","CHILNCODE","Affiliate ILN code","0000","X","2","0","0","","","","","0000",""]
[null,null,null,null,null,null,null,null,null,null,null,null,null,null,null,null,null,null,null,null,null,null,null,null,null,null,null,null,null,null,null,null,null,null,null,null,null,null,null,null,null,null,null,null,null,null,null,null,null,null,null,null,null,null,null,null,null,null,null,null,null,null,null,null,null,null,null,null,null,null,null,null,null,null,null,null,null,null,null,null,null,null,null,null,null,null,null,null,null,null,null,null,null,null,null,null,null,null,null,null,null,null,null,null,null,null,null,null,null,null,4,"0DOC_NUMBER","CHSPSTG","Overall Blocked Stat","0000","X","1","0","0","","","","","0000",""]
[null,null,null,null,null,null,null,null,null,null,null,null,null,null,null,null,null,null,null,null,null,null,null,null,null,null,null,null,null,null,null,null,null,null,null,null,null,null,null,null,null,null,null,null,null,null,null,null,null,null,null,null,null,null,null,null,null,null,null,null,null,null,null,null,null,null,null,null,null,null,null,null,null,null,null,null,null,null,null,null,null,null,null,null,null,null,null,null,null,null,null,null,null,null,null,null,null,null,null,null,null,null,null,null,null,null,null,null,null,null,4,"0CUSTOMER__CHCUVOL","CHSORTORD","Sort Order","0000","X","2","0","0","","","","","0000",""]
[null,null,null,null,null,null,null,null,null,null,null,null,null,null,null,null,null,null,null,null,null,null,null,null,null,null,null,null,null,null,null,null,null,null,null,null,null,null,null,null,null,null,null,null,null,null,null,null,null,null,null,null,null,null,null,null,null,null,null,null,null,null,null,null,null,null,null,null,null,null,null,null,null,null,null,null,null,null,null,null,null,null,null,null,null,null,null,null,null,null,null,null,null,null,null,null,null,null,null,null,null,null,null,null,null,null,null,null,null,null,4,"0CUSTOMER__CHCUIMAGE","CHSORTORD","Sort Order","0000","X","2","0","0","","","","","0000",""]
[null,null,null,null,null,null,null,null,null,null,null,null,null,null,null,null,null,null,null,null,null,null,null,null,null,null,null,null,null,null,null,null,null,null,null,null,null,null,null,null,null,null,null,null,null,null,null,null,null,null,null,null,null,null,null,null,null,null,null,null,null,null,null,null,null,null,null,null,null,null,null,null,null,null,null,null,null,null,null,null,null,null,null,null,null,null,null,null,null,null,null,null,null,null,null,null,null,null,null,null,null,null,null,null,null,null,null,null,null,null,4,"0CUSTOMER__CHCULOC","CHSORTORD","Sort Order","0000","X","2","0","0","","","","","0000",""]
[null,null,null,null,null,null,null,null,null,null,null,null,null,null,null,null,null,null,null,null,null,null,null,null,null,null,null,null,null,null,null,null,null,null,null,null,null,null,null,null,null,null,null,null,null,null,null,null,null,null,null,null,null,null,null,null,null,null,null,null,null,null,null,null,null,null,null,null,null,null,null,null,null,null,null,null,null,null,null,null,null,null,null,null,null,null,null,null,null,null,null,null,null,null,null,null,null,null,null,null,null,null,null,null,null,null,null,null,null,null,4,"0CUSTOMER__CHCUBPTI","CHSORTORD","Sort Order","0000","X","2","0","0","","","","","0000",""]
[null,null,null,null,null,null,null,null,null,null,null,null,null,null,null,null,null,null,null,null,null,null,null,null,null,null,null,null,null,null,null,null,null,null,null,null,null,null,null,null,null,null,null,null,null,null,null,null,null,null,null,null,null,null,null,null,null,null,null,null,null,null,null,null,null,null,null,null,null,null,null,null,null,null,null,null,null,null,null,null,null,null,null,null,null,null,null,null,null,null,null,null,null,null,null,null,null,null,null,null,null,null,null,null,null,null,null,null,null,null,4,"0CUSTOMER__CHCUBPSL","CHSORTORD","Sort Order","0000","X","2","0","0","","","","","0000",""]
[null,null,null,null,null,null,null,null,null,null,null,null,null,null,null,null,null,null,null,null,null,null,null,null,null,null,null,null,null,null,null,null,null,null,null,null,null,null,null,null,null,null,null,null,null,null,null,null,null,null,null,null,null,null,null,null,null,null,null,null,null,null,null,null,null,null,null,null,null,null,null,null,null,null,null,null,null,null,null,null,null,null,null,null,null,null,null,null,null,null,null,null,null,null,null,null,null,null,null,null,null,null,null,null,null,null,null,null,null,null,4,"0CUSTOMER__CHCUBPVAL","CHSORTORD","Sort Order","0000","X","2","0","0","","","","","0000",""]
[null,null,null,null,null,null,null,null,null,null,null,null,null,null,null,null,null,null,null,null,null,null,null,null,null,null,null,null,null,null,null,null,null,null,null,null,null,null,null,null,null,null,null,null,null,null,null,null,null,null,null,null,null,null,null,null,null,null,null,null,null,null,null,null,null,null,null,null,null,null,null,null,null,null,null,null,null,null,null,null,null,null,null,null,null,null,null,null,null,null,null,null,null,null,null,null,null,null,null,null,null,null,null,null,null,null,null,null,null,null,4,"0CUSTOMER__CHCUBPHOM","CHSORTORD","Sort Order","0000","X","2","0","0","","","","","0000",""]
[null,null,null,null,null,null,null,null,null,null,null,null,null,null,null,null,null,null,null,null,null,null,null,null,null,null,null,null,null,null,null,null,null,null,null,null,null,null,null,null,null,null,null,null,null,null,null,null,null,null,null,null,null,null,null,null,null,null,null,null,null,null,null,null,null,null,null,null,null,null,null,null,null,null,null,null,null,null,null,null,null,null,null,null,null,null,null,null,null,null,null,null,null,null,null,null,null,null,null,null,null,null,null,null,null,null,null,null,null,null,4,"0CUSTOMER__CHCUBPOTH","CHSORTORD","Sort Order","0000","X","2","0","0","","","","","0000",""]
[null,null,null,null,null,null,null,null,null,null,null,null,null,null,null,null,null,null,null,null,null,null,null,null,null,null,null,null,null,null,null,null,null,null,null,null,null,null,null,null,null,null,null,null,null,null,null,null,null,null,null,null,null,null,null,null,null,null,null,null,null,null,null,null,null,null,null,null,null,null,null,null,null,null,null,null,null,null,null,null,null,null,null,null,null,null,null,null,null,null,null,null,null,null,null,null,null,null,null,null,null,null,null,null,null,null,null,null,null,null,4,"0CUSTOMER__CHCUSLCHL","CHSORTORD","Sort Order","0000","X","2","0","0","","","","","0000",""]
[null,null,null,null,null,null,null,null,null,null,null,null,null,null,null,null,null,null,null,null,null,null,null,null,null,null,null,null,null,null,null,null,null,null,null,null,null,null,null,null,null,null,null,null,null,null,null,null,null,null,null,null,null,null,null,null,null,null,null,null,null,null,null,null,null,null,null,null,null,null,null,null,null,null,null,null,null,null,null,null,null,null,null,null,null,null,null,null,null,null,null,null,null,null,null,null,null,null,null,null,null,null,null,null,null,null,null,null,null,null,4,"0CUSTOMER__CHCUSCHTP","CHSORTORD","Sort Order","0000","X","2","0","0","","","","","0000",""]
[null,null,null,null,null,null,null,null,null,null,null,null,null,null,null,null,null,null,null,null,null,null,null,null,null,null,null,null,null,null,null,null,null,null,null,null,null,null,null,null,null,null,null,null,null,null,null,null,null,null,null,null,null,null,null,null,null,null,null,null,null,null,null,null,null,null,null,null,null,null,null,null,null,null,null,null,null,null,null,null,null,null,null,null,null,null,null,null,null,null,null,null,null,null,null,null,null,null,null,null,null,null,null,null,null,null,null,null,null,null,4,"0CUSTOMER__CHCUBUSTY","CHSORTORD","Sort Order","0000","X","2","0","0","","","","","0000",""]
[null,null,null,null,null,null,null,null,null,null,null,null,null,null,null,null,null,null,null,null,null,null,null,null,null,null,null,null,null,null,null,null,null,null,null,null,null,null,null,null,null,null,null,null,null,null,null,null,null,null,null,null,null,null,null,null,null,null,null,null,null,null,null,null,null,null,null,null,null,null,null,null,null,null,null,null,null,null,null,null,null,null,null,null,null,null,null,null,null,null,null,null,null,null,null,null,null,null,null,null,null,null,null,null,null,null,null,null,null,null,4,"0CUSTOMER__CHCUCUSPR","CHSORTORD","Sort Order","0000","X","2","0","0","","","","","0000",""]
[null,null,null,null,null,null,null,null,null,null,null,null,null,null,null,null,null,null,null,null,null,null,null,null,null,null,null,null,null,null,null,null,null,null,null,null,null,null,null,null,null,null,null,null,null,null,null,null,null,null,null,null,null,null,null,null,null,null,null,null,null,null,null,null,null,null,null,null,null,null,null,null,null,null,null,null,null,null,null,null,null,null,null,null,null,null,null,null,null,null,null,null,null,null,null,null,null,null,null,null,null,null,null,null,null,null,null,null,null,null,4,"0MATERIAL__CHPGBRAND","CHSORTORD","Sort Order","0000","X","2","0","0","","","","","0000",""]
[null,null,null,null,null,null,null,null,null,null,null,null,null,null,null,null,null,null,null,null,null,null,null,null,null,null,null,null,null,null,null,null,null,null,null,null,null,null,null,null,null,null,null,null,null,null,null,null,null,null,null,null,null,null,null,null,null,null,null,null,null,null,null,null,null,null,null,null,null,null,null,null,null,null,null,null,null,null,null,null,null,null,null,null,null,null,null,null,null,null,null,null,null,null,null,null,null,null,null,null,null,null,null,null,null,null,null,null,null,null,4,"0MATERIAL__CHPGLINE","CHSORTORD","Sort Order","0000","X","2","0","0","","","","","0000",""]

{"sheet":"SAPBEXfiltersDefunct","index":1,"n_rows":3,"n_cols":206,"rows_kept":3,"cut":false,"hidden":true,"merged":[]}
[]
[null,null,null,null,null,null,null,null,null,null,null,null,null,null,null,null,null,null,null,null,null,null,null,null,null,null,null,null,null,null,null,null,null,null,null,null,null,null,null,null,null,null,null,null,null,null,null,null,null,null,null,null,null,null,null,null,null,null,null,null,null,null,null,null,null,null,null,null,null,null,null,null,null,null,null,null,null,null,null,null,null,null,null,null,null,null,null,null,null,null,null,null,null,null,null,null,null,null,null,null,0,null,null,null,null,null,null,null,null,null,null,null,null,null,null,null,null,null,null,null,null,null,null,null,null,null,null,null,null,null,null,null,null,null,null,null,null,null,null,null,null,null,null,null,null,null,null,null,null,null,null,null,null,null,null,0,null,null,null,null,null,null,null,null,null,null,null,null,null,null,null,null,null,null,null,null,null,null,null,null,null,null,null,null,null,null,null,null,null,null,null,null,null,null,null,null,null,null,null,null,null,null,null,null,null,0]
[null,null,null,null,null,null,null,null,null,null,null,null,null,null,null,null,null,null,null,null,null,null,null,null,null,null,null,null,null,null,null,null,null,null,null,null,null,null,null,null,null,null,null,null,null,null,null,null,null,null,null,null,null,null,null,null,null,null,null,null,null,null,null,null,null,null,null,null,null,null,null,null,null,null,null,null,null,null,null,null,null,null,null,null,null,null,null,null,null,null,null,null,null,null,null,null,null,null,null,null,8,null,null,null,null,null,null,null,null,null,null,null,null,null,null,null,null,null,null,null,null,null,null,null,null,null,null,null,null,null,null,null,null,null,null,null,null,null,null,null,null,null,null,null,null,null,null,null,null,null,null,null,null,null,null,12,null,null,null,null,null,null,null,null,null,null,null,null,null,null,null,null,null,null,null,null,null,null,null,null,null,null,null,null,null,null,null,null,null,null,null,null,null,null,null,null,null,null,null,null,null,null,null,null,null,31]

{"sheet":"BExRepositorySheet","index":2,"n_rows":1,"n_cols":1,"rows_kept":1,"cut":false,"hidden":true,"merged":[]}
[7]

{"sheet":"Foglio1","index":3,"n_rows":18,"n_cols":23,"rows_kept":18,"cut":false,"hidden":false,"merged":[]}
[]
[]
[null,null,"codice","Articolo","colore",null,"Cup","70","75","80","85","90","95","100","38","40","42","44","46","48","totale","PREZZO WHOLESALER","PREZZO RETAIL"]
[null,"Bra","10181303","Dahlia Florale W","0004","BLACK","B",null,124,143,55,33,2,2,null,null,null,null,null,null,359]
[null,"Bra","10181303","Dahlia Florale W","0004","BLACK","C",1,80,61,61,69,11,2,null,null,null,null,null,null,285]
[null,"Bra","10181303","Dahlia Florale W","0004","BLACK","D",35,11,119,50,43,4,14,null,null,null,null,null,null,276]
[null,"Bra","10181303","Dahlia Florale W","0004","BLACK","E",5,43,50,40,25,14,13,null,null,null,null,null,null,190]
[null,"Bra","10181303","Dahlia Florale W","0004","BLACK","F",24,31,49,11,18,17,17,null,null,null,null,null,null,167]
[null,"Totale Dahlia bra",null,null,null,null,null,{"$f":"SUM(H4:H8)","v":65},{"$f":"SUM(I4:I8)","v":289},422,217,188,48,48,null,null,null,null,null,null,1277,39.5,84.9]
[null,"Briefs","10181784","Dahlia Florale Maxi","0004","BLACK",null,null,null,null,null,null,null,null,67,63,91,81,64,37,403]
[null,"Briefs","10181785","Dahlia Florale Tai","0004","BLACK",null,null,null,null,null,null,null,null,73,50,53,64,42,15,297]
[null,"Totale Dahlia brief",null,null,null,null,null,null,null,null,null,null,null,null,{"$f":"SUM(O10:O11)","v":140},{"$f":"SUM(P10:P11)","v":113},144,145,106,52,{"$f":"SUM(U10:U11)","v":700},23.5,49.9]
[null,"Body","10181818","Wild Rose Florale BSW","0004","BLACK","D",null,null,36,34,36,null,null,null,null,null,null,null,null,106]
[null,"Totale Wild Rose Body",null,null,null,null,null,null,null,36,34,36,null,null,null,null,null,null,null,null,106,57.5,124.9]
[null,null,null,null,null,null,null,"XS","S","M","L"]
[null,"BODY","10181577","Amourette Spotlight BS01","0004","BLACK",null,312,583,598,415,null,null,null,null,null,null,null,null,null,{"$f":"SUM(H16:T16)","v":1908}]
[null,"Totale Amorette Body",null,null,null,null,null,{"$f":"SUM(H16)","v":312},{"$f":"SUM(I16)","v":583},598,415,null,null,null,null,null,null,null,null,null,1908,25.5,54.9]
[null,"totale",null,null,null,null,null,{"$f":"H9+H12+H14+H17","v":377},{"$f":"I9+I12+I14+I17","v":872},1056,666,224,48,48,140,113,144,145,106,52,{"$f":"U9+U12+U14+U17","v":3991}]